Workbook

Sheet For Bill Impact(HideBeforeFile) (hidden)
A1: Summary of Rates and Rate Riders
C3: Current Rates
C5: Rate Group | D5: Commodity | E5: System Gas | F5: REDA | G5: PGTVA | H5: ADVADA | I5: LDMDA | J5: SICDA | K5: Federal Carbon | L5: Facility Carbon | M5: Dist. Customer Rate | N5: Dist. Vol. Rate Tier 1 | O5: Dist. Vol. Rate Tier 2 | P5: Dist. Vol. Rate Tier 3 | Q5: Dist. Capacity Rate
C6: ='B1.1 Current Distribution Rates'!C16 -> RATE 1 - General Service Rate - Residential | D6: =13.0605+0.2017 -> 13.2622 | E6: ='B1.1 Current Distribution Rates'!L16 -> 0.0435 | F6: ='C1.1 Current Rate Riders'!E16 -> 0.78 | G6: ='C1.1 Current Rate Riders'!F16 -> 0.3113 | H6: ='C1.1 Current Rate Riders'!H16 -> 0.1508 | K6: 7.83 | L6: 0.0052 | M6: ='B1.1 Current Distribution Rates'!E16 -> 17.5 | N6: ='B1.1 Current Distribution Rates'!F16 -> 13.5701 | O6: ='B1.1 Current Distribution Rates'!G16 -> 10.9063 | P6: ="" ->  | Q6: ="" -> 
C7: ='B1.1 Current Distribution Rates'!C17 -> RATE 1 - General Service Rate - Commercial | D7: =D6 -> 13.2622 | E7: ='B1.1 Current Distribution Rates'!L17 -> 0.0435 | F7: ='C1.1 Current Rate Riders'!E17 -> 0.78 | G7: ='C1.1 Current Rate Riders'!F17 -> 0.3113 | H7: ='C1.1 Current Rate Riders'!H17 -> 0.1508 | K7: =K$6 -> 7.83 | L7: =L$6 -> 0.0052 | M7: ='B1.1 Current Distribution Rates'!E17 -> 17.5 | N7: ='B1.1 Current Distribution Rates'!F17 -> 13.5701 | O7: ='B1.1 Current Distribution Rates'!G17 -> 10.9063 | P7: ="" ->  | Q7: ="" -> 
C8: ='B1.1 Current Distribution Rates'!C18 -> RATE 1 - General Service Rate - Industrial | D8: =D7 -> 13.2622 | E8: ='B1.1 Current Distribution Rates'!L18 -> 0.0435 | F8: ='C1.1 Current Rate Riders'!E18 -> 0.78 | G8: ='C1.1 Current Rate Riders'!F18 -> 0.3113 | H8: ='C1.1 Current Rate Riders'!H18 -> 0.1508 | K8: =K$6 -> 7.83 | L8: 0.0052 | M8: ='B1.1 Current Distribution Rates'!E18 -> 17.5 | N8: ='B1.1 Current Distribution Rates'!F18 -> 13.5701 | O8: ='B1.1 Current Distribution Rates'!G18 -> 10.9063 | P8: ="" ->  | Q8: ="" -> 
C9: ='B1.1 Current Distribution Rates'!C19 -> RATE 2 - Seasonal Service - Apr to Oct | D9: 13.2622 | E9: ='B1.1 Current Distribution Rates'!L19 -> 0.0435 | F9: ='C1.1 Current Rate Riders'!E19 -> 0.78 | G9: ='C1.1 Current Rate Riders'!F19 -> 0.3113 | H9: ='C1.1 Current Rate Riders'!H19 -> 0.1508 | K9: 7.83 | L9: 0.0052 | M9: ='B1.1 Current Distribution Rates'!E19 -> 20 | N9: ='B1.1 Current Distribution Rates'!F19 -> 17.0841 | O9: ='B1.1 Current Distribution Rates'!H19 -> 8.8749 | P9: ='B1.1 Current Distribution Rates'!I19 -> 6.9188 | Q9: ="" -> 
C10: ='B1.1 Current Distribution Rates'!C20 -> RATE 2 - Seasonal Service - Nov to Mar | D10: 13.2622 | E10: ='B1.1 Current Distribution Rates'!L20 -> 0.0435 | F10: ='C1.1 Current Rate Riders'!E20 -> 0.78 | G10: ='C1.1 Current Rate Riders'!F20 -> 0.3113 | H10: ='C1.1 Current Rate Riders'!H20 -> 0.1508 | K10: 7.83 | L10: 0.0052 | M10: ='B1.1 Current Distribution Rates'!E20 -> 20 | N10: ='B1.1 Current Distribution Rates'!F20 -> 21.5342 | O10: ='B1.1 Current Distribution Rates'!H20 -> 14.6901 | P10: ='B1.1 Current Distribution Rates'!I20 -> 15.5875 | Q10: ="" -> 
C11: ='B1.1 Current Distribution Rates'!C21 -> RATE 3 - Special Large Volume Contract Rate | D11: 13.2622 | E11: ='B1.1 Current Distribution Rates'!L21 -> 0.0435 | F11: ='C1.1 Current Rate Riders'!E21 -> 0.78 | G11: ='C1.1 Current Rate Riders'!F21 -> 0.3113 | H11: ='C1.1 Current Rate Riders'!H21 -> 0.1508 | K11: 7.83 | L11: 0.0052 | M11: ='B1.1 Current Distribution Rates'!E21 -> 200 | N11: ='B1.1 Current Distribution Rates'!J21 -> 3.9173 | O11: ="" ->  | P11: ="" ->  | Q11: ='B1.1 Current Distribution Rates'!K21 -> 29.6806
C12: ='B1.1 Current Distribution Rates'!C22 -> RATE 4 - General Service Peaking - Apr to Dec | D12: 13.2622 | E12: ='B1.1 Current Distribution Rates'!L22 -> 0.0435 | F12: ='C1.1 Current Rate Riders'!E22 -> 0.78 | G12: ='C1.1 Current Rate Riders'!F22 -> 0.3113 | H12: ='C1.1 Current Rate Riders'!H22 -> 0.1508 | K12: 7.83 | L12: 0.0052 | M12: ='B1.1 Current Distribution Rates'!E22 -> 20 | N12: ='B1.1 Current Distribution Rates'!F22 -> 18.9314 | O12: ='B1.1 Current Distribution Rates'!G22 -> 11.6156 | P12: ="" ->  | Q12: ="" -> 
C13: ='B1.1 Current Distribution Rates'!C23 -> RATE 4 - General Service Peaking - Jan to Mar | D13: 13.2622 | E13: ='B1.1 Current Distribution Rates'!L23 -> 0.0435 | F13: ='C1.1 Current Rate Riders'!E23 -> 0.78 | G13: ='C1.1 Current Rate Riders'!F23 -> 0.3113 | H13: ='C1.1 Current Rate Riders'!H23 -> 0.1508 | K13: 7.83 | L13: 0.0052 | M13: ='B1.1 Current Distribution Rates'!E23 -> 20 | N13: ='B1.1 Current Distribution Rates'!F23 -> 24.1513 | O13: ='B1.1 Current Distribution Rates'!G23 -> 18.6627 | P13: ="" ->  | Q13: ="" -> 
C14: ='B1.1 Current Distribution Rates'!C24 -> RATE 5 - Interruptible Peaking Contract Rate | D14: 13.2622 | E14: ='B1.1 Current Distribution Rates'!L24 -> 0.0435 | F14: ='C1.1 Current Rate Riders'!E24 -> 0.78 | G14: ='C1.1 Current Rate Riders'!F24 -> 0.3113 | H14: ='C1.1 Current Rate Riders'!H24 -> 0.1508 | K14: 7.83 | L14: 0.0052 | M14: ='B1.1 Current Distribution Rates'!E24 -> 190 | N14: ='B1.1 Current Distribution Rates'!J24 -> 7.8027 | O14: ="" ->  | P14: ="" ->  | Q14: ="" -> 
C15: ='B1.1 Current Distribution Rates'!C25 -> RATE 6 - Integrated Grain Processors Co-Operative Aylmer Ethanol Production Facility | D15: ="" ->  | E15: ="" ->  | F15: ='C1.1 Current Rate Riders'!E25 -> 0.75 | G15: ='C1.1 Current Rate Riders'!G25 -> 0 | H15: ='C1.1 Current Rate Riders'!I25 -> 936.83 | K15: ="" ->  | L15: 0.0052 | M15: ='B1.1 Current Distribution Rates'!E25 -> 62332.06 | N15: ="" ->  | O15: ="" ->  | P15: ="" ->  | Q15: ="" -> 
C17: Proposed Rates
C19: =C5 -> Rate Group | D19: =D5 -> Commodity | E19: System Gas | F19: REDA | G19: PGTVA | H19: ADVADA | I19: =I5 -> LDMDA | J19: SICDA | K19: Federal Carbon | L19: Facility Carbon | M19: Dist. Customer Rate | N19: Dist. Vol. Rate Tier 1 | O19: Dist. Vol. Rate Tier 2 | P19: Dist. Vol. Rate Tier 3 | Q19: Dist. Capacity Rate
C20: =C6 -> RATE 1 - General Service Rate - Residential | D20: =D6 -> 13.2622 | E20: ='E1.1 Proposed Dist Rates '!L16 -> 0.0435 | F20: ='F1.1 REDA'!$H$22 -> 0.33 | G20: ='F1.2 PGTVA'!$G$16 -> 0.3194846212 | H20: ='F1.3 ADVADA'!$H$16 -> 0 | I20: ='F1.4 Proposed Rate Riders'!I13 -> 1.35 | J20: ='F1.4 Proposed Rate Riders'!J13 -> 0.2372 | K20: 7.83 | L20: 0.0052 | M20: ='E1.1 Proposed Dist Rates '!E16 -> 18.5 | N20: ='E1.1 Proposed Dist Rates '!F16 -> 13.71955556 | O20: ='E1.1 Proposed Dist Rates '!G16 -> 11.02641755 | P20: ="" ->  | Q20: ="" -> 
C21: =C7 -> RATE 1 - General Service Rate - Commercial | D21: =D7 -> 13.2622 | E21: ='E1.1 Proposed Dist Rates '!L17 -> 0.0435 | F21: ='F1.1 REDA'!$H$22 -> 0.33 | G21: ='F1.2 PGTVA'!$G$16 -> 0.3194846212 | H21: ='F1.3 ADVADA'!$H$16 -> 0 | I21: ='F1.4 Proposed Rate Riders'!I14 -> 1.35 | J21: ='F1.4 Proposed Rate Riders'!J14 -> 0.2372 | K21: =K$20 -> 7.83 | L21: =L$20 -> 0.0052 | M21: ='E1.1 Proposed Dist Rates '!E17 -> 18.5 | N21: ='E1.1 Proposed Dist Rates '!F17 -> 13.71955556 | O21: ='E1.1 Proposed Dist Rates '!G17 -> 11.02641755 | P21: ="" ->  | Q21: ="" -> 
C22: RATE 1 - General Service Rate - Industrial | D22: =D8 -> 13.2622 | E22: ='E1.1 Proposed Dist Rates '!L18 -> 0.0435 | F22: ='F1.1 REDA'!$H$22 -> 0.33 | G22: ='F1.2 PGTVA'!$G$16 -> 0.3194846212 | H22: ='F1.3 ADVADA'!$H$16 -> 0 | I22: ='F1.4 Proposed Rate Riders'!I15 -> 1.35 | J22: ='F1.4 Proposed Rate Riders'!J15 -> 0.2372 | K22: =K$20 -> 7.83 | L22: 0.0052 | M22: ='E1.1 Proposed Dist Rates '!E18 -> 18.5 | N22: ='E1.1 Proposed Dist Rates '!F18 -> 13.71955556 | O22: ='E1.1 Proposed Dist Rates '!G18 -> 11.02641755 | P22: ="" ->  | Q22: ="" -> 
C23: RATE 2 - Seasonal Service - Apr to Oct | D23: 13.2622 | E23: ='E1.1 Proposed Dist Rates '!L19 -> 0.0435 | F23: ='F1.1 REDA'!$H$22 -> 0.33 | G23: ='F1.2 PGTVA'!$G$16 -> 0.3194846212 | H23: ='F1.3 ADVADA'!$H$16 -> 0 | J23: ='F1.4 Proposed Rate Riders'!J16 -> 0.2372 | K23: 7.83 | L23: 0.0052 | M23: ='E1.1 Proposed Dist Rates '!E19 -> 20 | N23: ='E1.1 Proposed Dist Rates '!F19 -> 17.63866173 | O23: ='E1.1 Proposed Dist Rates '!H19 -> 9.162985406 | P23: ='E1.1 Proposed Dist Rates '!I19 -> 7.143389044 | Q23: ="" -> 
C24: RATE 2 - Seasonal Service - Nov to Mar | D24: 13.2622 | E24: ='E1.1 Proposed Dist Rates '!L20 -> 0.0435 | F24: ='F1.1 REDA'!$H$22 -> 0.33 | G24: ='F1.2 PGTVA'!$G$16 -> 0.3194846212 | H24: ='F1.3 ADVADA'!$H$16 -> 0 | J24: ='F1.4 Proposed Rate Riders'!J17 -> 0.2372 | K24: 7.83 | L24: 0.0052 | M24: ='E1.1 Proposed Dist Rates '!E20 -> 20 | N24: ='E1.1 Proposed Dist Rates '!F20 -> 22.23321506 | O24: ='E1.1 Proposed Dist Rates '!H20 -> 15.16695083 | P24: ='E1.1 Proposed Dist Rates '!I20 -> 16.09348106 | Q24: ="" -> 
C25: RATE 3 - Special Large Volume Contract Rate | D25: 13.2622 | E25: ='E1.1 Proposed Dist Rates '!L21 -> 0.0435 | F25: ='F1.1 REDA'!$H$22 -> 0.33 | G25: ='F1.2 PGTVA'!$G$16 -> 0.3194846212 | H25: ='F1.3 ADVADA'!$H$16 -> 0 | J25: ='F1.4 Proposed Rate Riders'!J18 -> 0.2372 | K25: 7.83 | L25: 0.0052 | M25: ='E1.1 Proposed Dist Rates '!E21 -> 200 | N25: ='E1.1 Proposed Dist Rates '!J21 -> 4.044497323 | O25: ="" ->  | P25: ="" ->  | Q25: ='E1.1 Proposed Dist Rates '!K21 -> 30.64434872
C26: RATE 4 - General Service Peaking - Apr to Dec | D26: 13.2622 | E26: ='E1.1 Proposed Dist Rates '!L22 -> 0.0435 | F26: ='F1.1 REDA'!$H$22 -> 0.33 | G26: ='F1.2 PGTVA'!$G$16 -> 0.3194846212 | H26: ='F1.3 ADVADA'!$H$16 -> 0 | J26: ='F1.4 Proposed Rate Riders'!J19 -> 0.2372 | K26: 7.83 | L26: 0.0052 | M26: ='E1.1 Proposed Dist Rates '!E22 -> 20 | N26: ='E1.1 Proposed Dist Rates '!F22 -> 19.50254777 | O26: ='E1.1 Proposed Dist Rates '!G22 -> 11.96603494 | P26: ="" ->  | Q26: ="" -> 
C27: RATE 4 - General Service Peaking - Jan to Mar | D27: 13.2622 | E27: ='E1.1 Proposed Dist Rates '!L23 -> 0.0435 | F27: ='F1.1 REDA'!$H$22 -> 0.33 | G27: ='F1.2 PGTVA'!$G$16 -> 0.3194846212 | H27: ='F1.3 ADVADA'!$H$16 -> 0 | J27: ='F1.4 Proposed Rate Riders'!J20 -> 0.2372 | K27: 7.83 | L27: 0.0052 | M27: ='E1.1 Proposed Dist Rates '!E23 -> 20 | N27: ='E1.1 Proposed Dist Rates '!F23 -> 24.87992869 | O27: ='E1.1 Proposed Dist Rates '!G23 -> 19.22574127 | P27: ="" ->  | Q27: ="" -> 
C28: RATE 5 - Interruptible Peaking Contract Rate | D28: 13.2622 | E28: ='E1.1 Proposed Dist Rates '!L24 -> 0.0435 | F28: ='F1.1 REDA'!$H$22 -> 0.33 | G28: ='F1.2 PGTVA'!$G$16 -> 0.3194846212 | H28: ='F1.3 ADVADA'!$H$16 -> 0 | J28: ='F1.4 Proposed Rate Riders'!J21 -> 0.2372 | K28: 7.83 | L28: 0.0052 | M28: ='E1.1 Proposed Dist Rates '!E24 -> 190 | N28: ='E1.1 Proposed Dist Rates '!J24 -> 8.060590841 | O28: ="" ->  | P28: ="" ->  | Q28: ="" -> 
C29: RATE 6 - Integrated Grain Processors Co-Operative Aylmer Ethanol Production Facility | D29: ="" ->  | E29: ="" ->  | F29: ='F1.1 REDA'!$H$23 -> 0.27 | G29: ="" ->  | H29: ='F1.3 ADVADA'!$H$17 -> 0 | I29: ="" ->  | J29: ="" ->  | K29: ="" ->  | L29: 0.0052 | M29: ='E1.1 Proposed Dist Rates '!E25 -> 64139.68974 | N29: ="" ->  | O29: ="" ->  | P29: ="" ->  | Q29: ="" -> 
C31: Average Bill Determinant per Customer
C33: =C47 -> Rate Group | D33: Commodity | E33: System Gas | F33: REDA | G33: PGTVA | H33: ADVADA | I33: =I47 -> LDMDA | J33: SICDA | K33: =K47 -> Federal Carbon | L33: Facility Carbon | M33: =M47 -> Dist. Customer Rate | N33: =N47 -> Dist. Vol. Rate Tier 1 | O33: =O47 -> Dist. Vol. Rate Tier 2 | P33: =P47 -> Dist. Vol. Rate Tier 3 | Q33: =Q47 -> Dist. Capacity Rate
C34: =C6 -> RATE 1 - General Service Rate - Residential | D34: =SUM($N34:$P34) -> 1871.440216 | E34: =SUM($N34:$P34) -> 1871.440216 | F34: =$M34 -> 12 | G34: 1871.440216 | H34: 1871.440216 | I34: =$M34 -> 12 | J34: 1871.440216 | K34: =SUM($N34:$P34) -> 1871.440216 | L34: =SUM($N34:$P34) -> 1871.440216 | M34: 12 | N34: ='B1.2 Billing Determinants'!F16/'B1.2 Billing Determinants'!$E16 -> 1856.373628 | O34: ='B1.2 Billing Determinants'!G16/'B1.2 Billing Determinants'!$E16 -> 15.06658794 | P34: ="" ->  | Q34: ="" -> 
C35: =C7 -> RATE 1 - General Service Rate - Commercial | D35: =SUM($N35:$P35) -> 9311.10573 | E35: 9311.10573 | F35: =$M35 -> 12 | G35: 9311.10573 | H35: 9311.10573 | I35: 12 | J35: 9311.10573 | K35: 9311.10573 | L35: 9311.10573 | M35: 12 | N35: ='B1.2 Billing Determinants'!F17/'B1.2 Billing Determinants'!$E17 -> 4509.203697 | O35: ='B1.2 Billing Determinants'!G17/'B1.2 Billing Determinants'!$E17 -> 4801.902033 | P35: ="" ->  | Q35: ="" -> 
C36: RATE 1 - General Service Rate - Industrial | D36: 30384.37671 | E36: 30384.37671 | F36: 12 | G36: 30384.37671 | H36: 30384.37671 | I36: 12 | J36: 30384.37671 | K36: 30384.37671 | L36: 30384.37671 | M36: 12 | N36: ='B1.2 Billing Determinants'!F18/'B1.2 Billing Determinants'!$E18 -> 6484.553425 | O36: ='B1.2 Billing Determinants'!G18/'B1.2 Billing Determinants'!$E18 -> 23899.82329 | P36: ="" ->  | Q36: ="" -> 
C37: RATE 2 - Seasonal Service - Apr to Oct | D37: 8701.576 | E37: 8701.576 | F37: 7 | G37: 8701.576 | H37: 8701.576 | I37: 7 | J37: 8701.576 | K37: 8701.576 | L37: 8701.576 | M37: 7 | N37: ='B1.2 Billing Determinants'!F19/'B1.2 Billing Determinants'!$E19 -> 1387.276 | O37: ='B1.2 Billing Determinants'!H19/'B1.2 Billing Determinants'!$E19 -> 6590.914 | P37: ='B1.2 Billing Determinants'!I19/'B1.2 Billing Determinants'!$E19 -> 723.386 | Q37: ="" -> 
C38: RATE 2 - Seasonal Service - Nov to Mar | D38: 7085.144 | E38: 7085.144 | F38: 5 | G38: 7085.144 | H38: 7085.144 | I38: 5 | J38: 7085.144 | K38: 7085.144 | L38: 7085.144 | M38: 5 | N38: ='B1.2 Billing Determinants'!F20/'B1.2 Billing Determinants'!$E20 -> 1407.398 | O38: ='B1.2 Billing Determinants'!H20/'B1.2 Billing Determinants'!$E20 -> 5451.648 | P38: ='B1.2 Billing Determinants'!I20/'B1.2 Billing Determinants'!$E20 -> 226.098 | Q38: ="" -> 
C39: RATE 3 - Special Large Volume Contract Rate | D39: 218425.45 | E39: 218425.45 | F39: 12 | G39: 218425.45 | H39: 218425.45 | I39: 12 | J39: 218425.45 | K39: 218425.45 | L39: 218425.45 | M39: 12 | N39: ='B1.2 Billing Determinants'!J21/'B1.2 Billing Determinants'!E21 -> 218425.45 | O39: ="" ->  | P39: ="" ->  | Q39: ='B1.2 Billing Determinants'!K21/'B1.2 Billing Determinants'!E21 -> 38737.2
C40: RATE 4 - General Service Peaking - Apr to Dec | D40: 32886.27317 | E40: 32886.27317 | F40: 9 | G40: 32886.27317 | H40: 32886.27317 | I40: 9 | J40: 32886.27317 | K40: 32886.27317 | L40: 32886.27317 | M40: 9 | N40: ='B1.2 Billing Determinants'!F22/'B1.2 Billing Determinants'!$E22 -> 2364.263415 | O40: ='B1.2 Billing Determinants'!G22/'B1.2 Billing Determinants'!$E22 -> 30522.00976 | P40: ="" ->  | Q40: ="" -> 
C41: RATE 4 - General Service Peaking - Jan to Mar | D41: 10251.38293 | E41: 10251.38293 | F41: 3 | G41: 10251.38293 | H41: 10251.38293 | I41: 3 | J41: 10251.38293 | K41: 10251.38293 | L41: 10251.38293 | M41: 3 | N41: ='B1.2 Billing Determinants'!F23/'B1.2 Billing Determinants'!$E23 -> 838.2268293 | O41: ='B1.2 Billing Determinants'!G23/'B1.2 Billing Determinants'!$E23 -> 9413.156098 | P41: ="" ->  | Q41: ="" -> 
C42: RATE 5 - Interruptible Peaking Contract Rate | D42: 209157.5 | E42: 209157.5 | F42: 12 | G42: 209157.5 | H42: 209157.5 | I42: 12 | J42: 209157.5 | K42: 209157.5 | L42: 209157.5 | M42: 12 | N42: ='B1.2 Billing Determinants'!J24/'B1.2 Billing Determinants'!E24 -> 209157.5 | O42: ="" ->  | P42: ="" ->  | Q42: ="" -> 
C43: RATE 6 - Integrated Grain Processors Co-Operative Aylmer Ethanol Production Facility | D43: ="" ->  | E43: ="" ->  | F43: 12 | G43: 12 | H43: 12 | I43: 12 | J43: 12 | K43: ="" ->  | L43: ='B1.2 Billing Determinants'!J25 -> 59999017 | M43: 12 | N43: ="" ->  | O43: ="" ->  | P43: ="" ->  | Q43: ="" -> 
C45: Label
C47: =C19 -> Rate Group | D47: Commodity | E47: System Gas | F47: REDA | G47: PGTVA | H47: ADVADA | I47: =I19 -> LDMDA | J47: SICDA | K47: =K19 -> Federal Carbon | L47: Facility Carbon | M47: =M19 -> Dist. Customer Rate | N47: =N19 -> Dist. Vol. Rate Tier 1 | O47: =O19 -> Dist. Vol. Rate Tier 2 | P47: =P19 -> Dist. Vol. Rate Tier 3 | Q47: =Q19 -> Dist. Capacity Rate
C48: =C6 -> RATE 1 - General Service Rate - Residential | D48: Commodity | E48: System Gas Charge | F48: REDA | G48: PGTVA | H48: ADVADA | I48: LDMDA | J48: SICDA | K48: Federal Carbon | L48: Facility Carbon | M48: Customer (excl. Bill 32) | N48: Block 1 (First 1,000 m3 per month) | O48: Block 2 (Over 1,000 m3 per month) | P48: ="" ->  | Q48: ="" -> 
C49: =C7 -> RATE 1 - General Service Rate - Commercial | D49: Commodity | E49: System Gas Charge | F49: REDA | G49: PGTVA | H49: ADVADA | I49: LDMDA | J49: SICDA | K49: Federal Carbon | L49: Facility Carbon | M49: Customer (excl. Bill 32) | N49: Block 1 (First 1,000 m3 per month) | O49: Block 2 (Over 1,000 m3 per month) | P49: ="" ->  | Q49: ="" -> 
C50: RATE 1 - General Service Rate - Industrial | D50: Commodity | E50: System Gas Charge | F50: REDA | G50: PGTVA | H50: ADVADA | I50: LDMDA | J50: SICDA | K50: Federal Carbon | L50: Facility Carbon | M50: Customer (excl. Bill 32) | N50: Block 1 (First 1,000 m3 per month) | O50: Block 2 (Over 1,000 m3 per month) | P50: ="" ->  | Q50: ="" -> 
C51: RATE 2 - Seasonal Service - Apr to Oct | D51: Commodity | E51: System Gas Charge | F51: REDA | G51: PGTVA | H51: ADVADA | I51: LDMDA | J51: SICDA | K51: Federal Carbon | L51: Facility Carbon | M51: Customer (excl. Bill 32) | N51: Block 1 (First 1,000 m3 per month) | O51: Block 2 (Next 24,000 m3 per month) | P51: Block 3 (Over 25,000 m3 per month) | Q51: ="" -> 
C52: RATE 2 - Seasonal Service - Nov to Mar | D52: Commodity | E52: System Gas Charge | F52: REDA | G52: PGTVA | H52: ADVADA | I52: LDMDA | J52: SICDA | K52: Federal Carbon | L52: Facility Carbon | M52: Customer (excl. Bill 32) | N52: Block 1 (First 1,000 m3 per month) | O52: Block 2 (Next 24,000 m3 per month) | P52: Block 3 (Over 25,000 m3 per month) | Q52: ="" -> 
C53: RATE 3 - Special Large Volume Contract Rate | D53: Commodity | E53: System Gas Charge | F53: REDA | G53: PGTVA | H53: ADVADA | I53: LDMDA | J53: SICDA | K53: Federal Carbon | L53: Facility Carbon | M53: Customer (excl. Bill 32) | N53: Delivery - Firm | O53: ="" ->  | P53: ="" ->  | Q53: Demand - Firm
C54: RATE 4 - General Service Peaking - Apr to Dec | D54: Commodity | E54: System Gas Charge | F54: REDA | G54: PGTVA | H54: ADVADA | I54: LDMDA | J54: SICDA | K54: Federal Carbon | L54: Facility Carbon | M54: Customer (excl. Bill 32) | N54: Block 1 (First 1,000 m3 per month) | O54: Block 2 (Over 1,000 m3 per month) | P54: ="" ->  | Q54: ="" -> 
C55: RATE 4 - General Service Peaking - Jan to Mar | D55: Commodity | E55: System Gas Charge | F55: REDA | G55: PGTVA | H55: ADVADA | I55: LDMDA | J55: SICDA | K55: Federal Carbon | L55: Facility Carbon | M55: Customer (excl. Bill 32) | N55: Block 1 (First 1,000 m3 per month) | O55: Block 2 (Over 1,000 m3 per month) | P55: ="" ->  | Q55: ="" -> 
C56: RATE 5 - Interruptible Peaking Contract Rate | D56: Commodity | E56: System Gas Charge | F56: REDA | G56: PGTVA | H56: ADVADA | I56: LDMDA | J56: SICDA | K56: Federal Carbon | L56: Facility Carbon | M56: Customer (excl. Bill 32) | N56: Delivery - Firm | O56: ="" ->  | P56: ="" ->  | Q56: ="" -> 
C57: RATE 6 - Integrated Grain Processors Co-Operative Aylmer Ethanol Production Facility | D57: ="" ->  | E57: ="" ->  | F57: REDA | G57: PGTVA | H57: ADVADA | I57: LDMDA | J57: SICDA | K57: ="" ->  | L57: Facility Carbon | M57: Customer (excl. Bill 32) | N57: ="" ->  | O57: ="" ->  | P57: ="" ->  | Q57: ="" -> 
C59: Unit
C61: =C33 -> Rate Group | D61: Commodity | E61: System Gas | F61: REDA | G61: PGTVA | H61: ADVADA | I61: =I33 -> LDMDA | J61: SICDA | K61: =K33 -> Federal Carbon | L61: Facility Carbon | M61: =M33 -> Dist. Customer Rate | N61: =N33 -> Dist. Vol. Rate Tier 1 | O61: =O33 -> Dist. Vol. Rate Tier 2 | P61: =P33 -> Dist. Vol. Rate Tier 3 | Q61: =Q33 -> Dist. Capacity Rate
C62: =C20 -> RATE 1 - General Service Rate - Residential | D62: cents / m3 | E62: cents / m3 | F62: $ / month | G62: cents / m3 | H62: cents / m3 | I62: $ / month | J62: ='F1.4 Proposed Rate Riders'!$J$11 -> cents / m3 | K62: cents / m3 | L62: cents / m3 | M62: $ / month | N62: cents / m3 | O62: cents / m3 | P62: ="" ->  | Q62: ="" -> 
C63: =C21 -> RATE 1 - General Service Rate - Commercial | D63: cents / m3 | E63: cents / m3 | F63: $ / month | G63: cents / m3 | H63: cents / m3 | I63: $ / month | J63: ='F1.4 Proposed Rate Riders'!$J$11 -> cents / m3 | K63: cents / m3 | L63: cents / m3 | M63: $ / month | N63: cents / m3 | O63: cents / m3 | P63: ="" ->  | Q63: ="" -> 
C64: RATE 1 - General Service Rate - Industrial | D64: cents / m3 | E64: cents / m3 | F64: $ / month | G64: cents / m3 | H64: cents / m3 | I64: $ / month | J64: ='F1.4 Proposed Rate Riders'!$J$11 -> cents / m3 | K64: cents / m3 | L64: cents / m3 | M64: $ / month | N64: cents / m3 | O64: cents / m3 | P64: ="" ->  | Q64: ="" -> 
C65: RATE 2 - Seasonal Service - Apr to Oct | D65: cents / m3 | E65: cents / m3 | F65: $ / month | G65: cents / m3 | H65: cents / m3 | I65: $ / month | J65: ='F1.4 Proposed Rate Riders'!$J$11 -> cents / m3 | K65: cents / m3 | L65: cents / m3 | M65: $ / month | N65: cents / m3 | O65: cents / m3 | P65: cents / m3 | Q65: ="" -> 
C66: RATE 2 - Seasonal Service - Nov to Mar | D66: cents / m3 | E66: cents / m3 | F66: $ / month | G66: cents / m3 | H66: cents / m3 | I66: $ / month | J66: ='F1.4 Proposed Rate Riders'!$J$11 -> cents / m3 | K66: cents / m3 | L66: cents / m3 | M66: $ / month | N66: cents / m3 | O66: cents / m3 | P66: cents / m3 | Q66: ="" -> 
C67: RATE 3 - Special Large Volume Contract Rate | D67: cents / m3 | E67: cents / m3 | F67: $ / month | G67: cents / m3 | H67: cents / m3 | I67: $ / month | J67: ='F1.4 Proposed Rate Riders'!$J$11 -> cents / m3 | K67: cents / m3 | L67: cents / m3 | M67: $ / month | N67: cents / m3 | O67: ="" ->  | P67: ="" ->  | Q67: cents / m3
C68: RATE 4 - General Service Peaking - Apr to Dec | D68: cents / m3 | E68: cents / m3 | F68: $ / month | G68: cents / m3 | H68: cents / m3 | I68: $ / month | J68: ='F1.4 Proposed Rate Riders'!$J$11 -> cents / m3 | K68: cents / m3 | L68: cents / m3 | M68: $ / month | N68: cents / m3 | O68: cents / m3 | P68: ="" ->  | Q68: ="" -> 
C69: RATE 4 - General Service Peaking - Jan to Mar | D69: cents / m3 | E69: cents / m3 | F69: $ / month | G69: cents / m3 | H69: cents / m3 | I69: $ / month | J69: ='F1.4 Proposed Rate Riders'!$J$11 -> cents / m3 | K69: cents / m3 | L69: cents / m3 | M69: $ / month | N69: cents / m3 | O69: cents / m3 | P69: ="" ->  | Q69: ="" -> 
C70: RATE 5 - Interruptible Peaking Contract Rate | D70: cents / m3 | E70: cents / m3 | F70: $ / month | G70: cents / m3 | H70: cents / m3 | I70: $ / month | J70: ='F1.4 Proposed Rate Riders'!$J$11 -> cents / m3 | K70: cents / m3 | L70: cents / m3 | M70: $ / month | N70: cents / m3 | O70: ="" ->  | P70: ="" ->  | Q70: ="" -> 
C71: RATE 6 - Integrated Grain Processors Co-Operative Aylmer Ethanol Production Facility | D71: ="" ->  | E71: ="" ->  | F71: $ / month | G71: $ / month | H71: $ / month | I71: $ / month | J71: ='F1.4 Proposed Rate Riders'!$J$11 -> cents / m3 | K71: ="" ->  | L71: cents / m3 | M71: $ / month | N71: ="" ->  | O71: ="" ->  | P71: ="" ->  | Q71: ="" -> 

Sheet A1.1 Distributor Information
C3: ="Name of LDC: " &D21 -> Name of LDC: EPCOR Natural Gas Limited Partnership
C4: ="OEB Application Number: " & D23 -> OEB Application Number: EB-2021-0215 Exhibit A - 2022 IRM Application
C11: Distributor Information
C21: Distributor Name | D21: EPCOR Natural Gas Limited Partnership
C23: OEB Application Number | D23: EB-2021-0215 Exhibit A - 2022 IRM Application
C30: =MID(CELL("filename",A1),FIND("]",CELL("filename",A1))+1,255) -> A1.1 Distributor Information

Sheet B1.1 Current Distribution Rates
C2: ='A1.1 Distributor Information'!C3 -> Name of LDC: EPCOR Natural Gas Limited Partnership
C3: ='A1.1 Distributor Information'!C4 -> OEB Application Number: EB-2021-0215 Exhibit A - 2022 IRM Application
C10: Current Distribution Tariff Sheet Rates
C15: Rate Group | E15: Monthly Service Charge (excl. Bill 32) | F15: Delivery First 1,000 m3 | G15: Delivery Over 1,000 m3 | H15: Delivery Next 24,000 m3 | I15: Delivery Over 25,000 m3 | J15: Delivery - Firm | K15: Demand - Firm | L15: Commodity | M15: Delivery - Int - Lower | N15: Delivery - Int - Upper
C16: RATE 1 - General Service Rate - Residential | E16: 17.5 | F16: 13.5701 | G16: 10.9063 | L16: 0.0435
C17: RATE 1 - General Service Rate - Commercial | E17: 17.5 | F17: 13.5701 | G17: 10.9063 | L17: 0.0435
C18: RATE 1 - General Service Rate - Industrial | E18: 17.5 | F18: 13.5701 | G18: 10.9063 | L18: 0.0435
C19: RATE 2 - Seasonal Service - Apr to Oct | E19: 20 | F19: 17.0841 | H19: 8.8749 | I19: 6.9188 | L19: 0.0435
C20: RATE 2 - Seasonal Service - Nov to Mar | E20: 20 | F20: 21.5342 | H20: 14.6901 | I20: 15.5875 | L20: 0.0435
C21: RATE 3 - Special Large Volume Contract Rate | E21: 200 | J21: 3.9173 | K21: 29.6806 | L21: 0.0435 | M21: 7.7527 | N21: 10.701
C22: RATE 4 - General Service Peaking - Apr to Dec | E22: 20 | F22: 18.9314 | G22: 11.6156 | L22: 0.0435
C23: RATE 4 - General Service Peaking - Jan to Mar | E23: 20 | F23: 24.1513 | G23: 18.6627 | L23: 0.0435
C24: RATE 5 - Interruptible Peaking Contract Rate | E24: 190 | J24: 7.8027 | K24: 1 | L24: 0.0435 | M24: 6.0876 | N24: 9.4318
C25: RATE 6 - Integrated Grain Processors Co-Operative Aylmer Ethanol Production Facility | E25: 62332.06 | J25: 0 | K25: 0 | M25: 0 | N25: 0
C27: 1 Placeholder rate for average application
C34: =MID(CELL("filename",A1),FIND("]",CELL("filename",A1))+1,255) -> B1.1 Current Distribution Rates

Sheet B1.2 Billing Determinants
C2: ='A1.1 Distributor Information'!C3 -> Name of LDC: EPCOR Natural Gas Limited Partnership
C3: ='A1.1 Distributor Information'!C4 -> OEB Application Number: EB-2021-0215 Exhibit A - 2022 IRM Application
C10: Billing Determinants - Actuals January 1, 2020 to December 31, 2020
C15: Rate Group | E15: Monthly Service Charge | F15: Delivery First 1,000 m3 | G15: Delivery Over 1,000 m3 | H15: Delivery Next 24,000 m3 | I15: Delivery Over 25,000 m3 | J15: Delivery - Firm | K15: Demand - Firm | L15: Commodity | M15: Delivery - Int - Lower | N15: Delivery - Int - Upper
C16: RATE 1 - General Service Rate - Residential | E16: 8892 | F16: 16506874.3 | G16: 133972.1 | L16: 16640846.4
C17: RATE 1 - General Service Rate - Commercial | E17: 541 | F17: 2439479.2 | G17: 2597829 | L17: 4526037.1
C18: RATE 1 - General Service Rate - Industrial | E18: 73 | F18: 473372.4 | G18: 1744687.1 | L18: 2218059.5
C19: RATE 2 - Seasonal Service - Apr to Oct | E19: 50 | F19: 69363.8 | H19: 329545.7 | I19: 36169.3 | L19: 435078.8
C20: RATE 2 - Seasonal Service - Nov to Mar | E20: 50 | F20: 70369.9 | H20: 272582.4 | I20: 11304.9 | L20: 354257.2
C21: RATE 3 - Special Large Volume Contract Rate | E21: 6 | J21: 1310552.7 | K21: 232423.2 | L21: 943264.4
C22: RATE 4 - General Service Peaking - Apr to Dec | E22: 41 | F22: 96934.8 | G22: 1251402.4 | L22: 1348337.2
C23: RATE 4 - General Service Peaking - Jan to Mar | E23: 41 | F23: 34367.3 | G23: 385939.4 | L23: 420306.7
C24: RATE 5 - Interruptible Peaking Contract Rate | E24: 4 | J24: 836630 | L24: 836630
C25: RATE 6 - Integrated Grain Processors Co-Operative Aylmer Ethanol Production Facility | E25: 1 | J25: 59999017
E26: =SUM(E16:E19,E21:E22,E24:E25) -> 9608 | F26: =SUM(F16:F25) -> 19690761.7 | G26: 6113830 | H26: 602128.1 | I26: 47474.2 | J26: 62146199.7 | K26: 232423.2 | L26: 27722817.3 | M26: =SUM(M16:M25) -> 0 | N26: =SUM(N16:N25) -> 0
C30: =MID(CELL("filename",A1),FIND("]",CELL("filename",A1))+1,255) -> B1.2 Billing Determinants

Sheet B1.3 Current Rev From Rates
C2: ='A1.1 Distributor Information'!C3 -> Name of LDC: EPCOR Natural Gas Limited Partnership
C3: ='A1.1 Distributor Information'!C4 -> OEB Application Number: EB-2021-0215 Exhibit A - 2022 IRM Application
C10: Revenue from Current Rates
C15: Rate Group | E15: Monthly Service Charge | F15: Delivery First 1,000 m3 | G15: Delivery Over 1,000 m3 | H15: Delivery Next 24,000 m3 | I15: Delivery Over 25,000 m3 | J15: Demand - Firm | K15: Delivery - Firm | L15: Commodity | M15: Delivery - Int - Lower | N15: Delivery - Int - Upper | O15: Total
C16: RATE 1 - General Service Rate - Residential | E16: ='B1.1 Current Distribution Rates'!E16*'B1.2 Billing Determinants'!E16*12 -> 1867320 | F16: ='B1.1 Current Distribution Rates'!F16*'B1.2 Billing Determinants'!F16/100 -> 2239999.349 | G16: ='B1.1 Current Distribution Rates'!G16*'B1.2 Billing Determinants'!G16/100 -> 14611.39914 | H16: ='B1.1 Current Distribution Rates'!H16*'B1.2 Billing Determinants'!H16/100 -> 0 | I16: ='B1.1 Current Distribution Rates'!I16*'B1.2 Billing Determinants'!I16/100 -> 0 | J16: ='B1.1 Current Distribution Rates'!J16*'B1.2 Billing Determinants'!J16/100 -> 0 | K16: ='B1.1 Current Distribution Rates'!K16*'B1.2 Billing Determinants'!K16/100 -> 0 | L16: ='B1.1 Current Distribution Rates'!L16*'B1.2 Billing Determinants'!L16/100 -> 7238.768184 | M16: ='B1.1 Current Distribution Rates'!M16*'B1.2 Billing Determinants'!M16/100 -> 0 | N16: ='B1.1 Current Distribution Rates'!N16*'B1.2 Billing Determinants'!N16/100 -> 0 | O16: =SUM(E16:N16) -> 4129169.517
C17: RATE 1 - General Service Rate - Commercial | E17: ='B1.1 Current Distribution Rates'!E17*'B1.2 Billing Determinants'!E17*12 -> 113610 | F17: ='B1.1 Current Distribution Rates'!F17*'B1.2 Billing Determinants'!F17/100 -> 331039.7669 | G17: ='B1.1 Current Distribution Rates'!G17*'B1.2 Billing Determinants'!G17/100 -> 283327.0242 | H17: ='B1.1 Current Distribution Rates'!H17*'B1.2 Billing Determinants'!H17/100 -> 0 | I17: ='B1.1 Current Distribution Rates'!I17*'B1.2 Billing Determinants'!I17/100 -> 0 | J17: ='B1.1 Current Distribution Rates'!J17*'B1.2 Billing Determinants'!J17/100 -> 0 | K17: ='B1.1 Current Distribution Rates'!K17*'B1.2 Billing Determinants'!K17/100 -> 0 | L17: ='B1.1 Current Distribution Rates'!L17*'B1.2 Billing Determinants'!L17/100 -> 1968.826138 | M17: ='B1.1 Current Distribution Rates'!M17*'B1.2 Billing Determinants'!M17/100 -> 0 | N17: ='B1.1 Current Distribution Rates'!N17*'B1.2 Billing Determinants'!N17/100 -> 0 | O17: =SUM(E17:N17) -> 729945.6173
C18: RATE 1 - General Service Rate - Industrial | E18: ='B1.1 Current Distribution Rates'!E18*'B1.2 Billing Determinants'!E18*12 -> 15330 | F18: ='B1.1 Current Distribution Rates'!F18*'B1.2 Billing Determinants'!F18/100 -> 64237.10805 | G18: ='B1.1 Current Distribution Rates'!G18*'B1.2 Billing Determinants'!G18/100 -> 190280.8092 | H18: ='B1.1 Current Distribution Rates'!H18*'B1.2 Billing Determinants'!H18/100 -> 0 | I18: ='B1.1 Current Distribution Rates'!I18*'B1.2 Billing Determinants'!I18/100 -> 0 | J18: ='B1.1 Current Distribution Rates'!J18*'B1.2 Billing Determinants'!J18/100 -> 0 | K18: ='B1.1 Current Distribution Rates'!K18*'B1.2 Billing Determinants'!K18/100 -> 0 | L18: ='B1.1 Current Distribution Rates'!L18*'B1.2 Billing Determinants'!L18/100 -> 964.8558825 | M18: ='B1.1 Current Distribution Rates'!M18*'B1.2 Billing Determinants'!M18/100 -> 0 | N18: ='B1.1 Current Distribution Rates'!N18*'B1.2 Billing Determinants'!N18/100 -> 0 | O18: =SUM(E18:N18) -> 270812.7731
C19: RATE 2 - Seasonal Service - Apr to Oct | E19: ='B1.1 Current Distribution Rates'!E19*'B1.2 Billing Determinants'!E19*7 -> 7000 | F19: ='B1.1 Current Distribution Rates'!F19*'B1.2 Billing Determinants'!F19/100 -> 11850.18096 | G19: ='B1.1 Current Distribution Rates'!G19*'B1.2 Billing Determinants'!G19/100 -> 0 | H19: ='B1.1 Current Distribution Rates'!H19*'B1.2 Billing Determinants'!H19/100 -> 29246.85133 | I19: ='B1.1 Current Distribution Rates'!I19*'B1.2 Billing Determinants'!I19/100 -> 2502.481528 | J19: ='B1.1 Current Distribution Rates'!J19*'B1.2 Billing Determinants'!J19/100 -> 0 | K19: ='B1.1 Current Distribution Rates'!K19*'B1.2 Billing Determinants'!K19/100 -> 0 | L19: ='B1.1 Current Distribution Rates'!L19*'B1.2 Billing Determinants'!L19/100 -> 189.259278 | M19: ='B1.1 Current Distribution Rates'!M19*'B1.2 Billing Determinants'!M19/100 -> 0 | N19: ='B1.1 Current Distribution Rates'!N19*'B1.2 Billing Determinants'!N19/100 -> 0 | O19: =SUM(E19:N19) -> 50788.77309
C20: RATE 2 - Seasonal Service - Nov to Mar | E20: ='B1.1 Current Distribution Rates'!E20*'B1.2 Billing Determinants'!E20*5 -> 5000 | F20: ='B1.1 Current Distribution Rates'!F20*'B1.2 Billing Determinants'!F20/100 -> 15153.59501 | G20: ='B1.1 Current Distribution Rates'!G20*'B1.2 Billing Determinants'!G20/100 -> 0 | H20: ='B1.1 Current Distribution Rates'!H20*'B1.2 Billing Determinants'!H20/100 -> 40042.62714 | I20: ='B1.1 Current Distribution Rates'!I20*'B1.2 Billing Determinants'!I20/100 -> 1762.151288 | J20: ='B1.1 Current Distribution Rates'!J20*'B1.2 Billing Determinants'!J20/100 -> 0 | K20: ='B1.1 Current Distribution Rates'!K20*'B1.2 Billing Determinants'!K20/100 -> 0 | L20: ='B1.1 Current Distribution Rates'!L20*'B1.2 Billing Determinants'!L20/100 -> 154.101882 | M20: ='B1.1 Current Distribution Rates'!M20*'B1.2 Billing Determinants'!M20/100 -> 0 | N20: ='B1.1 Current Distribution Rates'!N20*'B1.2 Billing Determinants'!N20/100 -> 0 | O20: =SUM(E20:N20) -> 62112.47532
C21: RATE 3 - Special Large Volume Contract Rate | E21: ='B1.1 Current Distribution Rates'!E21*'B1.2 Billing Determinants'!E21*12 -> 14400 | F21: ='B1.1 Current Distribution Rates'!F21*'B1.2 Billing Determinants'!F21/100 -> 0 | G21: ='B1.1 Current Distribution Rates'!G21*'B1.2 Billing Determinants'!G21/100 -> 0 | H21: ='B1.1 Current Distribution Rates'!H21*'B1.2 Billing Determinants'!H21/100 -> 0 | I21: ='B1.1 Current Distribution Rates'!I21*'B1.2 Billing Determinants'!I21/100 -> 0 | J21: ='B1.1 Current Distribution Rates'!J21*'B1.2 Billing Determinants'!J21/100 -> 51338.28092 | K21: ='B1.1 Current Distribution Rates'!K21*'B1.2 Billing Determinants'!K21/100 -> 68984.6003 | L21: ='B1.1 Current Distribution Rates'!L21*'B1.2 Billing Determinants'!L21/100 -> 410.320014 | M21: ='B1.1 Current Distribution Rates'!M21*'B1.2 Billing Determinants'!M21/100 -> 0 | N21: ='B1.1 Current Distribution Rates'!N21*'B1.2 Billing Determinants'!N21/100 -> 0 | O21: 135133.2012
C22: RATE 4 - General Service Peaking - Apr to Dec | E22: ='B1.1 Current Distribution Rates'!E22*'B1.2 Billing Determinants'!E22*9 -> 7380 | F22: ='B1.1 Current Distribution Rates'!F22*'B1.2 Billing Determinants'!F22/100 -> 18351.11473 | G22: ='B1.1 Current Distribution Rates'!G22*'B1.2 Billing Determinants'!G22/100 -> 145357.8972 | H22: ='B1.1 Current Distribution Rates'!H22*'B1.2 Billing Determinants'!H22/100 -> 0 | I22: ='B1.1 Current Distribution Rates'!I22*'B1.2 Billing Determinants'!I22/100 -> 0 | J22: ='B1.1 Current Distribution Rates'!J22*'B1.2 Billing Determinants'!J22/100 -> 0 | K22: ='B1.1 Current Distribution Rates'!K22*'B1.2 Billing Determinants'!K22/100 -> 0 | L22: ='B1.1 Current Distribution Rates'!L22*'B1.2 Billing Determinants'!L22/100 -> 586.526682 | M22: ='B1.1 Current Distribution Rates'!M22*'B1.2 Billing Determinants'!M22/100 -> 0 | N22: ='B1.1 Current Distribution Rates'!N22*'B1.2 Billing Determinants'!N22/100 -> 0 | O22: 171675.5386
C23: RATE 4 - General Service Peaking - Jan to Mar | E23: ='B1.1 Current Distribution Rates'!E23*'B1.2 Billing Determinants'!E23*3 -> 2460 | F23: ='B1.1 Current Distribution Rates'!F23*'B1.2 Billing Determinants'!F23/100 -> 8300.149725 | G23: ='B1.1 Current Distribution Rates'!G23*'B1.2 Billing Determinants'!G23/100 -> 72026.7124 | H23: ='B1.1 Current Distribution Rates'!H23*'B1.2 Billing Determinants'!H23/100 -> 0 | I23: ='B1.1 Current Distribution Rates'!I23*'B1.2 Billing Determinants'!I23/100 -> 0 | J23: ='B1.1 Current Distribution Rates'!J23*'B1.2 Billing Determinants'!J23/100 -> 0 | K23: ='B1.1 Current Distribution Rates'!K23*'B1.2 Billing Determinants'!K23/100 -> 0 | L23: ='B1.1 Current Distribution Rates'!L23*'B1.2 Billing Determinants'!L23/100 -> 182.8334145 | M23: ='B1.1 Current Distribution Rates'!M23*'B1.2 Billing Determinants'!M23/100 -> 0 | N23: ='B1.1 Current Distribution Rates'!N23*'B1.2 Billing Determinants'!N23/100 -> 0 | O23: 82969.69554
C24: RATE 5 - Interruptible Peaking Contract Rate | E24: ='B1.1 Current Distribution Rates'!E24*'B1.2 Billing Determinants'!E24*12 -> 9120 | F24: ='B1.1 Current Distribution Rates'!F24*'B1.2 Billing Determinants'!F24/100 -> 0 | G24: ='B1.1 Current Distribution Rates'!G24*'B1.2 Billing Determinants'!G24/100 -> 0 | H24: ='B1.1 Current Distribution Rates'!H24*'B1.2 Billing Determinants'!H24/100 -> 0 | I24: ='B1.1 Current Distribution Rates'!I24*'B1.2 Billing Determinants'!I24/100 -> 0 | J24: ='B1.1 Current Distribution Rates'!J24*'B1.2 Billing Determinants'!J24/100 -> 65279.72901 | K24: ='B1.1 Current Distribution Rates'!K24*'B1.2 Billing Determinants'!K24/100 -> 0 | L24: ='B1.1 Current Distribution Rates'!L24*'B1.2 Billing Determinants'!L24/100 -> 363.93405 | M24: ='B1.1 Current Distribution Rates'!M24*'B1.2 Billing Determinants'!M24/100 -> 0 | N24: ='B1.1 Current Distribution Rates'!N24*'B1.2 Billing Determinants'!N24/100 -> 0 | O24: 74763.66306
C25: RATE 6 - Integrated Grain Processors Co-Operative Aylmer Ethanol Production Facility | E25: ='B1.1 Current Distribution Rates'!E25*'B1.2 Billing Determinants'!E25*12 -> 747984.72 | F25: ='B1.1 Current Distribution Rates'!F25*'B1.2 Billing Determinants'!F25/100 -> 0 | G25: ='B1.1 Current Distribution Rates'!G25*'B1.2 Billing Determinants'!G25/100 -> 0 | H25: ='B1.1 Current Distribution Rates'!H25*'B1.2 Billing Determinants'!H25/100 -> 0 | I25: ='B1.1 Current Distribution Rates'!I25*'B1.2 Billing Determinants'!I25/100 -> 0 | J25: ='B1.1 Current Distribution Rates'!J25*'B1.2 Billing Determinants'!J25/100 -> 0 | K25: ='B1.1 Current Distribution Rates'!K25*'B1.2 Billing Determinants'!K25/100 -> 0 | L25: ='B1.1 Current Distribution Rates'!L25*'B1.2 Billing Determinants'!L25/100 -> 0 | M25: ='B1.1 Current Distribution Rates'!M25*'B1.2 Billing Determinants'!M25/100 -> 0 | N25: ='B1.1 Current Distribution Rates'!N25*'B1.2 Billing Determinants'!N25/100 -> 0 | O25: 747984.72
E26: =SUM(E16:E25) -> 2789604.72 | F26: =SUM(F16:F25) -> 2688931.265 | G26: 705603.8421 | H26: 69289.47847 | I26: 4264.632816 | J26: 116618.0099 | K26: 68984.6003 | L26: 12059.42553 | M26: 0 | N26: 0 | O26: 6455355.974
C29: =MID(CELL("filename",A1),FIND("]",CELL("filename",A1))+1,255) -> B1.3 Current Rev From Rates

Sheet C1.1 Current Rate Riders
C2: ='A1.1 Distributor Information'!C3 -> Name of LDC: EPCOR Natural Gas Limited Partnership
C3: ='A1.1 Distributor Information'!C4 -> OEB Application Number: EB-2021-0215 Exhibit A - 2022 IRM Application
C10: Current Rate Riders
C12: Description | E12: REDA | F12: PGTVA Rate Classes 1 - 5 | G12: PGTVA Rate Class 6 | H12: ADVADA Rate Classes 1-5 | I12: ADVADA Rate Class 6
C13: Effective Until | E13: 2022-03-31 | F13: 2022-03-31 | G13: 2022-03-31 | H13: 2022-03-31 | I13: 2022-03-31
E14: $ / customer / month | F14: cents / m3 | G14: $ / customer / month | H14: cents / m3 | I14: $ / customer / month
C15: Rate Group
C16: RATE 1 - General Service Rate - Residential | E16: 0.78 | F16: 0.3113 | H16: 0.1508
C17: RATE 1 - General Service Rate - Commercial | E17: 0.78 | F17: 0.3113 | H17: 0.1508
C18: RATE 1 - General Service Rate - Industrial | E18: 0.78 | F18: 0.3113 | H18: 0.1508
C19: RATE 2 - Seasonal Service - Apr to Oct | E19: 0.78 | F19: 0.3113 | H19: 0.1508
C20: RATE 2 - Seasonal Service - Nov to Mar | E20: 0.78 | F20: 0.3113 | H20: 0.1508
C21: RATE 3 - Special Large Volume Contract Rate | E21: 0.78 | F21: 0.3113 | H21: 0.1508
C22: RATE 4 - General Service Peaking - Apr to Dec | E22: 0.78 | F22: 0.3113 | H22: 0.1508
C23: RATE 4 - General Service Peaking - Jan to Mar | E23: 0.78 | F23: 0.3113 | H23: 0.1508
C24: RATE 5 - Interruptible Peaking Contract Rate | E24: 0.78 | F24: 0.3113 | H24: 0.1508
C25: RATE 6 - Integrated Grain Processors Co-Operative Aylmer Ethanol Production Facility | E25: 0.75 | G25: 0 | I25: 936.83
C29: =MID(CELL("filename",A1),FIND("]",CELL("filename",A1))+1,255) -> C1.1 Current Rate Riders

Sheet D1.1 Rate 1 Adjustment
C2: ='A1.1 Distributor Information'!C3 -> Name of LDC: EPCOR Natural Gas Limited Partnership
C3: ='A1.1 Distributor Information'!C4 -> OEB Application Number: EB-2021-0215 Exhibit A - 2022 IRM Application
C8: Rate 1 Price Cap Adjustment
C11: GDP-IPI | E11: 0.033
C12: Less Productivity | E12: 0
C13: Less Stretch Factor | E13: 0.004
C14: Price Cap Adjustment | E14: =E11-E12-E13 -> 0.029
E16: Current Rate (excl. Bill 32) | F16: 2020 Rate including previously disallowed ratebase | G16: Price Cap | H16: Adjusted Rates (excl. Bill 32) | I16: Billing Determinants | J16: Revenue | L16: Balanced Rates | M16: Revenue
C17: Monthly Service Charge | E17: ='B1.1 Current Distribution Rates'!E16 -> 17.5 | G17: =E14 -> 0.029 | H17: =E17*(1+G17) -> 18.0075 | I17: =SUM('B1.2 Billing Determinants'!E16:E18) -> 9506 | J17: =H17*I17*12 -> 2054151.54 | K17: Change | L17: =E17+1 -> 18.5 | M17: =I17*L17*12 -> 2110332
C18: Delivery First 1,000 m3 | E18: ='B1.1 Current Distribution Rates'!F16 -> 13.5701 | G18: =E14 -> 0.029 | H18: =E18*(1+G18) -> 13.9636329 | I18: =SUM('B1.2 Billing Determinants'!F16:F18) -> 19419725.9 | J18: =H18*I18/100 -> 2711699.235 | K18: Change | L18: =M18/I18*100 -> 13.71955556 | M18: =(J$21-M$17-M$20)*J18/(J$21-J$17-J$20) -> 2664300.085
C19: Delivery Over 1,000 m3 | E19: ='B1.1 Current Distribution Rates'!G16 -> 10.9063 | G19: =E14 -> 0.029 | H19: 11.2225827 | I19: =SUM('B1.2 Billing Determinants'!G16:G18) -> 4476488.2 | J19: =H19*I19/100 -> 502377.5903 | K19: Change | L19: =M19/I19*100 -> 11.02641755 | M19: =(J$21-M$17-M$20)*J19/(J$21-J$17-J$20) -> 493596.2806
C20: Commodity | E20: ='B1.1 Current Distribution Rates'!L16 -> 0.0435 | G20: 0 | H20: 0.0435 | I20: =SUM('B1.2 Billing Determinants'!L16:L18) -> 23384943 | J20: =H20*I20/100 -> 10172.4502 | K20: No Change | L20: =E20 -> 0.0435 | M20: =I20*L20/100 -> 10172.4502
J21: =SUM(J17:J20) -> 5278400.815 | M21: =SUM(M17:M20) -> 5278400.815
M23: =(I17*L17)*12+SUMPRODUCT(I18:I20,L18:L20)/100-M21 -> 0
C30: =MID(CELL("filename",A1),FIND("]",CELL("filename",A1))+1,255) -> D1.1 Rate 1 Adjustment

Sheet D1.2 Rate 2 Adjustment
C2: ='A1.1 Distributor Information'!C3 -> Name of LDC: EPCOR Natural Gas Limited Partnership
C3: ='A1.1 Distributor Information'!C4 -> OEB Application Number: EB-2021-0215 Exhibit A - 2022 IRM Application
C8: Rate 2 Price Cap Adjustment
C11: GDP-IPI | E11: ='D1.1 Rate 1 Adjustment'!E11 -> 0.033
C12: Less Productivity | E12: ='D1.1 Rate 1 Adjustment'!E12 -> 0
C13: Less Stretch Factor | E13: ='D1.1 Rate 1 Adjustment'!E13 -> 0.004
C14: Price Cap Adjustment | E14: =E11-E12-E13 -> 0.029
E16: Current Rate (excl. Bill 32) | F16: ='D1.1 Rate 1 Adjustment'!F16 -> 2020 Rate including previously disallowed ratebase | G16: Price Cap | H16: Adjusted Rates (excl. Bill 32) | I16: Billing Determinants | J16: Revenue | L16: Balanced Rates | M16: Revenue
C17: Monthly Service Charge | E17: ='B1.1 Current Distribution Rates'!E19 -> 20 | G17: =$E$14 -> 0.029 | H17: =E17*(1+G17) -> 20.58 | I17: ='B1.2 Billing Determinants'!E19 -> 50 | J17: =H17*I17*12 -> 12348 | K17: No Change | L17: =E17+I11 -> 20 | M17: =I17*L17*12 -> 12000
C18: Delivery First 1,000 m3 - Apr To Oct | E18: ='B1.1 Current Distribution Rates'!F19 -> 17.0841 | G18: =$E$14 -> 0.029 | H18: =E18*(1+G18) -> 17.5795389 | I18: ='B1.2 Billing Determinants'!F19 -> 69363.8 | J18: =H18*I18/100 -> 12193.8362 | K18: Change | L18: =M18/I18*100 -> 17.63866173 | M18: =(J$25-M$17-M$24)*J18/(J$25-J$17-J$24) -> 12234.84604
C19: Delivery Next 24,000 m3 - Apr To Oct | E19: ='B1.1 Current Distribution Rates'!H19 -> 8.8749 | G19: 0.029 | H19: =E19*(1+G19) -> 9.1322721 | I19: ='B1.2 Billing Determinants'!H19 -> 329545.7 | J19: =H19*I19/100 -> 30095.01002 | K19: Change | L19: =M19/I19*100 -> 9.162985406 | M19: =(J$25-M$17-M$24)*J19/(J$25-J$17-J$24) -> 30196.2244
C20: Delivery Over 25,000 m3 - Apr To Oct | E20: ='B1.1 Current Distribution Rates'!I19 -> 6.9188 | G20: 0.029 | H20: 7.1194452 | I20: ='B1.2 Billing Determinants'!I19 -> 36169.3 | J20: 2575.053493 | K20: Change | L20: 7.143389044 | M20: 2583.713814
C21: Delivery First 1,000 m3 - Nov To Mar | E21: ='B1.1 Current Distribution Rates'!F20 -> 21.5342 | G21: 0.029 | H21: 22.1586918 | I21: ='B1.2 Billing Determinants'!F20 -> 70369.9 | J21: 15593.04926 | K21: Change | L21: 22.23321506 | M21: 15645.4912
C22: Delivery Next 24,000 m3 - Nov To Mar | E22: ='B1.1 Current Distribution Rates'!H20 -> 14.6901 | G22: 0.029 | H22: 15.1161129 | I22: ='B1.2 Billing Determinants'!H20 -> 272582.4 | J22: 41203.86333 | K22: Change | L22: 15.16695083 | M22: 41342.43858
C23: Delivery Over 25,000 m3 - Nov To Mar | E23: ='B1.1 Current Distribution Rates'!I20 -> 15.5875 | G23: 0.029 | H23: 16.0395375 | I23: ='B1.2 Billing Determinants'!I20 -> 11304.9 | J23: 1813.253675 | K23: Change | L23: 16.09348106 | M23: 1819.35194
C24: Commodity | E24: ='B1.1 Current Distribution Rates'!L19 -> 0.0435 | G24: 0 | H24: 0.0435 | I24: =SUM('B1.2 Billing Determinants'!L19:L20) -> 789336 | J24: 343.36116 | K24: No Change | L24: =E24 -> 0.0435 | M24: =I24*L24/100 -> 343.36116
J25: =SUM(J17:J24) -> 116165.4271 | M25: =SUM(M17:M24) -> 116165.4271
M27: =(I17*L17)*12+SUMPRODUCT(I18:I24,L18:L24)/100-M25 -> 0
C31: =MID(CELL("filename",A1),FIND("]",CELL("filename",A1))+1,255) -> D1.2 Rate 2 Adjustment

Sheet D1.3 Rate 3 Adjustment
C2: ='A1.1 Distributor Information'!C3 -> Name of LDC: EPCOR Natural Gas Limited Partnership
C3: ='A1.1 Distributor Information'!C4 -> OEB Application Number: EB-2021-0215 Exhibit A - 2022 IRM Application
C8: Rate 3 Price Cap Adjustment
C11: GDP-IPI | E11: ='D1.1 Rate 1 Adjustment'!E11 -> 0.033
C12: Less Productivity | E12: ='D1.1 Rate 1 Adjustment'!E12 -> 0
C13: Less Stretch Factor | E13: ='D1.1 Rate 1 Adjustment'!E13 -> 0.004
C14: Price Cap Adjustment | E14: =E11-E12-E13 -> 0.029
E16: Current Rate (excl. Bill 32) | F16: ='D1.1 Rate 1 Adjustment'!F16 -> 2020 Rate including previously disallowed ratebase | G16: Price Cap | H16: Adjusted Rates (excl. Bill 32) | I16: Billing Determinants | J16: Revenue | L16: Balanced Rates | M16: Revenue
C17: Monthly Service Charge | E17: ='B1.1 Current Distribution Rates'!E21 -> 200 | G17: =E14 -> 0.029 | H17: =E17*(1+G17) -> 205.8 | I17: ='B1.2 Billing Determinants'!E21 -> 6 | J17: =H17*I17*12 -> 14817.6 | K17: No Change | L17: =E17+I11 -> 200 | M17: =I17*L17*12 -> 14400
C18: Delivery Firm | E18: ='B1.1 Current Distribution Rates'!J21 -> 3.9173 | G18: =E14 -> 0.029 | H18: =E18*(1+G18) -> 4.0309017 | I18: ='B1.2 Billing Determinants'!J21 -> 1310552.7 | J18: =H18*I18/100 -> 52827.09106 | K18: Change | L18: =M18/I18*100 -> 4.044497323 | M18: =(J$21-M$17-M$20)*J18/(J$21-J$17-J$20) -> 53005.26886
C19: Demand Firm | E19: ='B1.1 Current Distribution Rates'!K21 -> 29.6806 | G19: =E14 -> 0.029 | H19: =E19*(1+G19) -> 30.5413374 | I19: ='B1.2 Billing Determinants'!K21 -> 232423.2 | J19: =H19*I19/100 -> 70985.15371 | K19: Change | L19: =M19/I19*100 -> 30.64434872 | M19: =(J$21-M$17-M$20)*J19/(J$21-J$17-J$20) -> 71224.57591
C20: Commodity | E20: ='B1.1 Current Distribution Rates'!L21 -> 0.0435 | G20: 0 | H20: =E20*(1+G20) -> 0.0435 | I20: ='B1.2 Billing Determinants'!L21 -> 943264.4 | J20: =H20*I20/100 -> 410.320014 | K20: No Change | L20: =E20 -> 0.0435 | M20: =I20*L20/100 -> 410.320014
J21: =SUM(J17:J20) -> 139040.1648 | M21: =SUM(M17:M20) -> 139040.1648
M23: =(I17*L17)*12+SUMPRODUCT(I18:I20,L18:L20)/100-M21 -> 0
C26: =MID(CELL("filename",A1),FIND("]",CELL("filename",A1))+1,255) -> D1.3 Rate 3 Adjustment

Sheet D1.4 Rate 4 Adjustment
C2: ='A1.1 Distributor Information'!C3 -> Name of LDC: EPCOR Natural Gas Limited Partnership
C3: ='A1.1 Distributor Information'!C4 -> OEB Application Number: EB-2021-0215 Exhibit A - 2022 IRM Application
C8: Rate 4 Price Cap Adjustment
C11: GDP-IPI | E11: ='D1.1 Rate 1 Adjustment'!E11 -> 0.033
C12: Less Productivity | E12: ='D1.1 Rate 1 Adjustment'!E12 -> 0
C13: Less Stretch Factor | E13: ='D1.1 Rate 1 Adjustment'!E13 -> 0.004
C14: Price Cap Adjustment | E14: =E11-E12-E13 -> 0.029
E16: Current Rate (excl. Bill 32) | F16: ='D1.1 Rate 1 Adjustment'!F16 -> 2020 Rate including previously disallowed ratebase | G16: Price Cap | H16: Adjusted Rates (excl. Bill 32) | I16: Billing Determinants | J16: Revenue | L16: Balanced Rates | M16: Revenue
C17: Monthly Service Charge | E17: ='B1.1 Current Distribution Rates'!E22 -> 20 | G17: =$E$14 -> 0.029 | H17: =E17*(1+G17) -> 20.58 | I17: ='B1.2 Billing Determinants'!E22 -> 41 | J17: =H17*I17*12 -> 10125.36 | K17: No Change | L17: =E17 -> 20 | M17: =I17*L17*12 -> 9840
C18: Delivery First 1,000 m3 - Apr To Dec | E18: ='B1.1 Current Distribution Rates'!F22 -> 18.9314 | G18: =$E$14 -> 0.029 | H18: =E18*(1+G18) -> 19.4804106 | I18: ='B1.2 Billing Determinants'!F22 -> 96934.8 | J18: =H18*I18/100 -> 18883.29705 | K18: Change | L18: =M18/I18*100 -> 19.50254777 | M18: =(J$23-M$17-M$22)*J18/(J$23-J$17-J$22) -> 18904.75568
C19: Delivery Over 1,000 m3 - Apr To Dec | E19: ='B1.1 Current Distribution Rates'!G22 -> 11.6156 | G19: 0.029 | H19: 11.9524524 | I19: ='B1.2 Billing Determinants'!G22 -> 1251402.4 | J19: =H19*I19/100 -> 149573.2762 | K19: Change | L19: =M19/I19*100 -> 11.96603494 | M19: =(J$23-M$17-M$22)*J19/(J$23-J$17-J$22) -> 149743.2485
C20: Delivery First 1,000 m3 - Jan To Mar | E20: ='B1.1 Current Distribution Rates'!F23 -> 24.1513 | G20: 0.029 | H20: 24.8516877 | I20: ='B1.2 Billing Determinants'!F23 -> 34367.3 | J20: =H20*I20/100 -> 8540.854067 | K20: Change | L20: 24.87992869 | M20: 8550.559733
C21: Delivery Over 1,000 m3 - Jan To Mar | E21: ='B1.1 Current Distribution Rates'!G23 -> 18.6627 | G21: 0.029 | H21: 19.2039183 | I21: ='B1.2 Billing Determinants'!G23 -> 385939.4 | J21: =H21*I21/100 -> 74115.48706 | K21: Change | L21: =M21/I21*100 -> 19.22574127 | M21: 74199.71051
C22: Commodity | E22: ='B1.1 Current Distribution Rates'!L22 -> 0.0435 | G22: 0 | H22: 0.0435 | I22: =SUM('B1.2 Billing Determinants'!L22:L23) -> 1768643.9 | J22: =H22*I22/100 -> 769.3600965 | K22: No Change | L22: =E22 -> 0.0435 | M22: =I22*L22/100 -> 769.3600965
J23: =SUM(J17:J22) -> 262007.6345 | M23: =SUM(M17:M22) -> 262007.6345
M25: =(I17*L17)*12+SUMPRODUCT(I18:I22,L18:L22)/100-M23 -> 0
C28: =MID(CELL("filename",A1),FIND("]",CELL("filename",A1))+1,255) -> D1.4 Rate 4 Adjustment

Sheet D1.5 Rate 5 Adjustment
C2: ='A1.1 Distributor Information'!C3 -> Name of LDC: EPCOR Natural Gas Limited Partnership
C3: ='A1.1 Distributor Information'!C4 -> OEB Application Number: EB-2021-0215 Exhibit A - 2022 IRM Application
C8: Rate 5 Price Cap Adjustment
C11: GDP-IPI | E11: ='D1.1 Rate 1 Adjustment'!E11 -> 0.033
C12: Less Productivity | E12: ='D1.1 Rate 1 Adjustment'!E12 -> 0
C13: Less Stretch Factor | E13: ='D1.1 Rate 1 Adjustment'!E13 -> 0.004
C14: Price Cap Adjustment | E14: =E11-E12-E13 -> 0.029
E16: Current Rate (excl. Bill 32) | F16: ='D1.1 Rate 1 Adjustment'!F16 -> 2020 Rate including previously disallowed ratebase | G16: Price Cap | H16: Adjusted Rates (excl. Bill 32) | I16: Billing Determinants | J16: Revenue | L16: Balanced Rates | M16: Revenue
C17: Monthly Service Charge | E17: ='B1.1 Current Distribution Rates'!E24 -> 190 | G17: =E14 -> 0.029 | H17: =E17*(1+G17) -> 195.51 | I17: ='B1.2 Billing Determinants'!E24 -> 4 | J17: =H17*I17*12 -> 9384.48 | K17: No Change | L17: =E17+I11 -> 190 | M17: =I17*L17*12 -> 9120
C18: Delivery Firm | E18: ='B1.1 Current Distribution Rates'!J24 -> 7.8027 | G18: =E14 -> 0.029 | H18: =E18*(1+G18) -> 8.0289783 | I18: ='B1.2 Billing Determinants'!J24 -> 836630 | J18: =H18*I18/100 -> 67172.84115 | K18: Change | L18: =M18/I18*100 -> 8.060590841 | M18: =J20-M17-M19 -> 67437.32115
C19: Commodity | E19: ='B1.1 Current Distribution Rates'!L24 -> 0.0435 | G19: 0 | H19: =E19*(1+G19) -> 0.0435 | I19: ='B1.2 Billing Determinants'!L24 -> 836630 | J19: =H19*I19/100 -> 363.93405 | K19: No Change | L19: =E19 -> 0.0435 | M19: =I19*L19/100 -> 363.93405
J20: =SUM(J17:J19) -> 76921.2552 | M20: =SUM(M17:M19) -> 76921.2552
M22: =(I17*L17)*12+SUMPRODUCT(I18:I19,L18:L19)/100-M20 -> 0
C26: =MID(CELL("filename",A1),FIND("]",CELL("filename",A1))+1,255) -> D1.5 Rate 5 Adjustment

Sheet D1.6 Rate 6 Adjustment
C2: ='A1.1 Distributor Information'!C3 -> Name of LDC: EPCOR Natural Gas Limited Partnership
C3: ='A1.1 Distributor Information'!C4 -> OEB Application Number: EB-2021-0215 Exhibit A - 2022 IRM Application
C8: Rate 6 Price Cap Adjustment
C11: GDP-IPI | E11: ='D1.1 Rate 1 Adjustment'!E11 -> 0.033
C12: Less Productivity | E12: ='D1.1 Rate 1 Adjustment'!E12 -> 0
C13: Less Stretch Factor | E13: ='D1.1 Rate 1 Adjustment'!E13 -> 0.004
C14: Price Cap Adjustment | E14: =E11-E12-E13 -> 0.029
E16: Current Rate (excl. Bill 32) | F16: ='D1.1 Rate 1 Adjustment'!F16 -> 2020 Rate including previously disallowed ratebase | G16: Price Cap | H16: Adjusted Rates (excl. Bill 32) | I16: Billing Determinants | J16: Revenue | L16: Balanced Rates | M16: Revenue
C17: Monthly Service Charge | E17: ='B1.1 Current Distribution Rates'!E25 -> 62332.06 | G17: =E14 -> 0.029 | H17: =E17*(1+G17) -> 64139.68974 | I17: ='B1.2 Billing Determinants'!E25 -> 1 | J17: =H17*I17*12 -> 769676.2769 | K17: Change | L17: =H17 -> 64139.68974 | M17: =I17*L17*12 -> 769676.2769
C18: Delivery Firm | E18: ='B1.1 Current Distribution Rates'!J25 -> 0 | G18: =E14 -> 0.029 | H18: =F18*(1+G18) -> 0 | I18: ='B1.2 Billing Determinants'!J25 -> 59999017 | J18: =H18*I18/100 -> 0 | K18: No Change | M18: =J20-M17-M19 -> 0
C19: Demand Firm | E19: ='B1.1 Current Distribution Rates'!K25 -> 0 | G19: =E14 -> 0.029 | H19: 0 | I19: ='B1.2 Billing Determinants'!K25 -> 0 | J19: =H19*I19/100 -> 0 | K19: No Change | M19: =I19*L19/100 -> 0
J20: =SUM(J17:J19) -> 769676.2769 | M20: =SUM(M17:M19) -> 769676.2769
M22: =J20-M20 -> 0
C24: =MID(CELL("filename",A1),FIND("]",CELL("filename",A1))+1,255) -> D1.6 Rate 6 Adjustment

Sheet E1.1 Proposed Dist Rates
C2: ='A1.1 Distributor Information'!C3 -> Name of LDC: EPCOR Natural Gas Limited Partnership
C3: ='A1.1 Distributor Information'!C4 -> OEB Application Number: EB-2021-0215 Exhibit A - 2022 IRM Application
C10: Proposed Distribution Tariff Sheet Rates
C15: Rate Group | E15: Monthly Service Charge (excl. Bill 32) | F15: Delivery First 1,000 m3 | G15: Delivery Over 1,000 m3 | H15: Delivery Next 24,000 m3 | I15: Delivery Over 25,000 m3 | J15: Delivery - Firm | K15: Demand - Firm | L15: Commodity | M15: Delivery - Int - Lower | N15: Delivery - Int - Upper
C16: RATE 1 - General Service Rate - Residential | E16: ='D1.1 Rate 1 Adjustment'!L17 -> 18.5 | F16: ='D1.1 Rate 1 Adjustment'!L18 -> 13.71955556 | G16: ='D1.1 Rate 1 Adjustment'!L19 -> 11.02641755 | L16: ='D1.1 Rate 1 Adjustment'!L20 -> 0.0435
C17: RATE 1 - General Service Rate - Commercial | E17: ='D1.1 Rate 1 Adjustment'!L17 -> 18.5 | F17: ='D1.1 Rate 1 Adjustment'!L18 -> 13.71955556 | G17: ='D1.1 Rate 1 Adjustment'!L19 -> 11.02641755 | L17: ='D1.1 Rate 1 Adjustment'!L20 -> 0.0435
C18: RATE 1 - General Service Rate - Industrial | E18: ='D1.1 Rate 1 Adjustment'!L17 -> 18.5 | F18: ='D1.1 Rate 1 Adjustment'!L18 -> 13.71955556 | G18: ='D1.1 Rate 1 Adjustment'!L19 -> 11.02641755 | L18: ='D1.1 Rate 1 Adjustment'!L20 -> 0.0435
C19: RATE 2 - Seasonal Service - Apr to Oct | E19: ='D1.2 Rate 2 Adjustment'!L17 -> 20 | F19: ='D1.2 Rate 2 Adjustment'!L18 -> 17.63866173 | H19: ='D1.2 Rate 2 Adjustment'!L19 -> 9.162985406 | I19: ='D1.2 Rate 2 Adjustment'!L20 -> 7.143389044 | L19: ='D1.2 Rate 2 Adjustment'!L24 -> 0.0435
C20: RATE 2 - Seasonal Service - Nov to Mar | E20: ='D1.2 Rate 2 Adjustment'!L17 -> 20 | F20: ='D1.2 Rate 2 Adjustment'!L21 -> 22.23321506 | H20: ='D1.2 Rate 2 Adjustment'!L22 -> 15.16695083 | I20: ='D1.2 Rate 2 Adjustment'!L23 -> 16.09348106 | L20: ='D1.2 Rate 2 Adjustment'!L24 -> 0.0435
C21: RATE 3 - Special Large Volume Contract Rate | E21: ='D1.3 Rate 3 Adjustment'!L17 -> 200 | J21: ='D1.3 Rate 3 Adjustment'!L18 -> 4.044497323 | K21: ='D1.3 Rate 3 Adjustment'!L19 -> 30.64434872 | L21: ='D1.3 Rate 3 Adjustment'!L20 -> 0.0435 | M21: ='B1.1 Current Distribution Rates'!M21*(1+'D1.3 Rate 3 Adjustment'!$E$14) -> 7.9775283 | N21: ='B1.1 Current Distribution Rates'!N21*(1+'D1.3 Rate 3 Adjustment'!$E$14) -> 11.011329
C22: RATE 4 - General Service Peaking - Apr to Dec | E22: ='D1.4 Rate 4 Adjustment'!L17 -> 20 | F22: ='D1.4 Rate 4 Adjustment'!L18 -> 19.50254777 | G22: ='D1.4 Rate 4 Adjustment'!L19 -> 11.96603494 | L22: ='D1.4 Rate 4 Adjustment'!L22 -> 0.0435
C23: RATE 4 - General Service Peaking - Jan to Mar | E23: ='D1.4 Rate 4 Adjustment'!L17 -> 20 | F23: ='D1.4 Rate 4 Adjustment'!L20 -> 24.87992869 | G23: ='D1.4 Rate 4 Adjustment'!L21 -> 19.22574127 | L23: ='D1.4 Rate 4 Adjustment'!L22 -> 0.0435
C24: RATE 5 - Interruptible Peaking Contract Rate | E24: ='D1.5 Rate 5 Adjustment'!L17 -> 190 | J24: ='D1.5 Rate 5 Adjustment'!L18 -> 8.060590841 | K24: 1 | L24: ='D1.5 Rate 5 Adjustment'!L19 -> 0.0435 | M24: ='B1.1 Current Distribution Rates'!M24*(1+'D1.3 Rate 3 Adjustment'!$E$14) -> 6.2641404 | N24: ='B1.1 Current Distribution Rates'!N24*(1+'D1.3 Rate 3 Adjustment'!$E$14) -> 9.7053222
C25: RATE 6 - Integrated Grain Processors Co-Operative Aylmer Ethanol Production Facility | E25: ='D1.6 Rate 6 Adjustment'!L17 -> 64139.68974 | J25: ='D1.6 Rate 6 Adjustment'!L18 -> 0 | K25: ='D1.6 Rate 6 Adjustment'!L19 -> 0 | M25: ='B1.1 Current Distribution Rates'!M25 -> 0 | N25: ='B1.1 Current Distribution Rates'!N25 -> 0
C27: 1 Placeholder rate for average application
C30: =MID(CELL("filename",A1),FIND("]",CELL("filename",A1))+1,255) -> E1.1 Proposed Dist Rates

Sheet E1.2 Billing Determinants
C2: ='A1.1 Distributor Information'!C3 -> Name of LDC: EPCOR Natural Gas Limited Partnership
C3: ='A1.1 Distributor Information'!C4 -> OEB Application Number: EB-2021-0215 Exhibit A - 2022 IRM Application
C10: ='B1.2 Billing Determinants'!C10 -> Billing Determinants - Actuals January 1, 2020 to December 31, 2020
C15: Rate Group | E15: Monthly Service Charge | F15: Delivery First 1,000 m3 | G15: Delivery Over 1,000 m3 | H15: Delivery Next 24,000 m3 | I15: Delivery Over 25,000 m3 | J15: Delivery - Firm | K15: Demand - Firm | L15: Commodity | M15: Delivery - Int - Lower | N15: Delivery - Int - Upper
C16: RATE 1 - General Service Rate - Residential | E16: ='B1.2 Billing Determinants'!E16 -> 8892 | F16: ='B1.2 Billing Determinants'!F16 -> 16506874.3 | G16: ='B1.2 Billing Determinants'!G16 -> 133972.1 | H16: ='B1.2 Billing Determinants'!H16 -> 0 | I16: ='B1.2 Billing Determinants'!I16 -> 0 | J16: ='B1.2 Billing Determinants'!J16 -> 0 | K16: ='B1.2 Billing Determinants'!K16 -> 0 | L16: ='B1.2 Billing Determinants'!L16 -> 16640846.4 | M16: ='B1.2 Billing Determinants'!M16 -> 0 | N16: ='B1.2 Billing Determinants'!N16 -> 0
C17: RATE 1 - General Service Rate - Commercial | E17: ='B1.2 Billing Determinants'!E17 -> 541 | F17: ='B1.2 Billing Determinants'!F17 -> 2439479.2 | G17: ='B1.2 Billing Determinants'!G17 -> 2597829 | H17: ='B1.2 Billing Determinants'!H17 -> 0 | I17: ='B1.2 Billing Determinants'!I17 -> 0 | J17: ='B1.2 Billing Determinants'!J17 -> 0 | K17: ='B1.2 Billing Determinants'!K17 -> 0 | L17: ='B1.2 Billing Determinants'!L17 -> 4526037.1 | M17: ='B1.2 Billing Determinants'!M17 -> 0 | N17: ='B1.2 Billing Determinants'!N17 -> 0
C18: RATE 1 - General Service Rate - Industrial | E18: ='B1.2 Billing Determinants'!E18 -> 73 | F18: ='B1.2 Billing Determinants'!F18 -> 473372.4 | G18: ='B1.2 Billing Determinants'!G18 -> 1744687.1 | H18: ='B1.2 Billing Determinants'!H18 -> 0 | I18: ='B1.2 Billing Determinants'!I18 -> 0 | J18: ='B1.2 Billing Determinants'!J18 -> 0 | K18: ='B1.2 Billing Determinants'!K18 -> 0 | L18: ='B1.2 Billing Determinants'!L18 -> 2218059.5 | M18: ='B1.2 Billing Determinants'!M18 -> 0 | N18: ='B1.2 Billing Determinants'!N18 -> 0
C19: RATE 2 - Seasonal Service - Apr to Oct | E19: ='B1.2 Billing Determinants'!E19 -> 50 | F19: ='B1.2 Billing Determinants'!F19 -> 69363.8 | G19: ='B1.2 Billing Determinants'!G19 -> 0 | H19: ='B1.2 Billing Determinants'!H19 -> 329545.7 | I19: ='B1.2 Billing Determinants'!I19 -> 36169.3 | J19: ='B1.2 Billing Determinants'!J19 -> 0 | K19: ='B1.2 Billing Determinants'!K19 -> 0 | L19: ='B1.2 Billing Determinants'!L19 -> 435078.8 | M19: ='B1.2 Billing Determinants'!M19 -> 0 | N19: ='B1.2 Billing Determinants'!N19 -> 0
C20: RATE 2 - Seasonal Service - Nov to Mar | E20: ='B1.2 Billing Determinants'!E20 -> 50 | F20: ='B1.2 Billing Determinants'!F20 -> 70369.9 | G20: ='B1.2 Billing Determinants'!G20 -> 0 | H20: ='B1.2 Billing Determinants'!H20 -> 272582.4 | I20: ='B1.2 Billing Determinants'!I20 -> 11304.9 | J20: ='B1.2 Billing Determinants'!J20 -> 0 | K20: ='B1.2 Billing Determinants'!K20 -> 0 | L20: ='B1.2 Billing Determinants'!L20 -> 354257.2 | M20: ='B1.2 Billing Determinants'!M20 -> 0 | N20: ='B1.2 Billing Determinants'!N20 -> 0
C21: RATE 3 - Special Large Volume Contract Rate | E21: ='B1.2 Billing Determinants'!E21 -> 6 | F21: ='B1.2 Billing Determinants'!F21 -> 0 | G21: ='B1.2 Billing Determinants'!G21 -> 0 | H21: ='B1.2 Billing Determinants'!H21 -> 0 | I21: ='B1.2 Billing Determinants'!I21 -> 0 | J21: ='B1.2 Billing Determinants'!J21 -> 1310552.7 | K21: ='B1.2 Billing Determinants'!K21 -> 232423.2 | L21: ='B1.2 Billing Determinants'!L21 -> 943264.4 | M21: ='B1.2 Billing Determinants'!M21 -> 0 | N21: ='B1.2 Billing Determinants'!N21 -> 0
C22: RATE 4 - General Service Peaking - Apr to Dec | E22: ='B1.2 Billing Determinants'!E22 -> 41 | F22: ='B1.2 Billing Determinants'!F22 -> 96934.8 | G22: ='B1.2 Billing Determinants'!G22 -> 1251402.4 | H22: ='B1.2 Billing Determinants'!H22 -> 0 | I22: ='B1.2 Billing Determinants'!I22 -> 0 | J22: ='B1.2 Billing Determinants'!J22 -> 0 | K22: ='B1.2 Billing Determinants'!K22 -> 0 | L22: ='B1.2 Billing Determinants'!L22 -> 1348337.2 | M22: ='B1.2 Billing Determinants'!M22 -> 0 | N22: ='B1.2 Billing Determinants'!N22 -> 0
C23: RATE 4 - General Service Peaking - Jan to Mar | E23: ='B1.2 Billing Determinants'!E23 -> 41 | F23: ='B1.2 Billing Determinants'!F23 -> 34367.3 | G23: ='B1.2 Billing Determinants'!G23 -> 385939.4 | H23: ='B1.2 Billing Determinants'!H23 -> 0 | I23: ='B1.2 Billing Determinants'!I23 -> 0 | J23: ='B1.2 Billing Determinants'!J23 -> 0 | K23: ='B1.2 Billing Determinants'!K23 -> 0 | L23: ='B1.2 Billing Determinants'!L23 -> 420306.7 | M23: ='B1.2 Billing Determinants'!M23 -> 0 | N23: ='B1.2 Billing Determinants'!N23 -> 0
C24: RATE 5 - Interruptible Peaking Contract Rate | E24: ='B1.2 Billing Determinants'!E24 -> 4 | F24: ='B1.2 Billing Determinants'!F24 -> 0 | G24: ='B1.2 Billing Determinants'!G24 -> 0 | H24: ='B1.2 Billing Determinants'!H24 -> 0 | I24: ='B1.2 Billing Determinants'!I24 -> 0 | J24: ='B1.2 Billing Determinants'!J24 -> 836630 | K24: ='B1.2 Billing Determinants'!K24 -> 0 | L24: ='B1.2 Billing Determinants'!L24 -> 836630 | M24: ='B1.2 Billing Determinants'!M24 -> 0 | N24: ='B1.2 Billing Determinants'!N24 -> 0
C25: RATE 6 - Integrated Grain Processors Co-Operative Aylmer Ethanol Production Facility | E25: ='B1.2 Billing Determinants'!E25 -> 1 | F25: ='B1.2 Billing Determinants'!F25 -> 0 | G25: ='B1.2 Billing Determinants'!G25 -> 0 | H25: ='B1.2 Billing Determinants'!H25 -> 0 | I25: ='B1.2 Billing Determinants'!I25 -> 0 | J25: ='B1.2 Billing Determinants'!J25 -> 59999017 | K25: ='B1.2 Billing Determinants'!K25 -> 0 | L25: ='B1.2 Billing Determinants'!L25 -> 0 | M25: ='B1.2 Billing Determinants'!M25 -> 0 | N25: ='B1.2 Billing Determinants'!N25 -> 0
E26: =SUM(E16:E19,E21:E22,E24:E25) -> 9608 | F26: =SUM(F16:F25) -> 19690761.7 | G26: 6113830 | H26: 602128.1 | I26: 47474.2 | J26: 62146199.7 | K26: 232423.2 | L26: 27722817.3 | M26: 0 | N26: 0
C30: =MID(CELL("filename",A1),FIND("]",CELL("filename",A1))+1,255) -> E1.2 Billing Determinants

Sheet E1.3 Proposed Rev From Rate
C2: ='A1.1 Distributor Information'!C3 -> Name of LDC: EPCOR Natural Gas Limited Partnership
C3: ='A1.1 Distributor Information'!C4 -> OEB Application Number: EB-2021-0215 Exhibit A - 2022 IRM Application
C10: Proposed Revenue from Rates
C15: Rate Group | E15: Monthly Service Charge | F15: Delivery First 1,000 m3 | G15: Delivery Over 1,000 m3 | H15: Delivery Next 24,000 m3 | I15: Delivery Over 25,000 m3 | J15: Demand - Firm | K15: Delivery - Firm | L15: Commodity | M15: Delivery - Int - Lower | N15: Delivery - Int - Upper | O15: Total
C16: RATE 1 - General Service Rate - Residential | E16: ='E1.1 Proposed Dist Rates '!E16*'E1.2 Billing Determinants'!E16*12 -> 1974024 | F16: ='E1.1 Proposed Dist Rates '!F16*'E1.2 Billing Determinants'!F16/100 -> 2264669.791 | G16: ='E1.1 Proposed Dist Rates '!G16*'E1.2 Billing Determinants'!G16/100 -> 14772.32315 | H16: ='E1.1 Proposed Dist Rates '!H16*'E1.2 Billing Determinants'!H16/100 -> 0 | I16: ='E1.1 Proposed Dist Rates '!I16*'E1.2 Billing Determinants'!I16/100 -> 0 | J16: ='E1.1 Proposed Dist Rates '!J16*'E1.2 Billing Determinants'!J16/100 -> 0 | K16: ='E1.1 Proposed Dist Rates '!K16*'E1.2 Billing Determinants'!K16/100 -> 0 | L16: ='E1.1 Proposed Dist Rates '!L16*'E1.2 Billing Determinants'!L16/100 -> 7238.768184 | M16: ='E1.1 Proposed Dist Rates '!M16*'E1.2 Billing Determinants'!M16/100 -> 0 | N16: ='E1.1 Proposed Dist Rates '!N16*'E1.2 Billing Determinants'!N16/100 -> 0 | O16: =SUM(E16:N16) -> 4260704.882
C17: RATE 1 - General Service Rate - Commercial | E17: ='E1.1 Proposed Dist Rates '!E17*'E1.2 Billing Determinants'!E17*12 -> 120102 | F17: ='E1.1 Proposed Dist Rates '!F17*'E1.2 Billing Determinants'!F17/100 -> 334685.7042 | G17: ='E1.1 Proposed Dist Rates '!G17*'E1.2 Billing Determinants'!G17/100 -> 286447.4728 | H17: ='E1.1 Proposed Dist Rates '!H17*'E1.2 Billing Determinants'!H17/100 -> 0 | I17: ='E1.1 Proposed Dist Rates '!I17*'E1.2 Billing Determinants'!I17/100 -> 0 | J17: ='E1.1 Proposed Dist Rates '!J17*'E1.2 Billing Determinants'!J17/100 -> 0 | K17: ='E1.1 Proposed Dist Rates '!K17*'E1.2 Billing Determinants'!K17/100 -> 0 | L17: ='E1.1 Proposed Dist Rates '!L17*'E1.2 Billing Determinants'!L17/100 -> 1968.826138 | M17: ='E1.1 Proposed Dist Rates '!M17*'E1.2 Billing Determinants'!M17/100 -> 0 | N17: ='E1.1 Proposed Dist Rates '!N17*'E1.2 Billing Determinants'!N17/100 -> 0 | O17: =SUM(E17:N17) -> 743204.0032
C18: RATE 1 - General Service Rate - Industrial | E18: ='E1.1 Proposed Dist Rates '!E18*'E1.2 Billing Determinants'!E18*12 -> 16206 | F18: ='E1.1 Proposed Dist Rates '!F18*'E1.2 Billing Determinants'!F18/100 -> 64944.58943 | G18: ='E1.1 Proposed Dist Rates '!G18*'E1.2 Billing Determinants'!G18/100 -> 192376.4846 | H18: ='E1.1 Proposed Dist Rates '!H18*'E1.2 Billing Determinants'!H18/100 -> 0 | I18: ='E1.1 Proposed Dist Rates '!I18*'E1.2 Billing Determinants'!I18/100 -> 0 | J18: ='E1.1 Proposed Dist Rates '!J18*'E1.2 Billing Determinants'!J18/100 -> 0 | K18: ='E1.1 Proposed Dist Rates '!K18*'E1.2 Billing Determinants'!K18/100 -> 0 | L18: ='E1.1 Proposed Dist Rates '!L18*'E1.2 Billing Determinants'!L18/100 -> 964.8558825 | M18: ='E1.1 Proposed Dist Rates '!M18*'E1.2 Billing Determinants'!M18/100 -> 0 | N18: ='E1.1 Proposed Dist Rates '!N18*'E1.2 Billing Determinants'!N18/100 -> 0 | O18: 274491.9299
C19: RATE 2 - Seasonal Service - Apr to Oct | E19: ='E1.1 Proposed Dist Rates '!E19*'E1.2 Billing Determinants'!E19*7 -> 7000 | F19: ='E1.1 Proposed Dist Rates '!F19*'E1.2 Billing Determinants'!F19/100 -> 12234.84604 | G19: ='E1.1 Proposed Dist Rates '!G19*'E1.2 Billing Determinants'!G19/100 -> 0 | H19: ='E1.1 Proposed Dist Rates '!H19*'E1.2 Billing Determinants'!H19/100 -> 30196.2244 | I19: ='E1.1 Proposed Dist Rates '!I19*'E1.2 Billing Determinants'!I19/100 -> 2583.713814 | J19: ='E1.1 Proposed Dist Rates '!J19*'E1.2 Billing Determinants'!J19/100 -> 0 | K19: ='E1.1 Proposed Dist Rates '!K19*'E1.2 Billing Determinants'!K19/100 -> 0 | L19: ='E1.1 Proposed Dist Rates '!L19*'E1.2 Billing Determinants'!L19/100 -> 189.259278 | M19: ='E1.1 Proposed Dist Rates '!M19*'E1.2 Billing Determinants'!M19/100 -> 0 | N19: ='E1.1 Proposed Dist Rates '!N19*'E1.2 Billing Determinants'!N19/100 -> 0 | O19: 52204.04353
C20: RATE 2 - Seasonal Service - Nov to Mar | E20: ='E1.1 Proposed Dist Rates '!E20*'E1.2 Billing Determinants'!E20*5 -> 5000 | F20: ='E1.1 Proposed Dist Rates '!F20*'E1.2 Billing Determinants'!F20/100 -> 15645.4912 | G20: ='E1.1 Proposed Dist Rates '!G20*'E1.2 Billing Determinants'!G20/100 -> 0 | H20: ='E1.1 Proposed Dist Rates '!H20*'E1.2 Billing Determinants'!H20/100 -> 41342.43858 | I20: ='E1.1 Proposed Dist Rates '!I20*'E1.2 Billing Determinants'!I20/100 -> 1819.35194 | J20: ='E1.1 Proposed Dist Rates '!J20*'E1.2 Billing Determinants'!J20/100 -> 0 | K20: ='E1.1 Proposed Dist Rates '!K20*'E1.2 Billing Determinants'!K20/100 -> 0 | L20: ='E1.1 Proposed Dist Rates '!L20*'E1.2 Billing Determinants'!L20/100 -> 154.101882 | M20: ='E1.1 Proposed Dist Rates '!M20*'E1.2 Billing Determinants'!M20/100 -> 0 | N20: ='E1.1 Proposed Dist Rates '!N20*'E1.2 Billing Determinants'!N20/100 -> 0 | O20: 63961.3836
C21: RATE 3 - Special Large Volume Contract Rate | E21: ='E1.1 Proposed Dist Rates '!E21*'E1.2 Billing Determinants'!E21*12 -> 14400 | F21: ='E1.1 Proposed Dist Rates '!F21*'E1.2 Billing Determinants'!F21/100 -> 0 | G21: ='E1.1 Proposed Dist Rates '!G21*'E1.2 Billing Determinants'!G21/100 -> 0 | H21: ='E1.1 Proposed Dist Rates '!H21*'E1.2 Billing Determinants'!H21/100 -> 0 | I21: ='E1.1 Proposed Dist Rates '!I21*'E1.2 Billing Determinants'!I21/100 -> 0 | J21: ='E1.1 Proposed Dist Rates '!J21*'E1.2 Billing Determinants'!J21/100 -> 53005.26886 | K21: ='E1.1 Proposed Dist Rates '!K21*'E1.2 Billing Determinants'!K21/100 -> 71224.57591 | L21: ='E1.1 Proposed Dist Rates '!L21*'E1.2 Billing Determinants'!L21/100 -> 410.320014 | M21: ='E1.1 Proposed Dist Rates '!M21*'E1.2 Billing Determinants'!M21/100 -> 0 | N21: ='E1.1 Proposed Dist Rates '!N21*'E1.2 Billing Determinants'!N21/100 -> 0 | O21: 139040.1648
C22: RATE 4 - General Service Peaking - Apr to Dec | E22: ='E1.1 Proposed Dist Rates '!E22*'E1.2 Billing Determinants'!E22*9 -> 7380 | F22: ='E1.1 Proposed Dist Rates '!F22*'E1.2 Billing Determinants'!F22/100 -> 18904.75568 | G22: ='E1.1 Proposed Dist Rates '!G22*'E1.2 Billing Determinants'!G22/100 -> 149743.2485 | H22: ='E1.1 Proposed Dist Rates '!H22*'E1.2 Billing Determinants'!H22/100 -> 0 | I22: ='E1.1 Proposed Dist Rates '!I22*'E1.2 Billing Determinants'!I22/100 -> 0 | J22: ='E1.1 Proposed Dist Rates '!J22*'E1.2 Billing Determinants'!J22/100 -> 0 | K22: ='E1.1 Proposed Dist Rates '!K22*'E1.2 Billing Determinants'!K22/100 -> 0 | L22: ='E1.1 Proposed Dist Rates '!L22*'E1.2 Billing Determinants'!L22/100 -> 586.526682 | M22: ='E1.1 Proposed Dist Rates '!M22*'E1.2 Billing Determinants'!M22/100 -> 0 | N22: ='E1.1 Proposed Dist Rates '!N22*'E1.2 Billing Determinants'!N22/100 -> 0 | O22: 176614.5308
C23: RATE 4 - General Service Peaking - Jan to Mar | E23: ='E1.1 Proposed Dist Rates '!E23*'E1.2 Billing Determinants'!E23*3 -> 2460 | F23: ='E1.1 Proposed Dist Rates '!F23*'E1.2 Billing Determinants'!F23/100 -> 8550.559733 | G23: ='E1.1 Proposed Dist Rates '!G23*'E1.2 Billing Determinants'!G23/100 -> 74199.71051 | H23: ='E1.1 Proposed Dist Rates '!H23*'E1.2 Billing Determinants'!H23/100 -> 0 | I23: ='E1.1 Proposed Dist Rates '!I23*'E1.2 Billing Determinants'!I23/100 -> 0 | J23: ='E1.1 Proposed Dist Rates '!J23*'E1.2 Billing Determinants'!J23/100 -> 0 | K23: ='E1.1 Proposed Dist Rates '!K23*'E1.2 Billing Determinants'!K23/100 -> 0 | L23: ='E1.1 Proposed Dist Rates '!L23*'E1.2 Billing Determinants'!L23/100 -> 182.8334145 | M23: ='E1.1 Proposed Dist Rates '!M23*'E1.2 Billing Determinants'!M23/100 -> 0 | N23: ='E1.1 Proposed Dist Rates '!N23*'E1.2 Billing Determinants'!N23/100 -> 0 | O23: 85393.10366
C24: RATE 5 - Interruptible Peaking Contract Rate | E24: ='E1.1 Proposed Dist Rates '!E24*'E1.2 Billing Determinants'!E24*12 -> 9120 | F24: ='E1.1 Proposed Dist Rates '!F24*'E1.2 Billing Determinants'!F24/100 -> 0 | G24: ='E1.1 Proposed Dist Rates '!G24*'E1.2 Billing Determinants'!G24/100 -> 0 | H24: ='E1.1 Proposed Dist Rates '!H24*'E1.2 Billing Determinants'!H24/100 -> 0 | I24: ='E1.1 Proposed Dist Rates '!I24*'E1.2 Billing Determinants'!I24/100 -> 0 | J24: ='E1.1 Proposed Dist Rates '!J24*'E1.2 Billing Determinants'!J24/100 -> 67437.32115 | K24: ='E1.1 Proposed Dist Rates '!K24*'E1.2 Billing Determinants'!K24/100 -> 0 | L24: ='E1.1 Proposed Dist Rates '!L24*'E1.2 Billing Determinants'!L24/100 -> 363.93405 | M24: ='E1.1 Proposed Dist Rates '!M24*'E1.2 Billing Determinants'!M24/100 -> 0 | N24: ='E1.1 Proposed Dist Rates '!N24*'E1.2 Billing Determinants'!N24/100 -> 0 | O24: 76921.2552
C25: RATE 6 - Integrated Grain Processors Co-Operative Aylmer Ethanol Production Facility | E25: ='E1.1 Proposed Dist Rates '!E25*'E1.2 Billing Determinants'!E25*12 -> 769676.2769 | F25: ='E1.1 Proposed Dist Rates '!F25*'E1.2 Billing Determinants'!F25/100 -> 0 | G25: ='E1.1 Proposed Dist Rates '!G25*'E1.2 Billing Determinants'!G25/100 -> 0 | H25: ='E1.1 Proposed Dist Rates '!H25*'E1.2 Billing Determinants'!H25/100 -> 0 | I25: ='E1.1 Proposed Dist Rates '!I25*'E1.2 Billing Determinants'!I25/100 -> 0 | J25: ='E1.1 Proposed Dist Rates '!J25*'E1.2 Billing Determinants'!J25/100 -> 0 | K25: ='E1.1 Proposed Dist Rates '!K25*'E1.2 Billing Determinants'!K25/100 -> 0 | L25: ='E1.1 Proposed Dist Rates '!L25*'E1.2 Billing Determinants'!L25/100 -> 0 | M25: ='E1.1 Proposed Dist Rates '!M25*'E1.2 Billing Determinants'!M25/100 -> 0 | N25: ='E1.1 Proposed Dist Rates '!N25*'E1.2 Billing Determinants'!N25/100 -> 0 | O25: 769676.2769
E26: =SUM(E16:E25) -> 2925368.277 | F26: =SUM(F16:F25) -> 2719635.737 | G26: 717539.2395 | H26: 71538.66298 | I26: 4403.065753 | J26: 120442.59 | K26: 71224.57591 | L26: 12059.42553 | M26: 0 | N26: 0 | O26: 6642211.574
K28: =13.36/13 -> 1.027692308 | N28: Proposed Revenue | O28: =O26 -> 6642211.574
N29: Current Revenue | O29: ='B1.3 Current Rev From Rates'!O26 -> 6455355.974
N30: Change | O30: =O28-O29 -> 186855.5999
O31: =O30/O29 -> 0.02894582431
C33: =MID(CELL("filename",A1),FIND("]",CELL("filename",A1))+1,255) -> E1.3 Proposed Rev From Rate

Sheet F1.1 REDA
C2: ='A1.1 Distributor Information'!C3 -> Name of LDC: EPCOR Natural Gas Limited Partnership
C3: ='A1.1 Distributor Information'!C4 -> OEB Application Number: EB-2021-0215 Exhibit A - 2022 IRM Application
C10: REDA
C15: REDA Cost Type | D15: Number of Customers to Allocate | F15: Disposition Amount ($) | H15: Disposition Rate ($ / customer / month)
C16: REDA (excl. DSM) | D16: 9607 | F16: 31363 | H16: =F16/D16/12 -> 0.2720498942
C17: DSM | D17: 9608 | F17: 7111 | H17: =F17/D17/12 -> 0.06167603386
C21: Rate Class | H21: Proposed Rate Rider ($ / customer / month)
C22: Rates 1 - 5 | H22: =ROUND(H16+H17,2) -> 0.33
C23: Rate 6 | H23: =ROUND(H16,2) -> 0.27
C28: =MID(CELL("filename",A1),FIND("]",CELL("filename",A1))+1,255) -> F1.1 REDA

Sheet F1.2 PGTVA
C2: ='A1.1 Distributor Information'!C3 -> Name of LDC: EPCOR Natural Gas Limited Partnership
C3: ='A1.1 Distributor Information'!C4 -> OEB Application Number: EB-2021-0215 Exhibit A - 2022 IRM Application
C10: PGTVA Rates 1 - 5
C15: Volume (m3) | E15: Disposition Amount ($) | G15: Proposed Rate Rider (cents / m3)
C16: =SUM('E1.2 Billing Determinants'!F16:J24) -> 28601376.7 | E16: 91377 | G16: =E16/C16*100 -> 0.3194846212
C21: =MID(CELL("filename",A1),FIND("]",CELL("filename",A1))+1,255) -> F1.2 PGTVA

Sheet F1.3 ADVADA (hidden)
D2: ='A1.1 Distributor Information'!C3 -> Name of LDC: EPCOR Natural Gas Limited Partnership
D3: ='A1.1 Distributor Information'!C4 -> OEB Application Number: EB-2021-0215 Exhibit A - 2022 IRM Application
C10: ADVADA
C15: Rate Class | D15: Number of Customers | E15: Volume (m3) | F15: Disposition Amount ($) | G15: Rate Rider Unit | H15: Proposed Rate Rider
C16: Rate 1 - 5 | D16: ='E1.2 Billing Determinants'!E26-'E1.2 Billing Determinants'!E25 -> 9607 | E16: =SUM('E1.2 Billing Determinants'!F16:J24) -> 28601376.7 | G16: cents / m3 | H16: =F16/E16*100 -> 0
C17: Rate 6 | D17: ='E1.2 Billing Determinants'!E25 -> 1 | G17: $ / customer / month | H17: =F17/D17/12 -> 0
C21: =MID(CELL("filename",A1),FIND("]",CELL("filename",A1))+1,255) -> F1.3 ADVADA

Sheet F1.4 LDMDA
D2: ='A1.1 Distributor Information'!C3 -> Name of LDC: EPCOR Natural Gas Limited Partnership
D3: ='A1.1 Distributor Information'!C4 -> OEB Application Number: EB-2021-0215 Exhibit A - 2022 IRM Application
C10: LDMDA
C15: Rate Class | D15: Number of Customers | E15: Volume (m3) | F15: Disposition Amount ($) | G15: Rate Rider Unit | H15: Proposed Rate Rider
C16: Rate 1 | D16: ='E1.2 Billing Determinants'!E16+'E1.2 Billing Determinants'!E17+'E1.2 Billing Determinants'!E18 -> 9506 | E16: =SUM('E1.2 Billing Determinants'!F16:J24) -> 28601376.7 | F16: 154518 | G16: $ / customer / month | H16: =ROUND(F16/D16/12,2) -> 1.35
C21: =MID(CELL("filename",A1),FIND("]",CELL("filename",A1))+1,255) -> F1.4 LDMDA

Sheet F1.5 SICDA
D2: ='A1.1 Distributor Information'!C3 -> Name of LDC: EPCOR Natural Gas Limited Partnership
D3: ='A1.1 Distributor Information'!C4 -> OEB Application Number: EB-2021-0215 Exhibit A - 2022 IRM Application
C10: SICDA
C15: Rate Class | D15: Number of Customers | E15: Volume (m3) | F15: Disposition Amount ($) | G15: Rate Rider Unit | H15: Proposed Rate Rider
C16: Rate 1 - 5 | D16: ='E1.2 Billing Determinants'!E26-'E1.2 Billing Determinants'!E25 -> 9607 | E16: =SUM('E1.2 Billing Determinants'!F16:J24) -> 28601376.7 | F16: 67829 | G16: cents / m3 | H16: =ROUND(F16/E16*100,4) -> 0.2372
C21: =MID(CELL("filename",A1),FIND("]",CELL("filename",A1))+1,255) -> F1.5 SICDA

Sheet F1.4 Proposed Rate Riders
C2: ='A1.1 Distributor Information'!C3 -> Name of LDC: EPCOR Natural Gas Limited Partnership
C3: ='A1.1 Distributor Information'!C4 -> OEB Application Number: EB-2021-0215 Exhibit A - 2022 IRM Application
C7: Proposed Rate Riders
C9: Description | E9: REDA | F9: PGTVA | G9: ADVADA Rate 1 - 5 | H9: ADVADA Rate 6 | I9: LDMDA | J9: SICDA
E10: Effective for 12 months | F10: Effective for 12 months | G10: Effective for 12 months | H10: Effective for 12 months | I10: Effective for 12 months | J10: Effective for 12 months
E11: $ per Customer Per Month | F11: cents / m3 | G11: cents / m3 | H11: $ per Customer Per Month | I11: $ per Customer Per Month | J11: cents / m3
C12: Rate Group
C13: RATE 1 - General Service Rate - Residential | E13: ='F1.1 REDA'!$H$22 -> 0.33 | F13: ='F1.2 PGTVA'!$G$16 -> 0.3194846212 | G13: ='F1.3 ADVADA'!$H$16 -> 0 | I13: ='F1.4 LDMDA'!$H$16 -> 1.35 | J13: ='F1.5 SICDA'!$H$16 -> 0.2372
C14: RATE 1 - General Service Rate - Commercial | E14: ='F1.1 REDA'!$H$22 -> 0.33 | F14: ='F1.2 PGTVA'!$G$16 -> 0.3194846212 | G14: ='F1.3 ADVADA'!$H$16 -> 0 | I14: ='F1.4 LDMDA'!$H$16 -> 1.35 | J14: ='F1.5 SICDA'!$H$16 -> 0.2372
C15: RATE 1 - General Service Rate - Industrial | E15: ='F1.1 REDA'!$H$22 -> 0.33 | F15: ='F1.2 PGTVA'!$G$16 -> 0.3194846212 | G15: ='F1.3 ADVADA'!$H$16 -> 0 | I15: ='F1.4 LDMDA'!$H$16 -> 1.35 | J15: ='F1.5 SICDA'!$H$16 -> 0.2372
C16: RATE 2 - Seasonal Service - Apr to Oct | E16: ='F1.1 REDA'!$H$22 -> 0.33 | F16: ='F1.2 PGTVA'!$G$16 -> 0.3194846212 | G16: ='F1.3 ADVADA'!$H$16 -> 0 | J16: ='F1.5 SICDA'!$H$16 -> 0.2372
C17: RATE 2 - Seasonal Service - Nov to Mar | E17: ='F1.1 REDA'!$H$22 -> 0.33 | F17: ='F1.2 PGTVA'!$G$16 -> 0.3194846212 | G17: ='F1.3 ADVADA'!$H$16 -> 0 | J17: ='F1.5 SICDA'!$H$16 -> 0.2372
C18: RATE 3 - Special Large Volume Contract Rate | E18: ='F1.1 REDA'!$H$22 -> 0.33 | F18: ='F1.2 PGTVA'!$G$16 -> 0.3194846212 | G18: ='F1.3 ADVADA'!$H$16 -> 0 | J18: ='F1.5 SICDA'!$H$16 -> 0.2372
C19: RATE 4 - General Service Peaking - Apr to Dec | E19: ='F1.1 REDA'!$H$22 -> 0.33 | F19: ='F1.2 PGTVA'!$G$16 -> 0.3194846212 | G19: ='F1.3 ADVADA'!$H$16 -> 0 | J19: ='F1.5 SICDA'!$H$16 -> 0.2372
C20: RATE 4 - General Service Peaking - Jan to Mar | E20: ='F1.1 REDA'!$H$22 -> 0.33 | F20: ='F1.2 PGTVA'!$G$16 -> 0.3194846212 | G20: ='F1.3 ADVADA'!$H$16 -> 0 | J20: ='F1.5 SICDA'!$H$16 -> 0.2372
C21: RATE 5 - Interruptible Peaking Contract Rate | E21: ='F1.1 REDA'!$H$22 -> 0.33 | F21: ='F1.2 PGTVA'!$G$16 -> 0.3194846212 | G21: ='F1.3 ADVADA'!$H$16 -> 0 | J21: ='F1.5 SICDA'!$H$16 -> 0.2372
C22: RATE 6 - Integrated Grain Processors Co-Operative Aylmer Ethanol Production Facility | E22: ='F1.1 REDA'!$H$23 -> 0.27 | H22: ='F1.3 ADVADA'!H17 -> 0
C28: =MID(CELL("filename",A15),FIND("]",CELL("filename",A15))+1,255) -> F1.4 Proposed Rate Riders

Sheet G1.1 Rate 1 Bill Impact
C2: ='A1.1 Distributor Information'!C3 -> Name of LDC: EPCOR Natural Gas Limited Partnership
C3: ='A1.1 Distributor Information'!C4 -> OEB Application Number: EB-2021-0215 Exhibit A - 2022 IRM Application
C7: Rate 1 Delivery Bill Impact
C10: ='For Bill Impact(HideBeforeFile)'!C6 -> RATE 1 - General Service Rate - Residential | F10: Current | H10: Proposed | J10: Bill Determinant | O10: Look-up
C14: =INDEX('For Bill Impact(HideBeforeFile)'!$D$48:$Q$57,MATCH(C10,'For Bill Impact(HideBeforeFile)'!$C$62:$C$71,0),MATCH($O14,'For Bill Impact(HideBeforeFile)'!$D$61:$Q$61,0)) -> Commodity | D14: =INDEX('For Bill Impact(HideBeforeFile)'!$D$62:$Q$71,MATCH(C10,'For Bill Impact(HideBeforeFile)'!$C$62:$C$71,0),MATCH($O14,'For Bill Impact(HideBeforeFile)'!$D$61:$Q$61,0)) -> cents / m3 | F14: =INDEX('For Bill Impact(HideBeforeFile)'!$D$6:$Q$15,MATCH(C10,'For Bill Impact(HideBeforeFile)'!$C$62:$C$71,0),MATCH($O14,'For Bill Impact(HideBeforeFile)'!$D$61:$Q$61,0)) -> 13.2622 | H14: =INDEX('For Bill Impact(HideBeforeFile)'!$D$20:$Q$29,MATCH(C10,'For Bill Impact(HideBeforeFile)'!$C$62:$C$71,0),MATCH($O14,'For Bill Impact(HideBeforeFile)'!$D$61:$Q$61,0)) -> 13.2622 | J14: =INDEX('For Bill Impact(HideBeforeFile)'!$D$34:$Q$43,MATCH(C10,'For Bill Impact(HideBeforeFile)'!$C$62:$C$71,0),MATCH($O14,'For Bill Impact(HideBeforeFile)'!$D$61:$Q$61,0)) -> 1871.440216 | O14: ='For Bill Impact(HideBeforeFile)'!$D$5 -> Commodity
C16: =INDEX('For Bill Impact(HideBeforeFile)'!$D$48:$Q$57,MATCH(C10,'For Bill Impact(HideBeforeFile)'!$C$62:$C$71,0),MATCH($O16,'For Bill Impact(HideBeforeFile)'!$D$61:$Q$61,0)) -> Customer (excl. Bill 32) | D16: =INDEX('For Bill Impact(HideBeforeFile)'!$D$62:$Q$71,MATCH(C10,'For Bill Impact(HideBeforeFile)'!$C$62:$C$71,0),MATCH($O16,'For Bill Impact(HideBeforeFile)'!$D$61:$Q$61,0)) -> $ / month | F16: =INDEX('For Bill Impact(HideBeforeFile)'!$D$6:$Q$15,MATCH(C10,'For Bill Impact(HideBeforeFile)'!$C$62:$C$71,0),MATCH($O16,'For Bill Impact(HideBeforeFile)'!$D$61:$Q$61,0)) -> 17.5 | H16: =INDEX('For Bill Impact(HideBeforeFile)'!$D$20:$Q$29,MATCH(C10,'For Bill Impact(HideBeforeFile)'!$C$62:$C$71,0),MATCH($O16,'For Bill Impact(HideBeforeFile)'!$D$61:$Q$61,0)) -> 18.5 | J16: =INDEX('For Bill Impact(HideBeforeFile)'!$D$34:$Q$43,MATCH(C10,'For Bill Impact(HideBeforeFile)'!$C$62:$C$71,0),MATCH($O16,'For Bill Impact(HideBeforeFile)'!$D$61:$Q$61,0)) -> 12 | O16: ='For Bill Impact(HideBeforeFile)'!$M$5 -> Dist. Customer Rate
C17: =INDEX('For Bill Impact(HideBeforeFile)'!$D$48:$Q$57,MATCH(C10,'For Bill Impact(HideBeforeFile)'!$C$62:$C$71,0),MATCH($O17,'For Bill Impact(HideBeforeFile)'!$D$61:$Q$61,0)) -> Block 1 (First 1,000 m3 per month) | D17: =INDEX('For Bill Impact(HideBeforeFile)'!$D$62:$Q$71,MATCH(C10,'For Bill Impact(HideBeforeFile)'!$C$62:$C$71,0),MATCH($O17,'For Bill Impact(HideBeforeFile)'!$D$61:$Q$61,0)) -> cents / m3 | F17: =INDEX('For Bill Impact(HideBeforeFile)'!$D$6:$Q$15,MATCH(C10,'For Bill Impact(HideBeforeFile)'!$C$62:$C$71,0),MATCH($O17,'For Bill Impact(HideBeforeFile)'!$D$61:$Q$61,0)) -> 13.5701 | H17: =INDEX('For Bill Impact(HideBeforeFile)'!$D$20:$Q$29,MATCH(C10,'For Bill Impact(HideBeforeFile)'!$C$62:$C$71,0),MATCH($O17,'For Bill Impact(HideBeforeFile)'!$D$61:$Q$61,0)) -> 13.71955556 | J17: =INDEX('For Bill Impact(HideBeforeFile)'!$D$34:$Q$43,MATCH(C10,'For Bill Impact(HideBeforeFile)'!$C$62:$C$71,0),MATCH($O17,'For Bill Impact(HideBeforeFile)'!$D$61:$Q$61,0)) -> 1856.373628 | O17: ='For Bill Impact(HideBeforeFile)'!$N$5 -> Dist. Vol. Rate Tier 1
C18: =INDEX('For Bill Impact(HideBeforeFile)'!$D$48:$Q$57,MATCH(C10,'For Bill Impact(HideBeforeFile)'!$C$62:$C$71,0),MATCH($O18,'For Bill Impact(HideBeforeFile)'!$D$61:$Q$61,0)) -> Block 2 (Over 1,000 m3 per month) | D18: =INDEX('For Bill Impact(HideBeforeFile)'!$D$62:$Q$71,MATCH(C10,'For Bill Impact(HideBeforeFile)'!$C$62:$C$71,0),MATCH($O18,'For Bill Impact(HideBeforeFile)'!$D$61:$Q$61,0)) -> cents / m3 | F18: =INDEX('For Bill Impact(HideBeforeFile)'!$D$6:$Q$15,MATCH(C10,'For Bill Impact(HideBeforeFile)'!$C$62:$C$71,0),MATCH($O18,'For Bill Impact(HideBeforeFile)'!$D$61:$Q$61,0)) -> 10.9063 | H18: =INDEX('For Bill Impact(HideBeforeFile)'!$D$20:$Q$29,MATCH(C10,'For Bill Impact(HideBeforeFile)'!$C$62:$C$71,0),MATCH($O18,'For Bill Impact(HideBeforeFile)'!$D$61:$Q$61,0)) -> 11.02641755 | J18: =INDEX('For Bill Impact(HideBeforeFile)'!$D$34:$Q$43,MATCH(C10,'For Bill Impact(HideBeforeFile)'!$C$62:$C$71,0),MATCH($O18,'For Bill Impact(HideBeforeFile)'!$D$61:$Q$61,0)) -> 15.06658794 | O18: ='For Bill Impact(HideBeforeFile)'!$O$5 -> Dist. Vol. Rate Tier 2
C19: =INDEX('For Bill Impact(HideBeforeFile)'!$D$48:$Q$57,MATCH(C10,'For Bill Impact(HideBeforeFile)'!$C$62:$C$71,0),MATCH($O19,'For Bill Impact(HideBeforeFile)'!$D$61:$Q$61,0)) ->  | D19: =INDEX('For Bill Impact(HideBeforeFile)'!$D$62:$Q$71,MATCH(C10,'For Bill Impact(HideBeforeFile)'!$C$62:$C$71,0),MATCH($O19,'For Bill Impact(HideBeforeFile)'!$D$61:$Q$61,0)) ->  | F19: =INDEX('For Bill Impact(HideBeforeFile)'!$D$6:$Q$15,MATCH(C10,'For Bill Impact(HideBeforeFile)'!$C$62:$C$71,0),MATCH($O19,'For Bill Impact(HideBeforeFile)'!$D$61:$Q$61,0)) ->  | H19: =INDEX('For Bill Impact(HideBeforeFile)'!$D$20:$Q$29,MATCH(C10,'For Bill Impact(HideBeforeFile)'!$C$62:$C$71,0),MATCH($O19,'For Bill Impact(HideBeforeFile)'!$D$61:$Q$61,0)) ->  | J19: =INDEX('For Bill Impact(HideBeforeFile)'!$D$34:$Q$43,MATCH(C10,'For Bill Impact(HideBeforeFile)'!$C$62:$C$71,0),MATCH($O19,'For Bill Impact(HideBeforeFile)'!$D$61:$Q$61,0)) ->  | O19: ='For Bill Impact(HideBeforeFile)'!$P$5 -> Dist. Vol. Rate Tier 3
C20: =INDEX('For Bill Impact(HideBeforeFile)'!$D$48:$Q$57,MATCH(C10,'For Bill Impact(HideBeforeFile)'!$C$62:$C$71,0),MATCH($O20,'For Bill Impact(HideBeforeFile)'!$D$61:$Q$61,0)) ->  | D20: =INDEX('For Bill Impact(HideBeforeFile)'!$D$62:$Q$71,MATCH(C10,'For Bill Impact(HideBeforeFile)'!$C$62:$C$71,0),MATCH($O20,'For Bill Impact(HideBeforeFile)'!$D$61:$Q$61,0)) ->  | F20: =INDEX('For Bill Impact(HideBeforeFile)'!$D$6:$Q$15,MATCH(C10,'For Bill Impact(HideBeforeFile)'!$C$62:$C$71,0),MATCH($O20,'For Bill Impact(HideBeforeFile)'!$D$61:$Q$61,0)) ->  | H20: =INDEX('For Bill Impact(HideBeforeFile)'!$D$20:$Q$29,MATCH(C10,'For Bill Impact(HideBeforeFile)'!$C$62:$C$71,0),MATCH($O20,'For Bill Impact(HideBeforeFile)'!$D$61:$Q$61,0)) ->  | J20: =INDEX('For Bill Impact(HideBeforeFile)'!$D$34:$Q$43,MATCH(C10,'For Bill Impact(HideBeforeFile)'!$C$62:$C$71,0),MATCH($O20,'For Bill Impact(HideBeforeFile)'!$D$61:$Q$61,0)) ->  | O20: ='For Bill Impact(HideBeforeFile)'!$Q$5 -> Dist. Capacity Rate
C21: =INDEX('For Bill Impact(HideBeforeFile)'!$D$48:$Q$57,MATCH(C10,'For Bill Impact(HideBeforeFile)'!$C$62:$C$71,0),MATCH($O21,'For Bill Impact(HideBeforeFile)'!$D$61:$Q$61,0)) -> System Gas Charge | D21: =INDEX('For Bill Impact(HideBeforeFile)'!$D$62:$Q$71,MATCH(C10,'For Bill Impact(HideBeforeFile)'!$C$62:$C$71,0),MATCH($O21,'For Bill Impact(HideBeforeFile)'!$D$61:$Q$61,0)) -> cents / m3 | F21: =INDEX('For Bill Impact(HideBeforeFile)'!$D$6:$Q$15,MATCH(C10,'For Bill Impact(HideBeforeFile)'!$C$62:$C$71,0),MATCH($O21,'For Bill Impact(HideBeforeFile)'!$D$61:$Q$61,0)) -> 0.0435 | H21: =INDEX('For Bill Impact(HideBeforeFile)'!$D$20:$Q$29,MATCH(C10,'For Bill Impact(HideBeforeFile)'!$C$62:$C$71,0),MATCH($O21,'For Bill Impact(HideBeforeFile)'!$D$61:$Q$61,0)) -> 0.0435 | J21: =INDEX('For Bill Impact(HideBeforeFile)'!$D$34:$Q$43,MATCH(C10,'For Bill Impact(HideBeforeFile)'!$C$62:$C$71,0),MATCH($O21,'For Bill Impact(HideBeforeFile)'!$D$61:$Q$61,0)) -> 1871.440216 | O21: ='For Bill Impact(HideBeforeFile)'!$E$5 -> System Gas
C23: =INDEX('For Bill Impact(HideBeforeFile)'!$D$48:$Q$57,MATCH(C10,'For Bill Impact(HideBeforeFile)'!$C$62:$C$71,0),MATCH($O23,'For Bill Impact(HideBeforeFile)'!$D$61:$Q$61,0)) -> REDA | D23: =INDEX('For Bill Impact(HideBeforeFile)'!$D$62:$Q$71,MATCH(C10,'For Bill Impact(HideBeforeFile)'!$C$62:$C$71,0),MATCH($O23,'For Bill Impact(HideBeforeFile)'!$D$61:$Q$61,0)) -> $ / month | F23: =INDEX('For Bill Impact(HideBeforeFile)'!$D$6:$Q$15,MATCH(C10,'For Bill Impact(HideBeforeFile)'!$C$62:$C$71,0),MATCH($O23,'For Bill Impact(HideBeforeFile)'!$D$61:$Q$61,0)) -> 0.78 | H23: =INDEX('For Bill Impact(HideBeforeFile)'!$D$20:$Q$29,MATCH(C10,'For Bill Impact(HideBeforeFile)'!$C$62:$C$71,0),MATCH($O23,'For Bill Impact(HideBeforeFile)'!$D$61:$Q$61,0)) -> 0.33 | J23: =INDEX('For Bill Impact(HideBeforeFile)'!$D$34:$Q$43,MATCH(C10,'For Bill Impact(HideBeforeFile)'!$C$62:$C$71,0),MATCH($O23,'For Bill Impact(HideBeforeFile)'!$D$61:$Q$61,0)) -> 12 | O23: ='For Bill Impact(HideBeforeFile)'!$F$5 -> REDA
C24: =INDEX('For Bill Impact(HideBeforeFile)'!$D$48:$Q$57,MATCH(C10,'For Bill Impact(HideBeforeFile)'!$C$62:$C$71,0),MATCH($O24,'For Bill Impact(HideBeforeFile)'!$D$61:$Q$61,0)) -> PGTVA | D24: =INDEX('For Bill Impact(HideBeforeFile)'!$D$62:$Q$71,MATCH(C10,'For Bill Impact(HideBeforeFile)'!$C$62:$C$71,0),MATCH($O24,'For Bill Impact(HideBeforeFile)'!$D$61:$Q$61,0)) -> cents / m3 | F24: =INDEX('For Bill Impact(HideBeforeFile)'!$D$6:$Q$15,MATCH(C10,'For Bill Impact(HideBeforeFile)'!$C$62:$C$71,0),MATCH($O24,'For Bill Impact(HideBeforeFile)'!$D$61:$Q$61,0)) -> 0.3113 | H24: =INDEX('For Bill Impact(HideBeforeFile)'!$D$20:$Q$29,MATCH(C10,'For Bill Impact(HideBeforeFile)'!$C$62:$C$71,0),MATCH($O24,'For Bill Impact(HideBeforeFile)'!$D$61:$Q$61,0)) -> 0.3194846212 | J24: =INDEX('For Bill Impact(HideBeforeFile)'!$D$34:$Q$43,MATCH(C10,'For Bill Impact(HideBeforeFile)'!$C$62:$C$71,0),MATCH($O24,'For Bill Impact(HideBeforeFile)'!$D$61:$Q$61,0)) -> 1871.440216 | O24: ='For Bill Impact(HideBeforeFile)'!$G$5 -> PGTVA
C25: =INDEX('For Bill Impact(HideBeforeFile)'!$D$48:$Q$57,MATCH(C10,'For Bill Impact(HideBeforeFile)'!$C$62:$C$71,0),MATCH($O25,'For Bill Impact(HideBeforeFile)'!$D$61:$Q$61,0)) -> ADVADA | D25: =INDEX('For Bill Impact(HideBeforeFile)'!$D$62:$Q$71,MATCH(C10,'For Bill Impact(HideBeforeFile)'!$C$62:$C$71,0),MATCH($O25,'For Bill Impact(HideBeforeFile)'!$D$61:$Q$61,0)) -> cents / m3 | F25: =INDEX('For Bill Impact(HideBeforeFile)'!$D$6:$Q$15,MATCH(C10,'For Bill Impact(HideBeforeFile)'!$C$62:$C$71,0),MATCH($O25,'For Bill Impact(HideBeforeFile)'!$D$61:$Q$61,0)) -> 0.1508 | H25: =INDEX('For Bill Impact(HideBeforeFile)'!$D$20:$Q$29,MATCH(C10,'For Bill Impact(HideBeforeFile)'!$C$62:$C$71,0),MATCH($O25,'For Bill Impact(HideBeforeFile)'!$D$61:$Q$61,0)) -> 0 | J25: =INDEX('For Bill Impact(HideBeforeFile)'!$D$34:$Q$43,MATCH(C10,'For Bill Impact(HideBeforeFile)'!$C$62:$C$71,0),MATCH($O25,'For Bill Impact(HideBeforeFile)'!$D$61:$Q$61,0)) -> 1871.440216 | O25: ='For Bill Impact(HideBeforeFile)'!$H$5 -> ADVADA
C26: =INDEX('For Bill Impact(HideBeforeFile)'!$D$48:$Q$57,MATCH(C10,'For Bill Impact(HideBeforeFile)'!$C$62:$C$71,0),MATCH($O26,'For Bill Impact(HideBeforeFile)'!$D$61:$Q$61,0)) -> LDMDA | D26: =INDEX('For Bill Impact(HideBeforeFile)'!$D$62:$Q$71,MATCH(C10,'For Bill Impact(HideBeforeFile)'!$C$62:$C$71,0),MATCH($O26,'For Bill Impact(HideBeforeFile)'!$D$61:$Q$61,0)) -> $ / month | F26: =INDEX('For Bill Impact(HideBeforeFile)'!$D$6:$Q$15,MATCH(C10,'For Bill Impact(HideBeforeFile)'!$C$62:$C$71,0),MATCH($O26,'For Bill Impact(HideBeforeFile)'!$D$61:$Q$61,0)) -> 0 | H26: =INDEX('For Bill Impact(HideBeforeFile)'!$D$20:$Q$29,MATCH(C10,'For Bill Impact(HideBeforeFile)'!$C$62:$C$71,0),MATCH($O26,'For Bill Impact(HideBeforeFile)'!$D$61:$Q$61,0)) -> 1.35 | J26: =INDEX('For Bill Impact(HideBeforeFile)'!$D$34:$Q$43,MATCH(C10,'For Bill Impact(HideBeforeFile)'!$C$62:$C$71,0),MATCH($O26,'For Bill Impact(HideBeforeFile)'!$D$61:$Q$61,0)) -> 12 | O26: LDMDA
C27: =INDEX('For Bill Impact(HideBeforeFile)'!$D$48:$Q$57,MATCH(C10,'For Bill Impact(HideBeforeFile)'!$C$62:$C$71,0),MATCH($O27,'For Bill Impact(HideBeforeFile)'!$D$61:$Q$61,0)) -> SICDA | D27: =INDEX('For Bill Impact(HideBeforeFile)'!$D$62:$Q$71,MATCH(C10,'For Bill Impact(HideBeforeFile)'!$C$62:$C$71,0),MATCH($O27,'For Bill Impact(HideBeforeFile)'!$D$61:$Q$61,0)) -> cents / m3 | F27: =INDEX('For Bill Impact(HideBeforeFile)'!$D$6:$Q$15,MATCH(C10,'For Bill Impact(HideBeforeFile)'!$C$62:$C$71,0),MATCH($O27,'For Bill Impact(HideBeforeFile)'!$D$61:$Q$61,0)) -> 0 | H27: =INDEX('For Bill Impact(HideBeforeFile)'!$D$20:$Q$29,MATCH(C10,'For Bill Impact(HideBeforeFile)'!$C$62:$C$71,0),MATCH($O27,'For Bill Impact(HideBeforeFile)'!$D$61:$Q$61,0)) -> 0.2372 | J27: =INDEX('For Bill Impact(HideBeforeFile)'!$D$34:$Q$43,MATCH(C10,'For Bill Impact(HideBeforeFile)'!$C$62:$C$71,0),MATCH($O27,'For Bill Impact(HideBeforeFile)'!$D$61:$Q$61,0)) -> 1871.440216 | O27: SICDA
C29: =INDEX('For Bill Impact(HideBeforeFile)'!$D$48:$Q$57,MATCH(C10,'For Bill Impact(HideBeforeFile)'!$C$62:$C$71,0),MATCH($O29,'For Bill Impact(HideBeforeFile)'!$D$61:$Q$61,0)) -> Federal Carbon | D29: =INDEX('For Bill Impact(HideBeforeFile)'!$D$62:$Q$71,MATCH(C10,'For Bill Impact(HideBeforeFile)'!$C$62:$C$71,0),MATCH($O29,'For Bill Impact(HideBeforeFile)'!$D$61:$Q$61,0)) -> cents / m3 | F29: =INDEX('For Bill Impact(HideBeforeFile)'!$D$6:$Q$15,MATCH(C10,'For Bill Impact(HideBeforeFile)'!$C$62:$C$71,0),MATCH($O29,'For Bill Impact(HideBeforeFile)'!$D$61:$Q$61,0)) -> 7.83 | H29: =INDEX('For Bill Impact(HideBeforeFile)'!$D$20:$Q$29,MATCH(C10,'For Bill Impact(HideBeforeFile)'!$C$62:$C$71,0),MATCH($O29,'For Bill Impact(HideBeforeFile)'!$D$61:$Q$61,0)) -> 7.83 | J29: =INDEX('For Bill Impact(HideBeforeFile)'!$D$34:$Q$43,MATCH(C10,'For Bill Impact(HideBeforeFile)'!$C$62:$C$71,0),MATCH($O29,'For Bill Impact(HideBeforeFile)'!$D$61:$Q$61,0)) -> 1871.440216 | O29: ='For Bill Impact(HideBeforeFile)'!$K$5 -> Federal Carbon
C30: =INDEX('For Bill Impact(HideBeforeFile)'!$D$48:$Q$57,MATCH(C10,'For Bill Impact(HideBeforeFile)'!$C$62:$C$71,0),MATCH($O30,'For Bill Impact(HideBeforeFile)'!$D$61:$Q$61,0)) -> Facility Carbon | D30: =INDEX('For Bill Impact(HideBeforeFile)'!$D$62:$Q$71,MATCH(C10,'For Bill Impact(HideBeforeFile)'!$C$62:$C$71,0),MATCH($O30,'For Bill Impact(HideBeforeFile)'!$D$61:$Q$61,0)) -> cents / m3 | F30: =INDEX('For Bill Impact(HideBeforeFile)'!$D$6:$Q$15,MATCH(C10,'For Bill Impact(HideBeforeFile)'!$C$62:$C$71,0),MATCH($O30,'For Bill Impact(HideBeforeFile)'!$D$61:$Q$61,0)) -> 0.0052 | H30: =INDEX('For Bill Impact(HideBeforeFile)'!$D$20:$Q$29,MATCH(C10,'For Bill Impact(HideBeforeFile)'!$C$62:$C$71,0),MATCH($O30,'For Bill Impact(HideBeforeFile)'!$D$61:$Q$61,0)) -> 0.0052 | J30: =INDEX('For Bill Impact(HideBeforeFile)'!$D$34:$Q$43,MATCH(C10,'For Bill Impact(HideBeforeFile)'!$C$62:$C$71,0),MATCH($O30,'For Bill Impact(HideBeforeFile)'!$D$61:$Q$61,0)) -> 1871.440216 | O30: ='For Bill Impact(HideBeforeFile)'!$L$5 -> Facility Carbon
C33: Commodity | F33: Current | H33: Proposed | J33: Change $ | L33: Change %
F34: =F14*$J14/100 -> 248.1941443 | H34: =H14*$J14/100 -> 248.1941443 | J34: =H34-F34 -> 0 | L34: =IFERROR(J34/F34,"") -> 0 | O34: ='For Bill Impact(HideBeforeFile)'!$D$5 -> Commodity
C36: Delivery | F36: Current Rate | H36: Proposed Rate | J36: Change $ | L36: Change %
C37: =IF(C16<>"",C16,"") -> Customer (excl. Bill 32) | F37: =F16*$J16 -> 210 | H37: =H16*$J16 -> 222 | J37: =IFERROR(H37-F37,"") -> 12 | L37: =IFERROR(J37/F37,"") -> 0.05714285714 | O37: ='For Bill Impact(HideBeforeFile)'!$M$5 -> Dist. Customer Rate
C38: Bill 32 | F38: 12 | H38: 12 | J38: =IFERROR(H38-F38,"") -> 0 | L38: =IFERROR(J38/F38,"") -> 0
C39: =IF(C17<>"",C17,"") -> Block 1 (First 1,000 m3 per month) | F39: =IFERROR(F17*$J17/100,"") -> 251.9117577 | H39: =IFERROR(H17*$J17/100,"") -> 254.6862113 | J39: =IFERROR(H39-F39,"") -> 2.774453616 | L39: =IFERROR(J39/F39,"") -> 0.01101359318 | O39: ='For Bill Impact(HideBeforeFile)'!$N$5 -> Dist. Vol. Rate Tier 1
C40: =IF(C18<>"",C18,"") -> Block 2 (Over 1,000 m3 per month) | F40: =IFERROR(F18*$J18/100,"") -> 1.643207281 | H40: =IFERROR(H18*$J18/100,"") -> 1.661304897 | J40: 0.0180976165 | L40: 0.01101359318 | O40: ='For Bill Impact(HideBeforeFile)'!$O$5 -> Dist. Vol. Rate Tier 2
C41: =IF(C19<>"",C19,"") ->  | F41: =IFERROR(F19*$J19/100,"") ->  | H41: =IFERROR(H19*$J19/100,"") ->  | O41: ='For Bill Impact(HideBeforeFile)'!$P$5 -> Dist. Vol. Rate Tier 3
C42: =IF(C20<>"",C20,"") ->  | F42: =IFERROR(F20*$J20/100,"") ->  | H42: =IFERROR(H20*$J20/100,"") ->  | O42: ='For Bill Impact(HideBeforeFile)'!$Q$5 -> Dist. Capacity Rate
C43: =IF(C21<>"",C21,"") -> System Gas Charge | F43: =IFERROR(F21*$J21/100,"") -> 0.8140764939 | H43: =IFERROR(H21*$J21/100,"") -> 0.8140764939 | J43: 0 | L43: 0 | O43: ='For Bill Impact(HideBeforeFile)'!$E$5 -> System Gas
C44: Total Delivery | F44: =SUM(F37:F43) -> 476.3690415 | H44: =SUM(H37:H43) -> 491.1615927 | J44: =H44-F44 -> 14.79255123 | L44: =IF(ISERROR(J44/F44),0,J44/F44) -> 0.03105271322
C46: Rate Riders
C48: Rate Riders | F48: Current Rate | H48: Proposed Rate | J48: Change $ | L48: Change %
C49: =C23 -> REDA | F49: =F23*$J23 -> 9.36 | H49: =H23*$J23 -> 3.96 | J49: =IFERROR(H49-F49,"") -> -5.4 | L49: =IFERROR(J49/F49,"") -> -0.5769230769 | O49: ='For Bill Impact(HideBeforeFile)'!$F$5 -> REDA
C50: =C24 -> PGTVA | F50: =IFERROR(F24*$J24/100,"") -> 5.825793392 | H50: =IFERROR(H24*$J24/100,"") -> 5.978963684 | J50: =IFERROR(H50-F50,"") -> 0.1531702921 | L50: =IFERROR(J50/F50,"") -> 0.02629174806 | O50: ='For Bill Impact(HideBeforeFile)'!$G$5 -> PGTVA
C51: ADVADA | F51: =IFERROR(F25*$J25/100,"") -> 2.822131846 | H51: =IFERROR(H25*$J25/100,"") -> 0 | J51: -2.822131846 | L51: -1 | O51: ='For Bill Impact(HideBeforeFile)'!$H$5 -> ADVADA
C52: LDMDA | F52: =IFERROR(F26*$J26/100,"") -> 0 | H52: =H26*$J26 -> 16.2 | J52: 16.2 | O52: ='For Bill Impact(HideBeforeFile)'!$I$5 -> LDMDA
C53: SICDA | F53: =IFERROR(F27*$J27/100,"") -> 0 | H53: =IFERROR(H27*$J27/100,"") -> 4.439056192 | J53: 4.439056192 | O53: ='For Bill Impact(HideBeforeFile)'!$J$5 -> SICDA
C54: Total Rate Riders | F54: =SUM(F49:F53) -> 18.00792524 | H54: =SUM(H49:H53) -> 30.57801988 | J54: =SUM(J49:J53) -> 12.57009464 | L54: =IF(ISERROR(J54/F54),0,J54/F54) -> 0.6980312542
C56: Carbon Tax
C57: Federal Carbon | F57: =F29*$J29/100 -> 146.5337689 | H57: =H29*$J29/100 -> 146.5337689 | J57: =IFERROR(H57-F57,"") -> 0 | L57: =IFERROR(J57/F57,"") -> 0
C58: Facility Carbon | F58: =F30*$J30/100 -> 0.09731489123 | H58: =H30*$J30/100 -> 0.09731489123 | J58: =IFERROR(H58-F58,"") -> 0 | L58: 0
C59: Total Carbon Tax | F59: =SUM(F57:F58) -> 146.6310838 | H59: =SUM(H57:H58) -> 146.6310838 | J59: =SUM(J57:J58) -> 0 | L59: =IF(ISERROR(J59/F59),0,J59/F59) -> 0
C61: Total Bill Impact | F61: =SUM(F34,F44,F54,F59) -> 889.2021948 | H61: =SUM(H34,H44,H54,H59) -> 916.5648407 | J61: =SUM(J34,J44,J54,J59) -> 27.36264587 | L61: =IFERROR(J61/F61,"") -> 0.03077213038
C64: =MID(CELL("filename",A1),FIND("]",CELL("filename",A1))+1,255) -> G1.1 Rate 1 Bill Impact
C66: ='For Bill Impact(HideBeforeFile)'!C7 -> RATE 1 - General Service Rate - Commercial | F66: Current | H66: Proposed | J66: Bill Determinant | O66: Look-up
C70: =INDEX('For Bill Impact(HideBeforeFile)'!$D$48:$Q$57,MATCH(C66,'For Bill Impact(HideBeforeFile)'!$C$62:$C$71,0),MATCH($O70,'For Bill Impact(HideBeforeFile)'!$D$61:$Q$61,0)) -> Commodity | D70: =INDEX('For Bill Impact(HideBeforeFile)'!$D$62:$Q$71,MATCH(C66,'For Bill Impact(HideBeforeFile)'!$C$62:$C$71,0),MATCH($O70,'For Bill Impact(HideBeforeFile)'!$D$61:$Q$61,0)) -> cents / m3 | F70: =INDEX('For Bill Impact(HideBeforeFile)'!$D$6:$Q$15,MATCH(C66,'For Bill Impact(HideBeforeFile)'!$C$62:$C$71,0),MATCH($O70,'For Bill Impact(HideBeforeFile)'!$D$61:$Q$61,0)) -> 13.2622 | H70: =INDEX('For Bill Impact(HideBeforeFile)'!$D$20:$Q$29,MATCH(C66,'For Bill Impact(HideBeforeFile)'!$C$62:$C$71,0),MATCH($O70,'For Bill Impact(HideBeforeFile)'!$D$61:$Q$61,0)) -> 13.2622 | J70: =INDEX('For Bill Impact(HideBeforeFile)'!$D$34:$Q$43,MATCH(C66,'For Bill Impact(HideBeforeFile)'!$C$62:$C$71,0),MATCH($O70,'For Bill Impact(HideBeforeFile)'!$D$61:$Q$61,0)) -> 9311.10573 | O70: ='For Bill Impact(HideBeforeFile)'!$D$5 -> Commodity
C72: =INDEX('For Bill Impact(HideBeforeFile)'!$D$48:$Q$57,MATCH(C66,'For Bill Impact(HideBeforeFile)'!$C$62:$C$71,0),MATCH($O72,'For Bill Impact(HideBeforeFile)'!$D$61:$Q$61,0)) -> Customer (excl. Bill 32) | D72: =INDEX('For Bill Impact(HideBeforeFile)'!$D$62:$Q$71,MATCH(C66,'For Bill Impact(HideBeforeFile)'!$C$62:$C$71,0),MATCH($O72,'For Bill Impact(HideBeforeFile)'!$D$61:$Q$61,0)) -> $ / month | F72: =INDEX('For Bill Impact(HideBeforeFile)'!$D$6:$Q$15,MATCH(C66,'For Bill Impact(HideBeforeFile)'!$C$62:$C$71,0),MATCH($O72,'For Bill Impact(HideBeforeFile)'!$D$61:$Q$61,0)) -> 17.5 | H72: =INDEX('For Bill Impact(HideBeforeFile)'!$D$20:$Q$29,MATCH(C66,'For Bill Impact(HideBeforeFile)'!$C$62:$C$71,0),MATCH($O72,'For Bill Impact(HideBeforeFile)'!$D$61:$Q$61,0)) -> 18.5 | J72: =INDEX('For Bill Impact(HideBeforeFile)'!$D$34:$Q$43,MATCH(C66,'For Bill Impact(HideBeforeFile)'!$C$62:$C$71,0),MATCH($O72,'For Bill Impact(HideBeforeFile)'!$D$61:$Q$61,0)) -> 12 | O72: ='For Bill Impact(HideBeforeFile)'!$M$5 -> Dist. Customer Rate
C73: =INDEX('For Bill Impact(HideBeforeFile)'!$D$48:$Q$57,MATCH(C66,'For Bill Impact(HideBeforeFile)'!$C$62:$C$71,0),MATCH($O73,'For Bill Impact(HideBeforeFile)'!$D$61:$Q$61,0)) -> Block 1 (First 1,000 m3 per month) | D73: =INDEX('For Bill Impact(HideBeforeFile)'!$D$62:$Q$71,MATCH(C66,'For Bill Impact(HideBeforeFile)'!$C$62:$C$71,0),MATCH($O73,'For Bill Impact(HideBeforeFile)'!$D$61:$Q$61,0)) -> cents / m3 | F73: =INDEX('For Bill Impact(HideBeforeFile)'!$D$6:$Q$15,MATCH(C66,'For Bill Impact(HideBeforeFile)'!$C$62:$C$71,0),MATCH($O73,'For Bill Impact(HideBeforeFile)'!$D$61:$Q$61,0)) -> 13.5701 | H73: =INDEX('For Bill Impact(HideBeforeFile)'!$D$20:$Q$29,MATCH(C66,'For Bill Impact(HideBeforeFile)'!$C$62:$C$71,0),MATCH($O73,'For Bill Impact(HideBeforeFile)'!$D$61:$Q$61,0)) -> 13.71955556 | J73: =INDEX('For Bill Impact(HideBeforeFile)'!$D$34:$Q$43,MATCH(C66,'For Bill Impact(HideBeforeFile)'!$C$62:$C$71,0),MATCH($O73,'For Bill Impact(HideBeforeFile)'!$D$61:$Q$61,0)) -> 4509.203697 | O73: ='For Bill Impact(HideBeforeFile)'!$N$5 -> Dist. Vol. Rate Tier 1
C74: =INDEX('For Bill Impact(HideBeforeFile)'!$D$48:$Q$57,MATCH(C66,'For Bill Impact(HideBeforeFile)'!$C$62:$C$71,0),MATCH($O74,'For Bill Impact(HideBeforeFile)'!$D$61:$Q$61,0)) -> Block 2 (Over 1,000 m3 per month) | D74: =INDEX('For Bill Impact(HideBeforeFile)'!$D$62:$Q$71,MATCH(C66,'For Bill Impact(HideBeforeFile)'!$C$62:$C$71,0),MATCH($O74,'For Bill Impact(HideBeforeFile)'!$D$61:$Q$61,0)) -> cents / m3 | F74: =INDEX('For Bill Impact(HideBeforeFile)'!$D$6:$Q$15,MATCH(C66,'For Bill Impact(HideBeforeFile)'!$C$62:$C$71,0),MATCH($O74,'For Bill Impact(HideBeforeFile)'!$D$61:$Q$61,0)) -> 10.9063 | H74: =INDEX('For Bill Impact(HideBeforeFile)'!$D$20:$Q$29,MATCH(C66,'For Bill Impact(HideBeforeFile)'!$C$62:$C$71,0),MATCH($O74,'For Bill Impact(HideBeforeFile)'!$D$61:$Q$61,0)) -> 11.02641755 | J74: =INDEX('For Bill Impact(HideBeforeFile)'!$D$34:$Q$43,MATCH(C66,'For Bill Impact(HideBeforeFile)'!$C$62:$C$71,0),MATCH($O74,'For Bill Impact(HideBeforeFile)'!$D$61:$Q$61,0)) -> 4801.902033 | O74: ='For Bill Impact(HideBeforeFile)'!$O$5 -> Dist. Vol. Rate Tier 2
C75: =INDEX('For Bill Impact(HideBeforeFile)'!$D$48:$Q$57,MATCH(C66,'For Bill Impact(HideBeforeFile)'!$C$62:$C$71,0),MATCH($O75,'For Bill Impact(HideBeforeFile)'!$D$61:$Q$61,0)) ->  | D75: =INDEX('For Bill Impact(HideBeforeFile)'!$D$62:$Q$71,MATCH(C66,'For Bill Impact(HideBeforeFile)'!$C$62:$C$71,0),MATCH($O75,'For Bill Impact(HideBeforeFile)'!$D$61:$Q$61,0)) ->  | F75: =INDEX('For Bill Impact(HideBeforeFile)'!$D$6:$Q$15,MATCH(C66,'For Bill Impact(HideBeforeFile)'!$C$62:$C$71,0),MATCH($O75,'For Bill Impact(HideBeforeFile)'!$D$61:$Q$61,0)) ->  | H75: =INDEX('For Bill Impact(HideBeforeFile)'!$D$20:$Q$29,MATCH(C66,'For Bill Impact(HideBeforeFile)'!$C$62:$C$71,0),MATCH($O75,'For Bill Impact(HideBeforeFile)'!$D$61:$Q$61,0)) ->  | J75: =INDEX('For Bill Impact(HideBeforeFile)'!$D$34:$Q$43,MATCH(C66,'For Bill Impact(HideBeforeFile)'!$C$62:$C$71,0),MATCH($O75,'For Bill Impact(HideBeforeFile)'!$D$61:$Q$61,0)) ->  | O75: ='For Bill Impact(HideBeforeFile)'!$P$5 -> Dist. Vol. Rate Tier 3
C76: =INDEX('For Bill Impact(HideBeforeFile)'!$D$48:$Q$57,MATCH(C66,'For Bill Impact(HideBeforeFile)'!$C$62:$C$71,0),MATCH($O76,'For Bill Impact(HideBeforeFile)'!$D$61:$Q$61,0)) ->  | D76: =INDEX('For Bill Impact(HideBeforeFile)'!$D$62:$Q$71,MATCH(C66,'For Bill Impact(HideBeforeFile)'!$C$62:$C$71,0),MATCH($O76,'For Bill Impact(HideBeforeFile)'!$D$61:$Q$61,0)) ->  | F76: =INDEX('For Bill Impact(HideBeforeFile)'!$D$6:$Q$15,MATCH(C66,'For Bill Impact(HideBeforeFile)'!$C$62:$C$71,0),MATCH($O76,'For Bill Impact(HideBeforeFile)'!$D$61:$Q$61,0)) ->  | H76: =INDEX('For Bill Impact(HideBeforeFile)'!$D$20:$Q$29,MATCH(C66,'For Bill Impact(HideBeforeFile)'!$C$62:$C$71,0),MATCH($O76,'For Bill Impact(HideBeforeFile)'!$D$61:$Q$61,0)) ->  | J76: =INDEX('For Bill Impact(HideBeforeFile)'!$D$34:$Q$43,MATCH(C66,'For Bill Impact(HideBeforeFile)'!$C$62:$C$71,0),MATCH($O76,'For Bill Impact(HideBeforeFile)'!$D$61:$Q$61,0)) ->  | O76: ='For Bill Impact(HideBeforeFile)'!$Q$5 -> Dist. Capacity Rate
C77: =INDEX('For Bill Impact(HideBeforeFile)'!$D$48:$Q$57,MATCH(C66,'For Bill Impact(HideBeforeFile)'!$C$62:$C$71,0),MATCH($O77,'For Bill Impact(HideBeforeFile)'!$D$61:$Q$61,0)) -> System Gas Charge | D77: =INDEX('For Bill Impact(HideBeforeFile)'!$D$62:$Q$71,MATCH(C66,'For Bill Impact(HideBeforeFile)'!$C$62:$C$71,0),MATCH($O77,'For Bill Impact(HideBeforeFile)'!$D$61:$Q$61,0)) -> cents / m3 | F77: =INDEX('For Bill Impact(HideBeforeFile)'!$D$6:$Q$15,MATCH(C66,'For Bill Impact(HideBeforeFile)'!$C$62:$C$71,0),MATCH($O77,'For Bill Impact(HideBeforeFile)'!$D$61:$Q$61,0)) -> 0.0435 | H77: =INDEX('For Bill Impact(HideBeforeFile)'!$D$20:$Q$29,MATCH(C66,'For Bill Impact(HideBeforeFile)'!$C$62:$C$71,0),MATCH($O77,'For Bill Impact(HideBeforeFile)'!$D$61:$Q$61,0)) -> 0.0435 | J77: =INDEX('For Bill Impact(HideBeforeFile)'!$D$34:$Q$43,MATCH(C66,'For Bill Impact(HideBeforeFile)'!$C$62:$C$71,0),MATCH($O77,'For Bill Impact(HideBeforeFile)'!$D$61:$Q$61,0)) -> 9311.10573 | O77: ='For Bill Impact(HideBeforeFile)'!$E$5 -> System Gas
C79: =INDEX('For Bill Impact(HideBeforeFile)'!$D$48:$Q$57,MATCH(C66,'For Bill Impact(HideBeforeFile)'!$C$62:$C$71,0),MATCH($O79,'For Bill Impact(HideBeforeFile)'!$D$61:$Q$61,0)) -> REDA | D79: =INDEX('For Bill Impact(HideBeforeFile)'!$D$62:$Q$71,MATCH(C66,'For Bill Impact(HideBeforeFile)'!$C$62:$C$71,0),MATCH($O79,'For Bill Impact(HideBeforeFile)'!$D$61:$Q$61,0)) -> $ / month | F79: =INDEX('For Bill Impact(HideBeforeFile)'!$D$6:$Q$15,MATCH(C66,'For Bill Impact(HideBeforeFile)'!$C$62:$C$71,0),MATCH($O79,'For Bill Impact(HideBeforeFile)'!$D$61:$Q$61,0)) -> 0.78 | H79: =INDEX('For Bill Impact(HideBeforeFile)'!$D$20:$Q$29,MATCH(C66,'For Bill Impact(HideBeforeFile)'!$C$62:$C$71,0),MATCH($O79,'For Bill Impact(HideBeforeFile)'!$D$61:$Q$61,0)) -> 0.33 | J79: =INDEX('For Bill Impact(HideBeforeFile)'!$D$34:$Q$43,MATCH(C66,'For Bill Impact(HideBeforeFile)'!$C$62:$C$71,0),MATCH($O79,'For Bill Impact(HideBeforeFile)'!$D$61:$Q$61,0)) -> 12 | O79: =O23 -> REDA
C80: =INDEX('For Bill Impact(HideBeforeFile)'!$D$48:$Q$57,MATCH(C66,'For Bill Impact(HideBeforeFile)'!$C$62:$C$71,0),MATCH($O80,'For Bill Impact(HideBeforeFile)'!$D$61:$Q$61,0)) -> PGTVA | D80: =INDEX('For Bill Impact(HideBeforeFile)'!$D$62:$Q$71,MATCH(C66,'For Bill Impact(HideBeforeFile)'!$C$62:$C$71,0),MATCH($O80,'For Bill Impact(HideBeforeFile)'!$D$61:$Q$61,0)) -> cents / m3 | F80: =INDEX('For Bill Impact(HideBeforeFile)'!$D$6:$Q$15,MATCH(C66,'For Bill Impact(HideBeforeFile)'!$C$62:$C$71,0),MATCH($O80,'For Bill Impact(HideBeforeFile)'!$D$61:$Q$61,0)) -> 0.3113 | H80: =INDEX('For Bill Impact(HideBeforeFile)'!$D$20:$Q$29,MATCH(C66,'For Bill Impact(HideBeforeFile)'!$C$62:$C$71,0),MATCH($O80,'For Bill Impact(HideBeforeFile)'!$D$61:$Q$61,0)) -> 0.3194846212 | J80: =INDEX('For Bill Impact(HideBeforeFile)'!$D$34:$Q$43,MATCH(C66,'For Bill Impact(HideBeforeFile)'!$C$62:$C$71,0),MATCH($O80,'For Bill Impact(HideBeforeFile)'!$D$61:$Q$61,0)) -> 9311.10573 | O80: =O24 -> PGTVA
C81: =INDEX('For Bill Impact(HideBeforeFile)'!$D$48:$Q$57,MATCH(C66,'For Bill Impact(HideBeforeFile)'!$C$62:$C$71,0),MATCH($O81,'For Bill Impact(HideBeforeFile)'!$D$61:$Q$61,0)) -> ADVADA | D81: =INDEX('For Bill Impact(HideBeforeFile)'!$D$62:$Q$71,MATCH(C66,'For Bill Impact(HideBeforeFile)'!$C$62:$C$71,0),MATCH($O81,'For Bill Impact(HideBeforeFile)'!$D$61:$Q$61,0)) -> cents / m3 | F81: =INDEX('For Bill Impact(HideBeforeFile)'!$D$6:$Q$15,MATCH(C66,'For Bill Impact(HideBeforeFile)'!$C$62:$C$71,0),MATCH($O81,'For Bill Impact(HideBeforeFile)'!$D$61:$Q$61,0)) -> 0.1508 | H81: =INDEX('For Bill Impact(HideBeforeFile)'!$D$20:$Q$29,MATCH(C66,'For Bill Impact(HideBeforeFile)'!$C$62:$C$71,0),MATCH($O81,'For Bill Impact(HideBeforeFile)'!$D$61:$Q$61,0)) -> 0 | J81: =INDEX('For Bill Impact(HideBeforeFile)'!$D$34:$Q$43,MATCH(C66,'For Bill Impact(HideBeforeFile)'!$C$62:$C$71,0),MATCH($O81,'For Bill Impact(HideBeforeFile)'!$D$61:$Q$61,0)) -> 9311.10573 | O81: ADVADA
C82: =INDEX('For Bill Impact(HideBeforeFile)'!$D$48:$Q$57,MATCH(C66,'For Bill Impact(HideBeforeFile)'!$C$62:$C$71,0),MATCH($O82,'For Bill Impact(HideBeforeFile)'!$D$61:$Q$61,0)) -> LDMDA | D82: =INDEX('For Bill Impact(HideBeforeFile)'!$D$62:$Q$71,MATCH(C66,'For Bill Impact(HideBeforeFile)'!$C$62:$C$71,0),MATCH($O82,'For Bill Impact(HideBeforeFile)'!$D$61:$Q$61,0)) -> $ / month | F82: =INDEX('For Bill Impact(HideBeforeFile)'!$D$6:$Q$15,MATCH(C66,'For Bill Impact(HideBeforeFile)'!$C$62:$C$71,0),MATCH($O82,'For Bill Impact(HideBeforeFile)'!$D$61:$Q$61,0)) -> 0 | H82: =INDEX('For Bill Impact(HideBeforeFile)'!$D$20:$Q$29,MATCH(C66,'For Bill Impact(HideBeforeFile)'!$C$62:$C$71,0),MATCH($O82,'For Bill Impact(HideBeforeFile)'!$D$61:$Q$61,0)) -> 1.35 | J82: =INDEX('For Bill Impact(HideBeforeFile)'!$D$34:$Q$43,MATCH(C66,'For Bill Impact(HideBeforeFile)'!$C$62:$C$71,0),MATCH($O82,'For Bill Impact(HideBeforeFile)'!$D$61:$Q$61,0)) -> 12 | O82: LDMDA
C83: =INDEX('For Bill Impact(HideBeforeFile)'!$D$48:$Q$57,MATCH(C66,'For Bill Impact(HideBeforeFile)'!$C$62:$C$71,0),MATCH($O83,'For Bill Impact(HideBeforeFile)'!$D$61:$Q$61,0)) -> SICDA | D83: =INDEX('For Bill Impact(HideBeforeFile)'!$D$62:$Q$71,MATCH(C66,'For Bill Impact(HideBeforeFile)'!$C$62:$C$71,0),MATCH($O83,'For Bill Impact(HideBeforeFile)'!$D$61:$Q$61,0)) -> cents / m3 | F83: =INDEX('For Bill Impact(HideBeforeFile)'!$D$6:$Q$15,MATCH(C66,'For Bill Impact(HideBeforeFile)'!$C$62:$C$71,0),MATCH($O83,'For Bill Impact(HideBeforeFile)'!$D$61:$Q$61,0)) -> 0 | H83: =INDEX('For Bill Impact(HideBeforeFile)'!$D$20:$Q$29,MATCH(C66,'For Bill Impact(HideBeforeFile)'!$C$62:$C$71,0),MATCH($O83,'For Bill Impact(HideBeforeFile)'!$D$61:$Q$61,0)) -> 0.2372 | J83: =INDEX('For Bill Impact(HideBeforeFile)'!$D$34:$Q$43,MATCH(C66,'For Bill Impact(HideBeforeFile)'!$C$62:$C$71,0),MATCH($O83,'For Bill Impact(HideBeforeFile)'!$D$61:$Q$61,0)) -> 9311.10573 | O83: SICDA
C85: =INDEX('For Bill Impact(HideBeforeFile)'!$D$48:$Q$57,MATCH(C66,'For Bill Impact(HideBeforeFile)'!$C$62:$C$71,0),MATCH($O85,'For Bill Impact(HideBeforeFile)'!$D$61:$Q$61,0)) -> Federal Carbon | D85: =INDEX('For Bill Impact(HideBeforeFile)'!$D$62:$Q$71,MATCH(C66,'For Bill Impact(HideBeforeFile)'!$C$62:$C$71,0),MATCH($O85,'For Bill Impact(HideBeforeFile)'!$D$61:$Q$61,0)) -> cents / m3 | F85: =INDEX('For Bill Impact(HideBeforeFile)'!$D$6:$Q$15,MATCH(C66,'For Bill Impact(HideBeforeFile)'!$C$62:$C$71,0),MATCH($O85,'For Bill Impact(HideBeforeFile)'!$D$61:$Q$61,0)) -> 7.83 | H85: =INDEX('For Bill Impact(HideBeforeFile)'!$D$20:$Q$29,MATCH(C66,'For Bill Impact(HideBeforeFile)'!$C$62:$C$71,0),MATCH($O85,'For Bill Impact(HideBeforeFile)'!$D$61:$Q$61,0)) -> 7.83 | J85: =INDEX('For Bill Impact(HideBeforeFile)'!$D$34:$Q$43,MATCH(C66,'For Bill Impact(HideBeforeFile)'!$C$62:$C$71,0),MATCH($O85,'For Bill Impact(HideBeforeFile)'!$D$61:$Q$61,0)) -> 9311.10573 | O85: ='For Bill Impact(HideBeforeFile)'!$K$5 -> Federal Carbon
C86: =INDEX('For Bill Impact(HideBeforeFile)'!$D$48:$Q$57,MATCH(C66,'For Bill Impact(HideBeforeFile)'!$C$62:$C$71,0),MATCH($O86,'For Bill Impact(HideBeforeFile)'!$D$61:$Q$61,0)) -> Facility Carbon | D86: =INDEX('For Bill Impact(HideBeforeFile)'!$D$62:$Q$71,MATCH(C66,'For Bill Impact(HideBeforeFile)'!$C$62:$C$71,0),MATCH($O86,'For Bill Impact(HideBeforeFile)'!$D$61:$Q$61,0)) -> cents / m3 | F86: =INDEX('For Bill Impact(HideBeforeFile)'!$D$6:$Q$15,MATCH(C66,'For Bill Impact(HideBeforeFile)'!$C$62:$C$71,0),MATCH($O86,'For Bill Impact(HideBeforeFile)'!$D$61:$Q$61,0)) -> 0.0052 | H86: =INDEX('For Bill Impact(HideBeforeFile)'!$D$20:$Q$29,MATCH(C66,'For Bill Impact(HideBeforeFile)'!$C$62:$C$71,0),MATCH($O86,'For Bill Impact(HideBeforeFile)'!$D$61:$Q$61,0)) -> 0.0052 | J86: =INDEX('For Bill Impact(HideBeforeFile)'!$D$34:$Q$43,MATCH(C66,'For Bill Impact(HideBeforeFile)'!$C$62:$C$71,0),MATCH($O86,'For Bill Impact(HideBeforeFile)'!$D$61:$Q$61,0)) -> 9311.10573 | O86: ='For Bill Impact(HideBeforeFile)'!$L$5 -> Facility Carbon
C89: Commodity | F89: Current | H89: Proposed | J89: Change $ | L89: Change %
F90: =F70*$J70/100 -> 1234.857464 | H90: =H70*$J70/100 -> 1234.857464 | J90: =H90-F90 -> 0 | L90: =IFERROR(J90/F90,"") -> 0
C92: Delivery | F92: Current Rate | H92: Proposed Rate | J92: Change $ | L92: Change %
C93: =IF(C72<>"",C72,"") -> Customer (excl. Bill 32) | F93: =F72*$J72 -> 210 | H93: =H72*$J72 -> 222 | J93: =IFERROR(H93-F93,"") -> 12 | L93: =IFERROR(J93/F93,"") -> 0.05714285714
C94: Bill 32 | F94: 12 | H94: 12 | J94: =IFERROR(H94-F94,"") -> 0 | L94: =IFERROR(J94/F94,"") -> 0
C95: =IF(C73<>"",C73,"") -> Block 1 (First 1,000 m3 per month) | F95: =IFERROR(F73*$J73/100,"") -> 611.9034509 | H95: =IFERROR(H73*$J73/100,"") -> 618.6427065 | J95: =IFERROR(H95-F95,"") -> 6.739255671 | L95: =IFERROR(J95/F95,"") -> 0.01101359318
C96: =IF(C74<>"",C74,"") -> Block 2 (Over 1,000 m3 per month) | F96: =IFERROR(F74*$J74/100,"") -> 523.7098415 | H96: =IFERROR(H74*$J74/100,"") -> 529.4777686 | J96: 5.767927136 | L96: 0.01101359318
C97: =IF(C75<>"",C75,"") ->  | F97: =IFERROR(F75*$J75/100,"") ->  | H97: =IFERROR(H75*$J75/100,"") -> 
C98: =IF(C76<>"",C76,"") ->  | F98: =IFERROR(F76*$J76/100,"") ->  | H98: =IFERROR(H76*$J76/100,"") -> 
C99: =IF(C77<>"",C77,"") -> System Gas Charge | F99: =IFERROR(F77*$J77/100,"") -> 4.050330993 | H99: =IFERROR(H77*$J77/100,"") -> 4.050330993 | J99: 0 | L99: 0
C100: Total Delivery | F100: =SUM(F93:F99) -> 1361.663623 | H100: =SUM(H93:H99) -> 1386.170806 | J100: =H100-F100 -> 24.50718281 | L100: =IF(ISERROR(J100/F100),0,J100/F100) -> 0.0179979713
C102: Rate Riders
C104: Rate Riders | F104: Current Rate | H104: Proposed Rate | J104: Change $ | L104: Change %
C105: =C79 -> REDA | F105: =F79*$J79 -> 9.36 | H105: =H79*$J79 -> 3.96 | J105: =IFERROR(H105-F105,"") -> -5.4 | L105: =IFERROR(J105/F105,"") -> -0.5769230769
C106: =C80 -> PGTVA | F106: =IFERROR(F80*$J80/100,"") -> 28.98547214 | H106: =IFERROR(H80*$J80/100,"") -> 29.74755087 | J106: =IFERROR(H106-F106,"") -> 0.7620787309 | L106: =IFERROR(J106/F106,"") -> 0.02629174806
C107: =C81 -> ADVADA | F107: =IFERROR(F81*$J81/100,"") -> 14.04114744 | H107: =IFERROR(H81*$J81/100,"") -> 0 | J107: -14.04114744 | L107: -1
C108: LDMDA | F108: =IFERROR(F82*$J82/100,"") -> 0 | H108: =IFERROR(H82*$J82/100,"") -> 0.162 | J108: 0.162
C109: SICDA | F109: =IFERROR(F83*$J83/100,"") -> 0 | H109: =IFERROR(H83*$J83/100,"") -> 22.08594279 | J109: 22.08594279
C110: Total Rate Riders | F110: =SUM(F105:F109) -> 52.38661958 | H110: =SUM(H105:H109) -> 55.95549366 | J110: =SUM(J105:J109) -> 3.568874082 | L110: =IF(ISERROR(J110/F110),0,J110/F110) -> 0.06812568
C112: Carbon Tax
C113: Federal Carbon | F113: =F85*$J85/100 -> 729.0595787 | H113: =H85*$J85/100 -> 729.0595787 | J113: =IFERROR(H113-F113,"") -> 0 | L113: =IFERROR(J113/F113,"") -> 0
C114: Facility Carbon | F114: =F86*$J86/100 -> 0.484177498 | H114: =H86*$J86/100 -> 0.484177498 | J114: =IFERROR(H114-F114,"") -> 0 | L114: 0
C115: Total Carbon Tax | F115: =SUM(F113:F114) -> 729.5437562 | H115: =SUM(H113:H114) -> 729.5437562 | J115: =SUM(J113:J114) -> 0 | L115: =IF(ISERROR(J115/F115),0,J115/F115) -> 0
C117: Total Bill Impact | F117: =SUM(F90,F100,F110,F115) -> 3378.451463 | H117: =SUM(H90,H100,H110,H115) -> 3406.52752 | J117: =SUM(J90,J100,J110,J115) -> 28.07605689 | L117: =IFERROR(J117/F117,"") -> 0.008310333061
C120: =MID(CELL("filename",A57),FIND("]",CELL("filename",A57))+1,255) -> G1.1 Rate 1 Bill Impact
C122: ='For Bill Impact(HideBeforeFile)'!C8 -> RATE 1 - General Service Rate - Industrial | F122: Current | H122: Proposed | J122: Bill Determinant | O122: Look-up
C126: =INDEX('For Bill Impact(HideBeforeFile)'!$D$48:$Q$57,MATCH(C122,'For Bill Impact(HideBeforeFile)'!$C$62:$C$71,0),MATCH($O126,'For Bill Impact(HideBeforeFile)'!$D$61:$Q$61,0)) -> Commodity | D126: =INDEX('For Bill Impact(HideBeforeFile)'!$D$62:$Q$71,MATCH(C122,'For Bill Impact(HideBeforeFile)'!$C$62:$C$71,0),MATCH($O126,'For Bill Impact(HideBeforeFile)'!$D$61:$Q$61,0)) -> cents / m3 | F126: =INDEX('For Bill Impact(HideBeforeFile)'!$D$6:$Q$15,MATCH(C122,'For Bill Impact(HideBeforeFile)'!$C$62:$C$71,0),MATCH($O126,'For Bill Impact(HideBeforeFile)'!$D$61:$Q$61,0)) -> 13.2622 | H126: =INDEX('For Bill Impact(HideBeforeFile)'!$D$20:$Q$29,MATCH(C122,'For Bill Impact(HideBeforeFile)'!$C$62:$C$71,0),MATCH($O126,'For Bill Impact(HideBeforeFile)'!$D$61:$Q$61,0)) -> 13.2622 | J126: =INDEX('For Bill Impact(HideBeforeFile)'!$D$34:$Q$43,MATCH(C122,'For Bill Impact(HideBeforeFile)'!$C$62:$C$71,0),MATCH($O126,'For Bill Impact(HideBeforeFile)'!$D$61:$Q$61,0)) -> 30384.37671 | O126: ='For Bill Impact(HideBeforeFile)'!$D$5 -> Commodity
C128: =INDEX('For Bill Impact(HideBeforeFile)'!$D$48:$Q$57,MATCH(C122,'For Bill Impact(HideBeforeFile)'!$C$62:$C$71,0),MATCH($O128,'For Bill Impact(HideBeforeFile)'!$D$61:$Q$61,0)) -> Customer (excl. Bill 32) | D128: =INDEX('For Bill Impact(HideBeforeFile)'!$D$62:$Q$71,MATCH(C122,'For Bill Impact(HideBeforeFile)'!$C$62:$C$71,0),MATCH($O128,'For Bill Impact(HideBeforeFile)'!$D$61:$Q$61,0)) -> $ / month | F128: =INDEX('For Bill Impact(HideBeforeFile)'!$D$6:$Q$15,MATCH(C122,'For Bill Impact(HideBeforeFile)'!$C$62:$C$71,0),MATCH($O128,'For Bill Impact(HideBeforeFile)'!$D$61:$Q$61,0)) -> 17.5 | H128: =INDEX('For Bill Impact(HideBeforeFile)'!$D$20:$Q$29,MATCH(C122,'For Bill Impact(HideBeforeFile)'!$C$62:$C$71,0),MATCH($O128,'For Bill Impact(HideBeforeFile)'!$D$61:$Q$61,0)) -> 18.5 | J128: =INDEX('For Bill Impact(HideBeforeFile)'!$D$34:$Q$43,MATCH(C122,'For Bill Impact(HideBeforeFile)'!$C$62:$C$71,0),MATCH($O128,'For Bill Impact(HideBeforeFile)'!$D$61:$Q$61,0)) -> 12 | O128: ='For Bill Impact(HideBeforeFile)'!$M$5 -> Dist. Customer Rate
C129: =INDEX('For Bill Impact(HideBeforeFile)'!$D$48:$Q$57,MATCH(C122,'For Bill Impact(HideBeforeFile)'!$C$62:$C$71,0),MATCH($O129,'For Bill Impact(HideBeforeFile)'!$D$61:$Q$61,0)) -> Block 1 (First 1,000 m3 per month) | D129: =INDEX('For Bill Impact(HideBeforeFile)'!$D$62:$Q$71,MATCH(C122,'For Bill Impact(HideBeforeFile)'!$C$62:$C$71,0),MATCH($O129,'For Bill Impact(HideBeforeFile)'!$D$61:$Q$61,0)) -> cents / m3 | F129: =INDEX('For Bill Impact(HideBeforeFile)'!$D$6:$Q$15,MATCH(C122,'For Bill Impact(HideBeforeFile)'!$C$62:$C$71,0),MATCH($O129,'For Bill Impact(HideBeforeFile)'!$D$61:$Q$61,0)) -> 13.5701 | H129: =INDEX('For Bill Impact(HideBeforeFile)'!$D$20:$Q$29,MATCH(C122,'For Bill Impact(HideBeforeFile)'!$C$62:$C$71,0),MATCH($O129,'For Bill Impact(HideBeforeFile)'!$D$61:$Q$61,0)) -> 13.71955556 | J129: =INDEX('For Bill Impact(HideBeforeFile)'!$D$34:$Q$43,MATCH(C122,'For Bill Impact(HideBeforeFile)'!$C$62:$C$71,0),MATCH($O129,'For Bill Impact(HideBeforeFile)'!$D$61:$Q$61,0)) -> 6484.553425 | O129: ='For Bill Impact(HideBeforeFile)'!$N$5 -> Dist. Vol. Rate Tier 1
C130: =INDEX('For Bill Impact(HideBeforeFile)'!$D$48:$Q$57,MATCH(C122,'For Bill Impact(HideBeforeFile)'!$C$62:$C$71,0),MATCH($O130,'For Bill Impact(HideBeforeFile)'!$D$61:$Q$61,0)) -> Block 2 (Over 1,000 m3 per month) | D130: =INDEX('For Bill Impact(HideBeforeFile)'!$D$62:$Q$71,MATCH(C122,'For Bill Impact(HideBeforeFile)'!$C$62:$C$71,0),MATCH($O130,'For Bill Impact(HideBeforeFile)'!$D$61:$Q$61,0)) -> cents / m3 | F130: =INDEX('For Bill Impact(HideBeforeFile)'!$D$6:$Q$15,MATCH(C122,'For Bill Impact(HideBeforeFile)'!$C$62:$C$71,0),MATCH($O130,'For Bill Impact(HideBeforeFile)'!$D$61:$Q$61,0)) -> 10.9063 | H130: =INDEX('For Bill Impact(HideBeforeFile)'!$D$20:$Q$29,MATCH(C122,'For Bill Impact(HideBeforeFile)'!$C$62:$C$71,0),MATCH($O130,'For Bill Impact(HideBeforeFile)'!$D$61:$Q$61,0)) -> 11.02641755 | J130: =INDEX('For Bill Impact(HideBeforeFile)'!$D$34:$Q$43,MATCH(C122,'For Bill Impact(HideBeforeFile)'!$C$62:$C$71,0),MATCH($O130,'For Bill Impact(HideBeforeFile)'!$D$61:$Q$61,0)) -> 23899.82329 | O130: ='For Bill Impact(HideBeforeFile)'!$O$5 -> Dist. Vol. Rate Tier 2
C131: =INDEX('For Bill Impact(HideBeforeFile)'!$D$48:$Q$57,MATCH(C122,'For Bill Impact(HideBeforeFile)'!$C$62:$C$71,0),MATCH($O131,'For Bill Impact(HideBeforeFile)'!$D$61:$Q$61,0)) ->  | D131: =INDEX('For Bill Impact(HideBeforeFile)'!$D$62:$Q$71,MATCH(C122,'For Bill Impact(HideBeforeFile)'!$C$62:$C$71,0),MATCH($O131,'For Bill Impact(HideBeforeFile)'!$D$61:$Q$61,0)) ->  | F131: =INDEX('For Bill Impact(HideBeforeFile)'!$D$6:$Q$15,MATCH(C122,'For Bill Impact(HideBeforeFile)'!$C$62:$C$71,0),MATCH($O131,'For Bill Impact(HideBeforeFile)'!$D$61:$Q$61,0)) ->  | H131: =INDEX('For Bill Impact(HideBeforeFile)'!$D$20:$Q$29,MATCH(C122,'For Bill Impact(HideBeforeFile)'!$C$62:$C$71,0),MATCH($O131,'For Bill Impact(HideBeforeFile)'!$D$61:$Q$61,0)) ->  | J131: =INDEX('For Bill Impact(HideBeforeFile)'!$D$34:$Q$43,MATCH(C122,'For Bill Impact(HideBeforeFile)'!$C$62:$C$71,0),MATCH($O131,'For Bill Impact(HideBeforeFile)'!$D$61:$Q$61,0)) ->  | O131: ='For Bill Impact(HideBeforeFile)'!$P$5 -> Dist. Vol. Rate Tier 3
C132: =INDEX('For Bill Impact(HideBeforeFile)'!$D$48:$Q$57,MATCH(C122,'For Bill Impact(HideBeforeFile)'!$C$62:$C$71,0),MATCH($O132,'For Bill Impact(HideBeforeFile)'!$D$61:$Q$61,0)) ->  | D132: =INDEX('For Bill Impact(HideBeforeFile)'!$D$62:$Q$71,MATCH(C122,'For Bill Impact(HideBeforeFile)'!$C$62:$C$71,0),MATCH($O132,'For Bill Impact(HideBeforeFile)'!$D$61:$Q$61,0)) ->  | F132: =INDEX('For Bill Impact(HideBeforeFile)'!$D$6:$Q$15,MATCH(C122,'For Bill Impact(HideBeforeFile)'!$C$62:$C$71,0),MATCH($O132,'For Bill Impact(HideBeforeFile)'!$D$61:$Q$61,0)) ->  | H132: =INDEX('For Bill Impact(HideBeforeFile)'!$D$20:$Q$29,MATCH(C122,'For Bill Impact(HideBeforeFile)'!$C$62:$C$71,0),MATCH($O132,'For Bill Impact(HideBeforeFile)'!$D$61:$Q$61,0)) ->  | J132: =INDEX('For Bill Impact(HideBeforeFile)'!$D$34:$Q$43,MATCH(C122,'For Bill Impact(HideBeforeFile)'!$C$62:$C$71,0),MATCH($O132,'For Bill Impact(HideBeforeFile)'!$D$61:$Q$61,0)) ->  | O132: ='For Bill Impact(HideBeforeFile)'!$Q$5 -> Dist. Capacity Rate
C133: =INDEX('For Bill Impact(HideBeforeFile)'!$D$48:$Q$57,MATCH(C122,'For Bill Impact(HideBeforeFile)'!$C$62:$C$71,0),MATCH($O133,'For Bill Impact(HideBeforeFile)'!$D$61:$Q$61,0)) -> System Gas Charge | D133: =INDEX('For Bill Impact(HideBeforeFile)'!$D$62:$Q$71,MATCH(C122,'For Bill Impact(HideBeforeFile)'!$C$62:$C$71,0),MATCH($O133,'For Bill Impact(HideBeforeFile)'!$D$61:$Q$61,0)) -> cents / m3 | F133: =INDEX('For Bill Impact(HideBeforeFile)'!$D$6:$Q$15,MATCH(C122,'For Bill Impact(HideBeforeFile)'!$C$62:$C$71,0),MATCH($O133,'For Bill Impact(HideBeforeFile)'!$D$61:$Q$61,0)) -> 0.0435 | H133: =INDEX('For Bill Impact(HideBeforeFile)'!$D$20:$Q$29,MATCH(C122,'For Bill Impact(HideBeforeFile)'!$C$62:$C$71,0),MATCH($O133,'For Bill Impact(HideBeforeFile)'!$D$61:$Q$61,0)) -> 0.0435 | J133: =INDEX('For Bill Impact(HideBeforeFile)'!$D$34:$Q$43,MATCH(C122,'For Bill Impact(HideBeforeFile)'!$C$62:$C$71,0),MATCH($O133,'For Bill Impact(HideBeforeFile)'!$D$61:$Q$61,0)) -> 30384.37671 | O133: ='For Bill Impact(HideBeforeFile)'!$E$5 -> System Gas
C135: =INDEX('For Bill Impact(HideBeforeFile)'!$D$48:$Q$57,MATCH(C122,'For Bill Impact(HideBeforeFile)'!$C$62:$C$71,0),MATCH($O135,'For Bill Impact(HideBeforeFile)'!$D$61:$Q$61,0)) -> REDA | D135: =INDEX('For Bill Impact(HideBeforeFile)'!$D$62:$Q$71,MATCH(C122,'For Bill Impact(HideBeforeFile)'!$C$62:$C$71,0),MATCH($O135,'For Bill Impact(HideBeforeFile)'!$D$61:$Q$61,0)) -> $ / month | F135: =INDEX('For Bill Impact(HideBeforeFile)'!$D$6:$Q$15,MATCH(C122,'For Bill Impact(HideBeforeFile)'!$C$62:$C$71,0),MATCH($O135,'For Bill Impact(HideBeforeFile)'!$D$61:$Q$61,0)) -> 0.78 | H135: =INDEX('For Bill Impact(HideBeforeFile)'!$D$20:$Q$29,MATCH(C122,'For Bill Impact(HideBeforeFile)'!$C$62:$C$71,0),MATCH($O135,'For Bill Impact(HideBeforeFile)'!$D$61:$Q$61,0)) -> 0.33 | J135: =INDEX('For Bill Impact(HideBeforeFile)'!$D$34:$Q$43,MATCH(C122,'For Bill Impact(HideBeforeFile)'!$C$62:$C$71,0),MATCH($O135,'For Bill Impact(HideBeforeFile)'!$D$61:$Q$61,0)) -> 12 | O135: =O79 -> REDA
C136: =INDEX('For Bill Impact(HideBeforeFile)'!$D$48:$Q$57,MATCH(C122,'For Bill Impact(HideBeforeFile)'!$C$62:$C$71,0),MATCH($O136,'For Bill Impact(HideBeforeFile)'!$D$61:$Q$61,0)) -> PGTVA | D136: =INDEX('For Bill Impact(HideBeforeFile)'!$D$62:$Q$71,MATCH(C122,'For Bill Impact(HideBeforeFile)'!$C$62:$C$71,0),MATCH($O136,'For Bill Impact(HideBeforeFile)'!$D$61:$Q$61,0)) -> cents / m3 | F136: =INDEX('For Bill Impact(HideBeforeFile)'!$D$6:$Q$15,MATCH(C122,'For Bill Impact(HideBeforeFile)'!$C$62:$C$71,0),MATCH($O136,'For Bill Impact(HideBeforeFile)'!$D$61:$Q$61,0)) -> 0.3113 | H136: =INDEX('For Bill Impact(HideBeforeFile)'!$D$20:$Q$29,MATCH(C122,'For Bill Impact(HideBeforeFile)'!$C$62:$C$71,0),MATCH($O136,'For Bill Impact(HideBeforeFile)'!$D$61:$Q$61,0)) -> 0.3194846212 | J136: =INDEX('For Bill Impact(HideBeforeFile)'!$D$34:$Q$43,MATCH(C122,'For Bill Impact(HideBeforeFile)'!$C$62:$C$71,0),MATCH($O136,'For Bill Impact(HideBeforeFile)'!$D$61:$Q$61,0)) -> 30384.37671 | O136: =O80 -> PGTVA
C137: =INDEX('For Bill Impact(HideBeforeFile)'!$D$48:$Q$57,MATCH(C122,'For Bill Impact(HideBeforeFile)'!$C$62:$C$71,0),MATCH($O137,'For Bill Impact(HideBeforeFile)'!$D$61:$Q$61,0)) -> ADVADA | D137: =INDEX('For Bill Impact(HideBeforeFile)'!$D$62:$Q$71,MATCH(C122,'For Bill Impact(HideBeforeFile)'!$C$62:$C$71,0),MATCH($O137,'For Bill Impact(HideBeforeFile)'!$D$61:$Q$61,0)) -> cents / m3 | F137: =INDEX('For Bill Impact(HideBeforeFile)'!$D$6:$Q$15,MATCH(C122,'For Bill Impact(HideBeforeFile)'!$C$62:$C$71,0),MATCH($O137,'For Bill Impact(HideBeforeFile)'!$D$61:$Q$61,0)) -> 0.1508 | H137: =INDEX('For Bill Impact(HideBeforeFile)'!$D$20:$Q$29,MATCH(C122,'For Bill Impact(HideBeforeFile)'!$C$62:$C$71,0),MATCH($O137,'For Bill Impact(HideBeforeFile)'!$D$61:$Q$61,0)) -> 0 | J137: =INDEX('For Bill Impact(HideBeforeFile)'!$D$34:$Q$43,MATCH(C122,'For Bill Impact(HideBeforeFile)'!$C$62:$C$71,0),MATCH($O137,'For Bill Impact(HideBeforeFile)'!$D$61:$Q$61,0)) -> 30384.37671 | O137: ADVADA
C138: =INDEX('For Bill Impact(HideBeforeFile)'!$D$48:$Q$57,MATCH(C122,'For Bill Impact(HideBeforeFile)'!$C$62:$C$71,0),MATCH($O138,'For Bill Impact(HideBeforeFile)'!$D$61:$Q$61,0)) -> LDMDA | D138: =INDEX('For Bill Impact(HideBeforeFile)'!$D$62:$Q$71,MATCH(C122,'For Bill Impact(HideBeforeFile)'!$C$62:$C$71,0),MATCH($O138,'For Bill Impact(HideBeforeFile)'!$D$61:$Q$61,0)) -> $ / month | F138: =INDEX('For Bill Impact(HideBeforeFile)'!$D$6:$Q$15,MATCH(C122,'For Bill Impact(HideBeforeFile)'!$C$62:$C$71,0),MATCH($O138,'For Bill Impact(HideBeforeFile)'!$D$61:$Q$61,0)) -> 0 | H138: =INDEX('For Bill Impact(HideBeforeFile)'!$D$20:$Q$29,MATCH(C122,'For Bill Impact(HideBeforeFile)'!$C$62:$C$71,0),MATCH($O138,'For Bill Impact(HideBeforeFile)'!$D$61:$Q$61,0)) -> 1.35 | J138: =INDEX('For Bill Impact(HideBeforeFile)'!$D$34:$Q$43,MATCH(C122,'For Bill Impact(HideBeforeFile)'!$C$62:$C$71,0),MATCH($O138,'For Bill Impact(HideBeforeFile)'!$D$61:$Q$61,0)) -> 12 | O138: LDMDA
C139: =INDEX('For Bill Impact(HideBeforeFile)'!$D$48:$Q$57,MATCH(C122,'For Bill Impact(HideBeforeFile)'!$C$62:$C$71,0),MATCH($O139,'For Bill Impact(HideBeforeFile)'!$D$61:$Q$61,0)) -> SICDA | D139: =INDEX('For Bill Impact(HideBeforeFile)'!$D$62:$Q$71,MATCH(C122,'For Bill Impact(HideBeforeFile)'!$C$62:$C$71,0),MATCH($O139,'For Bill Impact(HideBeforeFile)'!$D$61:$Q$61,0)) -> cents / m3 | F139: =INDEX('For Bill Impact(HideBeforeFile)'!$D$6:$Q$15,MATCH(C122,'For Bill Impact(HideBeforeFile)'!$C$62:$C$71,0),MATCH($O139,'For Bill Impact(HideBeforeFile)'!$D$61:$Q$61,0)) -> 0 | H139: =INDEX('For Bill Impact(HideBeforeFile)'!$D$20:$Q$29,MATCH(C122,'For Bill Impact(HideBeforeFile)'!$C$62:$C$71,0),MATCH($O139,'For Bill Impact(HideBeforeFile)'!$D$61:$Q$61,0)) -> 0.2372 | J139: =INDEX('For Bill Impact(HideBeforeFile)'!$D$34:$Q$43,MATCH(C122,'For Bill Impact(HideBeforeFile)'!$C$62:$C$71,0),MATCH($O139,'For Bill Impact(HideBeforeFile)'!$D$61:$Q$61,0)) -> 30384.37671 | O139: SICDA
C141: =INDEX('For Bill Impact(HideBeforeFile)'!$D$48:$Q$57,MATCH(C122,'For Bill Impact(HideBeforeFile)'!$C$62:$C$71,0),MATCH($O141,'For Bill Impact(HideBeforeFile)'!$D$61:$Q$61,0)) -> Federal Carbon | D141: =INDEX('For Bill Impact(HideBeforeFile)'!$D$62:$Q$71,MATCH(C122,'For Bill Impact(HideBeforeFile)'!$C$62:$C$71,0),MATCH($O141,'For Bill Impact(HideBeforeFile)'!$D$61:$Q$61,0)) -> cents / m3 | F141: =INDEX('For Bill Impact(HideBeforeFile)'!$D$6:$Q$15,MATCH(C122,'For Bill Impact(HideBeforeFile)'!$C$62:$C$71,0),MATCH($O141,'For Bill Impact(HideBeforeFile)'!$D$61:$Q$61,0)) -> 7.83 | H141: =INDEX('For Bill Impact(HideBeforeFile)'!$D$20:$Q$29,MATCH(C122,'For Bill Impact(HideBeforeFile)'!$C$62:$C$71,0),MATCH($O141,'For Bill Impact(HideBeforeFile)'!$D$61:$Q$61,0)) -> 7.83 | J141: =INDEX('For Bill Impact(HideBeforeFile)'!$D$34:$Q$43,MATCH(C122,'For Bill Impact(HideBeforeFile)'!$C$62:$C$71,0),MATCH($O141,'For Bill Impact(HideBeforeFile)'!$D$61:$Q$61,0)) -> 30384.37671 | O141: ='For Bill Impact(HideBeforeFile)'!$K$5 -> Federal Carbon
C142: =INDEX('For Bill Impact(HideBeforeFile)'!$D$48:$Q$57,MATCH(C122,'For Bill Impact(HideBeforeFile)'!$C$62:$C$71,0),MATCH($O142,'For Bill Impact(HideBeforeFile)'!$D$61:$Q$61,0)) -> Facility Carbon | D142: =INDEX('For Bill Impact(HideBeforeFile)'!$D$62:$Q$71,MATCH(C122,'For Bill Impact(HideBeforeFile)'!$C$62:$C$71,0),MATCH($O142,'For Bill Impact(HideBeforeFile)'!$D$61:$Q$61,0)) -> cents / m3 | F142: =INDEX('For Bill Impact(HideBeforeFile)'!$D$6:$Q$15,MATCH(C122,'For Bill Impact(HideBeforeFile)'!$C$62:$C$71,0),MATCH($O142,'For Bill Impact(HideBeforeFile)'!$D$61:$Q$61,0)) -> 0.0052 | H142: =INDEX('For Bill Impact(HideBeforeFile)'!$D$20:$Q$29,MATCH(C122,'For Bill Impact(HideBeforeFile)'!$C$62:$C$71,0),MATCH($O142,'For Bill Impact(HideBeforeFile)'!$D$61:$Q$61,0)) -> 0.0052 | J142: =INDEX('For Bill Impact(HideBeforeFile)'!$D$34:$Q$43,MATCH(C122,'For Bill Impact(HideBeforeFile)'!$C$62:$C$71,0),MATCH($O142,'For Bill Impact(HideBeforeFile)'!$D$61:$Q$61,0)) -> 30384.37671 | O142: ='For Bill Impact(HideBeforeFile)'!$L$5 -> Facility Carbon
C145: Commodity | F145: Current | H145: Proposed | J145: Change $ | L145: Change %
F146: =F126*$J126/100 -> 4029.636808 | H146: =H126*$J126/100 -> 4029.636808 | J146: =H146-F146 -> 0 | L146: =IFERROR(J146/F146,"") -> 0
C148: Delivery | F148: Current Rate | H148: Proposed Rate | J148: Change $ | L148: Change %
C149: =IF(C128<>"",C128,"") -> Customer (excl. Bill 32) | F149: =F128*$J128 -> 210 | H149: =H128*$J128 -> 222 | J149: =IFERROR(H149-F149,"") -> 12 | L149: =IFERROR(J149/F149,"") -> 0.05714285714
C150: Bill 32 | F150: 12 | H150: 12 | J150: =IFERROR(H150-F150,"") -> 0 | L150: =IFERROR(J150/F150,"") -> 0
C151: =IF(C129<>"",C129,"") -> Block 1 (First 1,000 m3 per month) | F151: =IFERROR(F129*$J129/100,"") -> 879.9603843 | H151: =IFERROR(H129*$J129/100,"") -> 889.65191 | J151: =IFERROR(H151-F151,"") -> 9.691525684 | L151: =IFERROR(J151/F151,"") -> 0.01101359318
C152: =IF(C130<>"",C130,"") -> Block 2 (Over 1,000 m3 per month) | F152: =IFERROR(F130*$J130/100,"") -> 2606.586427 | H152: =IFERROR(H130*$J130/100,"") -> 2635.29431 | J152: 28.70788249 | L152: 0.01101359318
C153: =IF(C131<>"",C131,"") ->  | F153: =IFERROR(F131*$J131/100,"") ->  | H153: =IFERROR(H131*$J131/100,"") -> 
C154: =IF(C132<>"",C132,"") ->  | F154: =IFERROR(F132*$J132/100,"") ->  | H154: =IFERROR(H132*$J132/100,"") -> 
C155: =IF(C133<>"",C133,"") -> System Gas Charge | F155: =IFERROR(F133*$J133/100,"") -> 13.21720387 | H155: =IFERROR(H133*$J133/100,"") -> 13.21720387 | J155: 0 | L155: 0
C156: Total Delivery | F156: =SUM(F149:F155) -> 3721.764015 | H156: =SUM(H149:H155) -> 3772.163424 | J156: =H156-F156 -> 50.39940817 | L156: =IF(ISERROR(J156/F156),0,J156/F156) -> 0.01354180651
C158: Rate Riders
C160: Rate Riders | F160: Current Rate | H160: Proposed Rate | J160: Change $ | L160: Change %
C161: REDA | F161: =F135*$J135 -> 9.36 | H161: =H135*$J135 -> 3.96 | J161: =IFERROR(H161-F161,"") -> -5.4 | L161: =IFERROR(J161/F161,"") -> -0.5769230769
C162: PGTVA | F162: =IFERROR(F136*$J136/100,"") -> 94.58656471 | H162: =IFERROR(H136*$J136/100,"") -> 97.07341083 | J162: =IFERROR(H162-F162,"") -> 2.486846129 | L162: =IFERROR(J162/F162,"") -> 0.02629174806
C163: ADVADA | F163: =IFERROR(F137*$J137/100,"") -> 45.81964008 | H163: =IFERROR(H137*$J137/100,"") -> 0 | J163: -45.81964008 | L163: -1
C164: PGTVA | F164: =IFERROR(F138*$J138/100,"") -> 0 | H164: =IFERROR(H138*$J138/100,"") -> 0.162 | J164: 0.162
C165: ADVADA | F165: =IFERROR(F139*$J139/100,"") -> 0 | H165: =IFERROR(H139*$J139/100,"") -> 72.07174156 | J165: 72.07174156
C166: Total Rate Riders | F166: =SUM(F161:F165) -> 149.7662048 | H166: =SUM(H161:H165) -> 173.2671524 | J166: =SUM(J161:J165) -> 23.50094761 | L166: =IF(ISERROR(J166/F166),0,J166/F166) -> 0.1569175612
C168: Carbon Tax
C169: Federal Carbon | F169: =F141*$J141/100 -> 2379.096697 | H169: =H141*$J141/100 -> 2379.096697 | J169: =IFERROR(H169-F169,"") -> 0 | L169: =IFERROR(J169/F169,"") -> 0
C170: Facility Carbon | F170: =F142*$J142/100 -> 1.579987589 | H170: =H142*$J142/100 -> 1.579987589 | J170: =IFERROR(H170-F170,"") -> 0 | L170: 0
C171: Total Carbon Tax | F171: =SUM(F169:F170) -> 2380.676684 | H171: =SUM(H169:H170) -> 2380.676684 | J171: =SUM(J169:J170) -> 0 | L171: =IF(ISERROR(J171/F171),0,J171/F171) -> 0
C173: Total Bill Impact | F173: =SUM(F146,F156,F166,F171) -> 10281.84371 | H173: =SUM(H146,H156,H166,H171) -> 10355.74407 | J173: =SUM(J146,J156,J166,J171) -> 73.90035578 | L173: =IFERROR(J173/F173,"") -> 0.007187461495
C176: =MID(CELL("filename",A113),FIND("]",CELL("filename",A113))+1,255) -> G1.1 Rate 1 Bill Impact

Sheet G1.2 Rate 2 Bill Impact
C2: ='A1.1 Distributor Information'!C3 -> Name of LDC: EPCOR Natural Gas Limited Partnership
C3: ='A1.1 Distributor Information'!C4 -> OEB Application Number: EB-2021-0215 Exhibit A - 2022 IRM Application
C7: Rate 2 Delivery Bill Impact
C10: ='For Bill Impact(HideBeforeFile)'!C9 -> RATE 2 - Seasonal Service - Apr to Oct | F10: Current | H10: Proposed | J10: Bill Determinant | O10: Look-up
C14: =INDEX('For Bill Impact(HideBeforeFile)'!$D$48:$Q$57,MATCH(C10,'For Bill Impact(HideBeforeFile)'!$C$62:$C$71,0),MATCH($O14,'For Bill Impact(HideBeforeFile)'!$D$61:$Q$61,0)) -> Commodity | D14: =INDEX('For Bill Impact(HideBeforeFile)'!$D$62:$Q$71,MATCH(C10,'For Bill Impact(HideBeforeFile)'!$C$62:$C$71,0),MATCH($O14,'For Bill Impact(HideBeforeFile)'!$D$61:$Q$61,0)) -> cents / m3 | F14: =INDEX('For Bill Impact(HideBeforeFile)'!$D$6:$Q$15,MATCH(C10,'For Bill Impact(HideBeforeFile)'!$C$62:$C$71,0),MATCH($O14,'For Bill Impact(HideBeforeFile)'!$D$61:$Q$61,0)) -> 13.2622 | H14: =INDEX('For Bill Impact(HideBeforeFile)'!$D$20:$Q$29,MATCH(C10,'For Bill Impact(HideBeforeFile)'!$C$62:$C$71,0),MATCH($O14,'For Bill Impact(HideBeforeFile)'!$D$61:$Q$61,0)) -> 13.2622 | J14: =INDEX('For Bill Impact(HideBeforeFile)'!$D$34:$Q$43,MATCH(C10,'For Bill Impact(HideBeforeFile)'!$C$62:$C$71,0),MATCH($O14,'For Bill Impact(HideBeforeFile)'!$D$61:$Q$61,0)) -> 8701.576 | O14: ='For Bill Impact(HideBeforeFile)'!$D$5 -> Commodity
C16: =INDEX('For Bill Impact(HideBeforeFile)'!$D$48:$Q$57,MATCH(C10,'For Bill Impact(HideBeforeFile)'!$C$62:$C$71,0),MATCH($O16,'For Bill Impact(HideBeforeFile)'!$D$61:$Q$61,0)) -> Customer (excl. Bill 32) | D16: =INDEX('For Bill Impact(HideBeforeFile)'!$D$62:$Q$71,MATCH(C10,'For Bill Impact(HideBeforeFile)'!$C$62:$C$71,0),MATCH($O16,'For Bill Impact(HideBeforeFile)'!$D$61:$Q$61,0)) -> $ / month | F16: =INDEX('For Bill Impact(HideBeforeFile)'!$D$6:$Q$15,MATCH(C10,'For Bill Impact(HideBeforeFile)'!$C$62:$C$71,0),MATCH($O16,'For Bill Impact(HideBeforeFile)'!$D$61:$Q$61,0)) -> 20 | H16: =INDEX('For Bill Impact(HideBeforeFile)'!$D$20:$Q$29,MATCH(C10,'For Bill Impact(HideBeforeFile)'!$C$62:$C$71,0),MATCH($O16,'For Bill Impact(HideBeforeFile)'!$D$61:$Q$61,0)) -> 20 | J16: =INDEX('For Bill Impact(HideBeforeFile)'!$D$34:$Q$43,MATCH(C10,'For Bill Impact(HideBeforeFile)'!$C$62:$C$71,0),MATCH($O16,'For Bill Impact(HideBeforeFile)'!$D$61:$Q$61,0)) -> 7 | O16: ='For Bill Impact(HideBeforeFile)'!$M$5 -> Dist. Customer Rate
C17: =INDEX('For Bill Impact(HideBeforeFile)'!$D$48:$Q$57,MATCH(C10,'For Bill Impact(HideBeforeFile)'!$C$62:$C$71,0),MATCH($O17,'For Bill Impact(HideBeforeFile)'!$D$61:$Q$61,0)) -> Block 1 (First 1,000 m3 per month) | D17: =INDEX('For Bill Impact(HideBeforeFile)'!$D$62:$Q$71,MATCH(C10,'For Bill Impact(HideBeforeFile)'!$C$62:$C$71,0),MATCH($O17,'For Bill Impact(HideBeforeFile)'!$D$61:$Q$61,0)) -> cents / m3 | F17: =INDEX('For Bill Impact(HideBeforeFile)'!$D$6:$Q$15,MATCH(C10,'For Bill Impact(HideBeforeFile)'!$C$62:$C$71,0),MATCH($O17,'For Bill Impact(HideBeforeFile)'!$D$61:$Q$61,0)) -> 17.0841 | H17: =INDEX('For Bill Impact(HideBeforeFile)'!$D$20:$Q$29,MATCH(C10,'For Bill Impact(HideBeforeFile)'!$C$62:$C$71,0),MATCH($O17,'For Bill Impact(HideBeforeFile)'!$D$61:$Q$61,0)) -> 17.63866173 | J17: =INDEX('For Bill Impact(HideBeforeFile)'!$D$34:$Q$43,MATCH(C10,'For Bill Impact(HideBeforeFile)'!$C$62:$C$71,0),MATCH($O17,'For Bill Impact(HideBeforeFile)'!$D$61:$Q$61,0)) -> 1387.276 | O17: ='For Bill Impact(HideBeforeFile)'!$N$5 -> Dist. Vol. Rate Tier 1
C18: =INDEX('For Bill Impact(HideBeforeFile)'!$D$48:$Q$57,MATCH(C10,'For Bill Impact(HideBeforeFile)'!$C$62:$C$71,0),MATCH($O18,'For Bill Impact(HideBeforeFile)'!$D$61:$Q$61,0)) -> Block 2 (Next 24,000 m3 per month) | D18: =INDEX('For Bill Impact(HideBeforeFile)'!$D$62:$Q$71,MATCH(C10,'For Bill Impact(HideBeforeFile)'!$C$62:$C$71,0),MATCH($O18,'For Bill Impact(HideBeforeFile)'!$D$61:$Q$61,0)) -> cents / m3 | F18: =INDEX('For Bill Impact(HideBeforeFile)'!$D$6:$Q$15,MATCH(C10,'For Bill Impact(HideBeforeFile)'!$C$62:$C$71,0),MATCH($O18,'For Bill Impact(HideBeforeFile)'!$D$61:$Q$61,0)) -> 8.8749 | H18: =INDEX('For Bill Impact(HideBeforeFile)'!$D$20:$Q$29,MATCH(C10,'For Bill Impact(HideBeforeFile)'!$C$62:$C$71,0),MATCH($O18,'For Bill Impact(HideBeforeFile)'!$D$61:$Q$61,0)) -> 9.162985406 | J18: =INDEX('For Bill Impact(HideBeforeFile)'!$D$34:$Q$43,MATCH(C10,'For Bill Impact(HideBeforeFile)'!$C$62:$C$71,0),MATCH($O18,'For Bill Impact(HideBeforeFile)'!$D$61:$Q$61,0)) -> 6590.914 | O18: ='For Bill Impact(HideBeforeFile)'!$O$5 -> Dist. Vol. Rate Tier 2
C19: =INDEX('For Bill Impact(HideBeforeFile)'!$D$48:$Q$57,MATCH(C10,'For Bill Impact(HideBeforeFile)'!$C$62:$C$71,0),MATCH($O19,'For Bill Impact(HideBeforeFile)'!$D$61:$Q$61,0)) -> Block 3 (Over 25,000 m3 per month) | D19: =INDEX('For Bill Impact(HideBeforeFile)'!$D$62:$Q$71,MATCH(C10,'For Bill Impact(HideBeforeFile)'!$C$62:$C$71,0),MATCH($O19,'For Bill Impact(HideBeforeFile)'!$D$61:$Q$61,0)) -> cents / m3 | F19: =INDEX('For Bill Impact(HideBeforeFile)'!$D$6:$Q$15,MATCH(C10,'For Bill Impact(HideBeforeFile)'!$C$62:$C$71,0),MATCH($O19,'For Bill Impact(HideBeforeFile)'!$D$61:$Q$61,0)) -> 6.9188 | H19: =INDEX('For Bill Impact(HideBeforeFile)'!$D$20:$Q$29,MATCH(C10,'For Bill Impact(HideBeforeFile)'!$C$62:$C$71,0),MATCH($O19,'For Bill Impact(HideBeforeFile)'!$D$61:$Q$61,0)) -> 7.143389044 | J19: =INDEX('For Bill Impact(HideBeforeFile)'!$D$34:$Q$43,MATCH(C10,'For Bill Impact(HideBeforeFile)'!$C$62:$C$71,0),MATCH($O19,'For Bill Impact(HideBeforeFile)'!$D$61:$Q$61,0)) -> 723.386 | O19: ='For Bill Impact(HideBeforeFile)'!$P$5 -> Dist. Vol. Rate Tier 3
C20: =INDEX('For Bill Impact(HideBeforeFile)'!$D$48:$Q$57,MATCH(C10,'For Bill Impact(HideBeforeFile)'!$C$62:$C$71,0),MATCH($O20,'For Bill Impact(HideBeforeFile)'!$D$61:$Q$61,0)) ->  | D20: =INDEX('For Bill Impact(HideBeforeFile)'!$D$62:$Q$71,MATCH(C10,'For Bill Impact(HideBeforeFile)'!$C$62:$C$71,0),MATCH($O20,'For Bill Impact(HideBeforeFile)'!$D$61:$Q$61,0)) ->  | F20: =INDEX('For Bill Impact(HideBeforeFile)'!$D$6:$Q$15,MATCH(C10,'For Bill Impact(HideBeforeFile)'!$C$62:$C$71,0),MATCH($O20,'For Bill Impact(HideBeforeFile)'!$D$61:$Q$61,0)) ->  | H20: =INDEX('For Bill Impact(HideBeforeFile)'!$D$20:$Q$29,MATCH(C10,'For Bill Impact(HideBeforeFile)'!$C$62:$C$71,0),MATCH($O20,'For Bill Impact(HideBeforeFile)'!$D$61:$Q$61,0)) ->  | J20: =INDEX('For Bill Impact(HideBeforeFile)'!$D$34:$Q$43,MATCH(C10,'For Bill Impact(HideBeforeFile)'!$C$62:$C$71,0),MATCH($O20,'For Bill Impact(HideBeforeFile)'!$D$61:$Q$61,0)) ->  | O20: ='For Bill Impact(HideBeforeFile)'!$Q$5 -> Dist. Capacity Rate
C21: =INDEX('For Bill Impact(HideBeforeFile)'!$D$48:$Q$57,MATCH(C10,'For Bill Impact(HideBeforeFile)'!$C$62:$C$71,0),MATCH($O21,'For Bill Impact(HideBeforeFile)'!$D$61:$Q$61,0)) -> System Gas Charge | D21: =INDEX('For Bill Impact(HideBeforeFile)'!$D$62:$Q$71,MATCH(C10,'For Bill Impact(HideBeforeFile)'!$C$62:$C$71,0),MATCH($O21,'For Bill Impact(HideBeforeFile)'!$D$61:$Q$61,0)) -> cents / m3 | F21: =INDEX('For Bill Impact(HideBeforeFile)'!$D$6:$Q$15,MATCH(C10,'For Bill Impact(HideBeforeFile)'!$C$62:$C$71,0),MATCH($O21,'For Bill Impact(HideBeforeFile)'!$D$61:$Q$61,0)) -> 0.0435 | H21: =INDEX('For Bill Impact(HideBeforeFile)'!$D$20:$Q$29,MATCH(C10,'For Bill Impact(HideBeforeFile)'!$C$62:$C$71,0),MATCH($O21,'For Bill Impact(HideBeforeFile)'!$D$61:$Q$61,0)) -> 0.0435 | J21: =INDEX('For Bill Impact(HideBeforeFile)'!$D$34:$Q$43,MATCH(C10,'For Bill Impact(HideBeforeFile)'!$C$62:$C$71,0),MATCH($O21,'For Bill Impact(HideBeforeFile)'!$D$61:$Q$61,0)) -> 8701.576 | O21: ='For Bill Impact(HideBeforeFile)'!$E$5 -> System Gas
C23: =INDEX('For Bill Impact(HideBeforeFile)'!$D$48:$Q$57,MATCH(C10,'For Bill Impact(HideBeforeFile)'!$C$62:$C$71,0),MATCH($O23,'For Bill Impact(HideBeforeFile)'!$D$61:$Q$61,0)) -> REDA | D23: =INDEX('For Bill Impact(HideBeforeFile)'!$D$62:$Q$71,MATCH(C10,'For Bill Impact(HideBeforeFile)'!$C$62:$C$71,0),MATCH($O23,'For Bill Impact(HideBeforeFile)'!$D$61:$Q$61,0)) -> $ / month | F23: =INDEX('For Bill Impact(HideBeforeFile)'!$D$6:$Q$15,MATCH(C10,'For Bill Impact(HideBeforeFile)'!$C$62:$C$71,0),MATCH($O23,'For Bill Impact(HideBeforeFile)'!$D$61:$Q$61,0)) -> 0.78 | H23: =INDEX('For Bill Impact(HideBeforeFile)'!$D$20:$Q$29,MATCH(C10,'For Bill Impact(HideBeforeFile)'!$C$62:$C$71,0),MATCH($O23,'For Bill Impact(HideBeforeFile)'!$D$61:$Q$61,0)) -> 0.33 | J23: =INDEX('For Bill Impact(HideBeforeFile)'!$D$34:$Q$43,MATCH(C10,'For Bill Impact(HideBeforeFile)'!$C$62:$C$71,0),MATCH($O23,'For Bill Impact(HideBeforeFile)'!$D$61:$Q$61,0)) -> 7 | O23: ='For Bill Impact(HideBeforeFile)'!$F$5 -> REDA
C24: =INDEX('For Bill Impact(HideBeforeFile)'!$D$48:$Q$57,MATCH(C10,'For Bill Impact(HideBeforeFile)'!$C$62:$C$71,0),MATCH($O24,'For Bill Impact(HideBeforeFile)'!$D$61:$Q$61,0)) -> PGTVA | D24: =INDEX('For Bill Impact(HideBeforeFile)'!$D$62:$Q$71,MATCH(C10,'For Bill Impact(HideBeforeFile)'!$C$62:$C$71,0),MATCH($O24,'For Bill Impact(HideBeforeFile)'!$D$61:$Q$61,0)) -> cents / m3 | F24: =INDEX('For Bill Impact(HideBeforeFile)'!$D$6:$Q$15,MATCH(C10,'For Bill Impact(HideBeforeFile)'!$C$62:$C$71,0),MATCH($O24,'For Bill Impact(HideBeforeFile)'!$D$61:$Q$61,0)) -> 0.3113 | H24: =INDEX('For Bill Impact(HideBeforeFile)'!$D$20:$Q$29,MATCH(C10,'For Bill Impact(HideBeforeFile)'!$C$62:$C$71,0),MATCH($O24,'For Bill Impact(HideBeforeFile)'!$D$61:$Q$61,0)) -> 0.3194846212 | J24: =INDEX('For Bill Impact(HideBeforeFile)'!$D$34:$Q$43,MATCH(C10,'For Bill Impact(HideBeforeFile)'!$C$62:$C$71,0),MATCH($O24,'For Bill Impact(HideBeforeFile)'!$D$61:$Q$61,0)) -> 8701.576 | O24: ='For Bill Impact(HideBeforeFile)'!$G$5 -> PGTVA
C25: =INDEX('For Bill Impact(HideBeforeFile)'!$D$48:$Q$57,MATCH(C10,'For Bill Impact(HideBeforeFile)'!$C$62:$C$71,0),MATCH($O25,'For Bill Impact(HideBeforeFile)'!$D$61:$Q$61,0)) -> ADVADA | D25: =INDEX('For Bill Impact(HideBeforeFile)'!$D$62:$Q$71,MATCH(C10,'For Bill Impact(HideBeforeFile)'!$C$62:$C$71,0),MATCH($O25,'For Bill Impact(HideBeforeFile)'!$D$61:$Q$61,0)) -> cents / m3 | F25: =INDEX('For Bill Impact(HideBeforeFile)'!$D$6:$Q$15,MATCH(C10,'For Bill Impact(HideBeforeFile)'!$C$62:$C$71,0),MATCH($O25,'For Bill Impact(HideBeforeFile)'!$D$61:$Q$61,0)) -> 0.1508 | H25: =INDEX('For Bill Impact(HideBeforeFile)'!$D$20:$Q$29,MATCH(C10,'For Bill Impact(HideBeforeFile)'!$C$62:$C$71,0),MATCH($O25,'For Bill Impact(HideBeforeFile)'!$D$61:$Q$61,0)) -> 0 | J25: =INDEX('For Bill Impact(HideBeforeFile)'!$D$34:$Q$43,MATCH(C10,'For Bill Impact(HideBeforeFile)'!$C$62:$C$71,0),MATCH($O25,'For Bill Impact(HideBeforeFile)'!$D$61:$Q$61,0)) -> 8701.576 | O25: ='For Bill Impact(HideBeforeFile)'!$H$5 -> ADVADA
C26: =INDEX('For Bill Impact(HideBeforeFile)'!$D$48:$Q$57,MATCH(C10,'For Bill Impact(HideBeforeFile)'!$C$62:$C$71,0),MATCH($O26,'For Bill Impact(HideBeforeFile)'!$D$61:$Q$61,0)) -> LDMDA | D26: =INDEX('For Bill Impact(HideBeforeFile)'!$D$62:$Q$71,MATCH(C10,'For Bill Impact(HideBeforeFile)'!$C$62:$C$71,0),MATCH($O26,'For Bill Impact(HideBeforeFile)'!$D$61:$Q$61,0)) -> $ / month | F26: =INDEX('For Bill Impact(HideBeforeFile)'!$D$6:$Q$15,MATCH(C10,'For Bill Impact(HideBeforeFile)'!$C$62:$C$71,0),MATCH($O26,'For Bill Impact(HideBeforeFile)'!$D$61:$Q$61,0)) -> 0 | H26: =INDEX('For Bill Impact(HideBeforeFile)'!$D$20:$Q$29,MATCH(C10,'For Bill Impact(HideBeforeFile)'!$C$62:$C$71,0),MATCH($O26,'For Bill Impact(HideBeforeFile)'!$D$61:$Q$61,0)) -> 0 | J26: =INDEX('For Bill Impact(HideBeforeFile)'!$D$34:$Q$43,MATCH(C10,'For Bill Impact(HideBeforeFile)'!$C$62:$C$71,0),MATCH($O26,'For Bill Impact(HideBeforeFile)'!$D$61:$Q$61,0)) -> 7 | O26: LDMDA
C27: =INDEX('For Bill Impact(HideBeforeFile)'!$D$48:$Q$57,MATCH(C10,'For Bill Impact(HideBeforeFile)'!$C$62:$C$71,0),MATCH($O27,'For Bill Impact(HideBeforeFile)'!$D$61:$Q$61,0)) -> SICDA | D27: =INDEX('For Bill Impact(HideBeforeFile)'!$D$62:$Q$71,MATCH(C10,'For Bill Impact(HideBeforeFile)'!$C$62:$C$71,0),MATCH($O27,'For Bill Impact(HideBeforeFile)'!$D$61:$Q$61,0)) -> cents / m3 | F27: =INDEX('For Bill Impact(HideBeforeFile)'!$D$6:$Q$15,MATCH(C10,'For Bill Impact(HideBeforeFile)'!$C$62:$C$71,0),MATCH($O27,'For Bill Impact(HideBeforeFile)'!$D$61:$Q$61,0)) -> 0 | H27: =INDEX('For Bill Impact(HideBeforeFile)'!$D$20:$Q$29,MATCH(C10,'For Bill Impact(HideBeforeFile)'!$C$62:$C$71,0),MATCH($O27,'For Bill Impact(HideBeforeFile)'!$D$61:$Q$61,0)) -> 0.2372 | J27: =INDEX('For Bill Impact(HideBeforeFile)'!$D$34:$Q$43,MATCH(C10,'For Bill Impact(HideBeforeFile)'!$C$62:$C$71,0),MATCH($O27,'For Bill Impact(HideBeforeFile)'!$D$61:$Q$61,0)) -> 8701.576 | O27: SICDA
C29: =INDEX('For Bill Impact(HideBeforeFile)'!$D$48:$Q$57,MATCH(C10,'For Bill Impact(HideBeforeFile)'!$C$62:$C$71,0),MATCH($O29,'For Bill Impact(HideBeforeFile)'!$D$61:$Q$61,0)) -> Federal Carbon | D29: =INDEX('For Bill Impact(HideBeforeFile)'!$D$62:$Q$71,MATCH(C10,'For Bill Impact(HideBeforeFile)'!$C$62:$C$71,0),MATCH($O29,'For Bill Impact(HideBeforeFile)'!$D$61:$Q$61,0)) -> cents / m3 | F29: =INDEX('For Bill Impact(HideBeforeFile)'!$D$6:$Q$15,MATCH(C10,'For Bill Impact(HideBeforeFile)'!$C$62:$C$71,0),MATCH($O29,'For Bill Impact(HideBeforeFile)'!$D$61:$Q$61,0)) -> 7.83 | H29: =INDEX('For Bill Impact(HideBeforeFile)'!$D$20:$Q$29,MATCH(C10,'For Bill Impact(HideBeforeFile)'!$C$62:$C$71,0),MATCH($O29,'For Bill Impact(HideBeforeFile)'!$D$61:$Q$61,0)) -> 7.83 | J29: =INDEX('For Bill Impact(HideBeforeFile)'!$D$34:$Q$43,MATCH(C10,'For Bill Impact(HideBeforeFile)'!$C$62:$C$71,0),MATCH($O29,'For Bill Impact(HideBeforeFile)'!$D$61:$Q$61,0)) -> 8701.576 | O29: ='For Bill Impact(HideBeforeFile)'!$K$5 -> Federal Carbon
C30: =INDEX('For Bill Impact(HideBeforeFile)'!$D$48:$Q$57,MATCH(C10,'For Bill Impact(HideBeforeFile)'!$C$62:$C$71,0),MATCH($O30,'For Bill Impact(HideBeforeFile)'!$D$61:$Q$61,0)) -> Facility Carbon | D30: =INDEX('For Bill Impact(HideBeforeFile)'!$D$62:$Q$71,MATCH(C10,'For Bill Impact(HideBeforeFile)'!$C$62:$C$71,0),MATCH($O30,'For Bill Impact(HideBeforeFile)'!$D$61:$Q$61,0)) -> cents / m3 | F30: =INDEX('For Bill Impact(HideBeforeFile)'!$D$6:$Q$15,MATCH(C10,'For Bill Impact(HideBeforeFile)'!$C$62:$C$71,0),MATCH($O30,'For Bill Impact(HideBeforeFile)'!$D$61:$Q$61,0)) -> 0.0052 | H30: =INDEX('For Bill Impact(HideBeforeFile)'!$D$20:$Q$29,MATCH(C10,'For Bill Impact(HideBeforeFile)'!$C$62:$C$71,0),MATCH($O30,'For Bill Impact(HideBeforeFile)'!$D$61:$Q$61,0)) -> 0.0052 | J30: =INDEX('For Bill Impact(HideBeforeFile)'!$D$34:$Q$43,MATCH(C10,'For Bill Impact(HideBeforeFile)'!$C$62:$C$71,0),MATCH($O30,'For Bill Impact(HideBeforeFile)'!$D$61:$Q$61,0)) -> 8701.576 | O30: ='For Bill Impact(HideBeforeFile)'!$L$5 -> Facility Carbon
C33: Commodity | F33: Current | H33: Proposed | J33: Change $ | L33: Change %
F34: =F14*$J14/100 -> 1154.020412 | H34: =H14*$J14/100 -> 1154.020412 | J34: =H34-F34 -> 0 | L34: =IFERROR(J34/F34,"") -> 0 | O34: ='For Bill Impact(HideBeforeFile)'!$D$5 -> Commodity
C36: Delivery | F36: Current Rate | H36: Proposed Rate | J36: Change $ | L36: Change %
C37: =IF(C16<>"",C16,"") -> Customer (excl. Bill 32) | F37: =F16*$J16 -> 140 | H37: =H16*$J16 -> 140 | J37: =IFERROR(H37-F37,"") -> 0 | L37: =IFERROR(J37/F37,"") -> 0 | O37: ='For Bill Impact(HideBeforeFile)'!$M$5 -> Dist. Customer Rate
C38: Bill 32 | F38: =J16 -> 7 | H38: =J16 -> 7 | J38: =IFERROR(H38-F38,"") -> 0 | L38: =IFERROR(J38/F38,"") -> 0
C39: =IF(C17<>"",C17,"") -> Block 1 (First 1,000 m3 per month) | F39: =IFERROR(F17*$J17/100,"") -> 237.0036191 | H39: =IFERROR(H17*$J17/100,"") -> 244.6969209 | J39: =IFERROR(H39-F39,"") -> 7.693301775 | L39: =IFERROR(J39/F39,"") -> 0.03246069323 | O39: ='For Bill Impact(HideBeforeFile)'!$N$5 -> Dist. Vol. Rate Tier 1
C40: =IF(C18<>"",C18,"") -> Block 2 (Next 24,000 m3 per month) | F40: =IFERROR(F18*$J18/100,"") -> 584.9370266 | H40: =IFERROR(H18*$J18/100,"") -> 603.924488 | J40: 18.98746138 | L40: 0.03246069323 | O40: ='For Bill Impact(HideBeforeFile)'!$O$5 -> Dist. Vol. Rate Tier 2
C41: =IF(C19<>"",C19,"") -> Block 3 (Over 25,000 m3 per month) | F41: =IFERROR(F19*$J19/100,"") -> 50.04963057 | H41: =IFERROR(H19*$J19/100,"") -> 51.67427627 | J41: 1.624645704 | L41: 0.03246069323 | O41: ='For Bill Impact(HideBeforeFile)'!$P$5 -> Dist. Vol. Rate Tier 3
C42: =IF(C20<>"",C20,"") ->  | F42: =IFERROR(F20*$J20/100,"") ->  | H42: =IFERROR(H20*$J20/100,"") ->  | O42: ='For Bill Impact(HideBeforeFile)'!$Q$5 -> Dist. Capacity Rate
C43: =IF(C21<>"",C21,"") -> System Gas Charge | F43: =IFERROR(F21*$J21/100,"") -> 3.78518556 | H43: =IFERROR(H21*$J21/100,"") -> 3.78518556 | J43: 0 | L43: 0 | O43: ='For Bill Impact(HideBeforeFile)'!$E$5 -> System Gas
C44: Total Delivery | F44: =SUM(F37:F43) -> 1022.775462 | H44: =SUM(H37:H43) -> 1051.080871 | J44: =H44-F44 -> 28.30540886 | L44: =IF(ISERROR(J44/F44),0,J44/F44) -> 0.02767509577
C46: Rate Riders
C48: Rate Riders | F48: Current Rate | H48: Proposed Rate | J48: Change $ | L48: Change %
C49: =C23 -> REDA | F49: =F23*$J23 -> 5.46 | H49: =H23*$J23 -> 2.31 | J49: =IFERROR(H49-F49,"") -> -3.15 | L49: =IFERROR(J49/F49,"") -> -0.5769230769 | O49: ='For Bill Impact(HideBeforeFile)'!$F$5 -> REDA
C50: =C24 -> PGTVA | F50: =IFERROR(F24*$J24/100,"") -> 27.08800609 | H50: =IFERROR(H24*$J24/100,"") -> 27.80019712 | J50: =IFERROR(H50-F50,"") -> 0.7121910316 | L50: =IFERROR(J50/F50,"") -> 0.02629174806 | O50: ='For Bill Impact(HideBeforeFile)'!$G$5 -> PGTVA
C51: ADVADA | F51: =IFERROR(F25*$J25/100,"") -> 13.12197661 | H51: =IFERROR(H25*$J25/100,"") -> 0 | J51: -13.12197661 | L51: -1 | O51: ='For Bill Impact(HideBeforeFile)'!$H$5 -> ADVADA
C52: LDMDA | F52: =IFERROR(F26*$J26/100,"") -> 0 | H52: =H26*$J26 -> 0 | J52: 0 | O52: ='For Bill Impact(HideBeforeFile)'!$I$5 -> LDMDA
C53: SICDA | F53: =IFERROR(F27*$J27/100,"") -> 0 | H53: =IFERROR(H27*$J27/100,"") -> 20.64013827 | J53: =H53 -> 20.64013827 | O53: ='For Bill Impact(HideBeforeFile)'!$J$5 -> SICDA
C54: Total Rate Riders | F54: =SUM(F49:F53) -> 45.6699827 | H54: =SUM(H49:H53) -> 50.75033539 | J54: =SUM(J49:J53) -> 5.080352696 | L54: =IF(ISERROR(J54/F54),0,J54/F54) -> 0.1112405216
C56: Carbon Tax
C57: Federal Carbon | F57: =F29*$J29/100 -> 681.3334008 | H57: =H29*$J29/100 -> 681.3334008 | J57: =IFERROR(H57-F57,"") -> 0 | L57: =IFERROR(J57/F57,"") -> 0
C58: Facility Carbon | F58: =F30*$J30/100 -> 0.452481952 | H58: =H30*$J30/100 -> 0.452481952 | J58: =IFERROR(H58-F58,"") -> 0 | L58: 0
C59: Total Carbon Tax | F59: =SUM(F57:F58) -> 681.7858828 | H59: =SUM(H57:H58) -> 681.7858828 | J59: =SUM(J57:J58) -> 0 | L59: =IF(ISERROR(J59/F59),0,J59/F59) -> 0
C61: Total Bill Impact | F61: =SUM(F34,F44,F54,F59) -> 2904.25174 | H61: =SUM(H34,H44,H54,H59) -> 2937.637501 | J61: =SUM(J34,J44,J54,J59) -> 33.38576156 | L61: =IFERROR(J61/F61,"") -> 0.01149547785
C64: =MID(CELL("filename",A1),FIND("]",CELL("filename",A1))+1,255) -> G1.2 Rate 2 Bill Impact
C66: ='For Bill Impact(HideBeforeFile)'!C10 -> RATE 2 - Seasonal Service - Nov to Mar | F66: Current | H66: Proposed | J66: Bill Determinant | O66: Look-up
C70: =INDEX('For Bill Impact(HideBeforeFile)'!$D$48:$Q$57,MATCH(C66,'For Bill Impact(HideBeforeFile)'!$C$62:$C$71,0),MATCH($O70,'For Bill Impact(HideBeforeFile)'!$D$61:$Q$61,0)) -> Commodity | D70: =INDEX('For Bill Impact(HideBeforeFile)'!$D$62:$Q$71,MATCH(C66,'For Bill Impact(HideBeforeFile)'!$C$62:$C$71,0),MATCH($O70,'For Bill Impact(HideBeforeFile)'!$D$61:$Q$61,0)) -> cents / m3 | F70: =INDEX('For Bill Impact(HideBeforeFile)'!$D$6:$Q$15,MATCH(C66,'For Bill Impact(HideBeforeFile)'!$C$62:$C$71,0),MATCH($O70,'For Bill Impact(HideBeforeFile)'!$D$61:$Q$61,0)) -> 13.2622 | H70: =INDEX('For Bill Impact(HideBeforeFile)'!$D$20:$Q$29,MATCH(C66,'For Bill Impact(HideBeforeFile)'!$C$62:$C$71,0),MATCH($O70,'For Bill Impact(HideBeforeFile)'!$D$61:$Q$61,0)) -> 13.2622 | J70: =INDEX('For Bill Impact(HideBeforeFile)'!$D$34:$Q$43,MATCH(C66,'For Bill Impact(HideBeforeFile)'!$C$62:$C$71,0),MATCH($O70,'For Bill Impact(HideBeforeFile)'!$D$61:$Q$61,0)) -> 7085.144 | O70: ='For Bill Impact(HideBeforeFile)'!$D$5 -> Commodity
C72: =INDEX('For Bill Impact(HideBeforeFile)'!$D$48:$Q$57,MATCH(C66,'For Bill Impact(HideBeforeFile)'!$C$62:$C$71,0),MATCH($O72,'For Bill Impact(HideBeforeFile)'!$D$61:$Q$61,0)) -> Customer (excl. Bill 32) | D72: =INDEX('For Bill Impact(HideBeforeFile)'!$D$62:$Q$71,MATCH(C66,'For Bill Impact(HideBeforeFile)'!$C$62:$C$71,0),MATCH($O72,'For Bill Impact(HideBeforeFile)'!$D$61:$Q$61,0)) -> $ / month | F72: =INDEX('For Bill Impact(HideBeforeFile)'!$D$6:$Q$15,MATCH(C66,'For Bill Impact(HideBeforeFile)'!$C$62:$C$71,0),MATCH($O72,'For Bill Impact(HideBeforeFile)'!$D$61:$Q$61,0)) -> 20 | H72: =INDEX('For Bill Impact(HideBeforeFile)'!$D$20:$Q$29,MATCH(C66,'For Bill Impact(HideBeforeFile)'!$C$62:$C$71,0),MATCH($O72,'For Bill Impact(HideBeforeFile)'!$D$61:$Q$61,0)) -> 20 | J72: =INDEX('For Bill Impact(HideBeforeFile)'!$D$34:$Q$43,MATCH(C66,'For Bill Impact(HideBeforeFile)'!$C$62:$C$71,0),MATCH($O72,'For Bill Impact(HideBeforeFile)'!$D$61:$Q$61,0)) -> 5 | O72: ='For Bill Impact(HideBeforeFile)'!$M$5 -> Dist. Customer Rate
C73: =INDEX('For Bill Impact(HideBeforeFile)'!$D$48:$Q$57,MATCH(C66,'For Bill Impact(HideBeforeFile)'!$C$62:$C$71,0),MATCH($O73,'For Bill Impact(HideBeforeFile)'!$D$61:$Q$61,0)) -> Block 1 (First 1,000 m3 per month) | D73: =INDEX('For Bill Impact(HideBeforeFile)'!$D$62:$Q$71,MATCH(C66,'For Bill Impact(HideBeforeFile)'!$C$62:$C$71,0),MATCH($O73,'For Bill Impact(HideBeforeFile)'!$D$61:$Q$61,0)) -> cents / m3 | F73: =INDEX('For Bill Impact(HideBeforeFile)'!$D$6:$Q$15,MATCH(C66,'For Bill Impact(HideBeforeFile)'!$C$62:$C$71,0),MATCH($O73,'For Bill Impact(HideBeforeFile)'!$D$61:$Q$61,0)) -> 21.5342 | H73: =INDEX('For Bill Impact(HideBeforeFile)'!$D$20:$Q$29,MATCH(C66,'For Bill Impact(HideBeforeFile)'!$C$62:$C$71,0),MATCH($O73,'For Bill Impact(HideBeforeFile)'!$D$61:$Q$61,0)) -> 22.23321506 | J73: =INDEX('For Bill Impact(HideBeforeFile)'!$D$34:$Q$43,MATCH(C66,'For Bill Impact(HideBeforeFile)'!$C$62:$C$71,0),MATCH($O73,'For Bill Impact(HideBeforeFile)'!$D$61:$Q$61,0)) -> 1407.398 | O73: ='For Bill Impact(HideBeforeFile)'!$N$5 -> Dist. Vol. Rate Tier 1
C74: =INDEX('For Bill Impact(HideBeforeFile)'!$D$48:$Q$57,MATCH(C66,'For Bill Impact(HideBeforeFile)'!$C$62:$C$71,0),MATCH($O74,'For Bill Impact(HideBeforeFile)'!$D$61:$Q$61,0)) -> Block 2 (Next 24,000 m3 per month) | D74: =INDEX('For Bill Impact(HideBeforeFile)'!$D$62:$Q$71,MATCH(C66,'For Bill Impact(HideBeforeFile)'!$C$62:$C$71,0),MATCH($O74,'For Bill Impact(HideBeforeFile)'!$D$61:$Q$61,0)) -> cents / m3 | F74: =INDEX('For Bill Impact(HideBeforeFile)'!$D$6:$Q$15,MATCH(C66,'For Bill Impact(HideBeforeFile)'!$C$62:$C$71,0),MATCH($O74,'For Bill Impact(HideBeforeFile)'!$D$61:$Q$61,0)) -> 14.6901 | H74: =INDEX('For Bill Impact(HideBeforeFile)'!$D$20:$Q$29,MATCH(C66,'For Bill Impact(HideBeforeFile)'!$C$62:$C$71,0),MATCH($O74,'For Bill Impact(HideBeforeFile)'!$D$61:$Q$61,0)) -> 15.16695083 | J74: =INDEX('For Bill Impact(HideBeforeFile)'!$D$34:$Q$43,MATCH(C66,'For Bill Impact(HideBeforeFile)'!$C$62:$C$71,0),MATCH($O74,'For Bill Impact(HideBeforeFile)'!$D$61:$Q$61,0)) -> 5451.648 | O74: ='For Bill Impact(HideBeforeFile)'!$O$5 -> Dist. Vol. Rate Tier 2
C75: =INDEX('For Bill Impact(HideBeforeFile)'!$D$48:$Q$57,MATCH(C66,'For Bill Impact(HideBeforeFile)'!$C$62:$C$71,0),MATCH($O75,'For Bill Impact(HideBeforeFile)'!$D$61:$Q$61,0)) -> Block 3 (Over 25,000 m3 per month) | D75: =INDEX('For Bill Impact(HideBeforeFile)'!$D$62:$Q$71,MATCH(C66,'For Bill Impact(HideBeforeFile)'!$C$62:$C$71,0),MATCH($O75,'For Bill Impact(HideBeforeFile)'!$D$61:$Q$61,0)) -> cents / m3 | F75: =INDEX('For Bill Impact(HideBeforeFile)'!$D$6:$Q$15,MATCH(C66,'For Bill Impact(HideBeforeFile)'!$C$62:$C$71,0),MATCH($O75,'For Bill Impact(HideBeforeFile)'!$D$61:$Q$61,0)) -> 15.5875 | H75: =INDEX('For Bill Impact(HideBeforeFile)'!$D$20:$Q$29,MATCH(C66,'For Bill Impact(HideBeforeFile)'!$C$62:$C$71,0),MATCH($O75,'For Bill Impact(HideBeforeFile)'!$D$61:$Q$61,0)) -> 16.09348106 | J75: =INDEX('For Bill Impact(HideBeforeFile)'!$D$34:$Q$43,MATCH(C66,'For Bill Impact(HideBeforeFile)'!$C$62:$C$71,0),MATCH($O75,'For Bill Impact(HideBeforeFile)'!$D$61:$Q$61,0)) -> 226.098 | O75: ='For Bill Impact(HideBeforeFile)'!$P$5 -> Dist. Vol. Rate Tier 3
C76: =INDEX('For Bill Impact(HideBeforeFile)'!$D$48:$Q$57,MATCH(C66,'For Bill Impact(HideBeforeFile)'!$C$62:$C$71,0),MATCH($O76,'For Bill Impact(HideBeforeFile)'!$D$61:$Q$61,0)) ->  | D76: =INDEX('For Bill Impact(HideBeforeFile)'!$D$62:$Q$71,MATCH(C66,'For Bill Impact(HideBeforeFile)'!$C$62:$C$71,0),MATCH($O76,'For Bill Impact(HideBeforeFile)'!$D$61:$Q$61,0)) ->  | F76: =INDEX('For Bill Impact(HideBeforeFile)'!$D$6:$Q$15,MATCH(C66,'For Bill Impact(HideBeforeFile)'!$C$62:$C$71,0),MATCH($O76,'For Bill Impact(HideBeforeFile)'!$D$61:$Q$61,0)) ->  | H76: =INDEX('For Bill Impact(HideBeforeFile)'!$D$20:$Q$29,MATCH(C66,'For Bill Impact(HideBeforeFile)'!$C$62:$C$71,0),MATCH($O76,'For Bill Impact(HideBeforeFile)'!$D$61:$Q$61,0)) ->  | J76: =INDEX('For Bill Impact(HideBeforeFile)'!$D$34:$Q$43,MATCH(C66,'For Bill Impact(HideBeforeFile)'!$C$62:$C$71,0),MATCH($O76,'For Bill Impact(HideBeforeFile)'!$D$61:$Q$61,0)) ->  | O76: ='For Bill Impact(HideBeforeFile)'!$Q$5 -> Dist. Capacity Rate
C77: =INDEX('For Bill Impact(HideBeforeFile)'!$D$48:$Q$57,MATCH(C66,'For Bill Impact(HideBeforeFile)'!$C$62:$C$71,0),MATCH($O77,'For Bill Impact(HideBeforeFile)'!$D$61:$Q$61,0)) -> System Gas Charge | D77: =INDEX('For Bill Impact(HideBeforeFile)'!$D$62:$Q$71,MATCH(C66,'For Bill Impact(HideBeforeFile)'!$C$62:$C$71,0),MATCH($O77,'For Bill Impact(HideBeforeFile)'!$D$61:$Q$61,0)) -> cents / m3 | F77: =INDEX('For Bill Impact(HideBeforeFile)'!$D$6:$Q$15,MATCH(C66,'For Bill Impact(HideBeforeFile)'!$C$62:$C$71,0),MATCH($O77,'For Bill Impact(HideBeforeFile)'!$D$61:$Q$61,0)) -> 0.0435 | H77: =INDEX('For Bill Impact(HideBeforeFile)'!$D$20:$Q$29,MATCH(C66,'For Bill Impact(HideBeforeFile)'!$C$62:$C$71,0),MATCH($O77,'For Bill Impact(HideBeforeFile)'!$D$61:$Q$61,0)) -> 0.0435 | J77: =INDEX('For Bill Impact(HideBeforeFile)'!$D$34:$Q$43,MATCH(C66,'For Bill Impact(HideBeforeFile)'!$C$62:$C$71,0),MATCH($O77,'For Bill Impact(HideBeforeFile)'!$D$61:$Q$61,0)) -> 7085.144 | O77: ='For Bill Impact(HideBeforeFile)'!$E$5 -> System Gas
C79: =INDEX('For Bill Impact(HideBeforeFile)'!$D$48:$Q$57,MATCH(C66,'For Bill Impact(HideBeforeFile)'!$C$62:$C$71,0),MATCH($O79,'For Bill Impact(HideBeforeFile)'!$D$61:$Q$61,0)) -> REDA | D79: =INDEX('For Bill Impact(HideBeforeFile)'!$D$62:$Q$71,MATCH(C66,'For Bill Impact(HideBeforeFile)'!$C$62:$C$71,0),MATCH($O79,'For Bill Impact(HideBeforeFile)'!$D$61:$Q$61,0)) -> $ / month | F79: =INDEX('For Bill Impact(HideBeforeFile)'!$D$6:$Q$15,MATCH(C66,'For Bill Impact(HideBeforeFile)'!$C$62:$C$71,0),MATCH($O79,'For Bill Impact(HideBeforeFile)'!$D$61:$Q$61,0)) -> 0.78 | H79: =INDEX('For Bill Impact(HideBeforeFile)'!$D$20:$Q$29,MATCH(C66,'For Bill Impact(HideBeforeFile)'!$C$62:$C$71,0),MATCH($O79,'For Bill Impact(HideBeforeFile)'!$D$61:$Q$61,0)) -> 0.33 | J79: =INDEX('For Bill Impact(HideBeforeFile)'!$D$34:$Q$43,MATCH(C66,'For Bill Impact(HideBeforeFile)'!$C$62:$C$71,0),MATCH($O79,'For Bill Impact(HideBeforeFile)'!$D$61:$Q$61,0)) -> 5 | O79: =O23 -> REDA
C80: =INDEX('For Bill Impact(HideBeforeFile)'!$D$48:$Q$57,MATCH(C66,'For Bill Impact(HideBeforeFile)'!$C$62:$C$71,0),MATCH($O80,'For Bill Impact(HideBeforeFile)'!$D$61:$Q$61,0)) -> PGTVA | D80: =INDEX('For Bill Impact(HideBeforeFile)'!$D$62:$Q$71,MATCH(C66,'For Bill Impact(HideBeforeFile)'!$C$62:$C$71,0),MATCH($O80,'For Bill Impact(HideBeforeFile)'!$D$61:$Q$61,0)) -> cents / m3 | F80: =INDEX('For Bill Impact(HideBeforeFile)'!$D$6:$Q$15,MATCH(C66,'For Bill Impact(HideBeforeFile)'!$C$62:$C$71,0),MATCH($O80,'For Bill Impact(HideBeforeFile)'!$D$61:$Q$61,0)) -> 0.3113 | H80: =INDEX('For Bill Impact(HideBeforeFile)'!$D$20:$Q$29,MATCH(C66,'For Bill Impact(HideBeforeFile)'!$C$62:$C$71,0),MATCH($O80,'For Bill Impact(HideBeforeFile)'!$D$61:$Q$61,0)) -> 0.3194846212 | J80: =INDEX('For Bill Impact(HideBeforeFile)'!$D$34:$Q$43,MATCH(C66,'For Bill Impact(HideBeforeFile)'!$C$62:$C$71,0),MATCH($O80,'For Bill Impact(HideBeforeFile)'!$D$61:$Q$61,0)) -> 7085.144 | O80: =O24 -> PGTVA
C81: =INDEX('For Bill Impact(HideBeforeFile)'!$D$48:$Q$57,MATCH(C66,'For Bill Impact(HideBeforeFile)'!$C$62:$C$71,0),MATCH($O81,'For Bill Impact(HideBeforeFile)'!$D$61:$Q$61,0)) -> ADVADA | D81: =INDEX('For Bill Impact(HideBeforeFile)'!$D$62:$Q$71,MATCH(C66,'For Bill Impact(HideBeforeFile)'!$C$62:$C$71,0),MATCH($O81,'For Bill Impact(HideBeforeFile)'!$D$61:$Q$61,0)) -> cents / m3 | F81: =INDEX('For Bill Impact(HideBeforeFile)'!$D$6:$Q$15,MATCH(C66,'For Bill Impact(HideBeforeFile)'!$C$62:$C$71,0),MATCH($O81,'For Bill Impact(HideBeforeFile)'!$D$61:$Q$61,0)) -> 0.1508 | H81: =INDEX('For Bill Impact(HideBeforeFile)'!$D$20:$Q$29,MATCH(C66,'For Bill Impact(HideBeforeFile)'!$C$62:$C$71,0),MATCH($O81,'For Bill Impact(HideBeforeFile)'!$D$61:$Q$61,0)) -> 0 | J81: =INDEX('For Bill Impact(HideBeforeFile)'!$D$34:$Q$43,MATCH(C66,'For Bill Impact(HideBeforeFile)'!$C$62:$C$71,0),MATCH($O81,'For Bill Impact(HideBeforeFile)'!$D$61:$Q$61,0)) -> 7085.144 | O81: ADVADA
C82: =INDEX('For Bill Impact(HideBeforeFile)'!$D$48:$Q$57,MATCH(C66,'For Bill Impact(HideBeforeFile)'!$C$62:$C$71,0),MATCH($O82,'For Bill Impact(HideBeforeFile)'!$D$61:$Q$61,0)) -> LDMDA | D82: =INDEX('For Bill Impact(HideBeforeFile)'!$D$62:$Q$71,MATCH(C66,'For Bill Impact(HideBeforeFile)'!$C$62:$C$71,0),MATCH($O82,'For Bill Impact(HideBeforeFile)'!$D$61:$Q$61,0)) -> $ / month | F82: =INDEX('For Bill Impact(HideBeforeFile)'!$D$6:$Q$15,MATCH(C66,'For Bill Impact(HideBeforeFile)'!$C$62:$C$71,0),MATCH($O82,'For Bill Impact(HideBeforeFile)'!$D$61:$Q$61,0)) -> 0 | H82: =INDEX('For Bill Impact(HideBeforeFile)'!$D$20:$Q$29,MATCH(C66,'For Bill Impact(HideBeforeFile)'!$C$62:$C$71,0),MATCH($O82,'For Bill Impact(HideBeforeFile)'!$D$61:$Q$61,0)) -> 0 | J82: =INDEX('For Bill Impact(HideBeforeFile)'!$D$34:$Q$43,MATCH(C66,'For Bill Impact(HideBeforeFile)'!$C$62:$C$71,0),MATCH($O82,'For Bill Impact(HideBeforeFile)'!$D$61:$Q$61,0)) -> 5 | O82: LDMDA
C83: =INDEX('For Bill Impact(HideBeforeFile)'!$D$48:$Q$57,MATCH(C66,'For Bill Impact(HideBeforeFile)'!$C$62:$C$71,0),MATCH($O83,'For Bill Impact(HideBeforeFile)'!$D$61:$Q$61,0)) -> SICDA | D83: =INDEX('For Bill Impact(HideBeforeFile)'!$D$62:$Q$71,MATCH(C66,'For Bill Impact(HideBeforeFile)'!$C$62:$C$71,0),MATCH($O83,'For Bill Impact(HideBeforeFile)'!$D$61:$Q$61,0)) -> cents / m3 | F83: =INDEX('For Bill Impact(HideBeforeFile)'!$D$6:$Q$15,MATCH(C66,'For Bill Impact(HideBeforeFile)'!$C$62:$C$71,0),MATCH($O83,'For Bill Impact(HideBeforeFile)'!$D$61:$Q$61,0)) -> 0 | H83: =INDEX('For Bill Impact(HideBeforeFile)'!$D$20:$Q$29,MATCH(C66,'For Bill Impact(HideBeforeFile)'!$C$62:$C$71,0),MATCH($O83,'For Bill Impact(HideBeforeFile)'!$D$61:$Q$61,0)) -> 0.2372 | J83: =INDEX('For Bill Impact(HideBeforeFile)'!$D$34:$Q$43,MATCH(C66,'For Bill Impact(HideBeforeFile)'!$C$62:$C$71,0),MATCH($O83,'For Bill Impact(HideBeforeFile)'!$D$61:$Q$61,0)) -> 7085.144 | O83: SICDA
C85: =INDEX('For Bill Impact(HideBeforeFile)'!$D$48:$Q$57,MATCH(C66,'For Bill Impact(HideBeforeFile)'!$C$62:$C$71,0),MATCH($O85,'For Bill Impact(HideBeforeFile)'!$D$61:$Q$61,0)) -> Federal Carbon | D85: =INDEX('For Bill Impact(HideBeforeFile)'!$D$62:$Q$71,MATCH(C66,'For Bill Impact(HideBeforeFile)'!$C$62:$C$71,0),MATCH($O85,'For Bill Impact(HideBeforeFile)'!$D$61:$Q$61,0)) -> cents / m3 | F85: =INDEX('For Bill Impact(HideBeforeFile)'!$D$6:$Q$15,MATCH(C66,'For Bill Impact(HideBeforeFile)'!$C$62:$C$71,0),MATCH($O85,'For Bill Impact(HideBeforeFile)'!$D$61:$Q$61,0)) -> 7.83 | H85: =INDEX('For Bill Impact(HideBeforeFile)'!$D$20:$Q$29,MATCH(C66,'For Bill Impact(HideBeforeFile)'!$C$62:$C$71,0),MATCH($O85,'For Bill Impact(HideBeforeFile)'!$D$61:$Q$61,0)) -> 7.83 | J85: =INDEX('For Bill Impact(HideBeforeFile)'!$D$34:$Q$43,MATCH(C66,'For Bill Impact(HideBeforeFile)'!$C$62:$C$71,0),MATCH($O85,'For Bill Impact(HideBeforeFile)'!$D$61:$Q$61,0)) -> 7085.144 | O85: ='For Bill Impact(HideBeforeFile)'!$K$5 -> Federal Carbon
C86: =INDEX('For Bill Impact(HideBeforeFile)'!$D$48:$Q$57,MATCH(C66,'For Bill Impact(HideBeforeFile)'!$C$62:$C$71,0),MATCH($O86,'For Bill Impact(HideBeforeFile)'!$D$61:$Q$61,0)) -> Facility Carbon | D86: =INDEX('For Bill Impact(HideBeforeFile)'!$D$62:$Q$71,MATCH(C66,'For Bill Impact(HideBeforeFile)'!$C$62:$C$71,0),MATCH($O86,'For Bill Impact(HideBeforeFile)'!$D$61:$Q$61,0)) -> cents / m3 | F86: =INDEX('For Bill Impact(HideBeforeFile)'!$D$6:$Q$15,MATCH(C66,'For Bill Impact(HideBeforeFile)'!$C$62:$C$71,0),MATCH($O86,'For Bill Impact(HideBeforeFile)'!$D$61:$Q$61,0)) -> 0.0052 | H86: =INDEX('For Bill Impact(HideBeforeFile)'!$D$20:$Q$29,MATCH(C66,'For Bill Impact(HideBeforeFile)'!$C$62:$C$71,0),MATCH($O86,'For Bill Impact(HideBeforeFile)'!$D$61:$Q$61,0)) -> 0.0052 | J86: =INDEX('For Bill Impact(HideBeforeFile)'!$D$34:$Q$43,MATCH(C66,'For Bill Impact(HideBeforeFile)'!$C$62:$C$71,0),MATCH($O86,'For Bill Impact(HideBeforeFile)'!$D$61:$Q$61,0)) -> 7085.144 | O86: ='For Bill Impact(HideBeforeFile)'!$L$5 -> Facility Carbon
C89: Commodity | F89: Current | H89: Proposed | J89: Change $ | L89: Change %
F90: =F70*$J70/100 -> 939.6459676 | H90: =H70*$J70/100 -> 939.6459676 | J90: =H90-F90 -> 0 | L90: =IFERROR(J90/F90,"") -> 0
C92: Delivery | F92: Current Rate | H92: Proposed Rate | J92: Change $ | L92: Change %
C93: =IF(C72<>"",C72,"") -> Customer (excl. Bill 32) | F93: =F72*$J72 -> 100 | H93: =H72*$J72 -> 100 | J93: =IFERROR(H93-F93,"") -> 0 | L93: =IFERROR(J93/F93,"") -> 0
C94: Bill 32 | F94: =J72 -> 5 | H94: =J72 -> 5 | J94: =IFERROR(H94-F94,"") -> 0 | L94: =IFERROR(J94/F94,"") -> 0
C95: =IF(C73<>"",C73,"") -> Block 1 (First 1,000 m3 per month) | F95: =IFERROR(F73*$J73/100,"") -> 303.0719001 | H95: =IFERROR(H73*$J73/100,"") -> 312.9098241 | J95: =IFERROR(H95-F95,"") -> 9.837923977 | L95: =IFERROR(J95/F95,"") -> 0.03246069323
C96: =IF(C74<>"",C74,"") -> Block 2 (Next 24,000 m3 per month) | F96: =IFERROR(F74*$J74/100,"") -> 800.8525428 | H96: =IFERROR(H74*$J74/100,"") -> 826.8487716 | J96: 25.99622872 | L96: 0.03246069323
C97: =IF(C75<>"",C75,"") -> Block 3 (Over 25,000 m3 per month) | F97: =IFERROR(F75*$J75/100,"") -> 35.24302575 | H97: =IFERROR(H75*$J75/100,"") -> 36.3870388 | J97: 1.144013047 | L97: 0.03246069323
C98: =IF(C76<>"",C76,"") ->  | F98: =IFERROR(F76*$J76/100,"") ->  | H98: =IFERROR(H76*$J76/100,"") -> 
C99: =IF(C77<>"",C77,"") -> System Gas Charge | F99: =IFERROR(F77*$J77/100,"") -> 3.08203764 | H99: =IFERROR(H77*$J77/100,"") -> 3.08203764 | J99: 0 | L99: 0
C100: Total Delivery | F100: =SUM(F93:F99) -> 1247.249506 | H100: =SUM(H93:H99) -> 1284.227672 | J100: =H100-F100 -> 36.97816574 | L100: =IF(ISERROR(J100/F100),0,J100/F100) -> 0.0296477694
C102: Rate Riders
C104: Rate Riders | F104: Current Rate | H104: Proposed Rate | J104: Change $ | L104: Change %
C105: =C79 -> REDA | F105: =F79*$J79 -> 3.9 | H105: =H79*$J79 -> 1.65 | J105: =IFERROR(H105-F105,"") -> -2.25 | L105: =IFERROR(J105/F105,"") -> -0.5769230769
C106: =C80 -> PGTVA | F106: =IFERROR(F80*$J80/100,"") -> 22.05605327 | H106: =IFERROR(H80*$J80/100,"") -> 22.63594547 | J106: =IFERROR(H106-F106,"") -> 0.5798921959 | L106: =IFERROR(J106/F106,"") -> 0.02629174806
C107: =C81 -> ADVADA | F107: =IFERROR(F81*$J81/100,"") -> 10.68439715 | H107: =IFERROR(H81*$J81/100,"") -> 0 | J107: -10.68439715 | L107: -1
C108: LDMDA | F108: =IFERROR(F82*$J82/100,"") -> 0 | H108: =IFERROR(H82*$J82/100,"") -> 0 | J108: =IFERROR(H108-F108,"") -> 0
C109: SICDA | F109: =IFERROR(F83*$J83/100,"") -> 0 | H109: =IFERROR(H83*$J83/100,"") -> 16.80596157 | J109: =H109 -> 16.80596157
C110: Total Rate Riders | F110: =SUM(F105:F109) -> 36.64045042 | H110: =SUM(H105:H109) -> 41.09190704 | J110: =SUM(J105:J109) -> 4.451456612 | L110: =IF(ISERROR(J110/F110),0,J110/F110) -> 0.1214902262
C112: Carbon Tax
C113: Federal Carbon | F113: =F85*$J85/100 -> 554.7667752 | H113: =H85*$J85/100 -> 554.7667752 | J113: =IFERROR(H113-F113,"") -> 0 | L113: =IFERROR(J113/F113,"") -> 0
C114: Facility Carbon | F114: =F86*$J86/100 -> 0.368427488 | H114: =H86*$J86/100 -> 0.368427488 | J114: =IFERROR(H114-F114,"") -> 0 | L114: 0
C115: Total Carbon Tax | F115: =SUM(F113:F114) -> 555.1352027 | H115: =SUM(H113:H114) -> 555.1352027 | J115: =SUM(J113:J114) -> 0 | L115: =IF(ISERROR(J115/F115),0,J115/F115) -> 0
C117: Total Bill Impact | F117: =SUM(F90,F100,F110,F115) -> 2778.671127 | H117: =SUM(H90,H100,H110,H115) -> 2820.100749 | J117: =SUM(J90,J100,J110,J115) -> 41.42962236 | L117: =IFERROR(J117/F117,"") -> 0.01490986895
C120: =MID(CELL("filename",A57),FIND("]",CELL("filename",A57))+1,255) -> G1.2 Rate 2 Bill Impact
C122: RATE 2 - Seasonal Service - Annual
C124: Commodity | F124: Current | H124: Proposed | J124: Change $ | L124: Change %
F125: =F34+F90 -> 2093.66638 | H125: =H34+H90 -> 2093.66638 | J125: =H125-F125 -> 0 | L125: =IFERROR(J125/F125,"") -> 0
C127: Delivery | F127: Current Rate | H127: Proposed Rate | J127: Change $ | L127: Change %
C128: =C37 -> Customer (excl. Bill 32) | F128: =IFERROR(F37+F93,"") -> 240 | H128: =IFERROR(H37+H93,"") -> 240 | J128: =IFERROR(H128-F128,"") -> 0 | L128: =IFERROR(J128/F128,"") -> 0
C129: Bill 32 | F129: 12 | H129: 12 | J129: =IFERROR(H129-F129,"") -> 0 | L129: =IFERROR(J129/F129,"") -> 0
C130: =C39 -> Block 1 (First 1,000 m3 per month) | F130: 540.0755192 | H130: 557.606745 | J130: =IFERROR(H130-F130,"") -> 17.53122575 | L130: =IFERROR(J130/F130,"") -> 0.03246069323
C131: =C40 -> Block 2 (Next 24,000 m3 per month) | F131: 1385.789569 | H131: 1430.77326 | J131: 44.9836901 | L131: 0.03246069323
C132: =C41 -> Block 3 (Over 25,000 m3 per month) | F132: 85.29265632 | H132: 88.06131507 | J132: 2.768658752 | L132: 0.03246069323
C133: =C42 -> 
C134: =C43 -> System Gas Charge | F134: 6.8672232 | H134: 6.8672232 | J134: 0 | L134: 0
C135: Total Delivery | F135: =SUM(F128:F134) -> 2270.024968 | H135: =SUM(H128:H134) -> 2335.308543 | J135: =H135-F135 -> 65.2835746 | L135: =IF(ISERROR(J135/F135),0,J135/F135) -> 0.02875896764
C137: Rate Riders
C139: Rate Riders | F139: Current Rate | H139: Proposed Rate | J139: Change $ | L139: Change %
C140: =C105 -> REDA | F140: =IFERROR(F49+F105,"") -> 9.36 | H140: =IFERROR(H49+H105,"") -> 3.96 | J140: =IFERROR(H140-F140,"") -> -5.4 | L140: =IFERROR(J140/F140,"") -> -0.5769230769
C141: =C106 -> PGTVA | F141: =IFERROR(F50+F106,"") -> 49.14405936 | H141: =IFERROR(H50+H106,"") -> 50.43614259 | J141: =IFERROR(H141-F141,"") -> 1.292083227 | L141: =IFERROR(J141/F141,"") -> 0.02629174806
C142: ADVADA | F142: =IFERROR(F51+F107,"") -> 23.80637376 | H142: =IFERROR(H51+H107,"") -> 0 | J142: =H142 -> 0 | L142: 0
C143: LDMDA | F143: =IFERROR(F52+F108,"") -> 0 | H143: =IFERROR(H52+H108,"") -> 0 | J143: =IFERROR(H143-F143,"") -> 0
C144: SICDA | F144: =IFERROR(F53+F109,"") -> 0 | H144: =IFERROR(H53+H109,"") -> 37.44609984 | J144: =H144 -> 37.44609984
C145: Total Rate Riders | F145: =SUM(F140:F144) -> 82.31043312 | H145: =SUM(H140:H144) -> 91.84224243 | J145: =SUM(J140:J144) -> 33.33818307 | L145: =IF(ISERROR(J145/F145),0,J145/F145) -> 0.4050298584
C147: Carbon Tax
C148: Federal Carbon | F148: =IFERROR(F57+F113,"") -> 1236.100176 | H148: =IFERROR(H57+H113,"") -> 1236.100176 | J148: =IFERROR(H148-F148,"") -> 0 | L148: =IFERROR(J148/F148,"") -> 0
C149: Facility Carbon | F149: =IFERROR(F58+F114,"") -> 0.82090944 | H149: =IFERROR(H58+H114,"") -> 0.82090944 | J149: =IFERROR(H149-F149,"") -> 0 | L149: 0
C150: Total Carbon Tax | F150: =SUM(F148:F149) -> 1236.921085 | H150: =SUM(H148:H149) -> 1236.921085 | J150: =SUM(J148:J149) -> 0 | L150: =IF(ISERROR(J150/F150),0,J150/F150) -> 0
C152: Total Bill Impact | F152: =SUM(F125,F135,F145,F150) -> 5682.922867 | H152: =SUM(H125,H135,H145,H150) -> 5757.73825 | J152: =SUM(J125,J135,J145,J150) -> 98.62175767 | L152: =IFERROR(J152/F152,"") -> 0.0173540553
C155: =MID(CELL("filename",A113),FIND("]",CELL("filename",A113))+1,255) -> G1.2 Rate 2 Bill Impact

Sheet G1.3 Rate 3 Bill Impact
C2: ='A1.1 Distributor Information'!C3 -> Name of LDC: EPCOR Natural Gas Limited Partnership
C3: ='A1.1 Distributor Information'!C4 -> OEB Application Number: EB-2021-0215 Exhibit A - 2022 IRM Application
C7: Rate 3 Delivery Bill Impact
C10: ='For Bill Impact(HideBeforeFile)'!C11 -> RATE 3 - Special Large Volume Contract Rate | F10: Current | H10: Proposed | J10: Bill Determinant | O10: Look-up
C14: =INDEX('For Bill Impact(HideBeforeFile)'!$D$48:$Q$57,MATCH(C10,'For Bill Impact(HideBeforeFile)'!$C$62:$C$71,0),MATCH($O14,'For Bill Impact(HideBeforeFile)'!$D$61:$Q$61,0)) -> Commodity | D14: =INDEX('For Bill Impact(HideBeforeFile)'!$D$62:$Q$71,MATCH(C10,'For Bill Impact(HideBeforeFile)'!$C$62:$C$71,0),MATCH($O14,'For Bill Impact(HideBeforeFile)'!$D$61:$Q$61,0)) -> cents / m3 | F14: =INDEX('For Bill Impact(HideBeforeFile)'!$D$6:$Q$15,MATCH(C10,'For Bill Impact(HideBeforeFile)'!$C$62:$C$71,0),MATCH($O14,'For Bill Impact(HideBeforeFile)'!$D$61:$Q$61,0)) -> 13.2622 | H14: =INDEX('For Bill Impact(HideBeforeFile)'!$D$20:$Q$29,MATCH(C10,'For Bill Impact(HideBeforeFile)'!$C$62:$C$71,0),MATCH($O14,'For Bill Impact(HideBeforeFile)'!$D$61:$Q$61,0)) -> 13.2622 | J14: =INDEX('For Bill Impact(HideBeforeFile)'!$D$34:$Q$43,MATCH(C10,'For Bill Impact(HideBeforeFile)'!$C$62:$C$71,0),MATCH($O14,'For Bill Impact(HideBeforeFile)'!$D$61:$Q$61,0)) -> 218425.45 | O14: ='For Bill Impact(HideBeforeFile)'!$D$5 -> Commodity
C16: =INDEX('For Bill Impact(HideBeforeFile)'!$D$48:$Q$57,MATCH(C10,'For Bill Impact(HideBeforeFile)'!$C$62:$C$71,0),MATCH($O16,'For Bill Impact(HideBeforeFile)'!$D$61:$Q$61,0)) -> Customer (excl. Bill 32) | D16: =INDEX('For Bill Impact(HideBeforeFile)'!$D$62:$Q$71,MATCH(C10,'For Bill Impact(HideBeforeFile)'!$C$62:$C$71,0),MATCH($O16,'For Bill Impact(HideBeforeFile)'!$D$61:$Q$61,0)) -> $ / month | F16: =INDEX('For Bill Impact(HideBeforeFile)'!$D$6:$Q$15,MATCH(C10,'For Bill Impact(HideBeforeFile)'!$C$62:$C$71,0),MATCH($O16,'For Bill Impact(HideBeforeFile)'!$D$61:$Q$61,0)) -> 200 | H16: =INDEX('For Bill Impact(HideBeforeFile)'!$D$20:$Q$29,MATCH(C10,'For Bill Impact(HideBeforeFile)'!$C$62:$C$71,0),MATCH($O16,'For Bill Impact(HideBeforeFile)'!$D$61:$Q$61,0)) -> 200 | J16: =INDEX('For Bill Impact(HideBeforeFile)'!$D$34:$Q$43,MATCH(C10,'For Bill Impact(HideBeforeFile)'!$C$62:$C$71,0),MATCH($O16,'For Bill Impact(HideBeforeFile)'!$D$61:$Q$61,0)) -> 12 | O16: ='For Bill Impact(HideBeforeFile)'!$M$5 -> Dist. Customer Rate
C17: =INDEX('For Bill Impact(HideBeforeFile)'!$D$48:$Q$57,MATCH(C10,'For Bill Impact(HideBeforeFile)'!$C$62:$C$71,0),MATCH($O17,'For Bill Impact(HideBeforeFile)'!$D$61:$Q$61,0)) -> Delivery - Firm | D17: =INDEX('For Bill Impact(HideBeforeFile)'!$D$62:$Q$71,MATCH(C10,'For Bill Impact(HideBeforeFile)'!$C$62:$C$71,0),MATCH($O17,'For Bill Impact(HideBeforeFile)'!$D$61:$Q$61,0)) -> cents / m3 | F17: =INDEX('For Bill Impact(HideBeforeFile)'!$D$6:$Q$15,MATCH(C10,'For Bill Impact(HideBeforeFile)'!$C$62:$C$71,0),MATCH($O17,'For Bill Impact(HideBeforeFile)'!$D$61:$Q$61,0)) -> 3.9173 | H17: =INDEX('For Bill Impact(HideBeforeFile)'!$D$20:$Q$29,MATCH(C10,'For Bill Impact(HideBeforeFile)'!$C$62:$C$71,0),MATCH($O17,'For Bill Impact(HideBeforeFile)'!$D$61:$Q$61,0)) -> 4.044497323 | J17: =INDEX('For Bill Impact(HideBeforeFile)'!$D$34:$Q$43,MATCH(C10,'For Bill Impact(HideBeforeFile)'!$C$62:$C$71,0),MATCH($O17,'For Bill Impact(HideBeforeFile)'!$D$61:$Q$61,0)) -> 218425.45 | O17: ='For Bill Impact(HideBeforeFile)'!$N$5 -> Dist. Vol. Rate Tier 1
C18: =INDEX('For Bill Impact(HideBeforeFile)'!$D$48:$Q$57,MATCH(C10,'For Bill Impact(HideBeforeFile)'!$C$62:$C$71,0),MATCH($O18,'For Bill Impact(HideBeforeFile)'!$D$61:$Q$61,0)) ->  | D18: =INDEX('For Bill Impact(HideBeforeFile)'!$D$62:$Q$71,MATCH(C10,'For Bill Impact(HideBeforeFile)'!$C$62:$C$71,0),MATCH($O18,'For Bill Impact(HideBeforeFile)'!$D$61:$Q$61,0)) ->  | F18: =INDEX('For Bill Impact(HideBeforeFile)'!$D$6:$Q$15,MATCH(C10,'For Bill Impact(HideBeforeFile)'!$C$62:$C$71,0),MATCH($O18,'For Bill Impact(HideBeforeFile)'!$D$61:$Q$61,0)) ->  | H18: =INDEX('For Bill Impact(HideBeforeFile)'!$D$20:$Q$29,MATCH(C10,'For Bill Impact(HideBeforeFile)'!$C$62:$C$71,0),MATCH($O18,'For Bill Impact(HideBeforeFile)'!$D$61:$Q$61,0)) ->  | J18: =INDEX('For Bill Impact(HideBeforeFile)'!$D$34:$Q$43,MATCH(C10,'For Bill Impact(HideBeforeFile)'!$C$62:$C$71,0),MATCH($O18,'For Bill Impact(HideBeforeFile)'!$D$61:$Q$61,0)) ->  | O18: ='For Bill Impact(HideBeforeFile)'!$O$5 -> Dist. Vol. Rate Tier 2
C19: =INDEX('For Bill Impact(HideBeforeFile)'!$D$48:$Q$57,MATCH(C10,'For Bill Impact(HideBeforeFile)'!$C$62:$C$71,0),MATCH($O19,'For Bill Impact(HideBeforeFile)'!$D$61:$Q$61,0)) ->  | D19: =INDEX('For Bill Impact(HideBeforeFile)'!$D$62:$Q$71,MATCH(C10,'For Bill Impact(HideBeforeFile)'!$C$62:$C$71,0),MATCH($O19,'For Bill Impact(HideBeforeFile)'!$D$61:$Q$61,0)) ->  | F19: =INDEX('For Bill Impact(HideBeforeFile)'!$D$6:$Q$15,MATCH(C10,'For Bill Impact(HideBeforeFile)'!$C$62:$C$71,0),MATCH($O19,'For Bill Impact(HideBeforeFile)'!$D$61:$Q$61,0)) ->  | H19: =INDEX('For Bill Impact(HideBeforeFile)'!$D$20:$Q$29,MATCH(C10,'For Bill Impact(HideBeforeFile)'!$C$62:$C$71,0),MATCH($O19,'For Bill Impact(HideBeforeFile)'!$D$61:$Q$61,0)) ->  | J19: =INDEX('For Bill Impact(HideBeforeFile)'!$D$34:$Q$43,MATCH(C10,'For Bill Impact(HideBeforeFile)'!$C$62:$C$71,0),MATCH($O19,'For Bill Impact(HideBeforeFile)'!$D$61:$Q$61,0)) ->  | O19: ='For Bill Impact(HideBeforeFile)'!$P$5 -> Dist. Vol. Rate Tier 3
C20: =INDEX('For Bill Impact(HideBeforeFile)'!$D$48:$Q$57,MATCH(C10,'For Bill Impact(HideBeforeFile)'!$C$62:$C$71,0),MATCH($O20,'For Bill Impact(HideBeforeFile)'!$D$61:$Q$61,0)) -> Demand - Firm | D20: =INDEX('For Bill Impact(HideBeforeFile)'!$D$62:$Q$71,MATCH(C10,'For Bill Impact(HideBeforeFile)'!$C$62:$C$71,0),MATCH($O20,'For Bill Impact(HideBeforeFile)'!$D$61:$Q$61,0)) -> cents / m3 | F20: =INDEX('For Bill Impact(HideBeforeFile)'!$D$6:$Q$15,MATCH(C10,'For Bill Impact(HideBeforeFile)'!$C$62:$C$71,0),MATCH($O20,'For Bill Impact(HideBeforeFile)'!$D$61:$Q$61,0)) -> 29.6806 | H20: =INDEX('For Bill Impact(HideBeforeFile)'!$D$20:$Q$29,MATCH(C10,'For Bill Impact(HideBeforeFile)'!$C$62:$C$71,0),MATCH($O20,'For Bill Impact(HideBeforeFile)'!$D$61:$Q$61,0)) -> 30.64434872 | J20: =INDEX('For Bill Impact(HideBeforeFile)'!$D$34:$Q$43,MATCH(C10,'For Bill Impact(HideBeforeFile)'!$C$62:$C$71,0),MATCH($O20,'For Bill Impact(HideBeforeFile)'!$D$61:$Q$61,0)) -> 38737.2 | O20: ='For Bill Impact(HideBeforeFile)'!$Q$5 -> Dist. Capacity Rate
C21: =INDEX('For Bill Impact(HideBeforeFile)'!$D$48:$Q$57,MATCH(C10,'For Bill Impact(HideBeforeFile)'!$C$62:$C$71,0),MATCH($O21,'For Bill Impact(HideBeforeFile)'!$D$61:$Q$61,0)) -> System Gas Charge | D21: =INDEX('For Bill Impact(HideBeforeFile)'!$D$62:$Q$71,MATCH(C10,'For Bill Impact(HideBeforeFile)'!$C$62:$C$71,0),MATCH($O21,'For Bill Impact(HideBeforeFile)'!$D$61:$Q$61,0)) -> cents / m3 | F21: =INDEX('For Bill Impact(HideBeforeFile)'!$D$6:$Q$15,MATCH(C10,'For Bill Impact(HideBeforeFile)'!$C$62:$C$71,0),MATCH($O21,'For Bill Impact(HideBeforeFile)'!$D$61:$Q$61,0)) -> 0.0435 | H21: =INDEX('For Bill Impact(HideBeforeFile)'!$D$20:$Q$29,MATCH(C10,'For Bill Impact(HideBeforeFile)'!$C$62:$C$71,0),MATCH($O21,'For Bill Impact(HideBeforeFile)'!$D$61:$Q$61,0)) -> 0.0435 | J21: =INDEX('For Bill Impact(HideBeforeFile)'!$D$34:$Q$43,MATCH(C10,'For Bill Impact(HideBeforeFile)'!$C$62:$C$71,0),MATCH($O21,'For Bill Impact(HideBeforeFile)'!$D$61:$Q$61,0)) -> 218425.45 | O21: ='For Bill Impact(HideBeforeFile)'!$E$5 -> System Gas
C23: =INDEX('For Bill Impact(HideBeforeFile)'!$D$48:$Q$57,MATCH(C10,'For Bill Impact(HideBeforeFile)'!$C$62:$C$71,0),MATCH($O23,'For Bill Impact(HideBeforeFile)'!$D$61:$Q$61,0)) -> REDA | D23: =INDEX('For Bill Impact(HideBeforeFile)'!$D$62:$Q$71,MATCH(C10,'For Bill Impact(HideBeforeFile)'!$C$62:$C$71,0),MATCH($O23,'For Bill Impact(HideBeforeFile)'!$D$61:$Q$61,0)) -> $ / month | F23: =INDEX('For Bill Impact(HideBeforeFile)'!$D$6:$Q$15,MATCH(C10,'For Bill Impact(HideBeforeFile)'!$C$62:$C$71,0),MATCH($O23,'For Bill Impact(HideBeforeFile)'!$D$61:$Q$61,0)) -> 0.78 | H23: =INDEX('For Bill Impact(HideBeforeFile)'!$D$20:$Q$29,MATCH(C10,'For Bill Impact(HideBeforeFile)'!$C$62:$C$71,0),MATCH($O23,'For Bill Impact(HideBeforeFile)'!$D$61:$Q$61,0)) -> 0.33 | J23: =INDEX('For Bill Impact(HideBeforeFile)'!$D$34:$Q$43,MATCH(C10,'For Bill Impact(HideBeforeFile)'!$C$62:$C$71,0),MATCH($O23,'For Bill Impact(HideBeforeFile)'!$D$61:$Q$61,0)) -> 12 | O23: ='For Bill Impact(HideBeforeFile)'!$F$5 -> REDA
C24: =INDEX('For Bill Impact(HideBeforeFile)'!$D$48:$Q$57,MATCH(C10,'For Bill Impact(HideBeforeFile)'!$C$62:$C$71,0),MATCH($O24,'For Bill Impact(HideBeforeFile)'!$D$61:$Q$61,0)) -> PGTVA | D24: =INDEX('For Bill Impact(HideBeforeFile)'!$D$62:$Q$71,MATCH(C10,'For Bill Impact(HideBeforeFile)'!$C$62:$C$71,0),MATCH($O24,'For Bill Impact(HideBeforeFile)'!$D$61:$Q$61,0)) -> cents / m3 | F24: =INDEX('For Bill Impact(HideBeforeFile)'!$D$6:$Q$15,MATCH(C10,'For Bill Impact(HideBeforeFile)'!$C$62:$C$71,0),MATCH($O24,'For Bill Impact(HideBeforeFile)'!$D$61:$Q$61,0)) -> 0.3113 | H24: =INDEX('For Bill Impact(HideBeforeFile)'!$D$20:$Q$29,MATCH(C10,'For Bill Impact(HideBeforeFile)'!$C$62:$C$71,0),MATCH($O24,'For Bill Impact(HideBeforeFile)'!$D$61:$Q$61,0)) -> 0.3194846212 | J24: =INDEX('For Bill Impact(HideBeforeFile)'!$D$34:$Q$43,MATCH(C10,'For Bill Impact(HideBeforeFile)'!$C$62:$C$71,0),MATCH($O24,'For Bill Impact(HideBeforeFile)'!$D$61:$Q$61,0)) -> 218425.45 | O24: ='For Bill Impact(HideBeforeFile)'!$G$5 -> PGTVA
C25: =INDEX('For Bill Impact(HideBeforeFile)'!$D$48:$Q$57,MATCH(C10,'For Bill Impact(HideBeforeFile)'!$C$62:$C$71,0),MATCH($O25,'For Bill Impact(HideBeforeFile)'!$D$61:$Q$61,0)) -> ADVADA | D25: =INDEX('For Bill Impact(HideBeforeFile)'!$D$62:$Q$71,MATCH(C10,'For Bill Impact(HideBeforeFile)'!$C$62:$C$71,0),MATCH($O25,'For Bill Impact(HideBeforeFile)'!$D$61:$Q$61,0)) -> cents / m3 | F25: =INDEX('For Bill Impact(HideBeforeFile)'!$D$6:$Q$15,MATCH(C10,'For Bill Impact(HideBeforeFile)'!$C$62:$C$71,0),MATCH($O25,'For Bill Impact(HideBeforeFile)'!$D$61:$Q$61,0)) -> 0.1508 | H25: =INDEX('For Bill Impact(HideBeforeFile)'!$D$20:$Q$29,MATCH(C10,'For Bill Impact(HideBeforeFile)'!$C$62:$C$71,0),MATCH($O25,'For Bill Impact(HideBeforeFile)'!$D$61:$Q$61,0)) -> 0 | J25: =INDEX('For Bill Impact(HideBeforeFile)'!$D$34:$Q$43,MATCH(C10,'For Bill Impact(HideBeforeFile)'!$C$62:$C$71,0),MATCH($O25,'For Bill Impact(HideBeforeFile)'!$D$61:$Q$61,0)) -> 218425.45 | O25: ='For Bill Impact(HideBeforeFile)'!$H$5 -> ADVADA
C26: =INDEX('For Bill Impact(HideBeforeFile)'!$D$48:$Q$57,MATCH(C10,'For Bill Impact(HideBeforeFile)'!$C$62:$C$71,0),MATCH($O26,'For Bill Impact(HideBeforeFile)'!$D$61:$Q$61,0)) -> LDMDA | D26: =INDEX('For Bill Impact(HideBeforeFile)'!$D$62:$Q$71,MATCH(C10,'For Bill Impact(HideBeforeFile)'!$C$62:$C$71,0),MATCH($O26,'For Bill Impact(HideBeforeFile)'!$D$61:$Q$61,0)) -> $ / month | F26: =INDEX('For Bill Impact(HideBeforeFile)'!$D$6:$Q$15,MATCH(C10,'For Bill Impact(HideBeforeFile)'!$C$62:$C$71,0),MATCH($O26,'For Bill Impact(HideBeforeFile)'!$D$61:$Q$61,0)) -> 0 | H26: =INDEX('For Bill Impact(HideBeforeFile)'!$D$20:$Q$29,MATCH(C10,'For Bill Impact(HideBeforeFile)'!$C$62:$C$71,0),MATCH($O26,'For Bill Impact(HideBeforeFile)'!$D$61:$Q$61,0)) -> 0 | J26: =INDEX('For Bill Impact(HideBeforeFile)'!$D$34:$Q$43,MATCH(C10,'For Bill Impact(HideBeforeFile)'!$C$62:$C$71,0),MATCH($O26,'For Bill Impact(HideBeforeFile)'!$D$61:$Q$61,0)) -> 12 | O26: LDMDA
C27: =INDEX('For Bill Impact(HideBeforeFile)'!$D$48:$Q$57,MATCH(C10,'For Bill Impact(HideBeforeFile)'!$C$62:$C$71,0),MATCH($O27,'For Bill Impact(HideBeforeFile)'!$D$61:$Q$61,0)) -> SICDA | D27: =INDEX('For Bill Impact(HideBeforeFile)'!$D$62:$Q$71,MATCH(C10,'For Bill Impact(HideBeforeFile)'!$C$62:$C$71,0),MATCH($O27,'For Bill Impact(HideBeforeFile)'!$D$61:$Q$61,0)) -> cents / m3 | F27: =INDEX('For Bill Impact(HideBeforeFile)'!$D$6:$Q$15,MATCH(C10,'For Bill Impact(HideBeforeFile)'!$C$62:$C$71,0),MATCH($O27,'For Bill Impact(HideBeforeFile)'!$D$61:$Q$61,0)) -> 0 | H27: =INDEX('For Bill Impact(HideBeforeFile)'!$D$20:$Q$29,MATCH(C10,'For Bill Impact(HideBeforeFile)'!$C$62:$C$71,0),MATCH($O27,'For Bill Impact(HideBeforeFile)'!$D$61:$Q$61,0)) -> 0.2372 | J27: =INDEX('For Bill Impact(HideBeforeFile)'!$D$34:$Q$43,MATCH(C10,'For Bill Impact(HideBeforeFile)'!$C$62:$C$71,0),MATCH($O27,'For Bill Impact(HideBeforeFile)'!$D$61:$Q$61,0)) -> 218425.45 | O27: SICDA
C29: =INDEX('For Bill Impact(HideBeforeFile)'!$D$48:$Q$57,MATCH(C10,'For Bill Impact(HideBeforeFile)'!$C$62:$C$71,0),MATCH($O29,'For Bill Impact(HideBeforeFile)'!$D$61:$Q$61,0)) -> Federal Carbon | D29: =INDEX('For Bill Impact(HideBeforeFile)'!$D$62:$Q$71,MATCH(C10,'For Bill Impact(HideBeforeFile)'!$C$62:$C$71,0),MATCH($O29,'For Bill Impact(HideBeforeFile)'!$D$61:$Q$61,0)) -> cents / m3 | F29: =INDEX('For Bill Impact(HideBeforeFile)'!$D$6:$Q$15,MATCH(C10,'For Bill Impact(HideBeforeFile)'!$C$62:$C$71,0),MATCH($O29,'For Bill Impact(HideBeforeFile)'!$D$61:$Q$61,0)) -> 7.83 | H29: =INDEX('For Bill Impact(HideBeforeFile)'!$D$20:$Q$29,MATCH(C10,'For Bill Impact(HideBeforeFile)'!$C$62:$C$71,0),MATCH($O29,'For Bill Impact(HideBeforeFile)'!$D$61:$Q$61,0)) -> 7.83 | J29: =INDEX('For Bill Impact(HideBeforeFile)'!$D$34:$Q$43,MATCH(C10,'For Bill Impact(HideBeforeFile)'!$C$62:$C$71,0),MATCH($O29,'For Bill Impact(HideBeforeFile)'!$D$61:$Q$61,0)) -> 218425.45 | O29: ='For Bill Impact(HideBeforeFile)'!$K$5 -> Federal Carbon
C30: =INDEX('For Bill Impact(HideBeforeFile)'!$D$48:$Q$57,MATCH(C10,'For Bill Impact(HideBeforeFile)'!$C$62:$C$71,0),MATCH($O30,'For Bill Impact(HideBeforeFile)'!$D$61:$Q$61,0)) -> Facility Carbon | D30: =INDEX('For Bill Impact(HideBeforeFile)'!$D$62:$Q$71,MATCH(C10,'For Bill Impact(HideBeforeFile)'!$C$62:$C$71,0),MATCH($O30,'For Bill Impact(HideBeforeFile)'!$D$61:$Q$61,0)) -> cents / m3 | F30: =INDEX('For Bill Impact(HideBeforeFile)'!$D$6:$Q$15,MATCH(C10,'For Bill Impact(HideBeforeFile)'!$C$62:$C$71,0),MATCH($O30,'For Bill Impact(HideBeforeFile)'!$D$61:$Q$61,0)) -> 0.0052 | H30: =INDEX('For Bill Impact(HideBeforeFile)'!$D$20:$Q$29,MATCH(C10,'For Bill Impact(HideBeforeFile)'!$C$62:$C$71,0),MATCH($O30,'For Bill Impact(HideBeforeFile)'!$D$61:$Q$61,0)) -> 0.0052 | J30: =INDEX('For Bill Impact(HideBeforeFile)'!$D$34:$Q$43,MATCH(C10,'For Bill Impact(HideBeforeFile)'!$C$62:$C$71,0),MATCH($O30,'For Bill Impact(HideBeforeFile)'!$D$61:$Q$61,0)) -> 218425.45 | O30: ='For Bill Impact(HideBeforeFile)'!$L$5 -> Facility Carbon
C33: Commodity | F33: Current | H33: Proposed | J33: Change $ | L33: Change %
F34: =F14*$J14/100 -> 28968.02003 | H34: =H14*$J14/100 -> 28968.02003 | J34: =H34-F34 -> 0 | L34: =IFERROR(J34/F34,"") -> 0 | O34: ='For Bill Impact(HideBeforeFile)'!$D$5 -> Commodity
C36: Delivery | F36: Current Rate | H36: Proposed Rate | J36: Change $ | L36: Change %
C37: =IF(C16<>"",C16,"") -> Customer (excl. Bill 32) | F37: =F16*$J16 -> 2400 | H37: =H16*$J16 -> 2400 | J37: =IFERROR(H37-F37,"") -> 0 | L37: =IFERROR(J37/F37,"") -> 0 | O37: ='For Bill Impact(HideBeforeFile)'!$M$5 -> Dist. Customer Rate
C38: Bill 32 | F38: =J16 -> 12 | H38: =J16 -> 12 | J38: =IFERROR(H38-F38,"") -> 0 | L38: =IFERROR(J38/F38,"") -> 0
C39: =IF(C17<>"",C17,"") -> Delivery - Firm | F39: =IFERROR(F17*$J17/100,"") -> 8556.380153 | H39: =IFERROR(H17*$J17/100,"") -> 8834.211477 | J39: =IFERROR(H39-F39,"") -> 277.8313242 | L39: =IFERROR(J39/F39,"") -> 0.03247066157 | O39: ='For Bill Impact(HideBeforeFile)'!$N$5 -> Dist. Vol. Rate Tier 1
C40: =IF(C18<>"",C18,"") ->  | F40: =IFERROR(F18*$J18/100,"") ->  | H40: =IFERROR(H18*$J18/100,"") ->  | O40: ='For Bill Impact(HideBeforeFile)'!$O$5 -> Dist. Vol. Rate Tier 2
C41: =IF(C19<>"",C19,"") ->  | F41: =IFERROR(F19*$J19/100,"") ->  | H41: =IFERROR(H19*$J19/100,"") ->  | O41: ='For Bill Impact(HideBeforeFile)'!$P$5 -> Dist. Vol. Rate Tier 3
C42: =IF(C20<>"",C20,"") -> Demand - Firm | F42: =IFERROR(F20*$J20/100,"") -> 11497.43338 | H42: =IFERROR(H20*$J20/100,"") -> 11870.76265 | J42: 373.3292683 | L42: 0.03247066157 | O42: ='For Bill Impact(HideBeforeFile)'!$Q$5 -> Dist. Capacity Rate
C43: =IF(C21<>"",C21,"") -> System Gas Charge | F43: =IFERROR(F21*$J21/100,"") -> 95.01507075 | H43: =IFERROR(H21*$J21/100,"") -> 95.01507075 | J43: 0 | L43: 0 | O43: ='For Bill Impact(HideBeforeFile)'!$E$5 -> System Gas
C44: Total Delivery | F44: =SUM(F37:F43) -> 22560.82861 | H44: =SUM(H37:H43) -> 23211.9892 | J44: =H44-F44 -> 651.1605925 | L44: =IF(ISERROR(J44/F44),0,J44/F44) -> 0.02886244135
C46: Rate Riders
C48: Rate Riders | F48: Current Rate | H48: Proposed Rate | J48: Change $ | L48: Change %
C49: =C23 -> REDA | F49: =F23*$J23 -> 9.36 | H49: =H23*$J23 -> 3.96 | J49: =IFERROR(H49-F49,"") -> -5.4 | L49: =IFERROR(J49/F49,"") -> -0.5769230769 | O49: ='For Bill Impact(HideBeforeFile)'!$F$5 -> REDA
C50: =C24 -> PGTVA | F50: =IFERROR(F24*$J24/100,"") -> 679.9584259 | H50: =IFERROR(H24*$J24/100,"") -> 697.8357215 | J50: =IFERROR(H50-F50,"") -> 17.87729563 | L50: =IFERROR(J50/F50,"") -> 0.02629174806 | O50: ='For Bill Impact(HideBeforeFile)'!$G$5 -> PGTVA
C51: ADVADA | F51: =IFERROR(F25*$J25/100,"") -> 329.3855786 | H51: =IFERROR(H25*$J25/100,"") -> 0 | J51: -329.3855786 | L51: -1 | O51: ='For Bill Impact(HideBeforeFile)'!$H$5 -> ADVADA
C52: LDMDA | F52: =IFERROR(F26*$J26/100,"") -> 0 | H52: =H26*$J26 -> 0 | J52: =IFERROR(H52-F52,"") -> 0 | O52: ='For Bill Impact(HideBeforeFile)'!$I$5 -> LDMDA
C53: SICDA | F53: =IFERROR(F27*$J27/100,"") -> 0 | H53: =IFERROR(H27*$J27/100,"") -> 518.1051674 | J53: =H53 -> 518.1051674 | O53: ='For Bill Impact(HideBeforeFile)'!$J$5 -> SICDA
C54: Total Rate Riders | F54: =SUM(F49:F53) -> 1018.704004 | H54: =SUM(H49:H53) -> 1219.900889 | J54: =SUM(J49:J53) -> 201.1968844 | L54: =IF(ISERROR(J54/F54),0,J54/F54) -> 0.1975027913
C56: Carbon Tax
C57: Federal Carbon | F57: =F29*$J29/100 -> 17102.71273 | H57: =H29*$J29/100 -> 17102.71273 | J57: =IFERROR(H57-F57,"") -> 0 | L57: =IFERROR(J57/F57,"") -> 0
C58: Facility Carbon | F58: =F30*$J30/100 -> 11.3581234 | H58: =H30*$J30/100 -> 11.3581234 | J58: =IFERROR(H58-F58,"") -> 0 | L58: 0
C59: Total Carbon Tax | F59: =SUM(F57:F58) -> 17114.07086 | H59: =SUM(H57:H58) -> 17114.07086 | J59: =SUM(J57:J58) -> 0 | L59: =IF(ISERROR(J59/F59),0,J59/F59) -> 0
C61: Total Bill Impact | F61: =SUM(F34,F44,F54,F59) -> 69661.6235 | H61: =SUM(H34,H44,H54,H59) -> 70513.98098 | J61: =SUM(J34,J44,J54,J59) -> 852.357477 | L61: =IFERROR(J61/F61,"") -> 0.01223568206
C64: =MID(CELL("filename",A1),FIND("]",CELL("filename",A1))+1,255) -> G1.3 Rate 3 Bill Impact

Sheet G1.4 Rate 4 Bill Impact
C2: ='A1.1 Distributor Information'!C3 -> Name of LDC: EPCOR Natural Gas Limited Partnership
C3: ='A1.1 Distributor Information'!C4 -> OEB Application Number: EB-2021-0215 Exhibit A - 2022 IRM Application
C7: Rate 4 Delivery Bill Impact
C10: ='For Bill Impact(HideBeforeFile)'!C12 -> RATE 4 - General Service Peaking - Apr to Dec | F10: Current | H10: Proposed | J10: Bill Determinant | O10: Look-up
C14: =INDEX('For Bill Impact(HideBeforeFile)'!$D$48:$Q$57,MATCH(C10,'For Bill Impact(HideBeforeFile)'!$C$62:$C$71,0),MATCH($O14,'For Bill Impact(HideBeforeFile)'!$D$61:$Q$61,0)) -> Commodity | D14: =INDEX('For Bill Impact(HideBeforeFile)'!$D$62:$Q$71,MATCH(C10,'For Bill Impact(HideBeforeFile)'!$C$62:$C$71,0),MATCH($O14,'For Bill Impact(HideBeforeFile)'!$D$61:$Q$61,0)) -> cents / m3 | F14: =INDEX('For Bill Impact(HideBeforeFile)'!$D$6:$Q$15,MATCH(C10,'For Bill Impact(HideBeforeFile)'!$C$62:$C$71,0),MATCH($O14,'For Bill Impact(HideBeforeFile)'!$D$61:$Q$61,0)) -> 13.2622 | H14: =INDEX('For Bill Impact(HideBeforeFile)'!$D$20:$Q$29,MATCH(C10,'For Bill Impact(HideBeforeFile)'!$C$62:$C$71,0),MATCH($O14,'For Bill Impact(HideBeforeFile)'!$D$61:$Q$61,0)) -> 13.2622 | J14: =INDEX('For Bill Impact(HideBeforeFile)'!$D$34:$Q$43,MATCH(C10,'For Bill Impact(HideBeforeFile)'!$C$62:$C$71,0),MATCH($O14,'For Bill Impact(HideBeforeFile)'!$D$61:$Q$61,0)) -> 32886.27317 | O14: ='For Bill Impact(HideBeforeFile)'!$D$5 -> Commodity
C16: =INDEX('For Bill Impact(HideBeforeFile)'!$D$48:$Q$57,MATCH(C10,'For Bill Impact(HideBeforeFile)'!$C$62:$C$71,0),MATCH($O16,'For Bill Impact(HideBeforeFile)'!$D$61:$Q$61,0)) -> Customer (excl. Bill 32) | D16: =INDEX('For Bill Impact(HideBeforeFile)'!$D$62:$Q$71,MATCH(C10,'For Bill Impact(HideBeforeFile)'!$C$62:$C$71,0),MATCH($O16,'For Bill Impact(HideBeforeFile)'!$D$61:$Q$61,0)) -> $ / month | F16: =INDEX('For Bill Impact(HideBeforeFile)'!$D$6:$Q$15,MATCH(C10,'For Bill Impact(HideBeforeFile)'!$C$62:$C$71,0),MATCH($O16,'For Bill Impact(HideBeforeFile)'!$D$61:$Q$61,0)) -> 20 | H16: =INDEX('For Bill Impact(HideBeforeFile)'!$D$20:$Q$29,MATCH(C10,'For Bill Impact(HideBeforeFile)'!$C$62:$C$71,0),MATCH($O16,'For Bill Impact(HideBeforeFile)'!$D$61:$Q$61,0)) -> 20 | J16: =INDEX('For Bill Impact(HideBeforeFile)'!$D$34:$Q$43,MATCH(C10,'For Bill Impact(HideBeforeFile)'!$C$62:$C$71,0),MATCH($O16,'For Bill Impact(HideBeforeFile)'!$D$61:$Q$61,0)) -> 9 | O16: ='For Bill Impact(HideBeforeFile)'!$M$5 -> Dist. Customer Rate
C17: =INDEX('For Bill Impact(HideBeforeFile)'!$D$48:$Q$57,MATCH(C10,'For Bill Impact(HideBeforeFile)'!$C$62:$C$71,0),MATCH($O17,'For Bill Impact(HideBeforeFile)'!$D$61:$Q$61,0)) -> Block 1 (First 1,000 m3 per month) | D17: =INDEX('For Bill Impact(HideBeforeFile)'!$D$62:$Q$71,MATCH(C10,'For Bill Impact(HideBeforeFile)'!$C$62:$C$71,0),MATCH($O17,'For Bill Impact(HideBeforeFile)'!$D$61:$Q$61,0)) -> cents / m3 | F17: =INDEX('For Bill Impact(HideBeforeFile)'!$D$6:$Q$15,MATCH(C10,'For Bill Impact(HideBeforeFile)'!$C$62:$C$71,0),MATCH($O17,'For Bill Impact(HideBeforeFile)'!$D$61:$Q$61,0)) -> 18.9314 | H17: =INDEX('For Bill Impact(HideBeforeFile)'!$D$20:$Q$29,MATCH(C10,'For Bill Impact(HideBeforeFile)'!$C$62:$C$71,0),MATCH($O17,'For Bill Impact(HideBeforeFile)'!$D$61:$Q$61,0)) -> 19.50254777 | J17: =INDEX('For Bill Impact(HideBeforeFile)'!$D$34:$Q$43,MATCH(C10,'For Bill Impact(HideBeforeFile)'!$C$62:$C$71,0),MATCH($O17,'For Bill Impact(HideBeforeFile)'!$D$61:$Q$61,0)) -> 2364.263415 | O17: ='For Bill Impact(HideBeforeFile)'!$N$5 -> Dist. Vol. Rate Tier 1
C18: =INDEX('For Bill Impact(HideBeforeFile)'!$D$48:$Q$57,MATCH(C10,'For Bill Impact(HideBeforeFile)'!$C$62:$C$71,0),MATCH($O18,'For Bill Impact(HideBeforeFile)'!$D$61:$Q$61,0)) -> Block 2 (Over 1,000 m3 per month) | D18: =INDEX('For Bill Impact(HideBeforeFile)'!$D$62:$Q$71,MATCH(C10,'For Bill Impact(HideBeforeFile)'!$C$62:$C$71,0),MATCH($O18,'For Bill Impact(HideBeforeFile)'!$D$61:$Q$61,0)) -> cents / m3 | F18: =INDEX('For Bill Impact(HideBeforeFile)'!$D$6:$Q$15,MATCH(C10,'For Bill Impact(HideBeforeFile)'!$C$62:$C$71,0),MATCH($O18,'For Bill Impact(HideBeforeFile)'!$D$61:$Q$61,0)) -> 11.6156 | H18: =INDEX('For Bill Impact(HideBeforeFile)'!$D$20:$Q$29,MATCH(C10,'For Bill Impact(HideBeforeFile)'!$C$62:$C$71,0),MATCH($O18,'For Bill Impact(HideBeforeFile)'!$D$61:$Q$61,0)) -> 11.96603494 | J18: =INDEX('For Bill Impact(HideBeforeFile)'!$D$34:$Q$43,MATCH(C10,'For Bill Impact(HideBeforeFile)'!$C$62:$C$71,0),MATCH($O18,'For Bill Impact(HideBeforeFile)'!$D$61:$Q$61,0)) -> 30522.00976 | O18: ='For Bill Impact(HideBeforeFile)'!$O$5 -> Dist. Vol. Rate Tier 2
C19: =INDEX('For Bill Impact(HideBeforeFile)'!$D$48:$Q$57,MATCH(C10,'For Bill Impact(HideBeforeFile)'!$C$62:$C$71,0),MATCH($O19,'For Bill Impact(HideBeforeFile)'!$D$61:$Q$61,0)) ->  | D19: =INDEX('For Bill Impact(HideBeforeFile)'!$D$62:$Q$71,MATCH(C10,'For Bill Impact(HideBeforeFile)'!$C$62:$C$71,0),MATCH($O19,'For Bill Impact(HideBeforeFile)'!$D$61:$Q$61,0)) ->  | F19: =INDEX('For Bill Impact(HideBeforeFile)'!$D$6:$Q$15,MATCH(C10,'For Bill Impact(HideBeforeFile)'!$C$62:$C$71,0),MATCH($O19,'For Bill Impact(HideBeforeFile)'!$D$61:$Q$61,0)) ->  | H19: =INDEX('For Bill Impact(HideBeforeFile)'!$D$20:$Q$29,MATCH(C10,'For Bill Impact(HideBeforeFile)'!$C$62:$C$71,0),MATCH($O19,'For Bill Impact(HideBeforeFile)'!$D$61:$Q$61,0)) ->  | J19: =INDEX('For Bill Impact(HideBeforeFile)'!$D$34:$Q$43,MATCH(C10,'For Bill Impact(HideBeforeFile)'!$C$62:$C$71,0),MATCH($O19,'For Bill Impact(HideBeforeFile)'!$D$61:$Q$61,0)) ->  | O19: ='For Bill Impact(HideBeforeFile)'!$P$5 -> Dist. Vol. Rate Tier 3
C20: =INDEX('For Bill Impact(HideBeforeFile)'!$D$48:$Q$57,MATCH(C10,'For Bill Impact(HideBeforeFile)'!$C$62:$C$71,0),MATCH($O20,'For Bill Impact(HideBeforeFile)'!$D$61:$Q$61,0)) ->  | D20: =INDEX('For Bill Impact(HideBeforeFile)'!$D$62:$Q$71,MATCH(C10,'For Bill Impact(HideBeforeFile)'!$C$62:$C$71,0),MATCH($O20,'For Bill Impact(HideBeforeFile)'!$D$61:$Q$61,0)) ->  | F20: =INDEX('For Bill Impact(HideBeforeFile)'!$D$6:$Q$15,MATCH(C10,'For Bill Impact(HideBeforeFile)'!$C$62:$C$71,0),MATCH($O20,'For Bill Impact(HideBeforeFile)'!$D$61:$Q$61,0)) ->  | H20: =INDEX('For Bill Impact(HideBeforeFile)'!$D$20:$Q$29,MATCH(C10,'For Bill Impact(HideBeforeFile)'!$C$62:$C$71,0),MATCH($O20,'For Bill Impact(HideBeforeFile)'!$D$61:$Q$61,0)) ->  | J20: =INDEX('For Bill Impact(HideBeforeFile)'!$D$34:$Q$43,MATCH(C10,'For Bill Impact(HideBeforeFile)'!$C$62:$C$71,0),MATCH($O20,'For Bill Impact(HideBeforeFile)'!$D$61:$Q$61,0)) ->  | O20: ='For Bill Impact(HideBeforeFile)'!$Q$5 -> Dist. Capacity Rate
C21: =INDEX('For Bill Impact(HideBeforeFile)'!$D$48:$Q$57,MATCH(C10,'For Bill Impact(HideBeforeFile)'!$C$62:$C$71,0),MATCH($O21,'For Bill Impact(HideBeforeFile)'!$D$61:$Q$61,0)) -> System Gas Charge | D21: =INDEX('For Bill Impact(HideBeforeFile)'!$D$62:$Q$71,MATCH(C10,'For Bill Impact(HideBeforeFile)'!$C$62:$C$71,0),MATCH($O21,'For Bill Impact(HideBeforeFile)'!$D$61:$Q$61,0)) -> cents / m3 | F21: =INDEX('For Bill Impact(HideBeforeFile)'!$D$6:$Q$15,MATCH(C10,'For Bill Impact(HideBeforeFile)'!$C$62:$C$71,0),MATCH($O21,'For Bill Impact(HideBeforeFile)'!$D$61:$Q$61,0)) -> 0.0435 | H21: =INDEX('For Bill Impact(HideBeforeFile)'!$D$20:$Q$29,MATCH(C10,'For Bill Impact(HideBeforeFile)'!$C$62:$C$71,0),MATCH($O21,'For Bill Impact(HideBeforeFile)'!$D$61:$Q$61,0)) -> 0.0435 | J21: =INDEX('For Bill Impact(HideBeforeFile)'!$D$34:$Q$43,MATCH(C10,'For Bill Impact(HideBeforeFile)'!$C$62:$C$71,0),MATCH($O21,'For Bill Impact(HideBeforeFile)'!$D$61:$Q$61,0)) -> 32886.27317 | O21: ='For Bill Impact(HideBeforeFile)'!$E$5 -> System Gas
C23: =INDEX('For Bill Impact(HideBeforeFile)'!$D$48:$Q$57,MATCH(C10,'For Bill Impact(HideBeforeFile)'!$C$62:$C$71,0),MATCH($O23,'For Bill Impact(HideBeforeFile)'!$D$61:$Q$61,0)) -> REDA | D23: =INDEX('For Bill Impact(HideBeforeFile)'!$D$62:$Q$71,MATCH(C10,'For Bill Impact(HideBeforeFile)'!$C$62:$C$71,0),MATCH($O23,'For Bill Impact(HideBeforeFile)'!$D$61:$Q$61,0)) -> $ / month | F23: =INDEX('For Bill Impact(HideBeforeFile)'!$D$6:$Q$15,MATCH(C10,'For Bill Impact(HideBeforeFile)'!$C$62:$C$71,0),MATCH($O23,'For Bill Impact(HideBeforeFile)'!$D$61:$Q$61,0)) -> 0.78 | H23: =INDEX('For Bill Impact(HideBeforeFile)'!$D$20:$Q$29,MATCH(C10,'For Bill Impact(HideBeforeFile)'!$C$62:$C$71,0),MATCH($O23,'For Bill Impact(HideBeforeFile)'!$D$61:$Q$61,0)) -> 0.33 | J23: =INDEX('For Bill Impact(HideBeforeFile)'!$D$34:$Q$43,MATCH(C10,'For Bill Impact(HideBeforeFile)'!$C$62:$C$71,0),MATCH($O23,'For Bill Impact(HideBeforeFile)'!$D$61:$Q$61,0)) -> 9 | O23: ='For Bill Impact(HideBeforeFile)'!$F$5 -> REDA
C24: =INDEX('For Bill Impact(HideBeforeFile)'!$D$48:$Q$57,MATCH(C10,'For Bill Impact(HideBeforeFile)'!$C$62:$C$71,0),MATCH($O24,'For Bill Impact(HideBeforeFile)'!$D$61:$Q$61,0)) -> PGTVA | D24: =INDEX('For Bill Impact(HideBeforeFile)'!$D$62:$Q$71,MATCH(C10,'For Bill Impact(HideBeforeFile)'!$C$62:$C$71,0),MATCH($O24,'For Bill Impact(HideBeforeFile)'!$D$61:$Q$61,0)) -> cents / m3 | F24: =INDEX('For Bill Impact(HideBeforeFile)'!$D$6:$Q$15,MATCH(C10,'For Bill Impact(HideBeforeFile)'!$C$62:$C$71,0),MATCH($O24,'For Bill Impact(HideBeforeFile)'!$D$61:$Q$61,0)) -> 0.3113 | H24: =INDEX('For Bill Impact(HideBeforeFile)'!$D$20:$Q$29,MATCH(C10,'For Bill Impact(HideBeforeFile)'!$C$62:$C$71,0),MATCH($O24,'For Bill Impact(HideBeforeFile)'!$D$61:$Q$61,0)) -> 0.3194846212 | J24: =INDEX('For Bill Impact(HideBeforeFile)'!$D$34:$Q$43,MATCH(C10,'For Bill Impact(HideBeforeFile)'!$C$62:$C$71,0),MATCH($O24,'For Bill Impact(HideBeforeFile)'!$D$61:$Q$61,0)) -> 32886.27317 | O24: ='For Bill Impact(HideBeforeFile)'!$G$5 -> PGTVA
C25: =INDEX('For Bill Impact(HideBeforeFile)'!$D$48:$Q$57,MATCH(C10,'For Bill Impact(HideBeforeFile)'!$C$62:$C$71,0),MATCH($O25,'For Bill Impact(HideBeforeFile)'!$D$61:$Q$61,0)) -> ADVADA | D25: =INDEX('For Bill Impact(HideBeforeFile)'!$D$62:$Q$71,MATCH(C10,'For Bill Impact(HideBeforeFile)'!$C$62:$C$71,0),MATCH($O25,'For Bill Impact(HideBeforeFile)'!$D$61:$Q$61,0)) -> cents / m3 | F25: =INDEX('For Bill Impact(HideBeforeFile)'!$D$6:$Q$15,MATCH(C10,'For Bill Impact(HideBeforeFile)'!$C$62:$C$71,0),MATCH($O25,'For Bill Impact(HideBeforeFile)'!$D$61:$Q$61,0)) -> 0.1508 | H25: =INDEX('For Bill Impact(HideBeforeFile)'!$D$20:$Q$29,MATCH(C10,'For Bill Impact(HideBeforeFile)'!$C$62:$C$71,0),MATCH($O25,'For Bill Impact(HideBeforeFile)'!$D$61:$Q$61,0)) -> 0 | J25: =INDEX('For Bill Impact(HideBeforeFile)'!$D$34:$Q$43,MATCH(C10,'For Bill Impact(HideBeforeFile)'!$C$62:$C$71,0),MATCH($O25,'For Bill Impact(HideBeforeFile)'!$D$61:$Q$61,0)) -> 32886.27317 | O25: ='For Bill Impact(HideBeforeFile)'!$H$5 -> ADVADA
C26: =INDEX('For Bill Impact(HideBeforeFile)'!$D$48:$Q$57,MATCH(C10,'For Bill Impact(HideBeforeFile)'!$C$62:$C$71,0),MATCH($O26,'For Bill Impact(HideBeforeFile)'!$D$61:$Q$61,0)) -> LDMDA | D26: =INDEX('For Bill Impact(HideBeforeFile)'!$D$62:$Q$71,MATCH(C10,'For Bill Impact(HideBeforeFile)'!$C$62:$C$71,0),MATCH($O26,'For Bill Impact(HideBeforeFile)'!$D$61:$Q$61,0)) -> $ / month | F26: =INDEX('For Bill Impact(HideBeforeFile)'!$D$6:$Q$15,MATCH(C10,'For Bill Impact(HideBeforeFile)'!$C$62:$C$71,0),MATCH($O26,'For Bill Impact(HideBeforeFile)'!$D$61:$Q$61,0)) -> 0 | H26: =INDEX('For Bill Impact(HideBeforeFile)'!$D$20:$Q$29,MATCH(C10,'For Bill Impact(HideBeforeFile)'!$C$62:$C$71,0),MATCH($O26,'For Bill Impact(HideBeforeFile)'!$D$61:$Q$61,0)) -> 0 | J26: =INDEX('For Bill Impact(HideBeforeFile)'!$D$34:$Q$43,MATCH(C10,'For Bill Impact(HideBeforeFile)'!$C$62:$C$71,0),MATCH($O26,'For Bill Impact(HideBeforeFile)'!$D$61:$Q$61,0)) -> 9 | O26: LDMDA
C27: =INDEX('For Bill Impact(HideBeforeFile)'!$D$48:$Q$57,MATCH(C10,'For Bill Impact(HideBeforeFile)'!$C$62:$C$71,0),MATCH($O27,'For Bill Impact(HideBeforeFile)'!$D$61:$Q$61,0)) -> SICDA | D27: =INDEX('For Bill Impact(HideBeforeFile)'!$D$62:$Q$71,MATCH(C10,'For Bill Impact(HideBeforeFile)'!$C$62:$C$71,0),MATCH($O27,'For Bill Impact(HideBeforeFile)'!$D$61:$Q$61,0)) -> cents / m3 | F27: =INDEX('For Bill Impact(HideBeforeFile)'!$D$6:$Q$15,MATCH(C10,'For Bill Impact(HideBeforeFile)'!$C$62:$C$71,0),MATCH($O27,'For Bill Impact(HideBeforeFile)'!$D$61:$Q$61,0)) -> 0 | H27: =INDEX('For Bill Impact(HideBeforeFile)'!$D$20:$Q$29,MATCH(C10,'For Bill Impact(HideBeforeFile)'!$C$62:$C$71,0),MATCH($O27,'For Bill Impact(HideBeforeFile)'!$D$61:$Q$61,0)) -> 0.2372 | J27: =INDEX('For Bill Impact(HideBeforeFile)'!$D$34:$Q$43,MATCH(C10,'For Bill Impact(HideBeforeFile)'!$C$62:$C$71,0),MATCH($O27,'For Bill Impact(HideBeforeFile)'!$D$61:$Q$61,0)) -> 32886.27317 | O27: SICDA
C29: =INDEX('For Bill Impact(HideBeforeFile)'!$D$48:$Q$57,MATCH(C10,'For Bill Impact(HideBeforeFile)'!$C$62:$C$71,0),MATCH($O29,'For Bill Impact(HideBeforeFile)'!$D$61:$Q$61,0)) -> Federal Carbon | D29: =INDEX('For Bill Impact(HideBeforeFile)'!$D$62:$Q$71,MATCH(C10,'For Bill Impact(HideBeforeFile)'!$C$62:$C$71,0),MATCH($O29,'For Bill Impact(HideBeforeFile)'!$D$61:$Q$61,0)) -> cents / m3 | F29: =INDEX('For Bill Impact(HideBeforeFile)'!$D$6:$Q$15,MATCH(C10,'For Bill Impact(HideBeforeFile)'!$C$62:$C$71,0),MATCH($O29,'For Bill Impact(HideBeforeFile)'!$D$61:$Q$61,0)) -> 7.83 | H29: =INDEX('For Bill Impact(HideBeforeFile)'!$D$20:$Q$29,MATCH(C10,'For Bill Impact(HideBeforeFile)'!$C$62:$C$71,0),MATCH($O29,'For Bill Impact(HideBeforeFile)'!$D$61:$Q$61,0)) -> 7.83 | J29: =INDEX('For Bill Impact(HideBeforeFile)'!$D$34:$Q$43,MATCH(C10,'For Bill Impact(HideBeforeFile)'!$C$62:$C$71,0),MATCH($O29,'For Bill Impact(HideBeforeFile)'!$D$61:$Q$61,0)) -> 32886.27317 | O29: ='For Bill Impact(HideBeforeFile)'!$K$5 -> Federal Carbon
C30: =INDEX('For Bill Impact(HideBeforeFile)'!$D$48:$Q$57,MATCH(C10,'For Bill Impact(HideBeforeFile)'!$C$62:$C$71,0),MATCH($O30,'For Bill Impact(HideBeforeFile)'!$D$61:$Q$61,0)) -> Facility Carbon | D30: =INDEX('For Bill Impact(HideBeforeFile)'!$D$62:$Q$71,MATCH(C10,'For Bill Impact(HideBeforeFile)'!$C$62:$C$71,0),MATCH($O30,'For Bill Impact(HideBeforeFile)'!$D$61:$Q$61,0)) -> cents / m3 | F30: =INDEX('For Bill Impact(HideBeforeFile)'!$D$6:$Q$15,MATCH(C10,'For Bill Impact(HideBeforeFile)'!$C$62:$C$71,0),MATCH($O30,'For Bill Impact(HideBeforeFile)'!$D$61:$Q$61,0)) -> 0.0052 | H30: =INDEX('For Bill Impact(HideBeforeFile)'!$D$20:$Q$29,MATCH(C10,'For Bill Impact(HideBeforeFile)'!$C$62:$C$71,0),MATCH($O30,'For Bill Impact(HideBeforeFile)'!$D$61:$Q$61,0)) -> 0.0052 | J30: =INDEX('For Bill Impact(HideBeforeFile)'!$D$34:$Q$43,MATCH(C10,'For Bill Impact(HideBeforeFile)'!$C$62:$C$71,0),MATCH($O30,'For Bill Impact(HideBeforeFile)'!$D$61:$Q$61,0)) -> 32886.27317 | O30: ='For Bill Impact(HideBeforeFile)'!$L$5 -> Facility Carbon
C33: Commodity | F33: Current | H33: Proposed | J33: Change $ | L33: Change %
F34: =F14*$J14/100 -> 4361.44332 | H34: =H14*$J14/100 -> 4361.44332 | J34: =H34-F34 -> 0 | L34: =IFERROR(J34/F34,"") -> 0 | O34: ='For Bill Impact(HideBeforeFile)'!$D$5 -> Commodity
C36: Delivery | F36: Current Rate | H36: Proposed Rate | J36: Change $ | L36: Change %
C37: =IF(C16<>"",C16,"") -> Customer (excl. Bill 32) | F37: =F16*$J16 -> 180 | H37: =H16*$J16 -> 180 | J37: =IFERROR(H37-F37,"") -> 0 | L37: =IFERROR(J37/F37,"") -> 0 | O37: ='For Bill Impact(HideBeforeFile)'!$M$5 -> Dist. Customer Rate
C38: Bill 32 | F38: =J16 -> 9 | H38: =J16 -> 9 | J38: =IFERROR(H38-F38,"") -> 0 | L38: =IFERROR(J38/F38,"") -> 0
C39: =IF(C17<>"",C17,"") -> Block 1 (First 1,000 m3 per month) | F39: =IFERROR(F17*$J17/100,"") -> 447.5881641 | H39: =IFERROR(H17*$J17/100,"") -> 461.0916019 | J39: =IFERROR(H39-F39,"") -> 13.50343783 | L39: =IFERROR(J39/F39,"") -> 0.03016933628 | O39: ='For Bill Impact(HideBeforeFile)'!$N$5 -> Dist. Vol. Rate Tier 1
C40: =IF(C18<>"",C18,"") -> Block 2 (Over 1,000 m3 per month) | F40: =IFERROR(F18*$J18/100,"") -> 3545.314565 | H40: =IFERROR(H18*$J18/100,"") -> 3652.274353 | J40: 106.9597873 | L40: 0.03016933628 | O40: ='For Bill Impact(HideBeforeFile)'!$O$5 -> Dist. Vol. Rate Tier 2
C41: =IF(C19<>"",C19,"") ->  | F41: =IFERROR(F19*$J19/100,"") ->  | H41: =IFERROR(H19*$J19/100,"") ->  | O41: ='For Bill Impact(HideBeforeFile)'!$P$5 -> Dist. Vol. Rate Tier 3
C42: =IF(C20<>"",C20,"") ->  | F42: =IFERROR(F20*$J20/100,"") ->  | H42: =IFERROR(H20*$J20/100,"") ->  | O42: ='For Bill Impact(HideBeforeFile)'!$Q$5 -> Dist. Capacity Rate
C43: =IF(C21<>"",C21,"") -> System Gas Charge | F43: =IFERROR(F21*$J21/100,"") -> 14.30552883 | H43: =IFERROR(H21*$J21/100,"") -> 14.30552883 | J43: 0 | L43: 0 | O43: ='For Bill Impact(HideBeforeFile)'!$E$5 -> System Gas
C44: Total Delivery | F44: =SUM(F37:F43) -> 4196.208258 | H44: =SUM(H37:H43) -> 4316.671483 | J44: =H44-F44 -> 120.4632252 | L44: =IF(ISERROR(J44/F44),0,J44/F44) -> 0.02870763741
C46: Rate Riders
C48: Rate Riders | F48: Current Rate | H48: Proposed Rate | J48: Change $ | L48: Change %
C49: =C23 -> REDA | F49: =F23*$J23 -> 7.02 | H49: =H23*$J23 -> 2.97 | J49: =IFERROR(H49-F49,"") -> -4.05 | L49: =IFERROR(J49/F49,"") -> -0.5769230769 | O49: ='For Bill Impact(HideBeforeFile)'!$F$5 -> REDA
C50: =C24 -> PGTVA | F50: =IFERROR(F24*$J24/100,"") -> 102.3749684 | H50: =IFERROR(H24*$J24/100,"") -> 105.0665853 | J50: =IFERROR(H50-F50,"") -> 2.691616877 | L50: =IFERROR(J50/F50,"") -> 0.02629174806 | O50: ='For Bill Impact(HideBeforeFile)'!$G$5 -> PGTVA
C51: ADVADA | F51: =IFERROR(F25*$J25/100,"") -> 49.59249994 | H51: =IFERROR(H25*$J25/100,"") -> 0 | J51: =H51 -> 0 | L51: 0 | O51: ='For Bill Impact(HideBeforeFile)'!$H$5 -> ADVADA
C52: LDMDA | F52: =IFERROR(F26*$J26/100,"") -> 0 | H52: =H26*$J26 -> 0 | J52: =IFERROR(H52-F52,"") -> 0 | O52: ='For Bill Impact(HideBeforeFile)'!$I$5 -> LDMDA
C53: SICDA | F53: =IFERROR(F27*$J27/100,"") -> 0 | H53: =IFERROR(H27*$J27/100,"") -> 78.00623996 | J53: =H53 -> 78.00623996 | O53: ='For Bill Impact(HideBeforeFile)'!$J$5 -> SICDA
C54: Total Rate Riders | F54: =SUM(F49:F53) -> 158.9874683 | H54: =SUM(H49:H53) -> 186.0428252 | J54: =SUM(J49:J53) -> 76.64785684 | L54: =IF(ISERROR(J54/F54),0,J54/F54) -> 0.4820999897
C56: Carbon Tax
C57: Federal Carbon | F57: =F29*$J29/100 -> 2574.995189 | H57: =H29*$J29/100 -> 2574.995189 | J57: =IFERROR(H57-F57,"") -> 0 | L57: =IFERROR(J57/F57,"") -> 0
C58: Facility Carbon | F58: =F30*$J30/100 -> 1.710086205 | H58: =H30*$J30/100 -> 1.710086205 | J58: =IFERROR(H58-F58,"") -> 0 | L58: 0
C59: Total Carbon Tax | F59: =SUM(F57:F58) -> 2576.705275 | H59: =SUM(H57:H58) -> 2576.705275 | J59: =SUM(J57:J58) -> 0 | L59: =IF(ISERROR(J59/F59),0,J59/F59) -> 0
C61: Total Bill Impact | F61: =SUM(F34,F44,F54,F59) -> 11293.34432 | H61: =SUM(H34,H44,H54,H59) -> 11440.8629 | J61: =SUM(J34,J44,J54,J59) -> 197.111082 | L61: =IFERROR(J61/F61,"") -> 0.0174537388
C64: =MID(CELL("filename",A1),FIND("]",CELL("filename",A1))+1,255) -> G1.4 Rate 4 Bill Impact
C66: ='For Bill Impact(HideBeforeFile)'!C13 -> RATE 4 - General Service Peaking - Jan to Mar | F66: Current | H66: Proposed | J66: Bill Determinant | O66: Look-up
C70: =INDEX('For Bill Impact(HideBeforeFile)'!$D$48:$Q$57,MATCH(C66,'For Bill Impact(HideBeforeFile)'!$C$62:$C$71,0),MATCH($O70,'For Bill Impact(HideBeforeFile)'!$D$61:$Q$61,0)) -> Commodity | D70: =INDEX('For Bill Impact(HideBeforeFile)'!$D$62:$Q$71,MATCH(C66,'For Bill Impact(HideBeforeFile)'!$C$62:$C$71,0),MATCH($O70,'For Bill Impact(HideBeforeFile)'!$D$61:$Q$61,0)) -> cents / m3 | F70: =INDEX('For Bill Impact(HideBeforeFile)'!$D$6:$Q$15,MATCH(C66,'For Bill Impact(HideBeforeFile)'!$C$62:$C$71,0),MATCH($O70,'For Bill Impact(HideBeforeFile)'!$D$61:$Q$61,0)) -> 13.2622 | H70: =INDEX('For Bill Impact(HideBeforeFile)'!$D$20:$Q$29,MATCH(C66,'For Bill Impact(HideBeforeFile)'!$C$62:$C$71,0),MATCH($O70,'For Bill Impact(HideBeforeFile)'!$D$61:$Q$61,0)) -> 13.2622 | J70: =INDEX('For Bill Impact(HideBeforeFile)'!$D$34:$Q$43,MATCH(C66,'For Bill Impact(HideBeforeFile)'!$C$62:$C$71,0),MATCH($O70,'For Bill Impact(HideBeforeFile)'!$D$61:$Q$61,0)) -> 10251.38293 | O70: ='For Bill Impact(HideBeforeFile)'!$D$5 -> Commodity
C72: =INDEX('For Bill Impact(HideBeforeFile)'!$D$48:$Q$57,MATCH(C66,'For Bill Impact(HideBeforeFile)'!$C$62:$C$71,0),MATCH($O72,'For Bill Impact(HideBeforeFile)'!$D$61:$Q$61,0)) -> Customer (excl. Bill 32) | D72: =INDEX('For Bill Impact(HideBeforeFile)'!$D$62:$Q$71,MATCH(C66,'For Bill Impact(HideBeforeFile)'!$C$62:$C$71,0),MATCH($O72,'For Bill Impact(HideBeforeFile)'!$D$61:$Q$61,0)) -> $ / month | F72: =INDEX('For Bill Impact(HideBeforeFile)'!$D$6:$Q$15,MATCH(C66,'For Bill Impact(HideBeforeFile)'!$C$62:$C$71,0),MATCH($O72,'For Bill Impact(HideBeforeFile)'!$D$61:$Q$61,0)) -> 20 | H72: =INDEX('For Bill Impact(HideBeforeFile)'!$D$20:$Q$29,MATCH(C66,'For Bill Impact(HideBeforeFile)'!$C$62:$C$71,0),MATCH($O72,'For Bill Impact(HideBeforeFile)'!$D$61:$Q$61,0)) -> 20 | J72: =INDEX('For Bill Impact(HideBeforeFile)'!$D$34:$Q$43,MATCH(C66,'For Bill Impact(HideBeforeFile)'!$C$62:$C$71,0),MATCH($O72,'For Bill Impact(HideBeforeFile)'!$D$61:$Q$61,0)) -> 3 | O72: ='For Bill Impact(HideBeforeFile)'!$M$5 -> Dist. Customer Rate
C73: =INDEX('For Bill Impact(HideBeforeFile)'!$D$48:$Q$57,MATCH(C66,'For Bill Impact(HideBeforeFile)'!$C$62:$C$71,0),MATCH($O73,'For Bill Impact(HideBeforeFile)'!$D$61:$Q$61,0)) -> Block 1 (First 1,000 m3 per month) | D73: =INDEX('For Bill Impact(HideBeforeFile)'!$D$62:$Q$71,MATCH(C66,'For Bill Impact(HideBeforeFile)'!$C$62:$C$71,0),MATCH($O73,'For Bill Impact(HideBeforeFile)'!$D$61:$Q$61,0)) -> cents / m3 | F73: =INDEX('For Bill Impact(HideBeforeFile)'!$D$6:$Q$15,MATCH(C66,'For Bill Impact(HideBeforeFile)'!$C$62:$C$71,0),MATCH($O73,'For Bill Impact(HideBeforeFile)'!$D$61:$Q$61,0)) -> 24.1513 | H73: =INDEX('For Bill Impact(HideBeforeFile)'!$D$20:$Q$29,MATCH(C66,'For Bill Impact(HideBeforeFile)'!$C$62:$C$71,0),MATCH($O73,'For Bill Impact(HideBeforeFile)'!$D$61:$Q$61,0)) -> 24.87992869 | J73: =INDEX('For Bill Impact(HideBeforeFile)'!$D$34:$Q$43,MATCH(C66,'For Bill Impact(HideBeforeFile)'!$C$62:$C$71,0),MATCH($O73,'For Bill Impact(HideBeforeFile)'!$D$61:$Q$61,0)) -> 838.2268293 | O73: ='For Bill Impact(HideBeforeFile)'!$N$5 -> Dist. Vol. Rate Tier 1
C74: =INDEX('For Bill Impact(HideBeforeFile)'!$D$48:$Q$57,MATCH(C66,'For Bill Impact(HideBeforeFile)'!$C$62:$C$71,0),MATCH($O74,'For Bill Impact(HideBeforeFile)'!$D$61:$Q$61,0)) -> Block 2 (Over 1,000 m3 per month) | D74: =INDEX('For Bill Impact(HideBeforeFile)'!$D$62:$Q$71,MATCH(C66,'For Bill Impact(HideBeforeFile)'!$C$62:$C$71,0),MATCH($O74,'For Bill Impact(HideBeforeFile)'!$D$61:$Q$61,0)) -> cents / m3 | F74: =INDEX('For Bill Impact(HideBeforeFile)'!$D$6:$Q$15,MATCH(C66,'For Bill Impact(HideBeforeFile)'!$C$62:$C$71,0),MATCH($O74,'For Bill Impact(HideBeforeFile)'!$D$61:$Q$61,0)) -> 18.6627 | H74: =INDEX('For Bill Impact(HideBeforeFile)'!$D$20:$Q$29,MATCH(C66,'For Bill Impact(HideBeforeFile)'!$C$62:$C$71,0),MATCH($O74,'For Bill Impact(HideBeforeFile)'!$D$61:$Q$61,0)) -> 19.22574127 | J74: =INDEX('For Bill Impact(HideBeforeFile)'!$D$34:$Q$43,MATCH(C66,'For Bill Impact(HideBeforeFile)'!$C$62:$C$71,0),MATCH($O74,'For Bill Impact(HideBeforeFile)'!$D$61:$Q$61,0)) -> 9413.156098 | O74: ='For Bill Impact(HideBeforeFile)'!$O$5 -> Dist. Vol. Rate Tier 2
C75: =INDEX('For Bill Impact(HideBeforeFile)'!$D$48:$Q$57,MATCH(C66,'For Bill Impact(HideBeforeFile)'!$C$62:$C$71,0),MATCH($O75,'For Bill Impact(HideBeforeFile)'!$D$61:$Q$61,0)) ->  | D75: =INDEX('For Bill Impact(HideBeforeFile)'!$D$62:$Q$71,MATCH(C66,'For Bill Impact(HideBeforeFile)'!$C$62:$C$71,0),MATCH($O75,'For Bill Impact(HideBeforeFile)'!$D$61:$Q$61,0)) ->  | F75: =INDEX('For Bill Impact(HideBeforeFile)'!$D$6:$Q$15,MATCH(C66,'For Bill Impact(HideBeforeFile)'!$C$62:$C$71,0),MATCH($O75,'For Bill Impact(HideBeforeFile)'!$D$61:$Q$61,0)) ->  | H75: =INDEX('For Bill Impact(HideBeforeFile)'!$D$20:$Q$29,MATCH(C66,'For Bill Impact(HideBeforeFile)'!$C$62:$C$71,0),MATCH($O75,'For Bill Impact(HideBeforeFile)'!$D$61:$Q$61,0)) ->  | J75: =INDEX('For Bill Impact(HideBeforeFile)'!$D$34:$Q$43,MATCH(C66,'For Bill Impact(HideBeforeFile)'!$C$62:$C$71,0),MATCH($O75,'For Bill Impact(HideBeforeFile)'!$D$61:$Q$61,0)) ->  | O75: ='For Bill Impact(HideBeforeFile)'!$P$5 -> Dist. Vol. Rate Tier 3
C76: =INDEX('For Bill Impact(HideBeforeFile)'!$D$48:$Q$57,MATCH(C66,'For Bill Impact(HideBeforeFile)'!$C$62:$C$71,0),MATCH($O76,'For Bill Impact(HideBeforeFile)'!$D$61:$Q$61,0)) ->  | D76: =INDEX('For Bill Impact(HideBeforeFile)'!$D$62:$Q$71,MATCH(C66,'For Bill Impact(HideBeforeFile)'!$C$62:$C$71,0),MATCH($O76,'For Bill Impact(HideBeforeFile)'!$D$61:$Q$61,0)) ->  | F76: =INDEX('For Bill Impact(HideBeforeFile)'!$D$6:$Q$15,MATCH(C66,'For Bill Impact(HideBeforeFile)'!$C$62:$C$71,0),MATCH($O76,'For Bill Impact(HideBeforeFile)'!$D$61:$Q$61,0)) ->  | H76: =INDEX('For Bill Impact(HideBeforeFile)'!$D$20:$Q$29,MATCH(C66,'For Bill Impact(HideBeforeFile)'!$C$62:$C$71,0),MATCH($O76,'For Bill Impact(HideBeforeFile)'!$D$61:$Q$61,0)) ->  | J76: =INDEX('For Bill Impact(HideBeforeFile)'!$D$34:$Q$43,MATCH(C66,'For Bill Impact(HideBeforeFile)'!$C$62:$C$71,0),MATCH($O76,'For Bill Impact(HideBeforeFile)'!$D$61:$Q$61,0)) ->  | O76: ='For Bill Impact(HideBeforeFile)'!$Q$5 -> Dist. Capacity Rate
C77: =INDEX('For Bill Impact(HideBeforeFile)'!$D$48:$Q$57,MATCH(C66,'For Bill Impact(HideBeforeFile)'!$C$62:$C$71,0),MATCH($O77,'For Bill Impact(HideBeforeFile)'!$D$61:$Q$61,0)) -> System Gas Charge | D77: =INDEX('For Bill Impact(HideBeforeFile)'!$D$62:$Q$71,MATCH(C66,'For Bill Impact(HideBeforeFile)'!$C$62:$C$71,0),MATCH($O77,'For Bill Impact(HideBeforeFile)'!$D$61:$Q$61,0)) -> cents / m3 | F77: =INDEX('For Bill Impact(HideBeforeFile)'!$D$6:$Q$15,MATCH(C66,'For Bill Impact(HideBeforeFile)'!$C$62:$C$71,0),MATCH($O77,'For Bill Impact(HideBeforeFile)'!$D$61:$Q$61,0)) -> 0.0435 | H77: =INDEX('For Bill Impact(HideBeforeFile)'!$D$20:$Q$29,MATCH(C66,'For Bill Impact(HideBeforeFile)'!$C$62:$C$71,0),MATCH($O77,'For Bill Impact(HideBeforeFile)'!$D$61:$Q$61,0)) -> 0.0435 | J77: =INDEX('For Bill Impact(HideBeforeFile)'!$D$34:$Q$43,MATCH(C66,'For Bill Impact(HideBeforeFile)'!$C$62:$C$71,0),MATCH($O77,'For Bill Impact(HideBeforeFile)'!$D$61:$Q$61,0)) -> 10251.38293 | O77: ='For Bill Impact(HideBeforeFile)'!$E$5 -> System Gas
C79: =INDEX('For Bill Impact(HideBeforeFile)'!$D$48:$Q$57,MATCH(C66,'For Bill Impact(HideBeforeFile)'!$C$62:$C$71,0),MATCH($O79,'For Bill Impact(HideBeforeFile)'!$D$61:$Q$61,0)) -> REDA | D79: =INDEX('For Bill Impact(HideBeforeFile)'!$D$62:$Q$71,MATCH(C66,'For Bill Impact(HideBeforeFile)'!$C$62:$C$71,0),MATCH($O79,'For Bill Impact(HideBeforeFile)'!$D$61:$Q$61,0)) -> $ / month | F79: =INDEX('For Bill Impact(HideBeforeFile)'!$D$6:$Q$15,MATCH(C66,'For Bill Impact(HideBeforeFile)'!$C$62:$C$71,0),MATCH($O79,'For Bill Impact(HideBeforeFile)'!$D$61:$Q$61,0)) -> 0.78 | H79: =INDEX('For Bill Impact(HideBeforeFile)'!$D$20:$Q$29,MATCH(C66,'For Bill Impact(HideBeforeFile)'!$C$62:$C$71,0),MATCH($O79,'For Bill Impact(HideBeforeFile)'!$D$61:$Q$61,0)) -> 0.33 | J79: =INDEX('For Bill Impact(HideBeforeFile)'!$D$34:$Q$43,MATCH(C66,'For Bill Impact(HideBeforeFile)'!$C$62:$C$71,0),MATCH($O79,'For Bill Impact(HideBeforeFile)'!$D$61:$Q$61,0)) -> 3 | O79: =O23 -> REDA
C80: =INDEX('For Bill Impact(HideBeforeFile)'!$D$48:$Q$57,MATCH(C66,'For Bill Impact(HideBeforeFile)'!$C$62:$C$71,0),MATCH($O80,'For Bill Impact(HideBeforeFile)'!$D$61:$Q$61,0)) -> PGTVA | D80: =INDEX('For Bill Impact(HideBeforeFile)'!$D$62:$Q$71,MATCH(C66,'For Bill Impact(HideBeforeFile)'!$C$62:$C$71,0),MATCH($O80,'For Bill Impact(HideBeforeFile)'!$D$61:$Q$61,0)) -> cents / m3 | F80: =INDEX('For Bill Impact(HideBeforeFile)'!$D$6:$Q$15,MATCH(C66,'For Bill Impact(HideBeforeFile)'!$C$62:$C$71,0),MATCH($O80,'For Bill Impact(HideBeforeFile)'!$D$61:$Q$61,0)) -> 0.3113 | H80: =INDEX('For Bill Impact(HideBeforeFile)'!$D$20:$Q$29,MATCH(C66,'For Bill Impact(HideBeforeFile)'!$C$62:$C$71,0),MATCH($O80,'For Bill Impact(HideBeforeFile)'!$D$61:$Q$61,0)) -> 0.3194846212 | J80: =INDEX('For Bill Impact(HideBeforeFile)'!$D$34:$Q$43,MATCH(C66,'For Bill Impact(HideBeforeFile)'!$C$62:$C$71,0),MATCH($O80,'For Bill Impact(HideBeforeFile)'!$D$61:$Q$61,0)) -> 10251.38293 | O80: =O24 -> PGTVA
C81: =INDEX('For Bill Impact(HideBeforeFile)'!$D$48:$Q$57,MATCH(C66,'For Bill Impact(HideBeforeFile)'!$C$62:$C$71,0),MATCH($O81,'For Bill Impact(HideBeforeFile)'!$D$61:$Q$61,0)) -> ADVADA | D81: =INDEX('For Bill Impact(HideBeforeFile)'!$D$62:$Q$71,MATCH(C66,'For Bill Impact(HideBeforeFile)'!$C$62:$C$71,0),MATCH($O81,'For Bill Impact(HideBeforeFile)'!$D$61:$Q$61,0)) -> cents / m3 | F81: =INDEX('For Bill Impact(HideBeforeFile)'!$D$6:$Q$15,MATCH(C66,'For Bill Impact(HideBeforeFile)'!$C$62:$C$71,0),MATCH($O81,'For Bill Impact(HideBeforeFile)'!$D$61:$Q$61,0)) -> 0.1508 | H81: =INDEX('For Bill Impact(HideBeforeFile)'!$D$20:$Q$29,MATCH(C66,'For Bill Impact(HideBeforeFile)'!$C$62:$C$71,0),MATCH($O81,'For Bill Impact(HideBeforeFile)'!$D$61:$Q$61,0)) -> 0 | J81: =INDEX('For Bill Impact(HideBeforeFile)'!$D$34:$Q$43,MATCH(C66,'For Bill Impact(HideBeforeFile)'!$C$62:$C$71,0),MATCH($O81,'For Bill Impact(HideBeforeFile)'!$D$61:$Q$61,0)) -> 10251.38293 | O81: ADVADA
C82: =INDEX('For Bill Impact(HideBeforeFile)'!$D$48:$Q$57,MATCH(C66,'For Bill Impact(HideBeforeFile)'!$C$62:$C$71,0),MATCH($O82,'For Bill Impact(HideBeforeFile)'!$D$61:$Q$61,0)) -> LDMDA | D82: =INDEX('For Bill Impact(HideBeforeFile)'!$D$62:$Q$71,MATCH(C66,'For Bill Impact(HideBeforeFile)'!$C$62:$C$71,0),MATCH($O82,'For Bill Impact(HideBeforeFile)'!$D$61:$Q$61,0)) -> $ / month | F82: =INDEX('For Bill Impact(HideBeforeFile)'!$D$6:$Q$15,MATCH(C66,'For Bill Impact(HideBeforeFile)'!$C$62:$C$71,0),MATCH($O82,'For Bill Impact(HideBeforeFile)'!$D$61:$Q$61,0)) -> 0 | H82: =INDEX('For Bill Impact(HideBeforeFile)'!$D$20:$Q$29,MATCH(C66,'For Bill Impact(HideBeforeFile)'!$C$62:$C$71,0),MATCH($O82,'For Bill Impact(HideBeforeFile)'!$D$61:$Q$61,0)) -> 0 | J82: =INDEX('For Bill Impact(HideBeforeFile)'!$D$34:$Q$43,MATCH(C66,'For Bill Impact(HideBeforeFile)'!$C$62:$C$71,0),MATCH($O82,'For Bill Impact(HideBeforeFile)'!$D$61:$Q$61,0)) -> 3 | O82: LDMDA
C83: =INDEX('For Bill Impact(HideBeforeFile)'!$D$48:$Q$57,MATCH(C66,'For Bill Impact(HideBeforeFile)'!$C$62:$C$71,0),MATCH($O83,'For Bill Impact(HideBeforeFile)'!$D$61:$Q$61,0)) -> SICDA | D83: =INDEX('For Bill Impact(HideBeforeFile)'!$D$62:$Q$71,MATCH(C66,'For Bill Impact(HideBeforeFile)'!$C$62:$C$71,0),MATCH($O83,'For Bill Impact(HideBeforeFile)'!$D$61:$Q$61,0)) -> cents / m3 | F83: =INDEX('For Bill Impact(HideBeforeFile)'!$D$6:$Q$15,MATCH(C66,'For Bill Impact(HideBeforeFile)'!$C$62:$C$71,0),MATCH($O83,'For Bill Impact(HideBeforeFile)'!$D$61:$Q$61,0)) -> 0 | H83: =INDEX('For Bill Impact(HideBeforeFile)'!$D$20:$Q$29,MATCH(C66,'For Bill Impact(HideBeforeFile)'!$C$62:$C$71,0),MATCH($O83,'For Bill Impact(HideBeforeFile)'!$D$61:$Q$61,0)) -> 0.2372 | J83: =INDEX('For Bill Impact(HideBeforeFile)'!$D$34:$Q$43,MATCH(C66,'For Bill Impact(HideBeforeFile)'!$C$62:$C$71,0),MATCH($O83,'For Bill Impact(HideBeforeFile)'!$D$61:$Q$61,0)) -> 10251.38293 | O83: SICDA
C85: =INDEX('For Bill Impact(HideBeforeFile)'!$D$48:$Q$57,MATCH(C66,'For Bill Impact(HideBeforeFile)'!$C$62:$C$71,0),MATCH($O85,'For Bill Impact(HideBeforeFile)'!$D$61:$Q$61,0)) -> Federal Carbon | D85: =INDEX('For Bill Impact(HideBeforeFile)'!$D$62:$Q$71,MATCH(C66,'For Bill Impact(HideBeforeFile)'!$C$62:$C$71,0),MATCH($O85,'For Bill Impact(HideBeforeFile)'!$D$61:$Q$61,0)) -> cents / m3 | F85: =INDEX('For Bill Impact(HideBeforeFile)'!$D$6:$Q$15,MATCH(C66,'For Bill Impact(HideBeforeFile)'!$C$62:$C$71,0),MATCH($O85,'For Bill Impact(HideBeforeFile)'!$D$61:$Q$61,0)) -> 7.83 | H85: =INDEX('For Bill Impact(HideBeforeFile)'!$D$20:$Q$29,MATCH(C66,'For Bill Impact(HideBeforeFile)'!$C$62:$C$71,0),MATCH($O85,'For Bill Impact(HideBeforeFile)'!$D$61:$Q$61,0)) -> 7.83 | J85: =INDEX('For Bill Impact(HideBeforeFile)'!$D$34:$Q$43,MATCH(C66,'For Bill Impact(HideBeforeFile)'!$C$62:$C$71,0),MATCH($O85,'For Bill Impact(HideBeforeFile)'!$D$61:$Q$61,0)) -> 10251.38293 | O85: ='For Bill Impact(HideBeforeFile)'!$K$5 -> Federal Carbon
C86: =INDEX('For Bill Impact(HideBeforeFile)'!$D$48:$Q$57,MATCH(C66,'For Bill Impact(HideBeforeFile)'!$C$62:$C$71,0),MATCH($O86,'For Bill Impact(HideBeforeFile)'!$D$61:$Q$61,0)) -> Facility Carbon | D86: =INDEX('For Bill Impact(HideBeforeFile)'!$D$62:$Q$71,MATCH(C66,'For Bill Impact(HideBeforeFile)'!$C$62:$C$71,0),MATCH($O86,'For Bill Impact(HideBeforeFile)'!$D$61:$Q$61,0)) -> cents / m3 | F86: =INDEX('For Bill Impact(HideBeforeFile)'!$D$6:$Q$15,MATCH(C66,'For Bill Impact(HideBeforeFile)'!$C$62:$C$71,0),MATCH($O86,'For Bill Impact(HideBeforeFile)'!$D$61:$Q$61,0)) -> 0.0052 | H86: =INDEX('For Bill Impact(HideBeforeFile)'!$D$20:$Q$29,MATCH(C66,'For Bill Impact(HideBeforeFile)'!$C$62:$C$71,0),MATCH($O86,'For Bill Impact(HideBeforeFile)'!$D$61:$Q$61,0)) -> 0.0052 | J86: =INDEX('For Bill Impact(HideBeforeFile)'!$D$34:$Q$43,MATCH(C66,'For Bill Impact(HideBeforeFile)'!$C$62:$C$71,0),MATCH($O86,'For Bill Impact(HideBeforeFile)'!$D$61:$Q$61,0)) -> 10251.38293 | O86: ='For Bill Impact(HideBeforeFile)'!$L$5 -> Facility Carbon
C89: Commodity | F89: Current | H89: Proposed | J89: Change $ | L89: Change %
F90: =F70*$J70/100 -> 1359.558907 | H90: =H70*$J70/100 -> 1359.558907 | J90: =H90-F90 -> 0 | L90: =IFERROR(J90/F90,"") -> 0
C92: Delivery | F92: Current Rate | H92: Proposed Rate | J92: Change $ | L92: Change %
C93: =IF(C72<>"",C72,"") -> Customer (excl. Bill 32) | F93: =F72*$J72 -> 60 | H93: =H72*$J72 -> 60 | J93: =IFERROR(H93-F93,"") -> 0 | L93: =IFERROR(J93/F93,"") -> 0
C94: Bill 32 | F94: =J72 -> 3 | H94: =J72 -> 3 | J94: =IFERROR(H94-F94,"") -> 0 | L94: =IFERROR(J94/F94,"") -> 0
C95: =IF(C73<>"",C73,"") -> Block 1 (First 1,000 m3 per month) | F95: =IFERROR(F73*$J73/100,"") -> 202.4426762 | H95: =IFERROR(H73*$J73/100,"") -> 208.5502374 | J95: =IFERROR(H95-F95,"") -> 6.107561175 | L95: =IFERROR(J95/F95,"") -> 0.03016933628
C96: =IF(C74<>"",C74,"") -> Block 2 (Over 1,000 m3 per month) | F96: =IFERROR(F74*$J74/100,"") -> 1756.749083 | H96: =IFERROR(H74*$J74/100,"") -> 1809.749037 | J96: 52.99995384 | L96: 0.03016933628
C97: =IF(C75<>"",C75,"") ->  | F97: =IFERROR(F75*$J75/100,"") ->  | H97: =IFERROR(H75*$J75/100,"") -> 
C98: =IF(C76<>"",C76,"") ->  | F98: =IFERROR(F76*$J76/100,"") ->  | H98: =IFERROR(H76*$J76/100,"") -> 
C99: =IF(C77<>"",C77,"") -> System Gas Charge | F99: =IFERROR(F77*$J77/100,"") -> 4.459351573 | H99: =IFERROR(H77*$J77/100,"") -> 4.459351573 | J99: 0 | L99: 0
C100: Total Delivery | F100: =SUM(F93:F99) -> 2026.651111 | H100: =SUM(H93:H99) -> 2085.758626 | J100: =H100-F100 -> 59.10751501 | L100: =IF(ISERROR(J100/F100),0,J100/F100) -> 0.02916511614
C102: Rate Riders
C104: Rate Riders | F104: Current Rate | H104: Proposed Rate | J104: Change $ | L104: Change %
C105: =C79 -> REDA | F105: =F79*$J79 -> 2.34 | H105: =H79*$J79 -> 0.99 | J105: =IFERROR(H105-F105,"") -> -1.35 | L105: =IFERROR(J105/F105,"") -> -0.5769230769
C106: =C80 -> PGTVA | F106: =IFERROR(F80*$J80/100,"") -> 31.91255505 | H106: =IFERROR(H80*$J80/100,"") -> 32.75159191 | J106: =IFERROR(H106-F106,"") -> 0.8390368575 | L106: =IFERROR(J106/F106,"") -> 0.02629174806
C107: =C81 -> ADVADA | F107: =IFERROR(F81*$J81/100,"") -> 15.45908545 | H107: =IFERROR(H81*$J81/100,"") -> 0 | J107: -15.45908545 | L107: -1
C108: LDMDA | F108: =IFERROR(F82*$J82/100,"") -> 0 | H108: =IFERROR(H82*$J82/100,"") -> 0 | J108: =IFERROR(H108-F108,"") -> 0
C109: SICDA | F109: =IFERROR(F83*$J83/100,"") -> 0 | H109: =IFERROR(H83*$J83/100,"") -> 24.3162803 | J109: =H109 -> 24.3162803
C110: Total Rate Riders | F110: =SUM(F105:F109) -> 49.7116405 | H110: =SUM(H105:H109) -> 58.05787221 | J110: =SUM(J105:J109) -> 8.346231706 | L110: =IF(ISERROR(J110/F110),0,J110/F110) -> 0.1678929044
C112: Carbon Tax
C113: Federal Carbon | F113: =F85*$J85/100 -> 802.6832832 | H113: =H85*$J85/100 -> 802.6832832 | J113: =IFERROR(H113-F113,"") -> 0 | L113: =IFERROR(J113/F113,"") -> 0
C114: Facility Carbon | F114: =F86*$J86/100 -> 0.5330719122 | H114: =H86*$J86/100 -> 0.5330719122 | J114: =IFERROR(H114-F114,"") -> 0 | L114: 0
C115: Total Carbon Tax | F115: =SUM(F113:F114) -> 803.2163551 | H115: =SUM(H113:H114) -> 803.2163551 | J115: =SUM(J113:J114) -> 0 | L115: =IF(ISERROR(J115/F115),0,J115/F115) -> 0
C117: Total Bill Impact | F117: =SUM(F90,F100,F110,F115) -> 4239.138013 | H117: =SUM(H90,H100,H110,H115) -> 4306.59176 | J117: =SUM(J90,J100,J110,J115) -> 67.45374672 | L117: =IFERROR(J117/F117,"") -> 0.01591213745
C120: =MID(CELL("filename",A57),FIND("]",CELL("filename",A57))+1,255) -> G1.4 Rate 4 Bill Impact
C122: RATE 4 - General Service Peaking - Annual
C124: Commodity | F124: Current | H124: Proposed | J124: Change $ | L124: Change %
F125: =F34+F90 -> 5721.002227 | H125: =H34+H90 -> 5721.002227 | J125: =H125-F125 -> 0 | L125: =IFERROR(J125/F125,"") -> 0
C127: Delivery | F127: Current Rate | H127: Proposed Rate | J127: Change $ | L127: Change %
C128: =C37 -> Customer (excl. Bill 32) | F128: =IFERROR(F37+F93,"") -> 240 | H128: =IFERROR(H37+H93,"") -> 240 | J128: =IFERROR(H128-F128,"") -> 0 | L128: =IFERROR(J128/F128,"") -> 0
C129: Bill 32 | F129: 12 | H129: 12 | J129: =IFERROR(H129-F129,"") -> 0 | L129: =IFERROR(J129/F129,"") -> 0
C130: =C39 -> Block 1 (First 1,000 m3 per month) | F130: 650.0308403 | H130: 669.6418393 | J130: =IFERROR(H130-F130,"") -> 19.61099901 | L130: =IFERROR(J130/F130,"") -> 0.03016933628
C131: =C40 -> Block 2 (Over 1,000 m3 per month) | F131: 5302.063648 | H131: 5462.023389 | J131: 159.9597412 | L131: 0.03016933628
C132: =C41 -> 
C133: =C42 -> 
C134: =C43 -> System Gas Charge | F134: 18.7648804 | H134: 18.7648804 | J134: 0 | L134: 0
C135: Total Delivery | F135: =SUM(F128:F134) -> 6222.859369 | H135: =SUM(H128:H134) -> 6402.430109 | J135: =H135-F135 -> 179.5707402 | L135: =IF(ISERROR(J135/F135),0,J135/F135) -> 0.02885662836
C137: Rate Riders
C139: Rate Riders | F139: Current Rate | H139: Proposed Rate | J139: Change $ | L139: Change %
C140: =C105 -> REDA | F140: =IFERROR(F49+F105,"") -> 9.36 | H140: =IFERROR(H49+H105,"") -> 3.96 | J140: =IFERROR(H140-F140,"") -> -5.4 | L140: =IFERROR(J140/F140,"") -> -0.5769230769
C141: =C106 -> PGTVA | F141: =IFERROR(F50+F106,"") -> 134.2875234 | H141: =IFERROR(H50+H106,"") -> 137.8181772 | J141: =IFERROR(H141-F141,"") -> 3.530653734 | L141: =IFERROR(J141/F141,"") -> 0.02629174806
C142: ADVADA | F142: =IFERROR(F51+F107,"") -> 65.0515854 | H142: =IFERROR(H51+H107,"") -> 0 | J142: -65.0515854 | L142: -1
C143: LDMDA | F143: =IFERROR(F52+F108,"") -> 0 | H143: =IFERROR(H52+H108,"") -> 0 | J143: =IFERROR(H143-F143,"") -> 0
C144: SICDA | F144: =IFERROR(F53+F109,"") -> 0 | H144: =IFERROR(H53+H109,"") -> 102.3225203 | J144: =H144 -> 102.3225203
C145: Total Rate Riders | F145: =SUM(F140:F144) -> 208.6991088 | H145: =SUM(H140:H144) -> 244.1006974 | J145: =SUM(J140:J144) -> 35.4015886 | L145: =IF(ISERROR(J145/F145),0,J145/F145) -> 0.1696298025
C147: Carbon Tax
C148: Federal Carbon | F148: =IFERROR(F57+F113,"") -> 3377.678472 | H148: =IFERROR(H57+H113,"") -> 3377.678472 | J148: =IFERROR(H148-F148,"") -> 0 | L148: =IFERROR(J148/F148,"") -> 0
C149: Facility Carbon | F149: =IFERROR(F58+F114,"") -> 2.243158117 | H149: =IFERROR(H58+H114,"") -> 2.243158117 | J149: =IFERROR(H149-F149,"") -> 0 | L149: 0
C150: Total Carbon Tax | F150: =SUM(F148:F149) -> 3379.921631 | H150: =SUM(H148:H149) -> 3379.921631 | J150: =SUM(J148:J149) -> 0 | L150: =IF(ISERROR(J150/F150),0,J150/F150) -> 0
C152: Total Bill Impact | F152: =SUM(F125,F135,F145,F150) -> 15532.48234 | H152: =SUM(H125,H135,H145,H150) -> 15747.45466 | J152: =SUM(J125,J135,J145,J150) -> 214.9723288 | L152: =IFERROR(J152/F152,"") -> 0.01384017855
C155: =MID(CELL("filename",A113),FIND("]",CELL("filename",A113))+1,255) -> G1.4 Rate 4 Bill Impact

Sheet G1.5 Rate 5 Bill Impact
C2: ='A1.1 Distributor Information'!C3 -> Name of LDC: EPCOR Natural Gas Limited Partnership
C3: ='A1.1 Distributor Information'!C4 -> OEB Application Number: EB-2021-0215 Exhibit A - 2022 IRM Application
C7: Rate 5 Delivery Bill Impact
C10: ='For Bill Impact(HideBeforeFile)'!C14 -> RATE 5 - Interruptible Peaking Contract Rate | F10: Current | H10: Proposed | J10: Bill Determinant | O10: Look-up
C14: =INDEX('For Bill Impact(HideBeforeFile)'!$D$48:$Q$57,MATCH(C10,'For Bill Impact(HideBeforeFile)'!$C$62:$C$71,0),MATCH($O14,'For Bill Impact(HideBeforeFile)'!$D$61:$Q$61,0)) -> Commodity | D14: =INDEX('For Bill Impact(HideBeforeFile)'!$D$62:$Q$71,MATCH(C10,'For Bill Impact(HideBeforeFile)'!$C$62:$C$71,0),MATCH($O14,'For Bill Impact(HideBeforeFile)'!$D$61:$Q$61,0)) -> cents / m3 | F14: =INDEX('For Bill Impact(HideBeforeFile)'!$D$6:$Q$15,MATCH(C10,'For Bill Impact(HideBeforeFile)'!$C$62:$C$71,0),MATCH($O14,'For Bill Impact(HideBeforeFile)'!$D$61:$Q$61,0)) -> 13.2622 | H14: =INDEX('For Bill Impact(HideBeforeFile)'!$D$20:$Q$29,MATCH(C10,'For Bill Impact(HideBeforeFile)'!$C$62:$C$71,0),MATCH($O14,'For Bill Impact(HideBeforeFile)'!$D$61:$Q$61,0)) -> 13.2622 | J14: =INDEX('For Bill Impact(HideBeforeFile)'!$D$34:$Q$43,MATCH(C10,'For Bill Impact(HideBeforeFile)'!$C$62:$C$71,0),MATCH($O14,'For Bill Impact(HideBeforeFile)'!$D$61:$Q$61,0)) -> 209157.5 | O14: ='For Bill Impact(HideBeforeFile)'!$D$5 -> Commodity
C16: =INDEX('For Bill Impact(HideBeforeFile)'!$D$48:$Q$57,MATCH(C10,'For Bill Impact(HideBeforeFile)'!$C$62:$C$71,0),MATCH($O16,'For Bill Impact(HideBeforeFile)'!$D$61:$Q$61,0)) -> Customer (excl. Bill 32) | D16: =INDEX('For Bill Impact(HideBeforeFile)'!$D$62:$Q$71,MATCH(C10,'For Bill Impact(HideBeforeFile)'!$C$62:$C$71,0),MATCH($O16,'For Bill Impact(HideBeforeFile)'!$D$61:$Q$61,0)) -> $ / month | F16: =INDEX('For Bill Impact(HideBeforeFile)'!$D$6:$Q$15,MATCH(C10,'For Bill Impact(HideBeforeFile)'!$C$62:$C$71,0),MATCH($O16,'For Bill Impact(HideBeforeFile)'!$D$61:$Q$61,0)) -> 190 | H16: =INDEX('For Bill Impact(HideBeforeFile)'!$D$20:$Q$29,MATCH(C10,'For Bill Impact(HideBeforeFile)'!$C$62:$C$71,0),MATCH($O16,'For Bill Impact(HideBeforeFile)'!$D$61:$Q$61,0)) -> 190 | J16: =INDEX('For Bill Impact(HideBeforeFile)'!$D$34:$Q$43,MATCH(C10,'For Bill Impact(HideBeforeFile)'!$C$62:$C$71,0),MATCH($O16,'For Bill Impact(HideBeforeFile)'!$D$61:$Q$61,0)) -> 12 | O16: ='For Bill Impact(HideBeforeFile)'!$M$5 -> Dist. Customer Rate
C17: =INDEX('For Bill Impact(HideBeforeFile)'!$D$48:$Q$57,MATCH(C10,'For Bill Impact(HideBeforeFile)'!$C$62:$C$71,0),MATCH($O17,'For Bill Impact(HideBeforeFile)'!$D$61:$Q$61,0)) -> Delivery - Firm | D17: =INDEX('For Bill Impact(HideBeforeFile)'!$D$62:$Q$71,MATCH(C10,'For Bill Impact(HideBeforeFile)'!$C$62:$C$71,0),MATCH($O17,'For Bill Impact(HideBeforeFile)'!$D$61:$Q$61,0)) -> cents / m3 | F17: =INDEX('For Bill Impact(HideBeforeFile)'!$D$6:$Q$15,MATCH(C10,'For Bill Impact(HideBeforeFile)'!$C$62:$C$71,0),MATCH($O17,'For Bill Impact(HideBeforeFile)'!$D$61:$Q$61,0)) -> 7.8027 | H17: =INDEX('For Bill Impact(HideBeforeFile)'!$D$20:$Q$29,MATCH(C10,'For Bill Impact(HideBeforeFile)'!$C$62:$C$71,0),MATCH($O17,'For Bill Impact(HideBeforeFile)'!$D$61:$Q$61,0)) -> 8.060590841 | J17: =INDEX('For Bill Impact(HideBeforeFile)'!$D$34:$Q$43,MATCH(C10,'For Bill Impact(HideBeforeFile)'!$C$62:$C$71,0),MATCH($O17,'For Bill Impact(HideBeforeFile)'!$D$61:$Q$61,0)) -> 209157.5 | O17: ='For Bill Impact(HideBeforeFile)'!$N$5 -> Dist. Vol. Rate Tier 1
C18: =INDEX('For Bill Impact(HideBeforeFile)'!$D$48:$Q$57,MATCH(C10,'For Bill Impact(HideBeforeFile)'!$C$62:$C$71,0),MATCH($O18,'For Bill Impact(HideBeforeFile)'!$D$61:$Q$61,0)) ->  | D18: =INDEX('For Bill Impact(HideBeforeFile)'!$D$62:$Q$71,MATCH(C10,'For Bill Impact(HideBeforeFile)'!$C$62:$C$71,0),MATCH($O18,'For Bill Impact(HideBeforeFile)'!$D$61:$Q$61,0)) ->  | F18: =INDEX('For Bill Impact(HideBeforeFile)'!$D$6:$Q$15,MATCH(C10,'For Bill Impact(HideBeforeFile)'!$C$62:$C$71,0),MATCH($O18,'For Bill Impact(HideBeforeFile)'!$D$61:$Q$61,0)) ->  | H18: =INDEX('For Bill Impact(HideBeforeFile)'!$D$20:$Q$29,MATCH(C10,'For Bill Impact(HideBeforeFile)'!$C$62:$C$71,0),MATCH($O18,'For Bill Impact(HideBeforeFile)'!$D$61:$Q$61,0)) ->  | J18: =INDEX('For Bill Impact(HideBeforeFile)'!$D$34:$Q$43,MATCH(C10,'For Bill Impact(HideBeforeFile)'!$C$62:$C$71,0),MATCH($O18,'For Bill Impact(HideBeforeFile)'!$D$61:$Q$61,0)) ->  | O18: ='For Bill Impact(HideBeforeFile)'!$O$5 -> Dist. Vol. Rate Tier 2
C19: =INDEX('For Bill Impact(HideBeforeFile)'!$D$48:$Q$57,MATCH(C10,'For Bill Impact(HideBeforeFile)'!$C$62:$C$71,0),MATCH($O19,'For Bill Impact(HideBeforeFile)'!$D$61:$Q$61,0)) ->  | D19: =INDEX('For Bill Impact(HideBeforeFile)'!$D$62:$Q$71,MATCH(C10,'For Bill Impact(HideBeforeFile)'!$C$62:$C$71,0),MATCH($O19,'For Bill Impact(HideBeforeFile)'!$D$61:$Q$61,0)) ->  | F19: =INDEX('For Bill Impact(HideBeforeFile)'!$D$6:$Q$15,MATCH(C10,'For Bill Impact(HideBeforeFile)'!$C$62:$C$71,0),MATCH($O19,'For Bill Impact(HideBeforeFile)'!$D$61:$Q$61,0)) ->  | H19: =INDEX('For Bill Impact(HideBeforeFile)'!$D$20:$Q$29,MATCH(C10,'For Bill Impact(HideBeforeFile)'!$C$62:$C$71,0),MATCH($O19,'For Bill Impact(HideBeforeFile)'!$D$61:$Q$61,0)) ->  | J19: =INDEX('For Bill Impact(HideBeforeFile)'!$D$34:$Q$43,MATCH(C10,'For Bill Impact(HideBeforeFile)'!$C$62:$C$71,0),MATCH($O19,'For Bill Impact(HideBeforeFile)'!$D$61:$Q$61,0)) ->  | O19: ='For Bill Impact(HideBeforeFile)'!$P$5 -> Dist. Vol. Rate Tier 3
C20: =INDEX('For Bill Impact(HideBeforeFile)'!$D$48:$Q$57,MATCH(C10,'For Bill Impact(HideBeforeFile)'!$C$62:$C$71,0),MATCH($O20,'For Bill Impact(HideBeforeFile)'!$D$61:$Q$61,0)) ->  | D20: =INDEX('For Bill Impact(HideBeforeFile)'!$D$62:$Q$71,MATCH(C10,'For Bill Impact(HideBeforeFile)'!$C$62:$C$71,0),MATCH($O20,'For Bill Impact(HideBeforeFile)'!$D$61:$Q$61,0)) ->  | F20: =INDEX('For Bill Impact(HideBeforeFile)'!$D$6:$Q$15,MATCH(C10,'For Bill Impact(HideBeforeFile)'!$C$62:$C$71,0),MATCH($O20,'For Bill Impact(HideBeforeFile)'!$D$61:$Q$61,0)) ->  | H20: =INDEX('For Bill Impact(HideBeforeFile)'!$D$20:$Q$29,MATCH(C10,'For Bill Impact(HideBeforeFile)'!$C$62:$C$71,0),MATCH($O20,'For Bill Impact(HideBeforeFile)'!$D$61:$Q$61,0)) ->  | J20: =INDEX('For Bill Impact(HideBeforeFile)'!$D$34:$Q$43,MATCH(C10,'For Bill Impact(HideBeforeFile)'!$C$62:$C$71,0),MATCH($O20,'For Bill Impact(HideBeforeFile)'!$D$61:$Q$61,0)) ->  | O20: ='For Bill Impact(HideBeforeFile)'!$Q$5 -> Dist. Capacity Rate
C21: =INDEX('For Bill Impact(HideBeforeFile)'!$D$48:$Q$57,MATCH(C10,'For Bill Impact(HideBeforeFile)'!$C$62:$C$71,0),MATCH($O21,'For Bill Impact(HideBeforeFile)'!$D$61:$Q$61,0)) -> System Gas Charge | D21: =INDEX('For Bill Impact(HideBeforeFile)'!$D$62:$Q$71,MATCH(C10,'For Bill Impact(HideBeforeFile)'!$C$62:$C$71,0),MATCH($O21,'For Bill Impact(HideBeforeFile)'!$D$61:$Q$61,0)) -> cents / m3 | F21: =INDEX('For Bill Impact(HideBeforeFile)'!$D$6:$Q$15,MATCH(C10,'For Bill Impact(HideBeforeFile)'!$C$62:$C$71,0),MATCH($O21,'For Bill Impact(HideBeforeFile)'!$D$61:$Q$61,0)) -> 0.0435 | H21: =INDEX('For Bill Impact(HideBeforeFile)'!$D$20:$Q$29,MATCH(C10,'For Bill Impact(HideBeforeFile)'!$C$62:$C$71,0),MATCH($O21,'For Bill Impact(HideBeforeFile)'!$D$61:$Q$61,0)) -> 0.0435 | J21: =INDEX('For Bill Impact(HideBeforeFile)'!$D$34:$Q$43,MATCH(C10,'For Bill Impact(HideBeforeFile)'!$C$62:$C$71,0),MATCH($O21,'For Bill Impact(HideBeforeFile)'!$D$61:$Q$61,0)) -> 209157.5 | O21: ='For Bill Impact(HideBeforeFile)'!$E$5 -> System Gas
C23: =INDEX('For Bill Impact(HideBeforeFile)'!$D$48:$Q$57,MATCH(C10,'For Bill Impact(HideBeforeFile)'!$C$62:$C$71,0),MATCH($O23,'For Bill Impact(HideBeforeFile)'!$D$61:$Q$61,0)) -> REDA | D23: =INDEX('For Bill Impact(HideBeforeFile)'!$D$62:$Q$71,MATCH(C10,'For Bill Impact(HideBeforeFile)'!$C$62:$C$71,0),MATCH($O23,'For Bill Impact(HideBeforeFile)'!$D$61:$Q$61,0)) -> $ / month | F23: =INDEX('For Bill Impact(HideBeforeFile)'!$D$6:$Q$15,MATCH(C10,'For Bill Impact(HideBeforeFile)'!$C$62:$C$71,0),MATCH($O23,'For Bill Impact(HideBeforeFile)'!$D$61:$Q$61,0)) -> 0.78 | H23: =INDEX('For Bill Impact(HideBeforeFile)'!$D$20:$Q$29,MATCH(C10,'For Bill Impact(HideBeforeFile)'!$C$62:$C$71,0),MATCH($O23,'For Bill Impact(HideBeforeFile)'!$D$61:$Q$61,0)) -> 0.33 | J23: =INDEX('For Bill Impact(HideBeforeFile)'!$D$34:$Q$43,MATCH(C10,'For Bill Impact(HideBeforeFile)'!$C$62:$C$71,0),MATCH($O23,'For Bill Impact(HideBeforeFile)'!$D$61:$Q$61,0)) -> 12 | O23: ='For Bill Impact(HideBeforeFile)'!$F$5 -> REDA
C24: =INDEX('For Bill Impact(HideBeforeFile)'!$D$48:$Q$57,MATCH(C10,'For Bill Impact(HideBeforeFile)'!$C$62:$C$71,0),MATCH($O24,'For Bill Impact(HideBeforeFile)'!$D$61:$Q$61,0)) -> PGTVA | D24: =INDEX('For Bill Impact(HideBeforeFile)'!$D$62:$Q$71,MATCH(C10,'For Bill Impact(HideBeforeFile)'!$C$62:$C$71,0),MATCH($O24,'For Bill Impact(HideBeforeFile)'!$D$61:$Q$61,0)) -> cents / m3 | F24: =INDEX('For Bill Impact(HideBeforeFile)'!$D$6:$Q$15,MATCH(C10,'For Bill Impact(HideBeforeFile)'!$C$62:$C$71,0),MATCH($O24,'For Bill Impact(HideBeforeFile)'!$D$61:$Q$61,0)) -> 0.3113 | H24: =INDEX('For Bill Impact(HideBeforeFile)'!$D$20:$Q$29,MATCH(C10,'For Bill Impact(HideBeforeFile)'!$C$62:$C$71,0),MATCH($O24,'For Bill Impact(HideBeforeFile)'!$D$61:$Q$61,0)) -> 0.3194846212 | J24: =INDEX('For Bill Impact(HideBeforeFile)'!$D$34:$Q$43,MATCH(C10,'For Bill Impact(HideBeforeFile)'!$C$62:$C$71,0),MATCH($O24,'For Bill Impact(HideBeforeFile)'!$D$61:$Q$61,0)) -> 209157.5 | O24: ='For Bill Impact(HideBeforeFile)'!$G$5 -> PGTVA
C25: =INDEX('For Bill Impact(HideBeforeFile)'!$D$48:$Q$57,MATCH(C10,'For Bill Impact(HideBeforeFile)'!$C$62:$C$71,0),MATCH($O25,'For Bill Impact(HideBeforeFile)'!$D$61:$Q$61,0)) -> ADVADA | D25: =INDEX('For Bill Impact(HideBeforeFile)'!$D$62:$Q$71,MATCH(C10,'For Bill Impact(HideBeforeFile)'!$C$62:$C$71,0),MATCH($O25,'For Bill Impact(HideBeforeFile)'!$D$61:$Q$61,0)) -> cents / m3 | F25: =INDEX('For Bill Impact(HideBeforeFile)'!$D$6:$Q$15,MATCH(C10,'For Bill Impact(HideBeforeFile)'!$C$62:$C$71,0),MATCH($O25,'For Bill Impact(HideBeforeFile)'!$D$61:$Q$61,0)) -> 0.1508 | H25: =INDEX('For Bill Impact(HideBeforeFile)'!$D$20:$Q$29,MATCH(C10,'For Bill Impact(HideBeforeFile)'!$C$62:$C$71,0),MATCH($O25,'For Bill Impact(HideBeforeFile)'!$D$61:$Q$61,0)) -> 0 | J25: =INDEX('For Bill Impact(HideBeforeFile)'!$D$34:$Q$43,MATCH(C10,'For Bill Impact(HideBeforeFile)'!$C$62:$C$71,0),MATCH($O25,'For Bill Impact(HideBeforeFile)'!$D$61:$Q$61,0)) -> 209157.5 | O25: ='For Bill Impact(HideBeforeFile)'!$H$5 -> ADVADA
C26: =INDEX('For Bill Impact(HideBeforeFile)'!$D$48:$Q$57,MATCH(C10,'For Bill Impact(HideBeforeFile)'!$C$62:$C$71,0),MATCH($O26,'For Bill Impact(HideBeforeFile)'!$D$61:$Q$61,0)) -> LDMDA | D26: =INDEX('For Bill Impact(HideBeforeFile)'!$D$62:$Q$71,MATCH(C10,'For Bill Impact(HideBeforeFile)'!$C$62:$C$71,0),MATCH($O26,'For Bill Impact(HideBeforeFile)'!$D$61:$Q$61,0)) -> $ / month | F26: =INDEX('For Bill Impact(HideBeforeFile)'!$D$6:$Q$15,MATCH(C10,'For Bill Impact(HideBeforeFile)'!$C$62:$C$71,0),MATCH($O26,'For Bill Impact(HideBeforeFile)'!$D$61:$Q$61,0)) -> 0 | H26: =INDEX('For Bill Impact(HideBeforeFile)'!$D$20:$Q$29,MATCH(C10,'For Bill Impact(HideBeforeFile)'!$C$62:$C$71,0),MATCH($O26,'For Bill Impact(HideBeforeFile)'!$D$61:$Q$61,0)) -> 0 | J26: =INDEX('For Bill Impact(HideBeforeFile)'!$D$34:$Q$43,MATCH(C10,'For Bill Impact(HideBeforeFile)'!$C$62:$C$71,0),MATCH($O26,'For Bill Impact(HideBeforeFile)'!$D$61:$Q$61,0)) -> 12 | O26: LDMDA
C27: =INDEX('For Bill Impact(HideBeforeFile)'!$D$48:$Q$57,MATCH(C10,'For Bill Impact(HideBeforeFile)'!$C$62:$C$71,0),MATCH($O27,'For Bill Impact(HideBeforeFile)'!$D$61:$Q$61,0)) -> SICDA | D27: =INDEX('For Bill Impact(HideBeforeFile)'!$D$62:$Q$71,MATCH(C10,'For Bill Impact(HideBeforeFile)'!$C$62:$C$71,0),MATCH($O27,'For Bill Impact(HideBeforeFile)'!$D$61:$Q$61,0)) -> cents / m3 | F27: =INDEX('For Bill Impact(HideBeforeFile)'!$D$6:$Q$15,MATCH(C10,'For Bill Impact(HideBeforeFile)'!$C$62:$C$71,0),MATCH($O27,'For Bill Impact(HideBeforeFile)'!$D$61:$Q$61,0)) -> 0 | H27: =INDEX('For Bill Impact(HideBeforeFile)'!$D$20:$Q$29,MATCH(C10,'For Bill Impact(HideBeforeFile)'!$C$62:$C$71,0),MATCH($O27,'For Bill Impact(HideBeforeFile)'!$D$61:$Q$61,0)) -> 0.2372 | J27: =INDEX('For Bill Impact(HideBeforeFile)'!$D$34:$Q$43,MATCH(C10,'For Bill Impact(HideBeforeFile)'!$C$62:$C$71,0),MATCH($O27,'For Bill Impact(HideBeforeFile)'!$D$61:$Q$61,0)) -> 209157.5 | O27: SICDA
C29: =INDEX('For Bill Impact(HideBeforeFile)'!$D$48:$Q$57,MATCH(C10,'For Bill Impact(HideBeforeFile)'!$C$62:$C$71,0),MATCH($O29,'For Bill Impact(HideBeforeFile)'!$D$61:$Q$61,0)) -> Federal Carbon | D29: =INDEX('For Bill Impact(HideBeforeFile)'!$D$62:$Q$71,MATCH(C10,'For Bill Impact(HideBeforeFile)'!$C$62:$C$71,0),MATCH($O29,'For Bill Impact(HideBeforeFile)'!$D$61:$Q$61,0)) -> cents / m3 | F29: =INDEX('For Bill Impact(HideBeforeFile)'!$D$6:$Q$15,MATCH(C10,'For Bill Impact(HideBeforeFile)'!$C$62:$C$71,0),MATCH($O29,'For Bill Impact(HideBeforeFile)'!$D$61:$Q$61,0)) -> 7.83 | H29: =INDEX('For Bill Impact(HideBeforeFile)'!$D$20:$Q$29,MATCH(C10,'For Bill Impact(HideBeforeFile)'!$C$62:$C$71,0),MATCH($O29,'For Bill Impact(HideBeforeFile)'!$D$61:$Q$61,0)) -> 7.83 | J29: =INDEX('For Bill Impact(HideBeforeFile)'!$D$34:$Q$43,MATCH(C10,'For Bill Impact(HideBeforeFile)'!$C$62:$C$71,0),MATCH($O29,'For Bill Impact(HideBeforeFile)'!$D$61:$Q$61,0)) -> 209157.5 | O29: ='For Bill Impact(HideBeforeFile)'!$K$5 -> Federal Carbon
C30: =INDEX('For Bill Impact(HideBeforeFile)'!$D$48:$Q$57,MATCH(C10,'For Bill Impact(HideBeforeFile)'!$C$62:$C$71,0),MATCH($O30,'For Bill Impact(HideBeforeFile)'!$D$61:$Q$61,0)) -> Facility Carbon | D30: =INDEX('For Bill Impact(HideBeforeFile)'!$D$62:$Q$71,MATCH(C10,'For Bill Impact(HideBeforeFile)'!$C$62:$C$71,0),MATCH($O30,'For Bill Impact(HideBeforeFile)'!$D$61:$Q$61,0)) -> cents / m3 | F30: =INDEX('For Bill Impact(HideBeforeFile)'!$D$6:$Q$15,MATCH(C10,'For Bill Impact(HideBeforeFile)'!$C$62:$C$71,0),MATCH($O30,'For Bill Impact(HideBeforeFile)'!$D$61:$Q$61,0)) -> 0.0052 | H30: =INDEX('For Bill Impact(HideBeforeFile)'!$D$20:$Q$29,MATCH(C10,'For Bill Impact(HideBeforeFile)'!$C$62:$C$71,0),MATCH($O30,'For Bill Impact(HideBeforeFile)'!$D$61:$Q$61,0)) -> 0.0052 | J30: =INDEX('For Bill Impact(HideBeforeFile)'!$D$34:$Q$43,MATCH(C10,'For Bill Impact(HideBeforeFile)'!$C$62:$C$71,0),MATCH($O30,'For Bill Impact(HideBeforeFile)'!$D$61:$Q$61,0)) -> 209157.5 | O30: ='For Bill Impact(HideBeforeFile)'!$L$5 -> Facility Carbon
C33: Commodity | F33: Current | H33: Proposed | J33: Change $ | L33: Change %
F34: =F14*$J14/100 -> 27738.88596 | H34: =H14*$J14/100 -> 27738.88596 | J34: =H34-F34 -> 0 | L34: =IFERROR(J34/F34,"") -> 0 | O34: ='For Bill Impact(HideBeforeFile)'!$D$5 -> Commodity
C36: Delivery | F36: Current Rate | H36: Proposed Rate | J36: Change $ | L36: Change %
C37: =IF(C16<>"",C16,"") -> Customer (excl. Bill 32) | F37: =F16*$J16 -> 2280 | H37: =H16*$J16 -> 2280 | J37: =IFERROR(H37-F37,"") -> 0 | L37: =IFERROR(J37/F37,"") -> 0 | O37: ='For Bill Impact(HideBeforeFile)'!$M$5 -> Dist. Customer Rate
C38: Bill 32 | F38: 12 | H38: 12 | J38: =IFERROR(H38-F38,"") -> 0 | L38: =IFERROR(J38/F38,"") -> 0
C39: =IF(C17<>"",C17,"") -> Delivery - Firm | F39: =IFERROR(F17*$J17/100,"") -> 16319.93225 | H39: =IFERROR(H17*$J17/100,"") -> 16859.33029 | J39: =IFERROR(H39-F39,"") -> 539.3980353 | L39: =IFERROR(J39/F39,"") -> 0.03305148741 | O39: ='For Bill Impact(HideBeforeFile)'!$N$5 -> Dist. Vol. Rate Tier 1
C40: =IF(C18<>"",C18,"") ->  | F40: =IFERROR(F18*$J18/100,"") ->  | H40: =IFERROR(H18*$J18/100,"") ->  | O40: ='For Bill Impact(HideBeforeFile)'!$O$5 -> Dist. Vol. Rate Tier 2
C41: =IF(C19<>"",C19,"") ->  | F41: =IFERROR(F19*$J19/100,"") ->  | H41: =IFERROR(H19*$J19/100,"") ->  | O41: ='For Bill Impact(HideBeforeFile)'!$P$5 -> Dist. Vol. Rate Tier 3
C42: =IF(C20<>"",C20,"") ->  | F42: =IFERROR(F20*$J20/100,"") ->  | H42: =IFERROR(H20*$J20/100,"") ->  | O42: ='For Bill Impact(HideBeforeFile)'!$Q$5 -> Dist. Capacity Rate
C43: =IF(C21<>"",C21,"") -> System Gas Charge | F43: =IFERROR(F21*$J21/100,"") -> 90.9835125 | H43: =IFERROR(H21*$J21/100,"") -> 90.9835125 | J43: 0 | L43: 0 | O43: ='For Bill Impact(HideBeforeFile)'!$E$5 -> System Gas
C44: Total Delivery | F44: =SUM(F37:F43) -> 18702.91576 | H44: =SUM(H37:H43) -> 19242.3138 | J44: =H44-F44 -> 539.3980353 | L44: =IF(ISERROR(J44/F44),0,J44/F44) -> 0.02884031785
C46: Rate Riders
C48: Rate Riders | F48: Current Rate | H48: Proposed Rate | J48: Change $ | L48: Change %
C49: =C23 -> REDA | F49: =F23*$J23 -> 9.36 | H49: =H23*$J23 -> 3.96 | J49: =IFERROR(H49-F49,"") -> -5.4 | L49: =IFERROR(J49/F49,"") -> -0.5769230769 | O49: ='For Bill Impact(HideBeforeFile)'!$F$5 -> REDA
C50: =C24 -> PGTVA | F50: =IFERROR(F24*$J24/100,"") -> 651.1072975 | H50: =IFERROR(H24*$J24/100,"") -> 668.2260465 | J50: =IFERROR(H50-F50,"") -> 17.11874903 | L50: =IFERROR(J50/F50,"") -> 0.02629174806 | O50: ='For Bill Impact(HideBeforeFile)'!$G$5 -> PGTVA
C51: ADVADA | F51: =IFERROR(F25*$J25/100,"") -> 315.40951 | H51: =IFERROR(H25*$J25/100,"") -> 0 | J51: -315.40951 | L51: -1 | O51: ='For Bill Impact(HideBeforeFile)'!$H$5 -> ADVADA
C52: LDMDA | F52: =IFERROR(F26*$J26/100,"") -> 0 | H52: =H26*$J26 -> 0 | J52: =IFERROR(H52-F52,"") -> 0 | O52: ='For Bill Impact(HideBeforeFile)'!$I$5 -> LDMDA
C53: SICDA | F53: =IFERROR(F27*$J27/100,"") -> 0 | H53: =IFERROR(H27*$J27/100,"") -> 496.12159 | J53: =H53 -> 496.12159 | O53: ='For Bill Impact(HideBeforeFile)'!$J$5 -> SICDA
C54: Total Rate Riders | F54: =SUM(F49:F53) -> 975.8768075 | H54: =SUM(H49:H53) -> 1168.307637 | J54: =SUM(J49:J53) -> 192.430829 | L54: =IF(ISERROR(J54/F54),0,J54/F54) -> 0.197187624
C56: Carbon Tax
C57: Federal Carbon | F57: =F29*$J29/100 -> 16377.03225 | H57: =H29*$J29/100 -> 16377.03225 | J57: =IFERROR(H57-F57,"") -> 0 | L57: =IFERROR(J57/F57,"") -> 0
C58: Facility Carbon | F58: =F30*$J30/100 -> 10.87619 | H58: =H30*$J30/100 -> 10.87619 | J58: =IFERROR(H58-F58,"") -> 0 | L58: 0
C59: Total Carbon Tax | F59: =SUM(F57:F58) -> 16387.90844 | H59: =SUM(H57:H58) -> 16387.90844 | J59: =SUM(J57:J58) -> 0 | L59: =IF(ISERROR(J59/F59),0,J59/F59) -> 0
C61: Total Bill Impact | F61: =SUM(F34,F44,F54,F59) -> 63805.58698 | H61: =SUM(H34,H44,H54,H59) -> 64537.41584 | J61: =SUM(J34,J44,J54,J59) -> 731.8288644 | L61: =IFERROR(J61/F61,"") -> 0.01146966745
C64: =MID(CELL("filename",A1),FIND("]",CELL("filename",A1))+1,255) -> G1.5 Rate 5 Bill Impact

Sheet G1.6 Rate 6 Bill Impact
C2: ='A1.1 Distributor Information'!C3 -> Name of LDC: EPCOR Natural Gas Limited Partnership
C3: ='A1.1 Distributor Information'!C4 -> OEB Application Number: EB-2021-0215 Exhibit A - 2022 IRM Application
C7: Rate 6 Delivery Bill Impact
C10: ='For Bill Impact(HideBeforeFile)'!C15 -> RATE 6 - Integrated Grain Processors Co-Operative Aylmer Ethanol Production Facility | F10: Current | H10: Proposed | J10: Bill Determinant | O10: Look-up
C14: =INDEX('For Bill Impact(HideBeforeFile)'!$D$48:$Q$57,MATCH(C10,'For Bill Impact(HideBeforeFile)'!$C$62:$C$71,0),MATCH($O14,'For Bill Impact(HideBeforeFile)'!$D$61:$Q$61,0)) ->  | D14: =INDEX('For Bill Impact(HideBeforeFile)'!$D$62:$Q$71,MATCH(C10,'For Bill Impact(HideBeforeFile)'!$C$62:$C$71,0),MATCH($O14,'For Bill Impact(HideBeforeFile)'!$D$61:$Q$61,0)) ->  | F14: =INDEX('For Bill Impact(HideBeforeFile)'!$D$6:$Q$15,MATCH(C10,'For Bill Impact(HideBeforeFile)'!$C$62:$C$71,0),MATCH($O14,'For Bill Impact(HideBeforeFile)'!$D$61:$Q$61,0)) ->  | H14: =INDEX('For Bill Impact(HideBeforeFile)'!$D$20:$Q$29,MATCH(C10,'For Bill Impact(HideBeforeFile)'!$C$62:$C$71,0),MATCH($O14,'For Bill Impact(HideBeforeFile)'!$D$61:$Q$61,0)) ->  | J14: =INDEX('For Bill Impact(HideBeforeFile)'!$D$34:$Q$43,MATCH(C10,'For Bill Impact(HideBeforeFile)'!$C$62:$C$71,0),MATCH($O14,'For Bill Impact(HideBeforeFile)'!$D$61:$Q$61,0)) ->  | O14: ='For Bill Impact(HideBeforeFile)'!$D$5 -> Commodity
C16: =INDEX('For Bill Impact(HideBeforeFile)'!$D$48:$Q$57,MATCH(C10,'For Bill Impact(HideBeforeFile)'!$C$62:$C$71,0),MATCH($O16,'For Bill Impact(HideBeforeFile)'!$D$61:$Q$61,0)) -> Customer (excl. Bill 32) | D16: =INDEX('For Bill Impact(HideBeforeFile)'!$D$62:$Q$71,MATCH(C10,'For Bill Impact(HideBeforeFile)'!$C$62:$C$71,0),MATCH($O16,'For Bill Impact(HideBeforeFile)'!$D$61:$Q$61,0)) -> $ / month | F16: =INDEX('For Bill Impact(HideBeforeFile)'!$D$6:$Q$15,MATCH(C10,'For Bill Impact(HideBeforeFile)'!$C$62:$C$71,0),MATCH($O16,'For Bill Impact(HideBeforeFile)'!$D$61:$Q$61,0)) -> 62332.06 | H16: =INDEX('For Bill Impact(HideBeforeFile)'!$D$20:$Q$29,MATCH(C10,'For Bill Impact(HideBeforeFile)'!$C$62:$C$71,0),MATCH($O16,'For Bill Impact(HideBeforeFile)'!$D$61:$Q$61,0)) -> 64139.68974 | J16: =INDEX('For Bill Impact(HideBeforeFile)'!$D$34:$Q$43,MATCH(C10,'For Bill Impact(HideBeforeFile)'!$C$62:$C$71,0),MATCH($O16,'For Bill Impact(HideBeforeFile)'!$D$61:$Q$61,0)) -> 12 | O16: ='For Bill Impact(HideBeforeFile)'!$M$5 -> Dist. Customer Rate
C17: =INDEX('For Bill Impact(HideBeforeFile)'!$D$48:$Q$57,MATCH(C10,'For Bill Impact(HideBeforeFile)'!$C$62:$C$71,0),MATCH($O17,'For Bill Impact(HideBeforeFile)'!$D$61:$Q$61,0)) ->  | D17: =INDEX('For Bill Impact(HideBeforeFile)'!$D$62:$Q$71,MATCH(C10,'For Bill Impact(HideBeforeFile)'!$C$62:$C$71,0),MATCH($O17,'For Bill Impact(HideBeforeFile)'!$D$61:$Q$61,0)) ->  | F17: =INDEX('For Bill Impact(HideBeforeFile)'!$D$6:$Q$15,MATCH(C10,'For Bill Impact(HideBeforeFile)'!$C$62:$C$71,0),MATCH($O17,'For Bill Impact(HideBeforeFile)'!$D$61:$Q$61,0)) ->  | H17: =INDEX('For Bill Impact(HideBeforeFile)'!$D$20:$Q$29,MATCH(C10,'For Bill Impact(HideBeforeFile)'!$C$62:$C$71,0),MATCH($O17,'For Bill Impact(HideBeforeFile)'!$D$61:$Q$61,0)) ->  | J17: =INDEX('For Bill Impact(HideBeforeFile)'!$D$34:$Q$43,MATCH(C10,'For Bill Impact(HideBeforeFile)'!$C$62:$C$71,0),MATCH($O17,'For Bill Impact(HideBeforeFile)'!$D$61:$Q$61,0)) ->  | O17: ='For Bill Impact(HideBeforeFile)'!$N$5 -> Dist. Vol. Rate Tier 1
C18: =INDEX('For Bill Impact(HideBeforeFile)'!$D$48:$Q$57,MATCH(C10,'For Bill Impact(HideBeforeFile)'!$C$62:$C$71,0),MATCH($O18,'For Bill Impact(HideBeforeFile)'!$D$61:$Q$61,0)) ->  | D18: =INDEX('For Bill Impact(HideBeforeFile)'!$D$62:$Q$71,MATCH(C10,'For Bill Impact(HideBeforeFile)'!$C$62:$C$71,0),MATCH($O18,'For Bill Impact(HideBeforeFile)'!$D$61:$Q$61,0)) ->  | F18: =INDEX('For Bill Impact(HideBeforeFile)'!$D$6:$Q$15,MATCH(C10,'For Bill Impact(HideBeforeFile)'!$C$62:$C$71,0),MATCH($O18,'For Bill Impact(HideBeforeFile)'!$D$61:$Q$61,0)) ->  | H18: =INDEX('For Bill Impact(HideBeforeFile)'!$D$20:$Q$29,MATCH(C10,'For Bill Impact(HideBeforeFile)'!$C$62:$C$71,0),MATCH($O18,'For Bill Impact(HideBeforeFile)'!$D$61:$Q$61,0)) ->  | J18: =INDEX('For Bill Impact(HideBeforeFile)'!$D$34:$Q$43,MATCH(C10,'For Bill Impact(HideBeforeFile)'!$C$62:$C$71,0),MATCH($O18,'For Bill Impact(HideBeforeFile)'!$D$61:$Q$61,0)) ->  | O18: ='For Bill Impact(HideBeforeFile)'!$O$5 -> Dist. Vol. Rate Tier 2
C19: =INDEX('For Bill Impact(HideBeforeFile)'!$D$48:$Q$57,MATCH(C10,'For Bill Impact(HideBeforeFile)'!$C$62:$C$71,0),MATCH($O19,'For Bill Impact(HideBeforeFile)'!$D$61:$Q$61,0)) ->  | D19: =INDEX('For Bill Impact(HideBeforeFile)'!$D$62:$Q$71,MATCH(C10,'For Bill Impact(HideBeforeFile)'!$C$62:$C$71,0),MATCH($O19,'For Bill Impact(HideBeforeFile)'!$D$61:$Q$61,0)) ->  | F19: =INDEX('For Bill Impact(HideBeforeFile)'!$D$6:$Q$15,MATCH(C10,'For Bill Impact(HideBeforeFile)'!$C$62:$C$71,0),MATCH($O19,'For Bill Impact(HideBeforeFile)'!$D$61:$Q$61,0)) ->  | H19: =INDEX('For Bill Impact(HideBeforeFile)'!$D$20:$Q$29,MATCH(C10,'For Bill Impact(HideBeforeFile)'!$C$62:$C$71,0),MATCH($O19,'For Bill Impact(HideBeforeFile)'!$D$61:$Q$61,0)) ->  | J19: =INDEX('For Bill Impact(HideBeforeFile)'!$D$34:$Q$43,MATCH(C10,'For Bill Impact(HideBeforeFile)'!$C$62:$C$71,0),MATCH($O19,'For Bill Impact(HideBeforeFile)'!$D$61:$Q$61,0)) ->  | O19: ='For Bill Impact(HideBeforeFile)'!$P$5 -> Dist. Vol. Rate Tier 3
C20: =INDEX('For Bill Impact(HideBeforeFile)'!$D$48:$Q$57,MATCH(C10,'For Bill Impact(HideBeforeFile)'!$C$62:$C$71,0),MATCH($O20,'For Bill Impact(HideBeforeFile)'!$D$61:$Q$61,0)) ->  | D20: =INDEX('For Bill Impact(HideBeforeFile)'!$D$62:$Q$71,MATCH(C10,'For Bill Impact(HideBeforeFile)'!$C$62:$C$71,0),MATCH($O20,'For Bill Impact(HideBeforeFile)'!$D$61:$Q$61,0)) ->  | F20: =INDEX('For Bill Impact(HideBeforeFile)'!$D$6:$Q$15,MATCH(C10,'For Bill Impact(HideBeforeFile)'!$C$62:$C$71,0),MATCH($O20,'For Bill Impact(HideBeforeFile)'!$D$61:$Q$61,0)) ->  | H20: =INDEX('For Bill Impact(HideBeforeFile)'!$D$20:$Q$29,MATCH(C10,'For Bill Impact(HideBeforeFile)'!$C$62:$C$71,0),MATCH($O20,'For Bill Impact(HideBeforeFile)'!$D$61:$Q$61,0)) ->  | J20: =INDEX('For Bill Impact(HideBeforeFile)'!$D$34:$Q$43,MATCH(C10,'For Bill Impact(HideBeforeFile)'!$C$62:$C$71,0),MATCH($O20,'For Bill Impact(HideBeforeFile)'!$D$61:$Q$61,0)) ->  | O20: ='For Bill Impact(HideBeforeFile)'!$Q$5 -> Dist. Capacity Rate
C21: =INDEX('For Bill Impact(HideBeforeFile)'!$D$48:$Q$57,MATCH(C10,'For Bill Impact(HideBeforeFile)'!$C$62:$C$71,0),MATCH($O21,'For Bill Impact(HideBeforeFile)'!$D$61:$Q$61,0)) ->  | D21: =INDEX('For Bill Impact(HideBeforeFile)'!$D$62:$Q$71,MATCH(C10,'For Bill Impact(HideBeforeFile)'!$C$62:$C$71,0),MATCH($O21,'For Bill Impact(HideBeforeFile)'!$D$61:$Q$61,0)) ->  | F21: =INDEX('For Bill Impact(HideBeforeFile)'!$D$6:$Q$15,MATCH(C10,'For Bill Impact(HideBeforeFile)'!$C$62:$C$71,0),MATCH($O21,'For Bill Impact(HideBeforeFile)'!$D$61:$Q$61,0)) ->  | H21: =INDEX('For Bill Impact(HideBeforeFile)'!$D$20:$Q$29,MATCH(C10,'For Bill Impact(HideBeforeFile)'!$C$62:$C$71,0),MATCH($O21,'For Bill Impact(HideBeforeFile)'!$D$61:$Q$61,0)) ->  | J21: =INDEX('For Bill Impact(HideBeforeFile)'!$D$34:$Q$43,MATCH(C10,'For Bill Impact(HideBeforeFile)'!$C$62:$C$71,0),MATCH($O21,'For Bill Impact(HideBeforeFile)'!$D$61:$Q$61,0)) ->  | O21: ='For Bill Impact(HideBeforeFile)'!$E$5 -> System Gas
C23: =INDEX('For Bill Impact(HideBeforeFile)'!$D$48:$Q$57,MATCH(C10,'For Bill Impact(HideBeforeFile)'!$C$62:$C$71,0),MATCH($O23,'For Bill Impact(HideBeforeFile)'!$D$61:$Q$61,0)) -> REDA | D23: =INDEX('For Bill Impact(HideBeforeFile)'!$D$62:$Q$71,MATCH(C10,'For Bill Impact(HideBeforeFile)'!$C$62:$C$71,0),MATCH($O23,'For Bill Impact(HideBeforeFile)'!$D$61:$Q$61,0)) -> $ / month | F23: =INDEX('For Bill Impact(HideBeforeFile)'!$D$6:$Q$15,MATCH(C10,'For Bill Impact(HideBeforeFile)'!$C$62:$C$71,0),MATCH($O23,'For Bill Impact(HideBeforeFile)'!$D$61:$Q$61,0)) -> 0.75 | H23: =INDEX('For Bill Impact(HideBeforeFile)'!$D$20:$Q$29,MATCH(C10,'For Bill Impact(HideBeforeFile)'!$C$62:$C$71,0),MATCH($O23,'For Bill Impact(HideBeforeFile)'!$D$61:$Q$61,0)) -> 0.27 | J23: =INDEX('For Bill Impact(HideBeforeFile)'!$D$34:$Q$43,MATCH(C10,'For Bill Impact(HideBeforeFile)'!$C$62:$C$71,0),MATCH($O23,'For Bill Impact(HideBeforeFile)'!$D$61:$Q$61,0)) -> 12 | O23: ='For Bill Impact(HideBeforeFile)'!$F$5 -> REDA
C24: =INDEX('For Bill Impact(HideBeforeFile)'!$D$48:$Q$57,MATCH(C10,'For Bill Impact(HideBeforeFile)'!$C$62:$C$71,0),MATCH($O24,'For Bill Impact(HideBeforeFile)'!$D$61:$Q$61,0)) -> PGTVA | D24: =INDEX('For Bill Impact(HideBeforeFile)'!$D$62:$Q$71,MATCH(C10,'For Bill Impact(HideBeforeFile)'!$C$62:$C$71,0),MATCH($O24,'For Bill Impact(HideBeforeFile)'!$D$61:$Q$61,0)) -> $ / month | F24: =INDEX('For Bill Impact(HideBeforeFile)'!$D$6:$Q$15,MATCH(C10,'For Bill Impact(HideBeforeFile)'!$C$62:$C$71,0),MATCH($O24,'For Bill Impact(HideBeforeFile)'!$D$61:$Q$61,0)) -> 0 | J24: =INDEX('For Bill Impact(HideBeforeFile)'!$D$34:$Q$43,MATCH(C10,'For Bill Impact(HideBeforeFile)'!$C$62:$C$71,0),MATCH($O24,'For Bill Impact(HideBeforeFile)'!$D$61:$Q$61,0)) -> 12 | O24: ='For Bill Impact(HideBeforeFile)'!$G$5 -> PGTVA
C25: =INDEX('For Bill Impact(HideBeforeFile)'!$D$48:$Q$57,MATCH(C10,'For Bill Impact(HideBeforeFile)'!$C$62:$C$71,0),MATCH($O25,'For Bill Impact(HideBeforeFile)'!$D$61:$Q$61,0)) -> ADVADA | D25: =INDEX('For Bill Impact(HideBeforeFile)'!$D$62:$Q$71,MATCH(C10,'For Bill Impact(HideBeforeFile)'!$C$62:$C$71,0),MATCH($O25,'For Bill Impact(HideBeforeFile)'!$D$61:$Q$61,0)) -> $ / month | F25: =INDEX('For Bill Impact(HideBeforeFile)'!$D$6:$Q$15,MATCH(C10,'For Bill Impact(HideBeforeFile)'!$C$62:$C$71,0),MATCH($O25,'For Bill Impact(HideBeforeFile)'!$D$61:$Q$61,0)) -> 936.83 | J25: =INDEX('For Bill Impact(HideBeforeFile)'!$D$34:$Q$43,MATCH(C10,'For Bill Impact(HideBeforeFile)'!$C$62:$C$71,0),MATCH($O25,'For Bill Impact(HideBeforeFile)'!$D$61:$Q$61,0)) -> 12 | O25: ='For Bill Impact(HideBeforeFile)'!$H$5 -> ADVADA
C26: =INDEX('For Bill Impact(HideBeforeFile)'!$D$48:$Q$57,MATCH(C10,'For Bill Impact(HideBeforeFile)'!$C$62:$C$71,0),MATCH($O26,'For Bill Impact(HideBeforeFile)'!$D$61:$Q$61,0)) -> LDMDA | D26: =INDEX('For Bill Impact(HideBeforeFile)'!$D$62:$Q$71,MATCH(C10,'For Bill Impact(HideBeforeFile)'!$C$62:$C$71,0),MATCH($O26,'For Bill Impact(HideBeforeFile)'!$D$61:$Q$61,0)) -> $ / month | F26: =INDEX('For Bill Impact(HideBeforeFile)'!$D$6:$Q$15,MATCH(C10,'For Bill Impact(HideBeforeFile)'!$C$62:$C$71,0),MATCH($O26,'For Bill Impact(HideBeforeFile)'!$D$61:$Q$61,0)) -> 0 | J26: =INDEX('For Bill Impact(HideBeforeFile)'!$D$34:$Q$43,MATCH(C10,'For Bill Impact(HideBeforeFile)'!$C$62:$C$71,0),MATCH($O26,'For Bill Impact(HideBeforeFile)'!$D$61:$Q$61,0)) -> 12 | O26: LDMDA
C27: =INDEX('For Bill Impact(HideBeforeFile)'!$D$48:$Q$57,MATCH(C10,'For Bill Impact(HideBeforeFile)'!$C$62:$C$71,0),MATCH($O27,'For Bill Impact(HideBeforeFile)'!$D$61:$Q$61,0)) -> SICDA | D27: =INDEX('For Bill Impact(HideBeforeFile)'!$D$62:$Q$71,MATCH(C10,'For Bill Impact(HideBeforeFile)'!$C$62:$C$71,0),MATCH($O27,'For Bill Impact(HideBeforeFile)'!$D$61:$Q$61,0)) -> cents / m3 | F27: =INDEX('For Bill Impact(HideBeforeFile)'!$D$6:$Q$15,MATCH(C10,'For Bill Impact(HideBeforeFile)'!$C$62:$C$71,0),MATCH($O27,'For Bill Impact(HideBeforeFile)'!$D$61:$Q$61,0)) -> 0 | J27: =INDEX('For Bill Impact(HideBeforeFile)'!$D$34:$Q$43,MATCH(C10,'For Bill Impact(HideBeforeFile)'!$C$62:$C$71,0),MATCH($O27,'For Bill Impact(HideBeforeFile)'!$D$61:$Q$61,0)) -> 12 | O27: SICDA
C29: =INDEX('For Bill Impact(HideBeforeFile)'!$D$48:$Q$57,MATCH(C10,'For Bill Impact(HideBeforeFile)'!$C$62:$C$71,0),MATCH($O29,'For Bill Impact(HideBeforeFile)'!$D$61:$Q$61,0)) ->  | D29: =INDEX('For Bill Impact(HideBeforeFile)'!$D$62:$Q$71,MATCH(C10,'For Bill Impact(HideBeforeFile)'!$C$62:$C$71,0),MATCH($O29,'For Bill Impact(HideBeforeFile)'!$D$61:$Q$61,0)) ->  | F29: =INDEX('For Bill Impact(HideBeforeFile)'!$D$6:$Q$15,MATCH(C10,'For Bill Impact(HideBeforeFile)'!$C$62:$C$71,0),MATCH($O29,'For Bill Impact(HideBeforeFile)'!$D$61:$Q$61,0)) ->  | H29: =INDEX('For Bill Impact(HideBeforeFile)'!$D$20:$Q$29,MATCH(C10,'For Bill Impact(HideBeforeFile)'!$C$62:$C$71,0),MATCH($O29,'For Bill Impact(HideBeforeFile)'!$D$61:$Q$61,0)) ->  | J29: =INDEX('For Bill Impact(HideBeforeFile)'!$D$34:$Q$43,MATCH(C10,'For Bill Impact(HideBeforeFile)'!$C$62:$C$71,0),MATCH($O29,'For Bill Impact(HideBeforeFile)'!$D$61:$Q$61,0)) ->  | O29: ='For Bill Impact(HideBeforeFile)'!$K$5 -> Federal Carbon
C30: =INDEX('For Bill Impact(HideBeforeFile)'!$D$48:$Q$57,MATCH(C10,'For Bill Impact(HideBeforeFile)'!$C$62:$C$71,0),MATCH($O30,'For Bill Impact(HideBeforeFile)'!$D$61:$Q$61,0)) -> Facility Carbon | D30: =INDEX('For Bill Impact(HideBeforeFile)'!$D$62:$Q$71,MATCH(C10,'For Bill Impact(HideBeforeFile)'!$C$62:$C$71,0),MATCH($O30,'For Bill Impact(HideBeforeFile)'!$D$61:$Q$61,0)) -> cents / m3 | F30: =INDEX('For Bill Impact(HideBeforeFile)'!$D$6:$Q$15,MATCH(C10,'For Bill Impact(HideBeforeFile)'!$C$62:$C$71,0),MATCH($O30,'For Bill Impact(HideBeforeFile)'!$D$61:$Q$61,0)) -> 0.0052 | H30: =INDEX('For Bill Impact(HideBeforeFile)'!$D$20:$Q$29,MATCH(C10,'For Bill Impact(HideBeforeFile)'!$C$62:$C$71,0),MATCH($O30,'For Bill Impact(HideBeforeFile)'!$D$61:$Q$61,0)) -> 0.0052 | J30: =INDEX('For Bill Impact(HideBeforeFile)'!$D$34:$Q$43,MATCH(C10,'For Bill Impact(HideBeforeFile)'!$C$62:$C$71,0),MATCH($O30,'For Bill Impact(HideBeforeFile)'!$D$61:$Q$61,0)) -> 59999017 | O30: ='For Bill Impact(HideBeforeFile)'!$L$5 -> Facility Carbon
C33: Commodity | F33: Current | H33: Proposed | J33: Change $ | L33: Change %
F34: =IFERROR(F14*$J14/100,"") ->  | H34: =IFERROR(H14*$J14/100,"") ->  | J34: =IFERROR(H34-F34,"") ->  | L34: =IFERROR(J34/F34,"") ->  | O34: ='For Bill Impact(HideBeforeFile)'!$D$5 -> Commodity
C36: Delivery | F36: Current Rate | H36: Proposed Rate | J36: Change $ | L36: Change %
C37: =IF(C16<>"",C16,"") -> Customer (excl. Bill 32) | F37: =F16*$J16 -> 747984.72 | H37: =H16*$J16 -> 769676.2769 | J37: =IFERROR(H37-F37,"") -> 21691.55688 | L37: =IFERROR(J37/F37,"") -> 0.029 | O37: ='For Bill Impact(HideBeforeFile)'!$M$5 -> Dist. Customer Rate
C38: Bill 32 | F38: 12 | H38: 12 | J38: =IFERROR(H38-F38,"") -> 0 | L38: =IFERROR(J38/F38,"") -> 0
C39: =IF(C17<>"",C17,"") ->  | F39: =IFERROR(F17*$J17/100,"") ->  | H39: =IFERROR(H17*$J17/100,"") ->  | J39: =IFERROR(H39-F39,"") ->  | L39: =IFERROR(J39/F39,"") ->  | O39: ='For Bill Impact(HideBeforeFile)'!$N$5 -> Dist. Vol. Rate Tier 1
C40: =IF(C18<>"",C18,"") ->  | F40: =IFERROR(F18*$J18/100,"") ->  | H40: =IFERROR(H18*$J18/100,"") ->  | O40: ='For Bill Impact(HideBeforeFile)'!$O$5 -> Dist. Vol. Rate Tier 2
C41: =IF(C19<>"",C19,"") ->  | F41: =IFERROR(F19*$J19/100,"") ->  | H41: =IFERROR(H19*$J19/100,"") ->  | O41: ='For Bill Impact(HideBeforeFile)'!$P$5 -> Dist. Vol. Rate Tier 3
C42: =IF(C20<>"",C20,"") ->  | F42: =IFERROR(F20*$J20/100,"") ->  | H42: =IFERROR(H20*$J20/100,"") ->  | O42: ='For Bill Impact(HideBeforeFile)'!$Q$5 -> Dist. Capacity Rate
C43: =IF(C21<>"",C21,"") ->  | F43: =IFERROR(F21*$J21/100,"") ->  | H43: =IFERROR(H21*$J21/100,"") ->  | O43: ='For Bill Impact(HideBeforeFile)'!$E$5 -> System Gas
C44: Total Delivery | F44: =SUM(F37:F43) -> 747996.72 | H44: =SUM(H37:H43) -> 769688.2769 | J44: =H44-F44 -> 21691.55688 | L44: =IF(ISERROR(J44/F44),0,J44/F44) -> 0.02899953476
C46: Rate Riders
C48: Rate Riders | F48: Current Rate | H48: Proposed Rate | J48: Change $ | L48: Change %
C49: =C23 -> REDA | F49: =IFERROR(F23*$J23,"") -> 9 | H49: =IFERROR(H23*$J23,"0.00") -> 3.24 | J49: =IFERROR(H49-F49,"") -> -5.76 | L49: =IFERROR(J49/F49,"") -> -0.64 | O49: ='For Bill Impact(HideBeforeFile)'!$F$5 -> REDA
C50: =C24 -> PGTVA | F50: =IFERROR(F24*$J24,"") -> 0 | H50: =IFERROR(H24*$J24,"0.00") -> 0 | J50: =IFERROR(H50-F50,"") -> 0 | L50: =IFERROR(J50/F50,"") ->  | O50: ='For Bill Impact(HideBeforeFile)'!$G$5 -> PGTVA
C51: ADVADA | F51: 11241.96 | H51: 0 | J51: -11241.96 | L51: -1 | O51: ='For Bill Impact(HideBeforeFile)'!$H$5 -> ADVADA
C52: LDMDA | F52: 0 | H52: =IFERROR(H26*$J26,"0.00") -> 0 | J52: =IFERROR(H52-F52,"") -> 0 | O52: ='For Bill Impact(HideBeforeFile)'!$I$5 -> LDMDA
C53: SICDA | F53: 0 | H53: 0 | J53: 0 | O53: ='For Bill Impact(HideBeforeFile)'!$J$5 -> SICDA
C54: Total Rate Riders | F54: =SUM(F49:F53) -> 11250.96 | H54: =SUM(H49:H53) -> 3.24 | J54: =SUM(J49:J53) -> -11247.72 | L54: =IF(ISERROR(J54/F54),0,J54/F54) -> -0.9997120246
C56: Carbon Tax
C57: Federal Carbon | F57: =IFERROR(F29*$J29/100,"") ->  | H57: =IFERROR(H29*$J29/100,"") ->  | J57: =IFERROR(H57-F57,"") ->  | L57: =IFERROR(J57/F57,"") -> 
C58: Facility Carbon | F58: =F30*$J30/100 -> 3119.948884 | H58: =H30*$J30/100 -> 3119.948884 | J58: =IFERROR(H58-F58,"") -> 0 | L58: 0
C59: Total Carbon Tax | F59: =SUM(F57:F58) -> 3119.948884 | H59: =SUM(H57:H58) -> 3119.948884 | J59: =SUM(J57:J58) -> 0 | L59: =IF(ISERROR(J59/F59),0,J59/F59) -> 0
C61: Total Bill Impact | F61: =SUM(F34,F44,F54,F59) -> 762367.6289 | H61: =SUM(H34,H44,H54,H59) -> 772811.4658 | J61: =SUM(J34,J44,J54,J59) -> 10443.83688 | L61: =IFERROR(J61/F61,"") -> 0.01369921346
C64: =MID(CELL("filename",A1),FIND("]",CELL("filename",A1))+1,255) -> G1.6 Rate 6 Bill Impact

Sheet G1.7 Summary of Bill Impacts
C2: ='A1.1 Distributor Information'!C3 -> Name of LDC: EPCOR Natural Gas Limited Partnership
C3: ='A1.1 Distributor Information'!C4 -> OEB Application Number: EB-2021-0215 Exhibit A - 2022 IRM Application
C5: Summary of Bill Impacts
C7: Rate Class | D7: Change in Delivery Charge ($ / year / customer) | E7: Change in Delivery Charge (%) | F7: Change in Rate Riders ($ / year / customer) | G7: Change in Rate Riders (%) | H7: Change in Total Bill ($ / year / customer) | I7: Change in Total Bill (%) | L7: CHECK
C9: ='G1.1 Rate 1 Bill Impact'!C10 -> RATE 1 - General Service Rate - Residential | D9: ='G1.1 Rate 1 Bill Impact'!J44 -> 14.79255123 | E9: ='G1.1 Rate 1 Bill Impact'!L44 -> 0.03105271322 | F9: ='G1.1 Rate 1 Bill Impact'!J54 -> 12.57009464 | G9: ='G1.1 Rate 1 Bill Impact'!L54 -> 0.6980312542 | H9: ='G1.1 Rate 1 Bill Impact'!J61 -> 27.36264587 | I9: ='G1.1 Rate 1 Bill Impact'!L61 -> 0.03077213038 | L9: =H9-F9-D9 -> 0
C10: ='G1.1 Rate 1 Bill Impact'!C66 -> RATE 1 - General Service Rate - Commercial | D10: ='G1.1 Rate 1 Bill Impact'!J100 -> 24.50718281 | E10: ='G1.1 Rate 1 Bill Impact'!L100 -> 0.0179979713 | F10: ='G1.1 Rate 1 Bill Impact'!J110 -> 3.568874082 | G10: ='G1.1 Rate 1 Bill Impact'!L110 -> 0.06812568 | H10: ='G1.1 Rate 1 Bill Impact'!J117 -> 28.07605689 | I10: ='G1.1 Rate 1 Bill Impact'!L117 -> 0.008310333061 | L10: =H10-F10-D10 -> 0
C11: ='G1.1 Rate 1 Bill Impact'!C122 -> RATE 1 - General Service Rate - Industrial | D11: ='G1.1 Rate 1 Bill Impact'!J156 -> 50.39940817 | E11: ='G1.1 Rate 1 Bill Impact'!L156 -> 0.01354180651 | F11: ='G1.1 Rate 1 Bill Impact'!J166 -> 23.50094761 | G11: ='G1.1 Rate 1 Bill Impact'!L166 -> 0.1569175612 | H11: ='G1.1 Rate 1 Bill Impact'!J173 -> 73.90035578 | I11: ='G1.1 Rate 1 Bill Impact'!L173 -> 0.007187461495 | L11: 0
C13: ='G1.2 Rate 2 Bill Impact'!C10 -> RATE 2 - Seasonal Service - Apr to Oct | D13: ='G1.2 Rate 2 Bill Impact'!J44 -> 28.30540886 | E13: ='G1.2 Rate 2 Bill Impact'!L44 -> 0.02767509577 | F13: ='G1.2 Rate 2 Bill Impact'!J54 -> 5.080352696 | G13: ='G1.2 Rate 2 Bill Impact'!L54 -> 0.1112405216 | H13: ='G1.2 Rate 2 Bill Impact'!J61 -> 33.38576156 | I13: ='G1.2 Rate 2 Bill Impact'!L61 -> 0.01149547785 | L13: 0
C14: ='G1.2 Rate 2 Bill Impact'!C66 -> RATE 2 - Seasonal Service - Nov to Mar | D14: ='G1.2 Rate 2 Bill Impact'!J100 -> 36.97816574 | E14: ='G1.2 Rate 2 Bill Impact'!L100 -> 0.0296477694 | F14: ='G1.2 Rate 2 Bill Impact'!J110 -> 4.451456612 | G14: ='G1.2 Rate 2 Bill Impact'!L110 -> 0.1214902262 | H14: ='G1.2 Rate 2 Bill Impact'!J117 -> 41.42962236 | I14: ='G1.2 Rate 2 Bill Impact'!L117 -> 0.01490986895 | L14: 0
C15: ='G1.2 Rate 2 Bill Impact'!C122 -> RATE 2 - Seasonal Service - Annual | D15: ='G1.2 Rate 2 Bill Impact'!J135 -> 65.2835746 | E15: ='G1.2 Rate 2 Bill Impact'!L135 -> 0.02875896764 | F15: ='G1.2 Rate 2 Bill Impact'!J145 -> 33.33818307 | G15: ='G1.2 Rate 2 Bill Impact'!L145 -> 0.4050298584 | H15: ='G1.2 Rate 2 Bill Impact'!J152 -> 98.62175767 | I15: ='G1.2 Rate 2 Bill Impact'!L152 -> 0.0173540553 | L15: 0
C17: ='G1.3 Rate 3 Bill Impact'!C10 -> RATE 3 - Special Large Volume Contract Rate | D17: ='G1.3 Rate 3 Bill Impact'!J44 -> 651.1605925 | E17: ='G1.3 Rate 3 Bill Impact'!L44 -> 0.02886244135 | F17: ='G1.3 Rate 3 Bill Impact'!J54 -> 201.1968844 | G17: ='G1.3 Rate 3 Bill Impact'!L54 -> 0.1975027913 | H17: ='G1.3 Rate 3 Bill Impact'!J61 -> 852.357477 | I17: ='G1.3 Rate 3 Bill Impact'!L61 -> 0.01223568206 | L17: 0
C19: ='G1.4 Rate 4 Bill Impact'!C10 -> RATE 4 - General Service Peaking - Apr to Dec | D19: ='G1.4 Rate 4 Bill Impact'!J44 -> 120.4632252 | E19: ='G1.4 Rate 4 Bill Impact'!L44 -> 0.02870763741 | F19: ='G1.4 Rate 4 Bill Impact'!J54 -> 76.64785684 | G19: ='G1.4 Rate 4 Bill Impact'!L54 -> 0.4820999897 | H19: ='G1.4 Rate 4 Bill Impact'!J61 -> 197.111082 | I19: ='G1.4 Rate 4 Bill Impact'!L61 -> 0.0174537388 | L19: 0
C20: ='G1.4 Rate 4 Bill Impact'!C66 -> RATE 4 - General Service Peaking - Jan to Mar | D20: ='G1.4 Rate 4 Bill Impact'!J100 -> 59.10751501 | E20: ='G1.4 Rate 4 Bill Impact'!L100 -> 0.02916511614 | F20: ='G1.4 Rate 4 Bill Impact'!J110 -> 8.346231706 | G20: ='G1.4 Rate 4 Bill Impact'!L110 -> 0.1678929044 | H20: ='G1.4 Rate 4 Bill Impact'!J117 -> 67.45374672 | I20: ='G1.4 Rate 4 Bill Impact'!L117 -> 0.01591213745 | L20: 0
C21: ='G1.4 Rate 4 Bill Impact'!C122 -> RATE 4 - General Service Peaking - Annual | D21: ='G1.4 Rate 4 Bill Impact'!J135 -> 179.5707402 | E21: ='G1.4 Rate 4 Bill Impact'!L135 -> 0.02885662836 | F21: ='G1.4 Rate 4 Bill Impact'!J145 -> 35.4015886 | G21: ='G1.4 Rate 4 Bill Impact'!L145 -> 0.1696298025 | H21: ='G1.4 Rate 4 Bill Impact'!J152 -> 214.9723288 | I21: ='G1.4 Rate 4 Bill Impact'!L152 -> 0.01384017855 | L21: 0
C23: ='G1.5 Rate 5 Bill Impact'!C10 -> RATE 5 - Interruptible Peaking Contract Rate | D23: ='G1.5 Rate 5 Bill Impact'!J44 -> 539.3980353 | E23: ='G1.5 Rate 5 Bill Impact'!L44 -> 0.02884031785 | F23: ='G1.5 Rate 5 Bill Impact'!J54 -> 192.430829 | G23: ='G1.5 Rate 5 Bill Impact'!L54 -> 0.197187624 | H23: ='G1.5 Rate 5 Bill Impact'!J61 -> 731.8288644 | I23: ='G1.5 Rate 5 Bill Impact'!L61 -> 0.01146966745 | L23: 0
C25: ='G1.6 Rate 6 Bill Impact'!C10 -> RATE 6 - Integrated Grain Processors Co-Operative Aylmer Ethanol Production Facility | D25: ='G1.6 Rate 6 Bill Impact'!J44 -> 21691.55688 | E25: ='G1.6 Rate 6 Bill Impact'!L44 -> 0.02899953476 | F25: ='G1.6 Rate 6 Bill Impact'!J54 -> -11247.72 | G25: ='G1.6 Rate 6 Bill Impact'!L54 -> -0.9997120246 | H25: ='G1.6 Rate 6 Bill Impact'!J61 -> 10443.83688 | I25: ='G1.6 Rate 6 Bill Impact'!L61 -> 0.01369921346 | L25: 0
C30: =MID(CELL("filename",A1),FIND("]",CELL("filename",A1))+1,255) -> G1.7 Summary of Bill Impacts
A49: REDA | C49: $='G1.1 Rate 1 Bill Impact'!J47 | D49: $='G1.1 Rate 1 Bill Impact'!J99 | E49: $='G1.1 Rate 1 Bill Impact'!J151 | G49: $='G1.2 Rate 2 Bill Impact'!J47 | I49: $='G1.4 Rate 4 Bill Impact'!J47 | J49: $='G1.4 Rate 4 Bill Impact'!J99 | K49: $='G1.4 Rate 4 Bill Impact'!J132 | M49: $='G1.5 Rate 5 Bill Impact'!J47 | O49: $='G1.6 Rate 6 Bill Impact'!J47
A50: PGTVA | C50: $='G1.1 Rate 1 Bill Impact'!J48 | D50: $='G1.1 Rate 1 Bill Impact'!J100 | E50: $='G1.1 Rate 1 Bill Impact'!J152 | G50: $='G1.2 Rate 2 Bill Impact'!J48 | I50: $='G1.4 Rate 4 Bill Impact'!J48 | J50: $='G1.4 Rate 4 Bill Impact'!J100 | K50: $='G1.4 Rate 4 Bill Impact'!J133 | M50: $='G1.5 Rate 5 Bill Impact'!J48 | O50: $='G1.6 Rate 6 Bill Impact'!J48
A51: AVDADA | C51: $='G1.1 Rate 1 Bill Impact'!J49 | D51: $='G1.1 Rate 1 Bill Impact'!J101 | E51: $='G1.1 Rate 1 Bill Impact'!J153 | G51: $='G1.2 Rate 2 Bill Impact'!J49 | I51: $='G1.4 Rate 4 Bill Impact'!J49 | J51: $='G1.4 Rate 4 Bill Impact'!J101 | K51: $='G1.4 Rate 4 Bill Impact'!J134 | M51: $='G1.5 Rate 5 Bill Impact'!J49 | O51: $='G1.6 Rate 6 Bill Impact'!J49
A52: Total | C52: $='G1.1 Rate 1 Bill Impact'!J50 | D52: $='G1.1 Rate 1 Bill Impact'!J102 | E52: $='G1.1 Rate 1 Bill Impact'!J154 | G52: $='G1.2 Rate 2 Bill Impact'!J50 | I52: $='G1.4 Rate 4 Bill Impact'!J50 | J52: $='G1.4 Rate 4 Bill Impact'!J102 | K52: $='G1.4 Rate 4 Bill Impact'!J135 | M52: $='G1.5 Rate 5 Bill Impact'!J50 | O52: $='G1.6 Rate 6 Bill Impact'!J50
A55: REDA | C55: $='G1.1 Rate 1 Bill Impact'!L47 | D55: $='G1.1 Rate 1 Bill Impact'!L99 | E55: $='G1.1 Rate 1 Bill Impact'!L151 | G55: $='G1.2 Rate 2 Bill Impact'!L47 | I55: $='G1.4 Rate 4 Bill Impact'!L47 | J55: $='G1.4 Rate 4 Bill Impact'!L99 | K55: $='G1.4 Rate 4 Bill Impact'!L132 | M55: $='G1.5 Rate 5 Bill Impact'!L47 | O55: $='G1.6 Rate 6 Bill Impact'!L47
A56: PGTVA | C56: $='G1.1 Rate 1 Bill Impact'!L48 | D56: $='G1.1 Rate 1 Bill Impact'!L100 | E56: $='G1.1 Rate 1 Bill Impact'!L152 | G56: $='G1.2 Rate 2 Bill Impact'!L48 | I56: $='G1.4 Rate 4 Bill Impact'!L48 | J56: $='G1.4 Rate 4 Bill Impact'!L100 | K56: $='G1.4 Rate 4 Bill Impact'!L133 | M56: $='G1.5 Rate 5 Bill Impact'!L48 | O56: $='G1.6 Rate 6 Bill Impact'!L48
A57: AVDADA | C57: $='G1.1 Rate 1 Bill Impact'!L49 | D57: $='G1.1 Rate 1 Bill Impact'!L101 | E57: $='G1.1 Rate 1 Bill Impact'!L153 | G57: $='G1.2 Rate 2 Bill Impact'!L49 | I57: $='G1.4 Rate 4 Bill Impact'!L49 | J57: $='G1.4 Rate 4 Bill Impact'!L101 | K57: $='G1.4 Rate 4 Bill Impact'!L134 | M57: $='G1.5 Rate 5 Bill Impact'!L49 | O57: $='G1.6 Rate 6 Bill Impact'!L49
A58: Total | C58: $='G1.1 Rate 1 Bill Impact'!L50 | D58: $='G1.1 Rate 1 Bill Impact'!L102 | E58: $='G1.1 Rate 1 Bill Impact'!L154 | G58: $='G1.2 Rate 2 Bill Impact'!L50 | I58: $='G1.4 Rate 4 Bill Impact'!L50 | J58: $='G1.4 Rate 4 Bill Impact'!L102 | K58: $='G1.4 Rate 4 Bill Impact'!L135 | M58: $='G1.5 Rate 5 Bill Impact'!L50 | O58: $='G1.6 Rate 6 Bill Impact'!L50

Sheet G1.8 Summary of Rate Riders
C2: ='A1.1 Distributor Information'!C3 -> Name of LDC: EPCOR Natural Gas Limited Partnership
C3: ='A1.1 Distributor Information'!C4 -> OEB Application Number: EB-2021-0215 Exhibit A - 2022 IRM Application
C5: Summary of Bill Impacts - Deferral & Variance Accounts
C7: Rate Class | D7: REDA | F7: PGTVA | H7: ADVADA | J7: LDMDA | L7: SICDA | N7: Total
D8: Variance ($) | E8: Variance (%) | F8: Variance ($) | G8: Variance (%) | H8: Variance ($) | I8: Variance (%) | J8: Variance ($) | K8: Variance (%) | L8: Variance ($) | M8: Variance (%) | N8: Variance ($) | O8: Variance (%) | R8: CHECK
C10: ='G1.1 Rate 1 Bill Impact'!C10 -> RATE 1 - General Service Rate - Residential | D10: ='G1.1 Rate 1 Bill Impact'!J49 -> -5.4 | E10: ='G1.1 Rate 1 Bill Impact'!L49 -> -0.5769230769 | F10: ='G1.1 Rate 1 Bill Impact'!J50 -> 0.1531702921 | G10: ='G1.1 Rate 1 Bill Impact'!J50 -> 0.1531702921 | H10: ='G1.1 Rate 1 Bill Impact'!J51 -> -2.822131846 | I10: ='G1.1 Rate 1 Bill Impact'!L51 -> -1 | J10: ='G1.1 Rate 1 Bill Impact'!J52 -> 16.2 | L10: ='G1.1 Rate 1 Bill Impact'!J53 -> 4.439056192 | N10: =D10+F10+H10+J10+L10 -> 12.57009464 | O10: ='G1.7 Summary of Bill Impacts'!G9 -> 0.6980312542 | R10: =N10-'G1.7 Summary of Bill Impacts'!F9 -> 0
C11: ='G1.1 Rate 1 Bill Impact'!C66 -> RATE 1 - General Service Rate - Commercial | D11: ='G1.1 Rate 1 Bill Impact'!J105 -> -5.4 | E11: ='G1.1 Rate 1 Bill Impact'!L105 -> -0.5769230769 | F11: ='G1.1 Rate 1 Bill Impact'!J106 -> 0.7620787309 | G11: ='G1.1 Rate 1 Bill Impact'!L106 -> 0.02629174806 | H11: ='G1.1 Rate 1 Bill Impact'!J107 -> -14.04114744 | I11: ='G1.1 Rate 1 Bill Impact'!L107 -> -1 | J11: ='G1.1 Rate 1 Bill Impact'!J108 -> 0.162 | L11: ='G1.1 Rate 1 Bill Impact'!J109 -> 22.08594279 | N11: =D11+F11+H11+J11+L11 -> 3.568874082 | O11: ='G1.7 Summary of Bill Impacts'!G10 -> 0.06812568 | R11: =N11-'G1.7 Summary of Bill Impacts'!F10 -> 0
C12: ='G1.1 Rate 1 Bill Impact'!C122 -> RATE 1 - General Service Rate - Industrial | D12: ='G1.1 Rate 1 Bill Impact'!J161 -> -5.4 | E12: ='G1.1 Rate 1 Bill Impact'!L161 -> -0.5769230769 | F12: ='G1.1 Rate 1 Bill Impact'!J162 -> 2.486846129 | G12: ='G1.1 Rate 1 Bill Impact'!L162 -> 0.02629174806 | H12: ='G1.1 Rate 1 Bill Impact'!J163 -> -45.81964008 | I12: ='G1.1 Rate 1 Bill Impact'!L163 -> -1 | J12: ='G1.1 Rate 1 Bill Impact'!J164 -> 0.162 | L12: ='G1.1 Rate 1 Bill Impact'!J165 -> 72.07174156 | N12: 23.50094761 | O12: ='G1.7 Summary of Bill Impacts'!G11 -> 0.1569175612 | R12: =N12-'G1.7 Summary of Bill Impacts'!F11 -> 0
C14: ='G1.2 Rate 2 Bill Impact'!C10 -> RATE 2 - Seasonal Service - Apr to Oct | D14: ='G1.2 Rate 2 Bill Impact'!J49 -> -3.15 | E14: ='G1.2 Rate 2 Bill Impact'!L49 -> -0.5769230769 | F14: ='G1.2 Rate 2 Bill Impact'!J50 -> 0.7121910316 | G14: ='G1.2 Rate 2 Bill Impact'!L50 -> 0.02629174806 | H14: ='G1.2 Rate 2 Bill Impact'!J51 -> -13.12197661 | I14: ='G1.2 Rate 2 Bill Impact'!L51 -> -1 | J14: ='G1.2 Rate 2 Bill Impact'!J52 -> 0 | L14: ='G1.2 Rate 2 Bill Impact'!J53 -> 20.64013827 | N14: =D14+F14+H14+J14+L14 -> 5.080352696 | O14: ='G1.7 Summary of Bill Impacts'!G13 -> 0.1112405216 | R14: =N14-'G1.7 Summary of Bill Impacts'!F13 -> 0
C15: ='G1.2 Rate 2 Bill Impact'!C66 -> RATE 2 - Seasonal Service - Nov to Mar | D15: ='G1.2 Rate 2 Bill Impact'!J105 -> -2.25 | E15: ='G1.2 Rate 2 Bill Impact'!L105 -> -0.5769230769 | F15: ='G1.2 Rate 2 Bill Impact'!J106 -> 0.5798921959 | G15: ='G1.2 Rate 2 Bill Impact'!L106 -> 0.02629174806 | H15: ='G1.2 Rate 2 Bill Impact'!J107 -> -10.68439715 | I15: ='G1.2 Rate 2 Bill Impact'!L107 -> -1 | J15: ='G1.2 Rate 2 Bill Impact'!J108 -> 0 | L15: ='G1.2 Rate 2 Bill Impact'!J109 -> 16.80596157 | N15: 4.451456612 | O15: ='G1.7 Summary of Bill Impacts'!G14 -> 0.1214902262 | R15: =N15-'G1.7 Summary of Bill Impacts'!F14 -> 0
C16: ='G1.2 Rate 2 Bill Impact'!C122 -> RATE 2 - Seasonal Service - Annual | D16: ='G1.2 Rate 2 Bill Impact'!J140 -> -5.4 | E16: ='G1.2 Rate 2 Bill Impact'!L140 -> -0.5769230769 | F16: ='G1.2 Rate 2 Bill Impact'!J141 -> 1.292083227 | G16: ='G1.2 Rate 2 Bill Impact'!L141 -> 0.02629174806 | H16: ='G1.2 Rate 2 Bill Impact'!J142 -> 0 | I16: ='G1.2 Rate 2 Bill Impact'!L142 -> 0 | J16: ='G1.2 Rate 2 Bill Impact'!J143 -> 0 | L16: ='G1.2 Rate 2 Bill Impact'!J144 -> 37.44609984 | N16: 33.33818307 | O16: ='G1.7 Summary of Bill Impacts'!G15 -> 0.4050298584 | R16: =N16-'G1.7 Summary of Bill Impacts'!F15 -> 0
C18: ='G1.3 Rate 3 Bill Impact'!C10 -> RATE 3 - Special Large Volume Contract Rate | D18: ='G1.3 Rate 3 Bill Impact'!J49 -> -5.4 | E18: ='G1.3 Rate 3 Bill Impact'!L49 -> -0.5769230769 | F18: ='G1.3 Rate 3 Bill Impact'!J50 -> 17.87729563 | G18: ='G1.3 Rate 3 Bill Impact'!L50 -> 0.02629174806 | H18: ='G1.3 Rate 3 Bill Impact'!J51 -> -329.3855786 | I18: ='G1.3 Rate 3 Bill Impact'!L51 -> -1 | J18: ='G1.3 Rate 3 Bill Impact'!J52 -> 0 | L18: ='G1.3 Rate 3 Bill Impact'!J53 -> 518.1051674 | N18: =D18+F18+H18+J18+L18 -> 201.1968844 | O18: ='G1.7 Summary of Bill Impacts'!G17 -> 0.1975027913 | R18: =N18-'G1.7 Summary of Bill Impacts'!F17 -> 0
C20: ='G1.4 Rate 4 Bill Impact'!C10 -> RATE 4 - General Service Peaking - Apr to Dec | D20: ='G1.4 Rate 4 Bill Impact'!J49 -> -4.05 | E20: ='G1.4 Rate 4 Bill Impact'!L49 -> -0.5769230769 | F20: ='G1.4 Rate 4 Bill Impact'!J50 -> 2.691616877 | G20: ='G1.4 Rate 4 Bill Impact'!L50 -> 0.02629174806 | H20: ='G1.4 Rate 4 Bill Impact'!J51 -> 0 | I20: ='G1.4 Rate 4 Bill Impact'!L51 -> 0 | J20: ='G1.4 Rate 4 Bill Impact'!J52 -> 0 | L20: ='G1.4 Rate 4 Bill Impact'!J53 -> 78.00623996 | N20: =D20+F20+H20+J20+L20 -> 76.64785684 | O20: ='G1.7 Summary of Bill Impacts'!G19 -> 0.4820999897 | R20: =N20-'G1.7 Summary of Bill Impacts'!F19 -> 0
C21: ='G1.4 Rate 4 Bill Impact'!C66 -> RATE 4 - General Service Peaking - Jan to Mar | D21: ='G1.4 Rate 4 Bill Impact'!J105 -> -1.35 | E21: ='G1.4 Rate 4 Bill Impact'!L105 -> -0.5769230769 | F21: ='G1.4 Rate 4 Bill Impact'!J106 -> 0.8390368575 | G21: ='G1.4 Rate 4 Bill Impact'!L106 -> 0.02629174806 | H21: ='G1.4 Rate 4 Bill Impact'!J107 -> -15.45908545 | I21: ='G1.4 Rate 4 Bill Impact'!L107 -> -1 | J21: ='G1.4 Rate 4 Bill Impact'!J108 -> 0 | L21: ='G1.4 Rate 4 Bill Impact'!J109 -> 24.3162803 | N21: 8.346231706 | O21: ='G1.7 Summary of Bill Impacts'!G20 -> 0.1678929044 | R21: =N21-'G1.7 Summary of Bill Impacts'!F20 -> 0
C22: ='G1.4 Rate 4 Bill Impact'!C122 -> RATE 4 - General Service Peaking - Annual | D22: ='G1.4 Rate 4 Bill Impact'!J140 -> -5.4 | E22: ='G1.4 Rate 4 Bill Impact'!L140 -> -0.5769230769 | F22: ='G1.4 Rate 4 Bill Impact'!J141 -> 3.530653734 | G22: ='G1.4 Rate 4 Bill Impact'!L141 -> 0.02629174806 | H22: ='G1.4 Rate 4 Bill Impact'!J142 -> -65.0515854 | I22: ='G1.4 Rate 4 Bill Impact'!L142 -> -1 | J22: ='G1.4 Rate 4 Bill Impact'!J143 -> 0 | L22: ='G1.4 Rate 4 Bill Impact'!J144 -> 102.3225203 | N22: 35.4015886 | O22: ='G1.7 Summary of Bill Impacts'!G21 -> 0.1696298025 | R22: =N22-'G1.7 Summary of Bill Impacts'!F21 -> 0
C24: ='G1.5 Rate 5 Bill Impact'!C10 -> RATE 5 - Interruptible Peaking Contract Rate | D24: ='G1.5 Rate 5 Bill Impact'!J49 -> -5.4 | E24: ='G1.5 Rate 5 Bill Impact'!L49 -> -0.5769230769 | F24: ='G1.5 Rate 5 Bill Impact'!J50 -> 17.11874903 | G24: ='G1.5 Rate 5 Bill Impact'!L50 -> 0.02629174806 | H24: ='G1.5 Rate 5 Bill Impact'!J51 -> -315.40951 | I24: ='G1.5 Rate 5 Bill Impact'!L51 -> -1 | J24: ='G1.5 Rate 5 Bill Impact'!J52 -> 0 | L24: ='G1.5 Rate 5 Bill Impact'!J53 -> 496.12159 | N24: =D24+F24+H24+J24+L24 -> 192.430829 | O24: ='G1.7 Summary of Bill Impacts'!G23 -> 0.197187624 | R24: =N24-'G1.7 Summary of Bill Impacts'!F23 -> 0
C26: ='G1.6 Rate 6 Bill Impact'!C10 -> RATE 6 - Integrated Grain Processors Co-Operative Aylmer Ethanol Production Facility | D26: ='G1.6 Rate 6 Bill Impact'!J49 -> -5.76 | E26: ='G1.6 Rate 6 Bill Impact'!L49 -> -0.64 | F26: ='G1.6 Rate 6 Bill Impact'!J50 -> 0 | G26: ='G1.6 Rate 6 Bill Impact'!L50 ->  | H26: ='G1.6 Rate 6 Bill Impact'!J51 -> -11241.96 | I26: ='G1.6 Rate 6 Bill Impact'!L51 -> -1 | J26: ='G1.6 Rate 6 Bill Impact'!J52 -> 0 | L26: ='G1.6 Rate 6 Bill Impact'!J53 -> 0 | N26: =D26+F26+H26+J26+L26 -> -11247.72 | O26: ='G1.7 Summary of Bill Impacts'!G25 -> -0.9997120246 | R26: =N26-'G1.7 Summary of Bill Impacts'!F25 -> 0
C31: =MID(CELL("filename",A1),FIND("]",CELL("filename",A1))+1,255) -> G1.8 Summary of Rate Riders
A50: REDA | C50: $='G1.1 Rate 1 Bill Impact'!J47 | D50: $='G1.1 Rate 1 Bill Impact'!J99 | E50: $='G1.1 Rate 1 Bill Impact'!J151 | G50: $='G1.2 Rate 2 Bill Impact'!J47 | H50: $='G1.1 Rate 1 Bill Impact'!J99 | I50: $='G1.1 Rate 1 Bill Impact'!J151 | K50: $='G1.2 Rate 2 Bill Impact'!J47 | M50: $='G1.4 Rate 4 Bill Impact'!J47 | O50: $='G1.4 Rate 4 Bill Impact'!J47 | P50: $='G1.4 Rate 4 Bill Impact'!J99 | Q50: $='G1.4 Rate 4 Bill Impact'!J132 | S50: $='G1.5 Rate 5 Bill Impact'!J47 | U50: $='G1.6 Rate 6 Bill Impact'!J47
A51: PGTVA | C51: $='G1.1 Rate 1 Bill Impact'!J48 | D51: $='G1.1 Rate 1 Bill Impact'!J100 | E51: $='G1.1 Rate 1 Bill Impact'!J152 | G51: $='G1.2 Rate 2 Bill Impact'!J48 | H51: $='G1.1 Rate 1 Bill Impact'!J100 | I51: $='G1.1 Rate 1 Bill Impact'!J152 | K51: $='G1.2 Rate 2 Bill Impact'!J48 | M51: $='G1.4 Rate 4 Bill Impact'!J48 | O51: $='G1.4 Rate 4 Bill Impact'!J48 | P51: $='G1.4 Rate 4 Bill Impact'!J100 | Q51: $='G1.4 Rate 4 Bill Impact'!J133 | S51: $='G1.5 Rate 5 Bill Impact'!J48 | U51: $='G1.6 Rate 6 Bill Impact'!J48
A52: AVDADA | C52: $='G1.1 Rate 1 Bill Impact'!J49 | D52: $='G1.1 Rate 1 Bill Impact'!J101 | E52: $='G1.1 Rate 1 Bill Impact'!J153 | G52: $='G1.2 Rate 2 Bill Impact'!J49 | H52: $='G1.1 Rate 1 Bill Impact'!J101 | I52: $='G1.1 Rate 1 Bill Impact'!J153 | K52: $='G1.2 Rate 2 Bill Impact'!J49 | M52: $='G1.4 Rate 4 Bill Impact'!J49 | O52: $='G1.4 Rate 4 Bill Impact'!J49 | P52: $='G1.4 Rate 4 Bill Impact'!J101 | Q52: $='G1.4 Rate 4 Bill Impact'!J134 | S52: $='G1.5 Rate 5 Bill Impact'!J49 | U52: $='G1.6 Rate 6 Bill Impact'!J49
A53: Total | C53: $='G1.1 Rate 1 Bill Impact'!J50 | D53: $='G1.1 Rate 1 Bill Impact'!J102 | E53: $='G1.1 Rate 1 Bill Impact'!J154 | G53: $='G1.2 Rate 2 Bill Impact'!J50 | H53: $='G1.1 Rate 1 Bill Impact'!J102 | I53: $='G1.1 Rate 1 Bill Impact'!J154 | K53: $='G1.2 Rate 2 Bill Impact'!J50 | M53: $='G1.4 Rate 4 Bill Impact'!J50 | O53: $='G1.4 Rate 4 Bill Impact'!J50 | P53: $='G1.4 Rate 4 Bill Impact'!J102 | Q53: $='G1.4 Rate 4 Bill Impact'!J135 | S53: $='G1.5 Rate 5 Bill Impact'!J50 | U53: $='G1.6 Rate 6 Bill Impact'!J50
A56: REDA | C56: $='G1.1 Rate 1 Bill Impact'!L47 | D56: $='G1.1 Rate 1 Bill Impact'!L99 | E56: $='G1.1 Rate 1 Bill Impact'!L151 | G56: $='G1.2 Rate 2 Bill Impact'!L47 | H56: $='G1.1 Rate 1 Bill Impact'!L99 | I56: $='G1.1 Rate 1 Bill Impact'!L151 | K56: $='G1.2 Rate 2 Bill Impact'!L47 | M56: $='G1.4 Rate 4 Bill Impact'!L47 | O56: $='G1.4 Rate 4 Bill Impact'!L47 | P56: $='G1.4 Rate 4 Bill Impact'!L99 | Q56: $='G1.4 Rate 4 Bill Impact'!L132 | S56: $='G1.5 Rate 5 Bill Impact'!L47 | U56: $='G1.6 Rate 6 Bill Impact'!L47
A57: PGTVA | C57: $='G1.1 Rate 1 Bill Impact'!L48 | D57: $='G1.1 Rate 1 Bill Impact'!L100 | E57: $='G1.1 Rate 1 Bill Impact'!L152 | G57: $='G1.2 Rate 2 Bill Impact'!L48 | H57: $='G1.1 Rate 1 Bill Impact'!L100 | I57: $='G1.1 Rate 1 Bill Impact'!L152 | K57: $='G1.2 Rate 2 Bill Impact'!L48 | M57: $='G1.4 Rate 4 Bill Impact'!L48 | O57: $='G1.4 Rate 4 Bill Impact'!L48 | P57: $='G1.4 Rate 4 Bill Impact'!L100 | Q57: $='G1.4 Rate 4 Bill Impact'!L133 | S57: $='G1.5 Rate 5 Bill Impact'!L48 | U57: $='G1.6 Rate 6 Bill Impact'!L48
A58: AVDADA | C58: $='G1.1 Rate 1 Bill Impact'!L49 | D58: $='G1.1 Rate 1 Bill Impact'!L101 | E58: $='G1.1 Rate 1 Bill Impact'!L153 | G58: $='G1.2 Rate 2 Bill Impact'!L49 | H58: $='G1.1 Rate 1 Bill Impact'!L101 | I58: $='G1.1 Rate 1 Bill Impact'!L153 | K58: $='G1.2 Rate 2 Bill Impact'!L49 | M58: $='G1.4 Rate 4 Bill Impact'!L49 | O58: $='G1.4 Rate 4 Bill Impact'!L49 | P58: $='G1.4 Rate 4 Bill Impact'!L101 | Q58: $='G1.4 Rate 4 Bill Impact'!L134 | S58: $='G1.5 Rate 5 Bill Impact'!L49 | U58: $='G1.6 Rate 6 Bill Impact'!L49
A59: Total | C59: $='G1.1 Rate 1 Bill Impact'!L50 | D59: $='G1.1 Rate 1 Bill Impact'!L102 | E59: $='G1.1 Rate 1 Bill Impact'!L154 | G59: $='G1.2 Rate 2 Bill Impact'!L50 | H59: $='G1.1 Rate 1 Bill Impact'!L102 | I59: $='G1.1 Rate 1 Bill Impact'!L154 | K59: $='G1.2 Rate 2 Bill Impact'!L50 | M59: $='G1.4 Rate 4 Bill Impact'!L50 | O59: $='G1.4 Rate 4 Bill Impact'!L50 | P59: $='G1.4 Rate 4 Bill Impact'!L102 | Q59: $='G1.4 Rate 4 Bill Impact'!L135 | S59: $='G1.5 Rate 5 Bill Impact'!L50 | U59: $='G1.6 Rate 6 Bill Impact'!L50
